Workbook

Sheet Report - ALL (DASHBOARD)
A1: Dashboard | B1: Select Parameter: | F1: Select Statistic: | I1: Select Seasonal Period: | W1: 10
L2: Notes | W2: 1
L3: - year type sorting is done by calendar year | W3: 12
L4: - year type sorting is provided for historical 40-30-30 index | W4: FALSE
B12: =CONCATENATE('Report Data'!$P$7," / seasonal statistics (",$W$1,"-",$W$2,"-",$W$3,"-",IF(NOT($W$4),1,2),"a):") -> Sacramento River Below Clear Creek Temperature / seasonal statistics (10-1-12-1a):
C16: ='Report Data'!P6 -> September
C17: ='Report Data'!P7 -> Sacramento River Below Clear Creek Temperature
C18: ='Report Data'!P9 -> (BLW CLEAR CREEK/TEMP)
C19: ='Report Data'!P8 -> Averages
C20: ='Report Data'!P11 -> TEMPERATURE (deg F) | F20: =CONCATENATE("Difference from ",'Report Data'!Q13) -> Difference from NAA 041122 2035CT
C24: ='Report Data'!O14 -> NAA 041122 2035CT | E24: ='Report Data'!P14 -> 53.03122358
C25: ='Report Data'!O15 -> ALT3A 041122 2035CT | E25: ='Report Data'!P15 -> 52.69436962 | F25: ='Report Data'!Q15 -> -0.3368539578
C26: ='Report Data'!O16 -> ALT3B 041122 2035CT | E26: ='Report Data'!P16 -> 52.7511953 | F26: ='Report Data'!Q16 -> -0.2800282734
C27: =IF(LEFT('Report Data'!O17,5)="EXTRA","",'Report Data'!O17) ->  | E27: =IF(C27="","",'Report Data'!P17) ->  | F27: =IF(D27="","",'Report Data'!Q17) ->  | G27: =IF(E27="","",'Report Data'!R17) -> 
C28: =IF(LEFT('Report Data'!O18,5)="EXTRA","",'Report Data'!O18) ->  | E28: =IF(C28="","",'Report Data'!P18) ->  | F28: =IF(D28="","",'Report Data'!Q18) ->  | G28: =IF(E28="","",'Report Data'!R18) -> 
C29: =IF(LEFT('Report Data'!O19,5)="EXTRA","",'Report Data'!O19) ->  | E29: =IF(C29="","",'Report Data'!P19) ->  | F29: =IF(D29="","",'Report Data'!Q19) ->  | G29: =IF(E29="","",'Report Data'!R19) -> 
B59: =CONCATENATE('Report Data'!$P$7," / monthly statistics (",$W$1,"-",$W$2,"-",$W$3,"-",IF(NOT($W$4),1,2),"b):") -> Sacramento River Below Clear Creek Temperature / monthly statistics (10-1-12-1b):
B87: =CONCATENATE('Report Data'!$P$7," / time series (",$W$1,"-",$W$2,"-",$W$3,"-",IF(NOT($W$4),1,2),"c):") -> Sacramento River Below Clear Creek Temperature / time series (10-1-12-1c):

Sheet Chart - Prob Exc

Sheet Chart - Pattern

Sheet Report Data
A2: Information, Tables and Calculations for Reports
A4: Table of Selected Values for Monthly Chart: | O4: Trend Evaluation:
A6: Title: | B6: ='Compile Data'!$B$5 -> Sacramento River Below Clear Creek Temperature | O6: Title: | P6: =INDEX(Other!$B$9:$B$31,'Report - ALL (DASHBOARD)'!$W$3) -> September
B7: =INDEX(Other!$C$9:$C$33,'Report - ALL (DASHBOARD)'!$W$2) -> Averages | P7: ='Compile Data'!$B$5 -> Sacramento River Below Clear Creek Temperature
B8: =CONCATENATE("(",'Compile Data'!$B$6,"/",'Compile Data'!$B$7,")") -> (BLW CLEAR CREEK/TEMP) | P8: =CONCATENATE(INDEX(Other!$C$9:$C$33,'Report - ALL (DASHBOARD)'!$W$2)," ",IF('Report - ALL (DASHBOARD)'!$W$2>4,IF(AND('Compile Data'!$B$10="TAF",'Compile Data'!$B$8="PER-AVER"),"Totals","Averages"),"")) -> Averages
P9: =CONCATENATE("(",'Compile Data'!$B$6,"/",'Compile Data'!$B$7,")") -> (BLW CLEAR CREEK/TEMP)
A11: Y-axis: | B11: =IF('Compile Data'!$B$10="CFS","Flow (CFS)",IF('Compile Data'!$B$10="TAF","Volume (TAF)",IF('Compile Data'!$B$10="KM","POSITION (KM)",IF(OR('Compile Data'!$B$10="DEGF",'Compile Data'!$B$10="DEG-F"),"TEMPERATURE (deg F)","")))) -> TEMPERATURE (deg F) | P11: =IF('Compile Data'!$B$10="CFS","Flow (CFS)",IF('Compile Data'!$B$10="TAF","Volume (TAF)",IF('Compile Data'!$B$10="KM","POSITION (KM)",IF(OR('Compile Data'!$B$10="DEGF",'Compile Data'!$B$10="DEG-F"),"TEMPERATURE (deg F)","")))) -> TEMPERATURE (deg F)
Q12: Diff from | R12: Diff from
B13: OCT | C13: NOV | D13: DEC | E13: JAN | F13: FEB | G13: MAR | H13: APR | I13: MAY | J13: JUN | K13: JUL | L13: AUG | M13: SEP | P13: Value | Q13: =$O$14 -> NAA 041122 2035CT | R13: =O15 -> ALT3A 041122 2035CT
A14: ='Compile Data'!$B$1 -> NAA 041122 2035CT | B14: =INDEX('Compile Data'!J$95:J$120,'Report - ALL (DASHBOARD)'!$W$2) -> 53.40791636 | C14: =INDEX('Compile Data'!K$95:K$120,'Report - ALL (DASHBOARD)'!$W$2) -> 54.39782903 | D14: =INDEX('Compile Data'!L$95:L$120,'Report - ALL (DASHBOARD)'!$W$2) -> 52.30192674 | E14: =INDEX('Compile Data'!M$95:M$120,'Report - ALL (DASHBOARD)'!$W$2) -> 48.51421054 | F14: =INDEX('Compile Data'!N$95:N$120,'Report - ALL (DASHBOARD)'!$W$2) -> 47.63205738 | G14: =INDEX('Compile Data'!O$95:O$120,'Report - ALL (DASHBOARD)'!$W$2) -> 49.50118674 | H14: =INDEX('Compile Data'!P$95:P$120,'Report - ALL (DASHBOARD)'!$W$2) -> 53.13646307 | I14: =INDEX('Compile Data'!Q$95:Q$120,'Report - ALL (DASHBOARD)'!$W$2) -> 53.6874251 | J14: =INDEX('Compile Data'!R$95:R$120,'Report - ALL (DASHBOARD)'!$W$2) -> 53.20613977 | K14: =INDEX('Compile Data'!S$95:S$120,'Report - ALL (DASHBOARD)'!$W$2) -> 52.99491887 | L14: =INDEX('Compile Data'!T$95:T$120,'Report - ALL (DASHBOARD)'!$W$2) -> 52.64602894 | M14: =INDEX('Compile Data'!U$95:U$120,'Report - ALL (DASHBOARD)'!$W$2) -> 53.03122358 | O14: ='Compile Data'!$B$1 -> NAA 041122 2035CT | P14: =INDEX('Compile Data'!$J$95:$AE$120,'Report - ALL (DASHBOARD)'!$W$2,'Report - ALL (DASHBOARD)'!$W$3) -> 53.03122358
A15: ='Compile Data'!$C$1 -> ALT3A 041122 2035CT | B15: =INDEX('Compile Data'!AH$95:AH$120,'Report - ALL (DASHBOARD)'!$W$2) -> 53.10973236 | C15: =INDEX('Compile Data'!AI$95:AI$120,'Report - ALL (DASHBOARD)'!$W$2) -> 54.33148895 | D15: =INDEX('Compile Data'!AJ$95:AJ$120,'Report - ALL (DASHBOARD)'!$W$2) -> 52.26559919 | E15: =INDEX('Compile Data'!AK$95:AK$120,'Report - ALL (DASHBOARD)'!$W$2) -> 48.51131374 | F15: =INDEX('Compile Data'!AL$95:AL$120,'Report - ALL (DASHBOARD)'!$W$2) -> 47.69085186 | G15: =INDEX('Compile Data'!AM$95:AM$120,'Report - ALL (DASHBOARD)'!$W$2) -> 49.50214716 | H15: =INDEX('Compile Data'!AN$95:AN$120,'Report - ALL (DASHBOARD)'!$W$2) -> 53.18228689 | I15: =INDEX('Compile Data'!AO$95:AO$120,'Report - ALL (DASHBOARD)'!$W$2) -> 53.79084559 | J15: =INDEX('Compile Data'!AP$95:AP$120,'Report - ALL (DASHBOARD)'!$W$2) -> 53.35610185 | K15: =INDEX('Compile Data'!AQ$95:AQ$120,'Report - ALL (DASHBOARD)'!$W$2) -> 53.04657834 | L15: =INDEX('Compile Data'!AR$95:AR$120,'Report - ALL (DASHBOARD)'!$W$2) -> 52.63000679 | M15: =INDEX('Compile Data'!AS$95:AS$120,'Report - ALL (DASHBOARD)'!$W$2) -> 52.69436962 | O15: ='Compile Data'!$C$1 -> ALT3A 041122 2035CT | P15: =INDEX('Compile Data'!$AH$95:$BC$120,'Report - ALL (DASHBOARD)'!$W$2,'Report - ALL (DASHBOARD)'!$W$3) -> 52.69436962 | Q15: =$P15-$P$14 -> -0.3368539578
A16: ='Compile Data'!$D$1 -> ALT3B 041122 2035CT | B16: =INDEX('Compile Data'!BF$95:BF$120,'Report - ALL (DASHBOARD)'!$W$2) -> 53.19800247 | C16: =INDEX('Compile Data'!BG$95:BG$120,'Report - ALL (DASHBOARD)'!$W$2) -> 54.32475917 | D16: =INDEX('Compile Data'!BH$95:BH$120,'Report - ALL (DASHBOARD)'!$W$2) -> 52.27985354 | E16: =INDEX('Compile Data'!BI$95:BI$120,'Report - ALL (DASHBOARD)'!$W$2) -> 48.51329897 | F16: =INDEX('Compile Data'!BJ$95:BJ$120,'Report - ALL (DASHBOARD)'!$W$2) -> 47.66527716 | G16: =INDEX('Compile Data'!BK$95:BK$120,'Report - ALL (DASHBOARD)'!$W$2) -> 49.50380981 | H16: =INDEX('Compile Data'!BL$95:BL$120,'Report - ALL (DASHBOARD)'!$W$2) -> 53.18811928 | I16: =INDEX('Compile Data'!BM$95:BM$120,'Report - ALL (DASHBOARD)'!$W$2) -> 53.80997225 | J16: =INDEX('Compile Data'!BN$95:BN$120,'Report - ALL (DASHBOARD)'!$W$2) -> 53.33287862 | K16: =INDEX('Compile Data'!BO$95:BO$120,'Report - ALL (DASHBOARD)'!$W$2) -> 53.04282128 | L16: =INDEX('Compile Data'!BP$95:BP$120,'Report - ALL (DASHBOARD)'!$W$2) -> 52.57720398 | M16: =INDEX('Compile Data'!BQ$95:BQ$120,'Report - ALL (DASHBOARD)'!$W$2) -> 52.7511953 | O16: ='Compile Data'!$D$1 -> ALT3B 041122 2035CT | P16: =INDEX('Compile Data'!$BF$95:$CA$120,'Report - ALL (DASHBOARD)'!$W$2,'Report - ALL (DASHBOARD)'!$W$3) -> 52.7511953 | Q16: =$P16-$P$14 -> -0.2800282734
A17: ='Compile Data'!$E$1 -> EXTRA1 | B17: =INDEX('Compile Data'!CD$95:CD$120,'Report - ALL (DASHBOARD)'!$W$2) -> 0 | C17: =INDEX('Compile Data'!CE$95:CE$120,'Report - ALL (DASHBOARD)'!$W$2) -> 0 | D17: =INDEX('Compile Data'!CF$95:CF$120,'Report - ALL (DASHBOARD)'!$W$2) -> 0 | E17: =INDEX('Compile Data'!CG$95:CG$120,'Report - ALL (DASHBOARD)'!$W$2) -> 0 | F17: =INDEX('Compile Data'!CH$95:CH$120,'Report - ALL (DASHBOARD)'!$W$2) -> 0 | G17: =INDEX('Compile Data'!CI$95:CI$120,'Report - ALL (DASHBOARD)'!$W$2) -> 0 | H17: =INDEX('Compile Data'!CJ$95:CJ$120,'Report - ALL (DASHBOARD)'!$W$2) -> 0 | I17: =INDEX('Compile Data'!CK$95:CK$120,'Report - ALL (DASHBOARD)'!$W$2) -> 0 | J17: =INDEX('Compile Data'!CL$95:CL$120,'Report - ALL (DASHBOARD)'!$W$2) -> 0 | K17: =INDEX('Compile Data'!CM$95:CM$120,'Report - ALL (DASHBOARD)'!$W$2) -> 0 | L17: =INDEX('Compile Data'!CN$95:CN$120,'Report - ALL (DASHBOARD)'!$W$2) -> 0 | M17: =INDEX('Compile Data'!CO$95:CO$120,'Report - ALL (DASHBOARD)'!$W$2) -> 0 | O17: ='Compile Data'!$E$1 -> EXTRA1 | P17: =INDEX('Compile Data'!$CD$95:$CY$120,'Report - ALL (DASHBOARD)'!$W$2,'Report - ALL (DASHBOARD)'!$W$3) -> 0 | Q17: -53.03122358
A18: ='Compile Data'!$F$1 -> EXTRA2 | B18: =INDEX('Compile Data'!DB$95:DB$120,'Report - ALL (DASHBOARD)'!$W$2) -> 0 | C18: =INDEX('Compile Data'!DC$95:DC$120,'Report - ALL (DASHBOARD)'!$W$2) -> 0 | D18: =INDEX('Compile Data'!DD$95:DD$120,'Report - ALL (DASHBOARD)'!$W$2) -> 0 | E18: =INDEX('Compile Data'!DE$95:DE$120,'Report - ALL (DASHBOARD)'!$W$2) -> 0 | F18: =INDEX('Compile Data'!DF$95:DF$120,'Report - ALL (DASHBOARD)'!$W$2) -> 0 | G18: =INDEX('Compile Data'!DG$95:DG$120,'Report - ALL (DASHBOARD)'!$W$2) -> 0 | H18: =INDEX('Compile Data'!DH$95:DH$120,'Report - ALL (DASHBOARD)'!$W$2) -> 0 | I18: =INDEX('Compile Data'!DI$95:DI$120,'Report - ALL (DASHBOARD)'!$W$2) -> 0 | J18: =INDEX('Compile Data'!DJ$95:DJ$120,'Report - ALL (DASHBOARD)'!$W$2) -> 0 | K18: =INDEX('Compile Data'!DK$95:DK$120,'Report - ALL (DASHBOARD)'!$W$2) -> 0 | L18: =INDEX('Compile Data'!DL$95:DL$120,'Report - ALL (DASHBOARD)'!$W$2) -> 0 | M18: =INDEX('Compile Data'!DM$95:DM$120,'Report - ALL (DASHBOARD)'!$W$2) -> 0 | O18: ='Compile Data'!$F$1 -> EXTRA2 | P18: =INDEX('Compile Data'!$DB$95:$DW$120,'Report - ALL (DASHBOARD)'!$W$2,'Report - ALL (DASHBOARD)'!$W$3) -> 0 | Q18: -53.03122358 | R18: =P18-$P$15 -> -52.69436962
A19: ='Compile Data'!$G$1 -> EXTRA3 | B19: =INDEX('Compile Data'!DZ$95:DZ$120,'Report - ALL (DASHBOARD)'!$W$2) -> 0 | C19: =INDEX('Compile Data'!EA$95:EA$120,'Report - ALL (DASHBOARD)'!$W$2) -> 0 | D19: =INDEX('Compile Data'!EB$95:EB$120,'Report - ALL (DASHBOARD)'!$W$2) -> 0 | E19: =INDEX('Compile Data'!EC$95:EC$120,'Report - ALL (DASHBOARD)'!$W$2) -> 0 | F19: =INDEX('Compile Data'!ED$95:ED$120,'Report - ALL (DASHBOARD)'!$W$2) -> 0 | G19: =INDEX('Compile Data'!EE$95:EE$120,'Report - ALL (DASHBOARD)'!$W$2) -> 0 | H19: =INDEX('Compile Data'!EF$95:EF$120,'Report - ALL (DASHBOARD)'!$W$2) -> 0 | I19: =INDEX('Compile Data'!EG$95:EG$120,'Report - ALL (DASHBOARD)'!$W$2) -> 0 | J19: =INDEX('Compile Data'!EH$95:EH$120,'Report - ALL (DASHBOARD)'!$W$2) -> 0 | K19: =INDEX('Compile Data'!EI$95:EI$120,'Report - ALL (DASHBOARD)'!$W$2) -> 0 | L19: =INDEX('Compile Data'!EJ$95:EJ$120,'Report - ALL (DASHBOARD)'!$W$2) -> 0 | M19: =INDEX('Compile Data'!EK$95:EK$120,'Report - ALL (DASHBOARD)'!$W$2) -> 0 | O19: ='Compile Data'!$G$1 -> EXTRA3 | P19: =INDEX('Compile Data'!$DZ$95:$EU$120,'Report - ALL (DASHBOARD)'!$W$2,'Report - ALL (DASHBOARD)'!$W$3) -> 0 | Q19: =$P19-$P$14 -> -53.03122358 | R19: =P19-$P$15 -> -52.69436962
A22: Annuals Plot: | O22: Exceedence Plot:
A24: Title: | B24: =INDEX(Other!$B$9:$B$31,'Report - ALL (DASHBOARD)'!$W$3) -> September | O24: Title: | P24: =INDEX(Other!$B$9:$B$31,'Report - ALL (DASHBOARD)'!$W$3) -> September
B25: ='Compile Data'!$B$5 -> Sacramento River Below Clear Creek Temperature | P25: ='Compile Data'!$B$5 -> Sacramento River Below Clear Creek Temperature
B26: =IF('Compile Data'!$B$10="CFS","Flow (CFS)",IF('Compile Data'!$B$10="TAF","Volume (TAF)",IF('Compile Data'!$B$10="KM","POSITION (KM)",IF(OR('Compile Data'!$B$10="DEGF",'Compile Data'!$B$10="DEG-F"),"TEMPERATURE (deg F)","")))) -> TEMPERATURE (deg F) | P26: =IF('Compile Data'!$B$10="CFS","Flow (CFS)",IF('Compile Data'!$B$10="TAF","Volume (TAF)",IF('Compile Data'!$B$10="KM","POSITION (KM)",IF(OR('Compile Data'!$B$10="DEGF",'Compile Data'!$B$10="DEG-F"),"TEMPERATURE (deg F)","")))) -> TEMPERATURE (deg F)
B28: ='Compile Data'!$B$1 -> NAA 041122 2035CT | C28: ='Compile Data'!$C$1 -> ALT3A 041122 2035CT | D28: ='Compile Data'!$D$1 -> ALT3B 041122 2035CT | Q28: ='Compile Data'!$B$1 -> NAA 041122 2035CT | R28: ='Compile Data'!$C$1 -> ALT3A 041122 2035CT | S28: ='Compile Data'!$D$1 -> ALT3B 041122 2035CT | T28: ='Compile Data'!$E$1 -> EXTRA1 | U28: ='Compile Data'!F1 -> EXTRA2 | V28: ='Compile Data'!G1 -> EXTRA3
A29: 1922 | B29: =INDEX('Compile Data'!$J$12:$AE$93,$A29-1921,'Report - ALL (DASHBOARD)'!$W$3) -> 51.92146301 | C29: =INDEX('Compile Data'!$AH$12:$BC$93,$A29-1921,'Report - ALL (DASHBOARD)'!$W$3) -> 50.9850235 | D29: =INDEX('Compile Data'!$BF$12:$CA$93,$A29-1921,'Report - ALL (DASHBOARD)'!$W$3) -> 50.98510742 | O29: 1 | P29: =(O29-1)/81 -> 0 | Q29: =INDEX('Compile Data'!$J$123:$AE$204,$O29,'Report - ALL (DASHBOARD)'!$W$3) -> 63.52586365 | R29: =INDEX('Compile Data'!$AH$123:$BC$204,$O29,'Report - ALL (DASHBOARD)'!$W$3) -> 58.54779053 | S29: =INDEX('Compile Data'!$BF$123:$CA$204,$O29,'Report - ALL (DASHBOARD)'!$W$3) -> 59.35501862 | T29: =INDEX('Compile Data'!$CD$123:$CY$204,$O29,'Report - ALL (DASHBOARD)'!$W$3) -> 0 | U29: =INDEX('Compile Data'!$DB$123:$DW$204,$O29,'Report - ALL (DASHBOARD)'!$W$3) -> 0 | V29: =INDEX('Compile Data'!$DZ$123:$EU$204,$O29,'Report - ALL (DASHBOARD)'!$W$3) -> 0
A30: =A29+1 -> 1923 | B30: =INDEX('Compile Data'!$J$12:$AE$93,$A30-1921,'Report - ALL (DASHBOARD)'!$W$3) -> 53.56455994 | C30: =INDEX('Compile Data'!$AH$12:$BC$93,$A30-1921,'Report - ALL (DASHBOARD)'!$W$3) -> 53.12665558 | D30: =INDEX('Compile Data'!$BF$12:$CA$93,$A30-1921,'Report - ALL (DASHBOARD)'!$W$3) -> 53.62259293 | O30: 2 | P30: 0.01234567901 | Q30: =INDEX('Compile Data'!$J$123:$AE$204,$O30,'Report - ALL (DASHBOARD)'!$W$3) -> 62.12483978 | R30: =INDEX('Compile Data'!$AH$123:$BC$204,$O30,'Report - ALL (DASHBOARD)'!$W$3) -> 57.65580368 | S30: =INDEX('Compile Data'!$BF$123:$CA$204,$O30,'Report - ALL (DASHBOARD)'!$W$3) -> 58.13283157 | T30: =INDEX('Compile Data'!$CD$123:$CY$204,$O30,'Report - ALL (DASHBOARD)'!$W$3) -> 0 | U30: =INDEX('Compile Data'!$DB$123:$DW$204,$O30,'Report - ALL (DASHBOARD)'!$W$3) -> 0 | V30: =INDEX('Compile Data'!$DZ$123:$EU$204,$O30,'Report - ALL (DASHBOARD)'!$W$3) -> 0
A31: =A30+1 -> 1924 | B31: =INDEX('Compile Data'!$J$12:$AE$93,$A31-1921,'Report - ALL (DASHBOARD)'!$W$3) -> 56.61570358 | C31: =INDEX('Compile Data'!$AH$12:$BC$93,$A31-1921,'Report - ALL (DASHBOARD)'!$W$3) -> 55.76191711 | D31: =INDEX('Compile Data'!$BF$12:$CA$93,$A31-1921,'Report - ALL (DASHBOARD)'!$W$3) -> 56.07388687 | O31: 3 | P31: 0.02469135802 | Q31: =INDEX('Compile Data'!$J$123:$AE$204,$O31,'Report - ALL (DASHBOARD)'!$W$3) -> 57.99652481 | R31: =INDEX('Compile Data'!$AH$123:$BC$204,$O31,'Report - ALL (DASHBOARD)'!$W$3) -> 56.48462677 | S31: =INDEX('Compile Data'!$BF$123:$CA$204,$O31,'Report - ALL (DASHBOARD)'!$W$3) -> 56.48501968 | T31: =INDEX('Compile Data'!$CD$123:$CY$204,$O31,'Report - ALL (DASHBOARD)'!$W$3) -> 0 | U31: =INDEX('Compile Data'!$DB$123:$DW$204,$O31,'Report - ALL (DASHBOARD)'!$W$3) -> 0 | V31: =INDEX('Compile Data'!$DZ$123:$EU$204,$O31,'Report - ALL (DASHBOARD)'!$W$3) -> 0
A32: 1925 | B32: =INDEX('Compile Data'!$J$12:$AE$93,$A32-1921,'Report - ALL (DASHBOARD)'!$W$3) -> 51.47712326 | C32: =INDEX('Compile Data'!$AH$12:$BC$93,$A32-1921,'Report - ALL (DASHBOARD)'!$W$3) -> 51.5223732 | D32: =INDEX('Compile Data'!$BF$12:$CA$93,$A32-1921,'Report - ALL (DASHBOARD)'!$W$3) -> 51.49492264 | O32: 4 | P32: 0.03703703704 | Q32: =INDEX('Compile Data'!$J$123:$AE$204,$O32,'Report - ALL (DASHBOARD)'!$W$3) -> 56.61570358 | R32: =INDEX('Compile Data'!$AH$123:$BC$204,$O32,'Report - ALL (DASHBOARD)'!$W$3) -> 56.23894501 | S32: =INDEX('Compile Data'!$BF$123:$CA$204,$O32,'Report - ALL (DASHBOARD)'!$W$3) -> 56.27095795 | T32: =INDEX('Compile Data'!$CD$123:$CY$204,$O32,'Report - ALL (DASHBOARD)'!$W$3) -> 0 | U32: =INDEX('Compile Data'!$DB$123:$DW$204,$O32,'Report - ALL (DASHBOARD)'!$W$3) -> 0 | V32: =INDEX('Compile Data'!$DZ$123:$EU$204,$O32,'Report - ALL (DASHBOARD)'!$W$3) -> 0
A33: 1926 | B33: =INDEX('Compile Data'!$J$12:$AE$93,$A33-1921,'Report - ALL (DASHBOARD)'!$W$3) -> 53.68751907 | C33: =INDEX('Compile Data'!$AH$12:$BC$93,$A33-1921,'Report - ALL (DASHBOARD)'!$W$3) -> 53.49151993 | D33: =INDEX('Compile Data'!$BF$12:$CA$93,$A33-1921,'Report - ALL (DASHBOARD)'!$W$3) -> 53.73656082 | O33: 5 | P33: 0.04938271605 | Q33: =INDEX('Compile Data'!$J$123:$AE$204,$O33,'Report - ALL (DASHBOARD)'!$W$3) -> 56.46458054 | R33: =INDEX('Compile Data'!$AH$123:$BC$204,$O33,'Report - ALL (DASHBOARD)'!$W$3) -> 55.76191711 | S33: =INDEX('Compile Data'!$BF$123:$CA$204,$O33,'Report - ALL (DASHBOARD)'!$W$3) -> 56.07388687 | T33: =INDEX('Compile Data'!$CD$123:$CY$204,$O33,'Report - ALL (DASHBOARD)'!$W$3) -> 0 | U33: =INDEX('Compile Data'!$DB$123:$DW$204,$O33,'Report - ALL (DASHBOARD)'!$W$3) -> 0 | V33: =INDEX('Compile Data'!$DZ$123:$EU$204,$O33,'Report - ALL (DASHBOARD)'!$W$3) -> 0
A34: 1927 | B34: =INDEX('Compile Data'!$J$12:$AE$93,$A34-1921,'Report - ALL (DASHBOARD)'!$W$3) -> 50.3997879 | C34: =INDEX('Compile Data'!$AH$12:$BC$93,$A34-1921,'Report - ALL (DASHBOARD)'!$W$3) -> 50.43185425 | D34: =INDEX('Compile Data'!$BF$12:$CA$93,$A34-1921,'Report - ALL (DASHBOARD)'!$W$3) -> 50.45535278 | O34: 6 | P34: 0.06172839506 | Q34: =INDEX('Compile Data'!$J$123:$AE$204,$O34,'Report - ALL (DASHBOARD)'!$W$3) -> 56.4277153 | R34: =INDEX('Compile Data'!$AH$123:$BC$204,$O34,'Report - ALL (DASHBOARD)'!$W$3) -> 55.75688171 | S34: =INDEX('Compile Data'!$BF$123:$CA$204,$O34,'Report - ALL (DASHBOARD)'!$W$3) -> 55.76026535 | T34: =INDEX('Compile Data'!$CD$123:$CY$204,$O34,'Report - ALL (DASHBOARD)'!$W$3) -> 0 | U34: =INDEX('Compile Data'!$DB$123:$DW$204,$O34,'Report - ALL (DASHBOARD)'!$W$3) -> 0 | V34: =INDEX('Compile Data'!$DZ$123:$EU$204,$O34,'Report - ALL (DASHBOARD)'!$W$3) -> 0
A35: 1928 | B35: =INDEX('Compile Data'!$J$12:$AE$93,$A35-1921,'Report - ALL (DASHBOARD)'!$W$3) -> 52.04974747 | C35: =INDEX('Compile Data'!$AH$12:$BC$93,$A35-1921,'Report - ALL (DASHBOARD)'!$W$3) -> 51.55938339 | D35: =INDEX('Compile Data'!$BF$12:$CA$93,$A35-1921,'Report - ALL (DASHBOARD)'!$W$3) -> 51.63959122 | O35: 7 | P35: 0.07407407407 | Q35: =INDEX('Compile Data'!$J$123:$AE$204,$O35,'Report - ALL (DASHBOARD)'!$W$3) -> 55.7435379 | R35: =INDEX('Compile Data'!$AH$123:$BC$204,$O35,'Report - ALL (DASHBOARD)'!$W$3) -> 55.36148453 | S35: =INDEX('Compile Data'!$BF$123:$CA$204,$O35,'Report - ALL (DASHBOARD)'!$W$3) -> 55.53918076 | T35: =INDEX('Compile Data'!$CD$123:$CY$204,$O35,'Report - ALL (DASHBOARD)'!$W$3) -> 0 | U35: =INDEX('Compile Data'!$DB$123:$DW$204,$O35,'Report - ALL (DASHBOARD)'!$W$3) -> 0 | V35: =INDEX('Compile Data'!$DZ$123:$EU$204,$O35,'Report - ALL (DASHBOARD)'!$W$3) -> 0
A36: 1929 | B36: =INDEX('Compile Data'!$J$12:$AE$93,$A36-1921,'Report - ALL (DASHBOARD)'!$W$3) -> 55.03935623 | C36: =INDEX('Compile Data'!$AH$12:$BC$93,$A36-1921,'Report - ALL (DASHBOARD)'!$W$3) -> 54.27732086 | D36: =INDEX('Compile Data'!$BF$12:$CA$93,$A36-1921,'Report - ALL (DASHBOARD)'!$W$3) -> 54.32376099 | O36: 8 | P36: 0.08641975309 | Q36: =INDEX('Compile Data'!$J$123:$AE$204,$O36,'Report - ALL (DASHBOARD)'!$W$3) -> 55.73537064 | R36: =INDEX('Compile Data'!$AH$123:$BC$204,$O36,'Report - ALL (DASHBOARD)'!$W$3) -> 55.28279877 | S36: =INDEX('Compile Data'!$BF$123:$CA$204,$O36,'Report - ALL (DASHBOARD)'!$W$3) -> 55.29911804 | T36: =INDEX('Compile Data'!$CD$123:$CY$204,$O36,'Report - ALL (DASHBOARD)'!$W$3) -> 0 | U36: =INDEX('Compile Data'!$DB$123:$DW$204,$O36,'Report - ALL (DASHBOARD)'!$W$3) -> 0 | V36: =INDEX('Compile Data'!$DZ$123:$EU$204,$O36,'Report - ALL (DASHBOARD)'!$W$3) -> 0
A37: 1930 | B37: =INDEX('Compile Data'!$J$12:$AE$93,$A37-1921,'Report - ALL (DASHBOARD)'!$W$3) -> 54.16691208 | C37: =INDEX('Compile Data'!$AH$12:$BC$93,$A37-1921,'Report - ALL (DASHBOARD)'!$W$3) -> 53.83881378 | D37: =INDEX('Compile Data'!$BF$12:$CA$93,$A37-1921,'Report - ALL (DASHBOARD)'!$W$3) -> 53.828022 | O37: 9 | P37: 0.0987654321 | Q37: =INDEX('Compile Data'!$J$123:$AE$204,$O37,'Report - ALL (DASHBOARD)'!$W$3) -> 55.3494339 | R37: =INDEX('Compile Data'!$AH$123:$BC$204,$O37,'Report - ALL (DASHBOARD)'!$W$3) -> 55.21926117 | S37: =INDEX('Compile Data'!$BF$123:$CA$204,$O37,'Report - ALL (DASHBOARD)'!$W$3) -> 55.26591873 | T37: =INDEX('Compile Data'!$CD$123:$CY$204,$O37,'Report - ALL (DASHBOARD)'!$W$3) -> 0 | U37: =INDEX('Compile Data'!$DB$123:$DW$204,$O37,'Report - ALL (DASHBOARD)'!$W$3) -> 0 | V37: =INDEX('Compile Data'!$DZ$123:$EU$204,$O37,'Report - ALL (DASHBOARD)'!$W$3) -> 0
A38: 1931 | B38: =INDEX('Compile Data'!$J$12:$AE$93,$A38-1921,'Report - ALL (DASHBOARD)'!$W$3) -> 62.12483978 | C38: =INDEX('Compile Data'!$AH$12:$BC$93,$A38-1921,'Report - ALL (DASHBOARD)'!$W$3) -> 57.65580368 | D38: =INDEX('Compile Data'!$BF$12:$CA$93,$A38-1921,'Report - ALL (DASHBOARD)'!$W$3) -> 58.13283157 | O38: 10 | P38: 0.1111111111 | Q38: =INDEX('Compile Data'!$J$123:$AE$204,$O38,'Report - ALL (DASHBOARD)'!$W$3) -> 55.11851501 | R38: =INDEX('Compile Data'!$AH$123:$BC$204,$O38,'Report - ALL (DASHBOARD)'!$W$3) -> 54.90309143 | S38: =INDEX('Compile Data'!$BF$123:$CA$204,$O38,'Report - ALL (DASHBOARD)'!$W$3) -> 54.96260834 | T38: =INDEX('Compile Data'!$CD$123:$CY$204,$O38,'Report - ALL (DASHBOARD)'!$W$3) -> 0 | U38: =INDEX('Compile Data'!$DB$123:$DW$204,$O38,'Report - ALL (DASHBOARD)'!$W$3) -> 0 | V38: =INDEX('Compile Data'!$DZ$123:$EU$204,$O38,'Report - ALL (DASHBOARD)'!$W$3) -> 0
A39: 1932 | B39: =INDEX('Compile Data'!$J$12:$AE$93,$A39-1921,'Report - ALL (DASHBOARD)'!$W$3) -> 54.07388306 | C39: =INDEX('Compile Data'!$AH$12:$BC$93,$A39-1921,'Report - ALL (DASHBOARD)'!$W$3) -> 54.09553909 | D39: =INDEX('Compile Data'!$BF$12:$CA$93,$A39-1921,'Report - ALL (DASHBOARD)'!$W$3) -> 54.34266663 | O39: 11 | P39: 0.1234567901 | Q39: =INDEX('Compile Data'!$J$123:$AE$204,$O39,'Report - ALL (DASHBOARD)'!$W$3) -> 55.03935623 | R39: =INDEX('Compile Data'!$AH$123:$BC$204,$O39,'Report - ALL (DASHBOARD)'!$W$3) -> 54.68719101 | S39: =INDEX('Compile Data'!$BF$123:$CA$204,$O39,'Report - ALL (DASHBOARD)'!$W$3) -> 54.69404602 | T39: =INDEX('Compile Data'!$CD$123:$CY$204,$O39,'Report - ALL (DASHBOARD)'!$W$3) -> 0 | U39: =INDEX('Compile Data'!$DB$123:$DW$204,$O39,'Report - ALL (DASHBOARD)'!$W$3) -> 0 | V39: =INDEX('Compile Data'!$DZ$123:$EU$204,$O39,'Report - ALL (DASHBOARD)'!$W$3) -> 0
A40: 1933 | B40: =INDEX('Compile Data'!$J$12:$AE$93,$A40-1921,'Report - ALL (DASHBOARD)'!$W$3) -> 55.73537064 | C40: =INDEX('Compile Data'!$AH$12:$BC$93,$A40-1921,'Report - ALL (DASHBOARD)'!$W$3) -> 54.48940659 | D40: =INDEX('Compile Data'!$BF$12:$CA$93,$A40-1921,'Report - ALL (DASHBOARD)'!$W$3) -> 54.55738449 | O40: 12 | P40: 0.1358024691 | Q40: =INDEX('Compile Data'!$J$123:$AE$204,$O40,'Report - ALL (DASHBOARD)'!$W$3) -> 54.99458694 | R40: =INDEX('Compile Data'!$AH$123:$BC$204,$O40,'Report - ALL (DASHBOARD)'!$W$3) -> 54.48940659 | S40: =INDEX('Compile Data'!$BF$123:$CA$204,$O40,'Report - ALL (DASHBOARD)'!$W$3) -> 54.55738449 | T40: =INDEX('Compile Data'!$CD$123:$CY$204,$O40,'Report - ALL (DASHBOARD)'!$W$3) -> 0 | U40: =INDEX('Compile Data'!$DB$123:$DW$204,$O40,'Report - ALL (DASHBOARD)'!$W$3) -> 0 | V40: =INDEX('Compile Data'!$DZ$123:$EU$204,$O40,'Report - ALL (DASHBOARD)'!$W$3) -> 0
A41: 1934 | B41: =INDEX('Compile Data'!$J$12:$AE$93,$A41-1921,'Report - ALL (DASHBOARD)'!$W$3) -> 57.99652481 | C41: =INDEX('Compile Data'!$AH$12:$BC$93,$A41-1921,'Report - ALL (DASHBOARD)'!$W$3) -> 55.21926117 | D41: =INDEX('Compile Data'!$BF$12:$CA$93,$A41-1921,'Report - ALL (DASHBOARD)'!$W$3) -> 55.26591873 | O41: 13 | P41: 0.1481481481 | Q41: =INDEX('Compile Data'!$J$123:$AE$204,$O41,'Report - ALL (DASHBOARD)'!$W$3) -> 54.95310211 | R41: =INDEX('Compile Data'!$AH$123:$BC$204,$O41,'Report - ALL (DASHBOARD)'!$W$3) -> 54.29565048 | S41: =INDEX('Compile Data'!$BF$123:$CA$204,$O41,'Report - ALL (DASHBOARD)'!$W$3) -> 54.34266663 | T41: =INDEX('Compile Data'!$CD$123:$CY$204,$O41,'Report - ALL (DASHBOARD)'!$W$3) -> 0 | U41: =INDEX('Compile Data'!$DB$123:$DW$204,$O41,'Report - ALL (DASHBOARD)'!$W$3) -> 0 | V41: =INDEX('Compile Data'!$DZ$123:$EU$204,$O41,'Report - ALL (DASHBOARD)'!$W$3) -> 0
A42: 1935 | B42: =INDEX('Compile Data'!$J$12:$AE$93,$A42-1921,'Report - ALL (DASHBOARD)'!$W$3) -> 53.69449997 | C42: =INDEX('Compile Data'!$AH$12:$BC$93,$A42-1921,'Report - ALL (DASHBOARD)'!$W$3) -> 53.25844955 | D42: =INDEX('Compile Data'!$BF$12:$CA$93,$A42-1921,'Report - ALL (DASHBOARD)'!$W$3) -> 53.29381561 | O42: 14 | P42: 0.1604938272 | Q42: =INDEX('Compile Data'!$J$123:$AE$204,$O42,'Report - ALL (DASHBOARD)'!$W$3) -> 54.68041992 | R42: =INDEX('Compile Data'!$AH$123:$BC$204,$O42,'Report - ALL (DASHBOARD)'!$W$3) -> 54.27732086 | S42: =INDEX('Compile Data'!$BF$123:$CA$204,$O42,'Report - ALL (DASHBOARD)'!$W$3) -> 54.32376099 | T42: =INDEX('Compile Data'!$CD$123:$CY$204,$O42,'Report - ALL (DASHBOARD)'!$W$3) -> 0 | U42: =INDEX('Compile Data'!$DB$123:$DW$204,$O42,'Report - ALL (DASHBOARD)'!$W$3) -> 0 | V42: =INDEX('Compile Data'!$DZ$123:$EU$204,$O42,'Report - ALL (DASHBOARD)'!$W$3) -> 0
A43: 1936 | B43: =INDEX('Compile Data'!$J$12:$AE$93,$A43-1921,'Report - ALL (DASHBOARD)'!$W$3) -> 51.51321793 | C43: =INDEX('Compile Data'!$AH$12:$BC$93,$A43-1921,'Report - ALL (DASHBOARD)'!$W$3) -> 51.76611328 | D43: =INDEX('Compile Data'!$BF$12:$CA$93,$A43-1921,'Report - ALL (DASHBOARD)'!$W$3) -> 51.67343903 | O43: 15 | P43: 0.1728395062 | Q43: =INDEX('Compile Data'!$J$123:$AE$204,$O43,'Report - ALL (DASHBOARD)'!$W$3) -> 54.65166092 | R43: =INDEX('Compile Data'!$AH$123:$BC$204,$O43,'Report - ALL (DASHBOARD)'!$W$3) -> 54.11307526 | S43: =INDEX('Compile Data'!$BF$123:$CA$204,$O43,'Report - ALL (DASHBOARD)'!$W$3) -> 54.30620193 | T43: =INDEX('Compile Data'!$CD$123:$CY$204,$O43,'Report - ALL (DASHBOARD)'!$W$3) -> 0 | U43: =INDEX('Compile Data'!$DB$123:$DW$204,$O43,'Report - ALL (DASHBOARD)'!$W$3) -> 0 | V43: =INDEX('Compile Data'!$DZ$123:$EU$204,$O43,'Report - ALL (DASHBOARD)'!$W$3) -> 0
A44: 1937 | B44: =INDEX('Compile Data'!$J$12:$AE$93,$A44-1921,'Report - ALL (DASHBOARD)'!$W$3) -> 52.79985428 | C44: =INDEX('Compile Data'!$AH$12:$BC$93,$A44-1921,'Report - ALL (DASHBOARD)'!$W$3) -> 52.40950775 | D44: =INDEX('Compile Data'!$BF$12:$CA$93,$A44-1921,'Report - ALL (DASHBOARD)'!$W$3) -> 52.40189743 | O44: 16 | P44: 0.1851851852 | Q44: =INDEX('Compile Data'!$J$123:$AE$204,$O44,'Report - ALL (DASHBOARD)'!$W$3) -> 54.22727203 | R44: =INDEX('Compile Data'!$AH$123:$BC$204,$O44,'Report - ALL (DASHBOARD)'!$W$3) -> 54.09553909 | S44: =INDEX('Compile Data'!$BF$123:$CA$204,$O44,'Report - ALL (DASHBOARD)'!$W$3) -> 54.14173889 | T44: =INDEX('Compile Data'!$CD$123:$CY$204,$O44,'Report - ALL (DASHBOARD)'!$W$3) -> 0 | U44: =INDEX('Compile Data'!$DB$123:$DW$204,$O44,'Report - ALL (DASHBOARD)'!$W$3) -> 0 | V44: =INDEX('Compile Data'!$DZ$123:$EU$204,$O44,'Report - ALL (DASHBOARD)'!$W$3) -> 0
A45: 1938 | B45: =INDEX('Compile Data'!$J$12:$AE$93,$A45-1921,'Report - ALL (DASHBOARD)'!$W$3) -> 51.2853241 | C45: =INDEX('Compile Data'!$AH$12:$BC$93,$A45-1921,'Report - ALL (DASHBOARD)'!$W$3) -> 51.00147247 | D45: =INDEX('Compile Data'!$BF$12:$CA$93,$A45-1921,'Report - ALL (DASHBOARD)'!$W$3) -> 50.99897385 | O45: 17 | P45: 0.1975308642 | Q45: =INDEX('Compile Data'!$J$123:$AE$204,$O45,'Report - ALL (DASHBOARD)'!$W$3) -> 54.22033691 | R45: =INDEX('Compile Data'!$AH$123:$BC$204,$O45,'Report - ALL (DASHBOARD)'!$W$3) -> 54.08394623 | S45: =INDEX('Compile Data'!$BF$123:$CA$204,$O45,'Report - ALL (DASHBOARD)'!$W$3) -> 54.0975647 | T45: =INDEX('Compile Data'!$CD$123:$CY$204,$O45,'Report - ALL (DASHBOARD)'!$W$3) -> 0 | U45: =INDEX('Compile Data'!$DB$123:$DW$204,$O45,'Report - ALL (DASHBOARD)'!$W$3) -> 0 | V45: =INDEX('Compile Data'!$DZ$123:$EU$204,$O45,'Report - ALL (DASHBOARD)'!$W$3) -> 0
A46: 1939 | B46: =INDEX('Compile Data'!$J$12:$AE$93,$A46-1921,'Report - ALL (DASHBOARD)'!$W$3) -> 53.82596588 | C46: =INDEX('Compile Data'!$AH$12:$BC$93,$A46-1921,'Report - ALL (DASHBOARD)'!$W$3) -> 53.62793732 | D46: =INDEX('Compile Data'!$BF$12:$CA$93,$A46-1921,'Report - ALL (DASHBOARD)'!$W$3) -> 53.69997025 | O46: 18 | P46: 0.2098765432 | Q46: =INDEX('Compile Data'!$J$123:$AE$204,$O46,'Report - ALL (DASHBOARD)'!$W$3) -> 54.19432068 | R46: =INDEX('Compile Data'!$AH$123:$BC$204,$O46,'Report - ALL (DASHBOARD)'!$W$3) -> 53.92457962 | S46: =INDEX('Compile Data'!$BF$123:$CA$204,$O46,'Report - ALL (DASHBOARD)'!$W$3) -> 54.07597733 | T46: =INDEX('Compile Data'!$CD$123:$CY$204,$O46,'Report - ALL (DASHBOARD)'!$W$3) -> 0 | U46: =INDEX('Compile Data'!$DB$123:$DW$204,$O46,'Report - ALL (DASHBOARD)'!$W$3) -> 0 | V46: =INDEX('Compile Data'!$DZ$123:$EU$204,$O46,'Report - ALL (DASHBOARD)'!$W$3) -> 0
A47: 1940 | B47: =INDEX('Compile Data'!$J$12:$AE$93,$A47-1921,'Report - ALL (DASHBOARD)'!$W$3) -> 52.14256668 | C47: =INDEX('Compile Data'!$AH$12:$BC$93,$A47-1921,'Report - ALL (DASHBOARD)'!$W$3) -> 51.61782837 | D47: =INDEX('Compile Data'!$BF$12:$CA$93,$A47-1921,'Report - ALL (DASHBOARD)'!$W$3) -> 51.8566246 | O47: 19 | P47: 0.2222222222 | Q47: =INDEX('Compile Data'!$J$123:$AE$204,$O47,'Report - ALL (DASHBOARD)'!$W$3) -> 54.16691208 | R47: =INDEX('Compile Data'!$AH$123:$BC$204,$O47,'Report - ALL (DASHBOARD)'!$W$3) -> 53.91723251 | S47: =INDEX('Compile Data'!$BF$123:$CA$204,$O47,'Report - ALL (DASHBOARD)'!$W$3) -> 53.828022 | T47: =INDEX('Compile Data'!$CD$123:$CY$204,$O47,'Report - ALL (DASHBOARD)'!$W$3) -> 0 | U47: =INDEX('Compile Data'!$DB$123:$DW$204,$O47,'Report - ALL (DASHBOARD)'!$W$3) -> 0 | V47: =INDEX('Compile Data'!$DZ$123:$EU$204,$O47,'Report - ALL (DASHBOARD)'!$W$3) -> 0
A48: 1941 | B48: =INDEX('Compile Data'!$J$12:$AE$93,$A48-1921,'Report - ALL (DASHBOARD)'!$W$3) -> 51.03599167 | C48: =INDEX('Compile Data'!$AH$12:$BC$93,$A48-1921,'Report - ALL (DASHBOARD)'!$W$3) -> 50.97195435 | D48: =INDEX('Compile Data'!$BF$12:$CA$93,$A48-1921,'Report - ALL (DASHBOARD)'!$W$3) -> 50.96857452 | O48: 20 | P48: 0.2345679012 | Q48: =INDEX('Compile Data'!$J$123:$AE$204,$O48,'Report - ALL (DASHBOARD)'!$W$3) -> 54.07388306 | R48: =INDEX('Compile Data'!$AH$123:$BC$204,$O48,'Report - ALL (DASHBOARD)'!$W$3) -> 53.83881378 | S48: =INDEX('Compile Data'!$BF$123:$CA$204,$O48,'Report - ALL (DASHBOARD)'!$W$3) -> 53.77856827 | T48: =INDEX('Compile Data'!$CD$123:$CY$204,$O48,'Report - ALL (DASHBOARD)'!$W$3) -> 0 | U48: =INDEX('Compile Data'!$DB$123:$DW$204,$O48,'Report - ALL (DASHBOARD)'!$W$3) -> 0 | V48: =INDEX('Compile Data'!$DZ$123:$EU$204,$O48,'Report - ALL (DASHBOARD)'!$W$3) -> 0
A49: 1942 | B49: =INDEX('Compile Data'!$J$12:$AE$93,$A49-1921,'Report - ALL (DASHBOARD)'!$W$3) -> 50.70121765 | C49: =INDEX('Compile Data'!$AH$12:$BC$93,$A49-1921,'Report - ALL (DASHBOARD)'!$W$3) -> 50.61919403 | D49: =INDEX('Compile Data'!$BF$12:$CA$93,$A49-1921,'Report - ALL (DASHBOARD)'!$W$3) -> 50.58662796 | O49: 21 | P49: 0.2469135802 | Q49: =INDEX('Compile Data'!$J$123:$AE$204,$O49,'Report - ALL (DASHBOARD)'!$W$3) -> 53.98387527 | R49: =INDEX('Compile Data'!$AH$123:$BC$204,$O49,'Report - ALL (DASHBOARD)'!$W$3) -> 53.75404358 | S49: =INDEX('Compile Data'!$BF$123:$CA$204,$O49,'Report - ALL (DASHBOARD)'!$W$3) -> 53.76053619 | T49: =INDEX('Compile Data'!$CD$123:$CY$204,$O49,'Report - ALL (DASHBOARD)'!$W$3) -> 0 | U49: =INDEX('Compile Data'!$DB$123:$DW$204,$O49,'Report - ALL (DASHBOARD)'!$W$3) -> 0 | V49: =INDEX('Compile Data'!$DZ$123:$EU$204,$O49,'Report - ALL (DASHBOARD)'!$W$3) -> 0
A50: 1943 | B50: =INDEX('Compile Data'!$J$12:$AE$93,$A50-1921,'Report - ALL (DASHBOARD)'!$W$3) -> 50.41746902 | C50: =INDEX('Compile Data'!$AH$12:$BC$93,$A50-1921,'Report - ALL (DASHBOARD)'!$W$3) -> 50.51259613 | D50: =INDEX('Compile Data'!$BF$12:$CA$93,$A50-1921,'Report - ALL (DASHBOARD)'!$W$3) -> 50.4930687 | O50: 22 | P50: 0.2592592593 | Q50: =INDEX('Compile Data'!$J$123:$AE$204,$O50,'Report - ALL (DASHBOARD)'!$W$3) -> 53.97158813 | R50: =INDEX('Compile Data'!$AH$123:$BC$204,$O50,'Report - ALL (DASHBOARD)'!$W$3) -> 53.66838074 | S50: =INDEX('Compile Data'!$BF$123:$CA$204,$O50,'Report - ALL (DASHBOARD)'!$W$3) -> 53.73656082 | T50: =INDEX('Compile Data'!$CD$123:$CY$204,$O50,'Report - ALL (DASHBOARD)'!$W$3) -> 0 | U50: =INDEX('Compile Data'!$DB$123:$DW$204,$O50,'Report - ALL (DASHBOARD)'!$W$3) -> 0 | V50: =INDEX('Compile Data'!$DZ$123:$EU$204,$O50,'Report - ALL (DASHBOARD)'!$W$3) -> 0
A51: 1944 | B51: =INDEX('Compile Data'!$J$12:$AE$93,$A51-1921,'Report - ALL (DASHBOARD)'!$W$3) -> 53.9645462 | C51: =INDEX('Compile Data'!$AH$12:$BC$93,$A51-1921,'Report - ALL (DASHBOARD)'!$W$3) -> 53.91723251 | D51: =INDEX('Compile Data'!$BF$12:$CA$93,$A51-1921,'Report - ALL (DASHBOARD)'!$W$3) -> 53.72122192 | O51: 23 | P51: 0.2716049383 | Q51: =INDEX('Compile Data'!$J$123:$AE$204,$O51,'Report - ALL (DASHBOARD)'!$W$3) -> 53.9645462 | R51: =INDEX('Compile Data'!$AH$123:$BC$204,$O51,'Report - ALL (DASHBOARD)'!$W$3) -> 53.62968826 | S51: =INDEX('Compile Data'!$BF$123:$CA$204,$O51,'Report - ALL (DASHBOARD)'!$W$3) -> 53.72122192 | T51: =INDEX('Compile Data'!$CD$123:$CY$204,$O51,'Report - ALL (DASHBOARD)'!$W$3) -> 0 | U51: =INDEX('Compile Data'!$DB$123:$DW$204,$O51,'Report - ALL (DASHBOARD)'!$W$3) -> 0 | V51: =INDEX('Compile Data'!$DZ$123:$EU$204,$O51,'Report - ALL (DASHBOARD)'!$W$3) -> 0
A52: 1945 | B52: =INDEX('Compile Data'!$J$12:$AE$93,$A52-1921,'Report - ALL (DASHBOARD)'!$W$3) -> 52.37115479 | C52: =INDEX('Compile Data'!$AH$12:$BC$93,$A52-1921,'Report - ALL (DASHBOARD)'!$W$3) -> 52.38035965 | D52: =INDEX('Compile Data'!$BF$12:$CA$93,$A52-1921,'Report - ALL (DASHBOARD)'!$W$3) -> 52.42902374 | O52: 24 | P52: 0.2839506173 | Q52: =INDEX('Compile Data'!$J$123:$AE$204,$O52,'Report - ALL (DASHBOARD)'!$W$3) -> 53.94861221 | R52: =INDEX('Compile Data'!$AH$123:$BC$204,$O52,'Report - ALL (DASHBOARD)'!$W$3) -> 53.62793732 | S52: =INDEX('Compile Data'!$BF$123:$CA$204,$O52,'Report - ALL (DASHBOARD)'!$W$3) -> 53.69997025 | T52: =INDEX('Compile Data'!$CD$123:$CY$204,$O52,'Report - ALL (DASHBOARD)'!$W$3) -> 0 | U52: =INDEX('Compile Data'!$DB$123:$DW$204,$O52,'Report - ALL (DASHBOARD)'!$W$3) -> 0 | V52: =INDEX('Compile Data'!$DZ$123:$EU$204,$O52,'Report - ALL (DASHBOARD)'!$W$3) -> 0
A53: 1946 | B53: =INDEX('Compile Data'!$J$12:$AE$93,$A53-1921,'Report - ALL (DASHBOARD)'!$W$3) -> 51.30534363 | C53: =INDEX('Compile Data'!$AH$12:$BC$93,$A53-1921,'Report - ALL (DASHBOARD)'!$W$3) -> 51.4882431 | D53: =INDEX('Compile Data'!$BF$12:$CA$93,$A53-1921,'Report - ALL (DASHBOARD)'!$W$3) -> 51.3233757 | O53: 25 | P53: 0.2962962963 | Q53: =INDEX('Compile Data'!$J$123:$AE$204,$O53,'Report - ALL (DASHBOARD)'!$W$3) -> 53.82596588 | R53: =INDEX('Compile Data'!$AH$123:$BC$204,$O53,'Report - ALL (DASHBOARD)'!$W$3) -> 53.49151993 | S53: =INDEX('Compile Data'!$BF$123:$CA$204,$O53,'Report - ALL (DASHBOARD)'!$W$3) -> 53.62259293 | T53: =INDEX('Compile Data'!$CD$123:$CY$204,$O53,'Report - ALL (DASHBOARD)'!$W$3) -> 0 | U53: =INDEX('Compile Data'!$DB$123:$DW$204,$O53,'Report - ALL (DASHBOARD)'!$W$3) -> 0 | V53: =INDEX('Compile Data'!$DZ$123:$EU$204,$O53,'Report - ALL (DASHBOARD)'!$W$3) -> 0
A54: 1947 | B54: =INDEX('Compile Data'!$J$12:$AE$93,$A54-1921,'Report - ALL (DASHBOARD)'!$W$3) -> 53.37270737 | C54: =INDEX('Compile Data'!$AH$12:$BC$93,$A54-1921,'Report - ALL (DASHBOARD)'!$W$3) -> 53.27164459 | D54: =INDEX('Compile Data'!$BF$12:$CA$93,$A54-1921,'Report - ALL (DASHBOARD)'!$W$3) -> 53.34896851 | O54: 26 | P54: 0.3086419753 | Q54: =INDEX('Compile Data'!$J$123:$AE$204,$O54,'Report - ALL (DASHBOARD)'!$W$3) -> 53.69449997 | R54: =INDEX('Compile Data'!$AH$123:$BC$204,$O54,'Report - ALL (DASHBOARD)'!$W$3) -> 53.42622757 | S54: =INDEX('Compile Data'!$BF$123:$CA$204,$O54,'Report - ALL (DASHBOARD)'!$W$3) -> 53.49794388 | T54: =INDEX('Compile Data'!$CD$123:$CY$204,$O54,'Report - ALL (DASHBOARD)'!$W$3) -> 0 | U54: =INDEX('Compile Data'!$DB$123:$DW$204,$O54,'Report - ALL (DASHBOARD)'!$W$3) -> 0 | V54: =INDEX('Compile Data'!$DZ$123:$EU$204,$O54,'Report - ALL (DASHBOARD)'!$W$3) -> 0
A55: 1948 | B55: =INDEX('Compile Data'!$J$12:$AE$93,$A55-1921,'Report - ALL (DASHBOARD)'!$W$3) -> 51.91395187 | C55: =INDEX('Compile Data'!$AH$12:$BC$93,$A55-1921,'Report - ALL (DASHBOARD)'!$W$3) -> 52.7096138 | D55: =INDEX('Compile Data'!$BF$12:$CA$93,$A55-1921,'Report - ALL (DASHBOARD)'!$W$3) -> 52.72180176 | O55: 27 | P55: 0.3209876543 | Q55: =INDEX('Compile Data'!$J$123:$AE$204,$O55,'Report - ALL (DASHBOARD)'!$W$3) -> 53.68751907 | R55: =INDEX('Compile Data'!$AH$123:$BC$204,$O55,'Report - ALL (DASHBOARD)'!$W$3) -> 53.30438614 | S55: =INDEX('Compile Data'!$BF$123:$CA$204,$O55,'Report - ALL (DASHBOARD)'!$W$3) -> 53.45211411 | T55: =INDEX('Compile Data'!$CD$123:$CY$204,$O55,'Report - ALL (DASHBOARD)'!$W$3) -> 0 | U55: =INDEX('Compile Data'!$DB$123:$DW$204,$O55,'Report - ALL (DASHBOARD)'!$W$3) -> 0 | V55: =INDEX('Compile Data'!$DZ$123:$EU$204,$O55,'Report - ALL (DASHBOARD)'!$W$3) -> 0
A56: 1949 | B56: =INDEX('Compile Data'!$J$12:$AE$93,$A56-1921,'Report - ALL (DASHBOARD)'!$W$3) -> 52.43151855 | C56: =INDEX('Compile Data'!$AH$12:$BC$93,$A56-1921,'Report - ALL (DASHBOARD)'!$W$3) -> 52.46397018 | D56: =INDEX('Compile Data'!$BF$12:$CA$93,$A56-1921,'Report - ALL (DASHBOARD)'!$W$3) -> 52.49565506 | O56: 28 | P56: 0.3333333333 | Q56: =INDEX('Compile Data'!$J$123:$AE$204,$O56,'Report - ALL (DASHBOARD)'!$W$3) -> 53.56455994 | R56: =INDEX('Compile Data'!$AH$123:$BC$204,$O56,'Report - ALL (DASHBOARD)'!$W$3) -> 53.27164459 | S56: =INDEX('Compile Data'!$BF$123:$CA$204,$O56,'Report - ALL (DASHBOARD)'!$W$3) -> 53.39818192 | T56: =INDEX('Compile Data'!$CD$123:$CY$204,$O56,'Report - ALL (DASHBOARD)'!$W$3) -> 0 | U56: =INDEX('Compile Data'!$DB$123:$DW$204,$O56,'Report - ALL (DASHBOARD)'!$W$3) -> 0 | V56: =INDEX('Compile Data'!$DZ$123:$EU$204,$O56,'Report - ALL (DASHBOARD)'!$W$3) -> 0
A57: 1950 | B57: =INDEX('Compile Data'!$J$12:$AE$93,$A57-1921,'Report - ALL (DASHBOARD)'!$W$3) -> 52.74036026 | C57: =INDEX('Compile Data'!$AH$12:$BC$93,$A57-1921,'Report - ALL (DASHBOARD)'!$W$3) -> 52.77445221 | D57: =INDEX('Compile Data'!$BF$12:$CA$93,$A57-1921,'Report - ALL (DASHBOARD)'!$W$3) -> 52.77996445 | O57: 29 | P57: 0.3456790123 | Q57: =INDEX('Compile Data'!$J$123:$AE$204,$O57,'Report - ALL (DASHBOARD)'!$W$3) -> 53.52539825 | R57: =INDEX('Compile Data'!$AH$123:$BC$204,$O57,'Report - ALL (DASHBOARD)'!$W$3) -> 53.25844955 | S57: =INDEX('Compile Data'!$BF$123:$CA$204,$O57,'Report - ALL (DASHBOARD)'!$W$3) -> 53.34896851 | T57: =INDEX('Compile Data'!$CD$123:$CY$204,$O57,'Report - ALL (DASHBOARD)'!$W$3) -> 0 | U57: =INDEX('Compile Data'!$DB$123:$DW$204,$O57,'Report - ALL (DASHBOARD)'!$W$3) -> 0 | V57: =INDEX('Compile Data'!$DZ$123:$EU$204,$O57,'Report - ALL (DASHBOARD)'!$W$3) -> 0
A58: 1951 | B58: =INDEX('Compile Data'!$J$12:$AE$93,$A58-1921,'Report - ALL (DASHBOARD)'!$W$3) -> 50.74197769 | C58: =INDEX('Compile Data'!$AH$12:$BC$93,$A58-1921,'Report - ALL (DASHBOARD)'!$W$3) -> 50.74520874 | D58: =INDEX('Compile Data'!$BF$12:$CA$93,$A58-1921,'Report - ALL (DASHBOARD)'!$W$3) -> 50.74810791 | O58: 30 | P58: 0.3580246914 | Q58: =INDEX('Compile Data'!$J$123:$AE$204,$O58,'Report - ALL (DASHBOARD)'!$W$3) -> 53.45211411 | R58: =INDEX('Compile Data'!$AH$123:$BC$204,$O58,'Report - ALL (DASHBOARD)'!$W$3) -> 53.24953842 | S58: =INDEX('Compile Data'!$BF$123:$CA$204,$O58,'Report - ALL (DASHBOARD)'!$W$3) -> 53.30160904 | T58: =INDEX('Compile Data'!$CD$123:$CY$204,$O58,'Report - ALL (DASHBOARD)'!$W$3) -> 0 | U58: =INDEX('Compile Data'!$DB$123:$DW$204,$O58,'Report - ALL (DASHBOARD)'!$W$3) -> 0 | V58: =INDEX('Compile Data'!$DZ$123:$EU$204,$O58,'Report - ALL (DASHBOARD)'!$W$3) -> 0
A59: 1952 | B59: =INDEX('Compile Data'!$J$12:$AE$93,$A59-1921,'Report - ALL (DASHBOARD)'!$W$3) -> 50.6885376 | C59: =INDEX('Compile Data'!$AH$12:$BC$93,$A59-1921,'Report - ALL (DASHBOARD)'!$W$3) -> 50.68886948 | D59: =INDEX('Compile Data'!$BF$12:$CA$93,$A59-1921,'Report - ALL (DASHBOARD)'!$W$3) -> 50.72054291 | O59: 31 | P59: 0.3703703704 | Q59: =INDEX('Compile Data'!$J$123:$AE$204,$O59,'Report - ALL (DASHBOARD)'!$W$3) -> 53.37779236 | R59: =INDEX('Compile Data'!$AH$123:$BC$204,$O59,'Report - ALL (DASHBOARD)'!$W$3) -> 53.2322197 | S59: =INDEX('Compile Data'!$BF$123:$CA$204,$O59,'Report - ALL (DASHBOARD)'!$W$3) -> 53.29816437 | T59: =INDEX('Compile Data'!$CD$123:$CY$204,$O59,'Report - ALL (DASHBOARD)'!$W$3) -> 0 | U59: =INDEX('Compile Data'!$DB$123:$DW$204,$O59,'Report - ALL (DASHBOARD)'!$W$3) -> 0 | V59: =INDEX('Compile Data'!$DZ$123:$EU$204,$O59,'Report - ALL (DASHBOARD)'!$W$3) -> 0
A60: 1953 | B60: =INDEX('Compile Data'!$J$12:$AE$93,$A60-1921,'Report - ALL (DASHBOARD)'!$W$3) -> 51.2109642 | C60: =INDEX('Compile Data'!$AH$12:$BC$93,$A60-1921,'Report - ALL (DASHBOARD)'!$W$3) -> 51.12269974 | D60: =INDEX('Compile Data'!$BF$12:$CA$93,$A60-1921,'Report - ALL (DASHBOARD)'!$W$3) -> 51.15203476 | O60: 32 | P60: 0.3827160494 | Q60: =INDEX('Compile Data'!$J$123:$AE$204,$O60,'Report - ALL (DASHBOARD)'!$W$3) -> 53.37270737 | R60: =INDEX('Compile Data'!$AH$123:$BC$204,$O60,'Report - ALL (DASHBOARD)'!$W$3) -> 53.12665558 | S60: =INDEX('Compile Data'!$BF$123:$CA$204,$O60,'Report - ALL (DASHBOARD)'!$W$3) -> 53.29381561 | T60: =INDEX('Compile Data'!$CD$123:$CY$204,$O60,'Report - ALL (DASHBOARD)'!$W$3) -> 0 | U60: =INDEX('Compile Data'!$DB$123:$DW$204,$O60,'Report - ALL (DASHBOARD)'!$W$3) -> 0 | V60: =INDEX('Compile Data'!$DZ$123:$EU$204,$O60,'Report - ALL (DASHBOARD)'!$W$3) -> 0
A61: 1954 | B61: =INDEX('Compile Data'!$J$12:$AE$93,$A61-1921,'Report - ALL (DASHBOARD)'!$W$3) -> 50.78051376 | C61: =INDEX('Compile Data'!$AH$12:$BC$93,$A61-1921,'Report - ALL (DASHBOARD)'!$W$3) -> 51.08730316 | D61: =INDEX('Compile Data'!$BF$12:$CA$93,$A61-1921,'Report - ALL (DASHBOARD)'!$W$3) -> 51.0188179 | O61: 33 | P61: =(O61-1)/81 -> 0.3950617284 | Q61: =INDEX('Compile Data'!$J$123:$AE$204,$O61,'Report - ALL (DASHBOARD)'!$W$3) -> 53.34918594 | R61: =INDEX('Compile Data'!$AH$123:$BC$204,$O61,'Report - ALL (DASHBOARD)'!$W$3) -> 53.07266617 | S61: =INDEX('Compile Data'!$BF$123:$CA$204,$O61,'Report - ALL (DASHBOARD)'!$W$3) -> 53.14880371 | T61: =INDEX('Compile Data'!$CD$123:$CY$204,$O61,'Report - ALL (DASHBOARD)'!$W$3) -> 0 | U61: =INDEX('Compile Data'!$DB$123:$DW$204,$O61,'Report - ALL (DASHBOARD)'!$W$3) -> 0 | V61: =INDEX('Compile Data'!$DZ$123:$EU$204,$O61,'Report - ALL (DASHBOARD)'!$W$3) -> 0
A62: 1955 | B62: =INDEX('Compile Data'!$J$12:$AE$93,$A62-1921,'Report - ALL (DASHBOARD)'!$W$3) -> 53.45211411 | C62: =INDEX('Compile Data'!$AH$12:$BC$93,$A62-1921,'Report - ALL (DASHBOARD)'!$W$3) -> 52.9305191 | D62: =INDEX('Compile Data'!$BF$12:$CA$93,$A62-1921,'Report - ALL (DASHBOARD)'!$W$3) -> 52.98077011 | O62: 34 | P62: 0.4074074074 | Q62: =INDEX('Compile Data'!$J$123:$AE$204,$O62,'Report - ALL (DASHBOARD)'!$W$3) -> 53.34737396 | R62: =INDEX('Compile Data'!$AH$123:$BC$204,$O62,'Report - ALL (DASHBOARD)'!$W$3) -> 52.93305969 | S62: =INDEX('Compile Data'!$BF$123:$CA$204,$O62,'Report - ALL (DASHBOARD)'!$W$3) -> 53.0759964 | T62: =INDEX('Compile Data'!$CD$123:$CY$204,$O62,'Report - ALL (DASHBOARD)'!$W$3) -> 0 | U62: =INDEX('Compile Data'!$DB$123:$DW$204,$O62,'Report - ALL (DASHBOARD)'!$W$3) -> 0 | V62: =INDEX('Compile Data'!$DZ$123:$EU$204,$O62,'Report - ALL (DASHBOARD)'!$W$3) -> 0
A63: 1956 | B63: =INDEX('Compile Data'!$J$12:$AE$93,$A63-1921,'Report - ALL (DASHBOARD)'!$W$3) -> 51.01079559 | C63: =INDEX('Compile Data'!$AH$12:$BC$93,$A63-1921,'Report - ALL (DASHBOARD)'!$W$3) -> 51.00215149 | D63: =INDEX('Compile Data'!$BF$12:$CA$93,$A63-1921,'Report - ALL (DASHBOARD)'!$W$3) -> 51.01550293 | O63: 35 | P63: 0.4197530864 | Q63: =INDEX('Compile Data'!$J$123:$AE$204,$O63,'Report - ALL (DASHBOARD)'!$W$3) -> 53.24607849 | R63: =INDEX('Compile Data'!$AH$123:$BC$204,$O63,'Report - ALL (DASHBOARD)'!$W$3) -> 52.9305191 | S63: =INDEX('Compile Data'!$BF$123:$CA$204,$O63,'Report - ALL (DASHBOARD)'!$W$3) -> 52.98077011 | T63: =INDEX('Compile Data'!$CD$123:$CY$204,$O63,'Report - ALL (DASHBOARD)'!$W$3) -> 0 | U63: =INDEX('Compile Data'!$DB$123:$DW$204,$O63,'Report - ALL (DASHBOARD)'!$W$3) -> 0 | V63: =INDEX('Compile Data'!$DZ$123:$EU$204,$O63,'Report - ALL (DASHBOARD)'!$W$3) -> 0
A64: 1957 | B64: =INDEX('Compile Data'!$J$12:$AE$93,$A64-1921,'Report - ALL (DASHBOARD)'!$W$3) -> 53.34918594 | C64: =INDEX('Compile Data'!$AH$12:$BC$93,$A64-1921,'Report - ALL (DASHBOARD)'!$W$3) -> 50.99836349 | D64: =INDEX('Compile Data'!$BF$12:$CA$93,$A64-1921,'Report - ALL (DASHBOARD)'!$W$3) -> 51.29867554 | O64: 36 | P64: 0.4320987654 | Q64: =INDEX('Compile Data'!$J$123:$AE$204,$O64,'Report - ALL (DASHBOARD)'!$W$3) -> 53.07067108 | R64: =INDEX('Compile Data'!$AH$123:$BC$204,$O64,'Report - ALL (DASHBOARD)'!$W$3) -> 52.81277466 | S64: =INDEX('Compile Data'!$BF$123:$CA$204,$O64,'Report - ALL (DASHBOARD)'!$W$3) -> 52.90933609 | T64: =INDEX('Compile Data'!$CD$123:$CY$204,$O64,'Report - ALL (DASHBOARD)'!$W$3) -> 0 | U64: =INDEX('Compile Data'!$DB$123:$DW$204,$O64,'Report - ALL (DASHBOARD)'!$W$3) -> 0 | V64: =INDEX('Compile Data'!$DZ$123:$EU$204,$O64,'Report - ALL (DASHBOARD)'!$W$3) -> 0
A65: 1958 | B65: =INDEX('Compile Data'!$J$12:$AE$93,$A65-1921,'Report - ALL (DASHBOARD)'!$W$3) -> 50.68099976 | C65: =INDEX('Compile Data'!$AH$12:$BC$93,$A65-1921,'Report - ALL (DASHBOARD)'!$W$3) -> 50.74759674 | D65: =INDEX('Compile Data'!$BF$12:$CA$93,$A65-1921,'Report - ALL (DASHBOARD)'!$W$3) -> 50.75167465 | O65: 37 | P65: 0.4444444444 | Q65: =INDEX('Compile Data'!$J$123:$AE$204,$O65,'Report - ALL (DASHBOARD)'!$W$3) -> 52.91054535 | R65: =INDEX('Compile Data'!$AH$123:$BC$204,$O65,'Report - ALL (DASHBOARD)'!$W$3) -> 52.77445221 | S65: =INDEX('Compile Data'!$BF$123:$CA$204,$O65,'Report - ALL (DASHBOARD)'!$W$3) -> 52.77996445 | T65: =INDEX('Compile Data'!$CD$123:$CY$204,$O65,'Report - ALL (DASHBOARD)'!$W$3) -> 0 | U65: =INDEX('Compile Data'!$DB$123:$DW$204,$O65,'Report - ALL (DASHBOARD)'!$W$3) -> 0 | V65: =INDEX('Compile Data'!$DZ$123:$EU$204,$O65,'Report - ALL (DASHBOARD)'!$W$3) -> 0
A66: 1959 | B66: =INDEX('Compile Data'!$J$12:$AE$93,$A66-1921,'Report - ALL (DASHBOARD)'!$W$3) -> 54.95310211 | C66: =INDEX('Compile Data'!$AH$12:$BC$93,$A66-1921,'Report - ALL (DASHBOARD)'!$W$3) -> 54.29565048 | D66: =INDEX('Compile Data'!$BF$12:$CA$93,$A66-1921,'Report - ALL (DASHBOARD)'!$W$3) -> 54.30620193 | O66: 38 | P66: 0.4567901235 | Q66: =INDEX('Compile Data'!$J$123:$AE$204,$O66,'Report - ALL (DASHBOARD)'!$W$3) -> 52.91015244 | R66: =INDEX('Compile Data'!$AH$123:$BC$204,$O66,'Report - ALL (DASHBOARD)'!$W$3) -> 52.7096138 | S66: =INDEX('Compile Data'!$BF$123:$CA$204,$O66,'Report - ALL (DASHBOARD)'!$W$3) -> 52.72180176 | T66: =INDEX('Compile Data'!$CD$123:$CY$204,$O66,'Report - ALL (DASHBOARD)'!$W$3) -> 0 | U66: =INDEX('Compile Data'!$DB$123:$DW$204,$O66,'Report - ALL (DASHBOARD)'!$W$3) -> 0 | V66: =INDEX('Compile Data'!$DZ$123:$EU$204,$O66,'Report - ALL (DASHBOARD)'!$W$3) -> 0
A67: 1960 | B67: =INDEX('Compile Data'!$J$12:$AE$93,$A67-1921,'Report - ALL (DASHBOARD)'!$W$3) -> 54.22727203 | C67: =INDEX('Compile Data'!$AH$12:$BC$93,$A67-1921,'Report - ALL (DASHBOARD)'!$W$3) -> 53.66838074 | D67: =INDEX('Compile Data'!$BF$12:$CA$93,$A67-1921,'Report - ALL (DASHBOARD)'!$W$3) -> 53.77856827 | O67: 39 | P67: 0.4691358025 | Q67: =INDEX('Compile Data'!$J$123:$AE$204,$O67,'Report - ALL (DASHBOARD)'!$W$3) -> 52.82574463 | R67: =INDEX('Compile Data'!$AH$123:$BC$204,$O67,'Report - ALL (DASHBOARD)'!$W$3) -> 52.64782333 | S67: =INDEX('Compile Data'!$BF$123:$CA$204,$O67,'Report - ALL (DASHBOARD)'!$W$3) -> 52.67095184 | T67: =INDEX('Compile Data'!$CD$123:$CY$204,$O67,'Report - ALL (DASHBOARD)'!$W$3) -> 0 | U67: =INDEX('Compile Data'!$DB$123:$DW$204,$O67,'Report - ALL (DASHBOARD)'!$W$3) -> 0 | V67: =INDEX('Compile Data'!$DZ$123:$EU$204,$O67,'Report - ALL (DASHBOARD)'!$W$3) -> 0
A68: 1961 | B68: =INDEX('Compile Data'!$J$12:$AE$93,$A68-1921,'Report - ALL (DASHBOARD)'!$W$3) -> 52.91015244 | C68: =INDEX('Compile Data'!$AH$12:$BC$93,$A68-1921,'Report - ALL (DASHBOARD)'!$W$3) -> 52.81277466 | D68: =INDEX('Compile Data'!$BF$12:$CA$93,$A68-1921,'Report - ALL (DASHBOARD)'!$W$3) -> 52.90933609 | O68: 40 | P68: 0.4814814815 | Q68: =INDEX('Compile Data'!$J$123:$AE$204,$O68,'Report - ALL (DASHBOARD)'!$W$3) -> 52.79985428 | R68: =INDEX('Compile Data'!$AH$123:$BC$204,$O68,'Report - ALL (DASHBOARD)'!$W$3) -> 52.46397018 | S68: =INDEX('Compile Data'!$BF$123:$CA$204,$O68,'Report - ALL (DASHBOARD)'!$W$3) -> 52.49565506 | T68: =INDEX('Compile Data'!$CD$123:$CY$204,$O68,'Report - ALL (DASHBOARD)'!$W$3) -> 0 | U68: =INDEX('Compile Data'!$DB$123:$DW$204,$O68,'Report - ALL (DASHBOARD)'!$W$3) -> 0 | V68: =INDEX('Compile Data'!$DZ$123:$EU$204,$O68,'Report - ALL (DASHBOARD)'!$W$3) -> 0
A69: 1962 | B69: =INDEX('Compile Data'!$J$12:$AE$93,$A69-1921,'Report - ALL (DASHBOARD)'!$W$3) -> 53.24607849 | C69: =INDEX('Compile Data'!$AH$12:$BC$93,$A69-1921,'Report - ALL (DASHBOARD)'!$W$3) -> 53.30438614 | D69: =INDEX('Compile Data'!$BF$12:$CA$93,$A69-1921,'Report - ALL (DASHBOARD)'!$W$3) -> 53.14880371 | O69: 41 | P69: 0.4938271605 | Q69: =INDEX('Compile Data'!$J$123:$AE$204,$O69,'Report - ALL (DASHBOARD)'!$W$3) -> 52.74036026 | R69: =INDEX('Compile Data'!$AH$123:$BC$204,$O69,'Report - ALL (DASHBOARD)'!$W$3) -> 52.40950775 | S69: =INDEX('Compile Data'!$BF$123:$CA$204,$O69,'Report - ALL (DASHBOARD)'!$W$3) -> 52.45299149 | T69: =INDEX('Compile Data'!$CD$123:$CY$204,$O69,'Report - ALL (DASHBOARD)'!$W$3) -> 0 | U69: =INDEX('Compile Data'!$DB$123:$DW$204,$O69,'Report - ALL (DASHBOARD)'!$W$3) -> 0 | V69: =INDEX('Compile Data'!$DZ$123:$EU$204,$O69,'Report - ALL (DASHBOARD)'!$W$3) -> 0
A70: 1963 | B70: =INDEX('Compile Data'!$J$12:$AE$93,$A70-1921,'Report - ALL (DASHBOARD)'!$W$3) -> 51.70302582 | C70: =INDEX('Compile Data'!$AH$12:$BC$93,$A70-1921,'Report - ALL (DASHBOARD)'!$W$3) -> 51.61492538 | D70: =INDEX('Compile Data'!$BF$12:$CA$93,$A70-1921,'Report - ALL (DASHBOARD)'!$W$3) -> 51.63151169 | O70: 42 | P70: 0.5061728395 | Q70: =INDEX('Compile Data'!$J$123:$AE$204,$O70,'Report - ALL (DASHBOARD)'!$W$3) -> 52.49562454 | R70: =INDEX('Compile Data'!$AH$123:$BC$204,$O70,'Report - ALL (DASHBOARD)'!$W$3) -> 52.38035965 | S70: =INDEX('Compile Data'!$BF$123:$CA$204,$O70,'Report - ALL (DASHBOARD)'!$W$3) -> 52.42902374 | T70: =INDEX('Compile Data'!$CD$123:$CY$204,$O70,'Report - ALL (DASHBOARD)'!$W$3) -> 0 | U70: =INDEX('Compile Data'!$DB$123:$DW$204,$O70,'Report - ALL (DASHBOARD)'!$W$3) -> 0 | V70: =INDEX('Compile Data'!$DZ$123:$EU$204,$O70,'Report - ALL (DASHBOARD)'!$W$3) -> 0
A71: 1964 | B71: =INDEX('Compile Data'!$J$12:$AE$93,$A71-1921,'Report - ALL (DASHBOARD)'!$W$3) -> 53.52539825 | C71: =INDEX('Compile Data'!$AH$12:$BC$93,$A71-1921,'Report - ALL (DASHBOARD)'!$W$3) -> 53.42622757 | D71: =INDEX('Compile Data'!$BF$12:$CA$93,$A71-1921,'Report - ALL (DASHBOARD)'!$W$3) -> 53.45211411 | O71: 43 | P71: 0.5185185185 | Q71: =INDEX('Compile Data'!$J$123:$AE$204,$O71,'Report - ALL (DASHBOARD)'!$W$3) -> 52.43151855 | R71: =INDEX('Compile Data'!$AH$123:$BC$204,$O71,'Report - ALL (DASHBOARD)'!$W$3) -> 52.20083237 | S71: =INDEX('Compile Data'!$BF$123:$CA$204,$O71,'Report - ALL (DASHBOARD)'!$W$3) -> 52.40189743 | T71: =INDEX('Compile Data'!$CD$123:$CY$204,$O71,'Report - ALL (DASHBOARD)'!$W$3) -> 0 | U71: =INDEX('Compile Data'!$DB$123:$DW$204,$O71,'Report - ALL (DASHBOARD)'!$W$3) -> 0 | V71: =INDEX('Compile Data'!$DZ$123:$EU$204,$O71,'Report - ALL (DASHBOARD)'!$W$3) -> 0
A72: 1965 | B72: =INDEX('Compile Data'!$J$12:$AE$93,$A72-1921,'Report - ALL (DASHBOARD)'!$W$3) -> 50.62338638 | C72: =INDEX('Compile Data'!$AH$12:$BC$93,$A72-1921,'Report - ALL (DASHBOARD)'!$W$3) -> 51.08172226 | D72: =INDEX('Compile Data'!$BF$12:$CA$93,$A72-1921,'Report - ALL (DASHBOARD)'!$W$3) -> 50.73120499 | O72: 44 | P72: 0.5308641975 | Q72: =INDEX('Compile Data'!$J$123:$AE$204,$O72,'Report - ALL (DASHBOARD)'!$W$3) -> 52.37115479 | R72: =INDEX('Compile Data'!$AH$123:$BC$204,$O72,'Report - ALL (DASHBOARD)'!$W$3) -> 52.16763687 | S72: =INDEX('Compile Data'!$BF$123:$CA$204,$O72,'Report - ALL (DASHBOARD)'!$W$3) -> 52.18132401 | T72: =INDEX('Compile Data'!$CD$123:$CY$204,$O72,'Report - ALL (DASHBOARD)'!$W$3) -> 0 | U72: =INDEX('Compile Data'!$DB$123:$DW$204,$O72,'Report - ALL (DASHBOARD)'!$W$3) -> 0 | V72: =INDEX('Compile Data'!$DZ$123:$EU$204,$O72,'Report - ALL (DASHBOARD)'!$W$3) -> 0
A73: 1966 | B73: =INDEX('Compile Data'!$J$12:$AE$93,$A73-1921,'Report - ALL (DASHBOARD)'!$W$3) -> 52.82574463 | C73: =INDEX('Compile Data'!$AH$12:$BC$93,$A73-1921,'Report - ALL (DASHBOARD)'!$W$3) -> 52.64782333 | D73: =INDEX('Compile Data'!$BF$12:$CA$93,$A73-1921,'Report - ALL (DASHBOARD)'!$W$3) -> 52.67095184 | O73: 45 | P73: 0.5432098765 | Q73: =INDEX('Compile Data'!$J$123:$AE$204,$O73,'Report - ALL (DASHBOARD)'!$W$3) -> 52.15048218 | R73: =INDEX('Compile Data'!$AH$123:$BC$204,$O73,'Report - ALL (DASHBOARD)'!$W$3) -> 52.1088829 | S73: =INDEX('Compile Data'!$BF$123:$CA$204,$O73,'Report - ALL (DASHBOARD)'!$W$3) -> 52.09517288 | T73: =INDEX('Compile Data'!$CD$123:$CY$204,$O73,'Report - ALL (DASHBOARD)'!$W$3) -> 0 | U73: =INDEX('Compile Data'!$DB$123:$DW$204,$O73,'Report - ALL (DASHBOARD)'!$W$3) -> 0 | V73: =INDEX('Compile Data'!$DZ$123:$EU$204,$O73,'Report - ALL (DASHBOARD)'!$W$3) -> 0
A74: 1967 | B74: =INDEX('Compile Data'!$J$12:$AE$93,$A74-1921,'Report - ALL (DASHBOARD)'!$W$3) -> 51.01390076 | C74: =INDEX('Compile Data'!$AH$12:$BC$93,$A74-1921,'Report - ALL (DASHBOARD)'!$W$3) -> 50.77692032 | D74: =INDEX('Compile Data'!$BF$12:$CA$93,$A74-1921,'Report - ALL (DASHBOARD)'!$W$3) -> 50.76752472 | O74: 46 | P74: 0.5555555556 | Q74: =INDEX('Compile Data'!$J$123:$AE$204,$O74,'Report - ALL (DASHBOARD)'!$W$3) -> 52.14256668 | R74: =INDEX('Compile Data'!$AH$123:$BC$204,$O74,'Report - ALL (DASHBOARD)'!$W$3) -> 51.89552689 | S74: =INDEX('Compile Data'!$BF$123:$CA$204,$O74,'Report - ALL (DASHBOARD)'!$W$3) -> 51.89706039 | T74: =INDEX('Compile Data'!$CD$123:$CY$204,$O74,'Report - ALL (DASHBOARD)'!$W$3) -> 0 | U74: =INDEX('Compile Data'!$DB$123:$DW$204,$O74,'Report - ALL (DASHBOARD)'!$W$3) -> 0 | V74: =INDEX('Compile Data'!$DZ$123:$EU$204,$O74,'Report - ALL (DASHBOARD)'!$W$3) -> 0
A75: 1968 | B75: =INDEX('Compile Data'!$J$12:$AE$93,$A75-1921,'Report - ALL (DASHBOARD)'!$W$3) -> 52.49562454 | C75: =INDEX('Compile Data'!$AH$12:$BC$93,$A75-1921,'Report - ALL (DASHBOARD)'!$W$3) -> 52.20083237 | D75: =INDEX('Compile Data'!$BF$12:$CA$93,$A75-1921,'Report - ALL (DASHBOARD)'!$W$3) -> 52.45299149 | O75: 47 | P75: 0.5679012346 | Q75: =INDEX('Compile Data'!$J$123:$AE$204,$O75,'Report - ALL (DASHBOARD)'!$W$3) -> 52.08480453 | R75: =INDEX('Compile Data'!$AH$123:$BC$204,$O75,'Report - ALL (DASHBOARD)'!$W$3) -> 51.8615799 | S75: =INDEX('Compile Data'!$BF$123:$CA$204,$O75,'Report - ALL (DASHBOARD)'!$W$3) -> 51.8566246 | T75: =INDEX('Compile Data'!$CD$123:$CY$204,$O75,'Report - ALL (DASHBOARD)'!$W$3) -> 0 | U75: =INDEX('Compile Data'!$DB$123:$DW$204,$O75,'Report - ALL (DASHBOARD)'!$W$3) -> 0 | V75: =INDEX('Compile Data'!$DZ$123:$EU$204,$O75,'Report - ALL (DASHBOARD)'!$W$3) -> 0
A76: 1969 | B76: =INDEX('Compile Data'!$J$12:$AE$93,$A76-1921,'Report - ALL (DASHBOARD)'!$W$3) -> 52.08480453 | C76: =INDEX('Compile Data'!$AH$12:$BC$93,$A76-1921,'Report - ALL (DASHBOARD)'!$W$3) -> 51.5098381 | D76: =INDEX('Compile Data'!$BF$12:$CA$93,$A76-1921,'Report - ALL (DASHBOARD)'!$W$3) -> 51.4990387 | O76: 48 | P76: 0.5802469136 | Q76: =INDEX('Compile Data'!$J$123:$AE$204,$O76,'Report - ALL (DASHBOARD)'!$W$3) -> 52.04974747 | R76: =INDEX('Compile Data'!$AH$123:$BC$204,$O76,'Report - ALL (DASHBOARD)'!$W$3) -> 51.82254028 | S76: =INDEX('Compile Data'!$BF$123:$CA$204,$O76,'Report - ALL (DASHBOARD)'!$W$3) -> 51.83931351 | T76: =INDEX('Compile Data'!$CD$123:$CY$204,$O76,'Report - ALL (DASHBOARD)'!$W$3) -> 0 | U76: =INDEX('Compile Data'!$DB$123:$DW$204,$O76,'Report - ALL (DASHBOARD)'!$W$3) -> 0 | V76: =INDEX('Compile Data'!$DZ$123:$EU$204,$O76,'Report - ALL (DASHBOARD)'!$W$3) -> 0
A77: 1970 | B77: =INDEX('Compile Data'!$J$12:$AE$93,$A77-1921,'Report - ALL (DASHBOARD)'!$W$3) -> 50.65712738 | C77: =INDEX('Compile Data'!$AH$12:$BC$93,$A77-1921,'Report - ALL (DASHBOARD)'!$W$3) -> 51.08849716 | D77: =INDEX('Compile Data'!$BF$12:$CA$93,$A77-1921,'Report - ALL (DASHBOARD)'!$W$3) -> 50.59937286 | O77: 49 | P77: 0.5925925926 | Q77: =INDEX('Compile Data'!$J$123:$AE$204,$O77,'Report - ALL (DASHBOARD)'!$W$3) -> 51.92366028 | R77: =INDEX('Compile Data'!$AH$123:$BC$204,$O77,'Report - ALL (DASHBOARD)'!$W$3) -> 51.76611328 | S77: =INDEX('Compile Data'!$BF$123:$CA$204,$O77,'Report - ALL (DASHBOARD)'!$W$3) -> 51.83163452 | T77: =INDEX('Compile Data'!$CD$123:$CY$204,$O77,'Report - ALL (DASHBOARD)'!$W$3) -> 0 | U77: =INDEX('Compile Data'!$DB$123:$DW$204,$O77,'Report - ALL (DASHBOARD)'!$W$3) -> 0 | V77: =INDEX('Compile Data'!$DZ$123:$EU$204,$O77,'Report - ALL (DASHBOARD)'!$W$3) -> 0
A78: 1971 | B78: =INDEX('Compile Data'!$J$12:$AE$93,$A78-1921,'Report - ALL (DASHBOARD)'!$W$3) -> 51.12465668 | C78: =INDEX('Compile Data'!$AH$12:$BC$93,$A78-1921,'Report - ALL (DASHBOARD)'!$W$3) -> 51.06853867 | D78: =INDEX('Compile Data'!$BF$12:$CA$93,$A78-1921,'Report - ALL (DASHBOARD)'!$W$3) -> 51.07410431 | O78: 50 | P78: 0.6049382716 | Q78: =INDEX('Compile Data'!$J$123:$AE$204,$O78,'Report - ALL (DASHBOARD)'!$W$3) -> 51.92146301 | R78: =INDEX('Compile Data'!$AH$123:$BC$204,$O78,'Report - ALL (DASHBOARD)'!$W$3) -> 51.64619064 | S78: =INDEX('Compile Data'!$BF$123:$CA$204,$O78,'Report - ALL (DASHBOARD)'!$W$3) -> 51.67343903 | T78: =INDEX('Compile Data'!$CD$123:$CY$204,$O78,'Report - ALL (DASHBOARD)'!$W$3) -> 0 | U78: =INDEX('Compile Data'!$DB$123:$DW$204,$O78,'Report - ALL (DASHBOARD)'!$W$3) -> 0 | V78: =INDEX('Compile Data'!$DZ$123:$EU$204,$O78,'Report - ALL (DASHBOARD)'!$W$3) -> 0
A79: 1972 | B79: =INDEX('Compile Data'!$J$12:$AE$93,$A79-1921,'Report - ALL (DASHBOARD)'!$W$3) -> 53.34737396 | C79: =INDEX('Compile Data'!$AH$12:$BC$93,$A79-1921,'Report - ALL (DASHBOARD)'!$W$3) -> 52.93305969 | D79: =INDEX('Compile Data'!$BF$12:$CA$93,$A79-1921,'Report - ALL (DASHBOARD)'!$W$3) -> 53.30160904 | O79: 51 | P79: 0.6172839506 | Q79: =INDEX('Compile Data'!$J$123:$AE$204,$O79,'Report - ALL (DASHBOARD)'!$W$3) -> 51.91704559 | R79: =INDEX('Compile Data'!$AH$123:$BC$204,$O79,'Report - ALL (DASHBOARD)'!$W$3) -> 51.61782837 | S79: =INDEX('Compile Data'!$BF$123:$CA$204,$O79,'Report - ALL (DASHBOARD)'!$W$3) -> 51.65223694 | T79: =INDEX('Compile Data'!$CD$123:$CY$204,$O79,'Report - ALL (DASHBOARD)'!$W$3) -> 0 | U79: =INDEX('Compile Data'!$DB$123:$DW$204,$O79,'Report - ALL (DASHBOARD)'!$W$3) -> 0 | V79: =INDEX('Compile Data'!$DZ$123:$EU$204,$O79,'Report - ALL (DASHBOARD)'!$W$3) -> 0
A80: 1973 | B80: =INDEX('Compile Data'!$J$12:$AE$93,$A80-1921,'Report - ALL (DASHBOARD)'!$W$3) -> 50.89739227 | C80: =INDEX('Compile Data'!$AH$12:$BC$93,$A80-1921,'Report - ALL (DASHBOARD)'!$W$3) -> 51.53928757 | D80: =INDEX('Compile Data'!$BF$12:$CA$93,$A80-1921,'Report - ALL (DASHBOARD)'!$W$3) -> 51.55149078 | O80: 52 | P80: 0.6296296296 | Q80: =INDEX('Compile Data'!$J$123:$AE$204,$O80,'Report - ALL (DASHBOARD)'!$W$3) -> 51.91395187 | R80: =INDEX('Compile Data'!$AH$123:$BC$204,$O80,'Report - ALL (DASHBOARD)'!$W$3) -> 51.61492538 | S80: =INDEX('Compile Data'!$BF$123:$CA$204,$O80,'Report - ALL (DASHBOARD)'!$W$3) -> 51.63959122 | T80: =INDEX('Compile Data'!$CD$123:$CY$204,$O80,'Report - ALL (DASHBOARD)'!$W$3) -> 0 | U80: =INDEX('Compile Data'!$DB$123:$DW$204,$O80,'Report - ALL (DASHBOARD)'!$W$3) -> 0 | V80: =INDEX('Compile Data'!$DZ$123:$EU$204,$O80,'Report - ALL (DASHBOARD)'!$W$3) -> 0
A81: 1974 | B81: =INDEX('Compile Data'!$J$12:$AE$93,$A81-1921,'Report - ALL (DASHBOARD)'!$W$3) -> 51.40763855 | C81: =INDEX('Compile Data'!$AH$12:$BC$93,$A81-1921,'Report - ALL (DASHBOARD)'!$W$3) -> 51.45872116 | D81: =INDEX('Compile Data'!$BF$12:$CA$93,$A81-1921,'Report - ALL (DASHBOARD)'!$W$3) -> 51.51902008 | O81: 53 | P81: 0.6419753086 | Q81: =INDEX('Compile Data'!$J$123:$AE$204,$O81,'Report - ALL (DASHBOARD)'!$W$3) -> 51.83333969 | R81: =INDEX('Compile Data'!$AH$123:$BC$204,$O81,'Report - ALL (DASHBOARD)'!$W$3) -> 51.55938339 | S81: =INDEX('Compile Data'!$BF$123:$CA$204,$O81,'Report - ALL (DASHBOARD)'!$W$3) -> 51.63151169 | T81: =INDEX('Compile Data'!$CD$123:$CY$204,$O81,'Report - ALL (DASHBOARD)'!$W$3) -> 0 | U81: =INDEX('Compile Data'!$DB$123:$DW$204,$O81,'Report - ALL (DASHBOARD)'!$W$3) -> 0 | V81: =INDEX('Compile Data'!$DZ$123:$EU$204,$O81,'Report - ALL (DASHBOARD)'!$W$3) -> 0
A82: 1975 | B82: =INDEX('Compile Data'!$J$12:$AE$93,$A82-1921,'Report - ALL (DASHBOARD)'!$W$3) -> 51.91704559 | C82: =INDEX('Compile Data'!$AH$12:$BC$93,$A82-1921,'Report - ALL (DASHBOARD)'!$W$3) -> 51.64619064 | D82: =INDEX('Compile Data'!$BF$12:$CA$93,$A82-1921,'Report - ALL (DASHBOARD)'!$W$3) -> 51.65223694 | O82: 54 | P82: 0.6543209877 | Q82: =INDEX('Compile Data'!$J$123:$AE$204,$O82,'Report - ALL (DASHBOARD)'!$W$3) -> 51.82427597 | R82: =INDEX('Compile Data'!$AH$123:$BC$204,$O82,'Report - ALL (DASHBOARD)'!$W$3) -> 51.53928757 | S82: =INDEX('Compile Data'!$BF$123:$CA$204,$O82,'Report - ALL (DASHBOARD)'!$W$3) -> 51.57191086 | T82: =INDEX('Compile Data'!$CD$123:$CY$204,$O82,'Report - ALL (DASHBOARD)'!$W$3) -> 0 | U82: =INDEX('Compile Data'!$DB$123:$DW$204,$O82,'Report - ALL (DASHBOARD)'!$W$3) -> 0 | V82: =INDEX('Compile Data'!$DZ$123:$EU$204,$O82,'Report - ALL (DASHBOARD)'!$W$3) -> 0
A83: 1976 | B83: =INDEX('Compile Data'!$J$12:$AE$93,$A83-1921,'Report - ALL (DASHBOARD)'!$W$3) -> 54.68041992 | C83: =INDEX('Compile Data'!$AH$12:$BC$93,$A83-1921,'Report - ALL (DASHBOARD)'!$W$3) -> 53.62968826 | D83: =INDEX('Compile Data'!$BF$12:$CA$93,$A83-1921,'Report - ALL (DASHBOARD)'!$W$3) -> 53.49794388 | O83: 55 | P83: 0.6666666667 | Q83: =INDEX('Compile Data'!$J$123:$AE$204,$O83,'Report - ALL (DASHBOARD)'!$W$3) -> 51.79208374 | R83: =INDEX('Compile Data'!$AH$123:$BC$204,$O83,'Report - ALL (DASHBOARD)'!$W$3) -> 51.5223732 | S83: =INDEX('Compile Data'!$BF$123:$CA$204,$O83,'Report - ALL (DASHBOARD)'!$W$3) -> 51.55149078 | T83: =INDEX('Compile Data'!$CD$123:$CY$204,$O83,'Report - ALL (DASHBOARD)'!$W$3) -> 0 | U83: =INDEX('Compile Data'!$DB$123:$DW$204,$O83,'Report - ALL (DASHBOARD)'!$W$3) -> 0 | V83: =INDEX('Compile Data'!$DZ$123:$EU$204,$O83,'Report - ALL (DASHBOARD)'!$W$3) -> 0
A84: 1977 | B84: =INDEX('Compile Data'!$J$12:$AE$93,$A84-1921,'Report - ALL (DASHBOARD)'!$W$3) -> 63.52586365 | C84: =INDEX('Compile Data'!$AH$12:$BC$93,$A84-1921,'Report - ALL (DASHBOARD)'!$W$3) -> 58.54779053 | D84: =INDEX('Compile Data'!$BF$12:$CA$93,$A84-1921,'Report - ALL (DASHBOARD)'!$W$3) -> 59.35501862 | O84: 56 | P84: 0.6790123457 | Q84: =INDEX('Compile Data'!$J$123:$AE$204,$O84,'Report - ALL (DASHBOARD)'!$W$3) -> 51.70302582 | R84: =INDEX('Compile Data'!$AH$123:$BC$204,$O84,'Report - ALL (DASHBOARD)'!$W$3) -> 51.52051926 | S84: =INDEX('Compile Data'!$BF$123:$CA$204,$O84,'Report - ALL (DASHBOARD)'!$W$3) -> 51.51902008 | T84: =INDEX('Compile Data'!$CD$123:$CY$204,$O84,'Report - ALL (DASHBOARD)'!$W$3) -> 0 | U84: =INDEX('Compile Data'!$DB$123:$DW$204,$O84,'Report - ALL (DASHBOARD)'!$W$3) -> 0 | V84: =INDEX('Compile Data'!$DZ$123:$EU$204,$O84,'Report - ALL (DASHBOARD)'!$W$3) -> 0
A85: 1978 | B85: =INDEX('Compile Data'!$J$12:$AE$93,$A85-1921,'Report - ALL (DASHBOARD)'!$W$3) -> 52.91054535 | C85: =INDEX('Compile Data'!$AH$12:$BC$93,$A85-1921,'Report - ALL (DASHBOARD)'!$W$3) -> 50.70884705 | D85: =INDEX('Compile Data'!$BF$12:$CA$93,$A85-1921,'Report - ALL (DASHBOARD)'!$W$3) -> 51.33175659 | O85: 57 | P85: 0.6913580247 | Q85: =INDEX('Compile Data'!$J$123:$AE$204,$O85,'Report - ALL (DASHBOARD)'!$W$3) -> 51.70005798 | R85: =INDEX('Compile Data'!$AH$123:$BC$204,$O85,'Report - ALL (DASHBOARD)'!$W$3) -> 51.5098381 | S85: =INDEX('Compile Data'!$BF$123:$CA$204,$O85,'Report - ALL (DASHBOARD)'!$W$3) -> 51.4990387 | T85: =INDEX('Compile Data'!$CD$123:$CY$204,$O85,'Report - ALL (DASHBOARD)'!$W$3) -> 0 | U85: =INDEX('Compile Data'!$DB$123:$DW$204,$O85,'Report - ALL (DASHBOARD)'!$W$3) -> 0 | V85: =INDEX('Compile Data'!$DZ$123:$EU$204,$O85,'Report - ALL (DASHBOARD)'!$W$3) -> 0
A86: 1979 | B86: =INDEX('Compile Data'!$J$12:$AE$93,$A86-1921,'Report - ALL (DASHBOARD)'!$W$3) -> 53.97158813 | C86: =INDEX('Compile Data'!$AH$12:$BC$93,$A86-1921,'Report - ALL (DASHBOARD)'!$W$3) -> 54.11307526 | D86: =INDEX('Compile Data'!$BF$12:$CA$93,$A86-1921,'Report - ALL (DASHBOARD)'!$W$3) -> 54.0975647 | O86: 58 | P86: 0.7037037037 | Q86: =INDEX('Compile Data'!$J$123:$AE$204,$O86,'Report - ALL (DASHBOARD)'!$W$3) -> 51.52191544 | R86: =INDEX('Compile Data'!$AH$123:$BC$204,$O86,'Report - ALL (DASHBOARD)'!$W$3) -> 51.4882431 | S86: =INDEX('Compile Data'!$BF$123:$CA$204,$O86,'Report - ALL (DASHBOARD)'!$W$3) -> 51.49492264 | T86: =INDEX('Compile Data'!$CD$123:$CY$204,$O86,'Report - ALL (DASHBOARD)'!$W$3) -> 0 | U86: =INDEX('Compile Data'!$DB$123:$DW$204,$O86,'Report - ALL (DASHBOARD)'!$W$3) -> 0 | V86: =INDEX('Compile Data'!$DZ$123:$EU$204,$O86,'Report - ALL (DASHBOARD)'!$W$3) -> 0
A87: 1980 | B87: =INDEX('Compile Data'!$J$12:$AE$93,$A87-1921,'Report - ALL (DASHBOARD)'!$W$3) -> 51.52191544 | C87: =INDEX('Compile Data'!$AH$12:$BC$93,$A87-1921,'Report - ALL (DASHBOARD)'!$W$3) -> 51.23314285 | D87: =INDEX('Compile Data'!$BF$12:$CA$93,$A87-1921,'Report - ALL (DASHBOARD)'!$W$3) -> 51.27698898 | O87: 59 | P87: 0.7160493827 | Q87: =INDEX('Compile Data'!$J$123:$AE$204,$O87,'Report - ALL (DASHBOARD)'!$W$3) -> 51.51321793 | R87: =INDEX('Compile Data'!$AH$123:$BC$204,$O87,'Report - ALL (DASHBOARD)'!$W$3) -> 51.45872116 | S87: =INDEX('Compile Data'!$BF$123:$CA$204,$O87,'Report - ALL (DASHBOARD)'!$W$3) -> 51.33175659 | T87: =INDEX('Compile Data'!$CD$123:$CY$204,$O87,'Report - ALL (DASHBOARD)'!$W$3) -> 0 | U87: =INDEX('Compile Data'!$DB$123:$DW$204,$O87,'Report - ALL (DASHBOARD)'!$W$3) -> 0 | V87: =INDEX('Compile Data'!$DZ$123:$EU$204,$O87,'Report - ALL (DASHBOARD)'!$W$3) -> 0
A88: 1981 | B88: =INDEX('Compile Data'!$J$12:$AE$93,$A88-1921,'Report - ALL (DASHBOARD)'!$W$3) -> 53.94861221 | C88: =INDEX('Compile Data'!$AH$12:$BC$93,$A88-1921,'Report - ALL (DASHBOARD)'!$W$3) -> 54.08394623 | D88: =INDEX('Compile Data'!$BF$12:$CA$93,$A88-1921,'Report - ALL (DASHBOARD)'!$W$3) -> 54.07597733 | O88: 60 | P88: 0.7283950617 | Q88: =INDEX('Compile Data'!$J$123:$AE$204,$O88,'Report - ALL (DASHBOARD)'!$W$3) -> 51.47712326 | R88: =INDEX('Compile Data'!$AH$123:$BC$204,$O88,'Report - ALL (DASHBOARD)'!$W$3) -> 51.23314285 | S88: =INDEX('Compile Data'!$BF$123:$CA$204,$O88,'Report - ALL (DASHBOARD)'!$W$3) -> 51.3233757 | T88: =INDEX('Compile Data'!$CD$123:$CY$204,$O88,'Report - ALL (DASHBOARD)'!$W$3) -> 0 | U88: =INDEX('Compile Data'!$DB$123:$DW$204,$O88,'Report - ALL (DASHBOARD)'!$W$3) -> 0 | V88: =INDEX('Compile Data'!$DZ$123:$EU$204,$O88,'Report - ALL (DASHBOARD)'!$W$3) -> 0
A89: 1982 | B89: =INDEX('Compile Data'!$J$12:$AE$93,$A89-1921,'Report - ALL (DASHBOARD)'!$W$3) -> 51.79208374 | C89: =INDEX('Compile Data'!$AH$12:$BC$93,$A89-1921,'Report - ALL (DASHBOARD)'!$W$3) -> 52.1088829 | D89: =INDEX('Compile Data'!$BF$12:$CA$93,$A89-1921,'Report - ALL (DASHBOARD)'!$W$3) -> 52.09517288 | O89: 61 | P89: 0.7407407407 | Q89: =INDEX('Compile Data'!$J$123:$AE$204,$O89,'Report - ALL (DASHBOARD)'!$W$3) -> 51.40763855 | R89: =INDEX('Compile Data'!$AH$123:$BC$204,$O89,'Report - ALL (DASHBOARD)'!$W$3) -> 51.16514969 | S89: =INDEX('Compile Data'!$BF$123:$CA$204,$O89,'Report - ALL (DASHBOARD)'!$W$3) -> 51.29867554 | T89: =INDEX('Compile Data'!$CD$123:$CY$204,$O89,'Report - ALL (DASHBOARD)'!$W$3) -> 0 | U89: =INDEX('Compile Data'!$DB$123:$DW$204,$O89,'Report - ALL (DASHBOARD)'!$W$3) -> 0 | V89: =INDEX('Compile Data'!$DZ$123:$EU$204,$O89,'Report - ALL (DASHBOARD)'!$W$3) -> 0
A90: 1983 | B90: =INDEX('Compile Data'!$J$12:$AE$93,$A90-1921,'Report - ALL (DASHBOARD)'!$W$3) -> 50.71501541 | C90: =INDEX('Compile Data'!$AH$12:$BC$93,$A90-1921,'Report - ALL (DASHBOARD)'!$W$3) -> 50.71796799 | D90: =INDEX('Compile Data'!$BF$12:$CA$93,$A90-1921,'Report - ALL (DASHBOARD)'!$W$3) -> 50.71874619 | O90: 62 | P90: 0.7530864198 | Q90: =INDEX('Compile Data'!$J$123:$AE$204,$O90,'Report - ALL (DASHBOARD)'!$W$3) -> 51.32295227 | R90: =INDEX('Compile Data'!$AH$123:$BC$204,$O90,'Report - ALL (DASHBOARD)'!$W$3) -> 51.15547943 | S90: =INDEX('Compile Data'!$BF$123:$CA$204,$O90,'Report - ALL (DASHBOARD)'!$W$3) -> 51.27698898 | T90: =INDEX('Compile Data'!$CD$123:$CY$204,$O90,'Report - ALL (DASHBOARD)'!$W$3) -> 0 | U90: =INDEX('Compile Data'!$DB$123:$DW$204,$O90,'Report - ALL (DASHBOARD)'!$W$3) -> 0 | V90: =INDEX('Compile Data'!$DZ$123:$EU$204,$O90,'Report - ALL (DASHBOARD)'!$W$3) -> 0
A91: 1984 | B91: =INDEX('Compile Data'!$J$12:$AE$93,$A91-1921,'Report - ALL (DASHBOARD)'!$W$3) -> 51.09747696 | C91: =INDEX('Compile Data'!$AH$12:$BC$93,$A91-1921,'Report - ALL (DASHBOARD)'!$W$3) -> 51.15547943 | D91: =INDEX('Compile Data'!$BF$12:$CA$93,$A91-1921,'Report - ALL (DASHBOARD)'!$W$3) -> 51.16576385 | O91: 63 | P91: 0.7654320988 | Q91: =INDEX('Compile Data'!$J$123:$AE$204,$O91,'Report - ALL (DASHBOARD)'!$W$3) -> 51.30534363 | R91: =INDEX('Compile Data'!$AH$123:$BC$204,$O91,'Report - ALL (DASHBOARD)'!$W$3) -> 51.12269974 | S91: =INDEX('Compile Data'!$BF$123:$CA$204,$O91,'Report - ALL (DASHBOARD)'!$W$3) -> 51.17425537 | T91: =INDEX('Compile Data'!$CD$123:$CY$204,$O91,'Report - ALL (DASHBOARD)'!$W$3) -> 0 | U91: =INDEX('Compile Data'!$DB$123:$DW$204,$O91,'Report - ALL (DASHBOARD)'!$W$3) -> 0 | V91: =INDEX('Compile Data'!$DZ$123:$EU$204,$O91,'Report - ALL (DASHBOARD)'!$W$3) -> 0
A92: 1985 | B92: =INDEX('Compile Data'!$J$12:$AE$93,$A92-1921,'Report - ALL (DASHBOARD)'!$W$3) -> 54.19432068 | C92: =INDEX('Compile Data'!$AH$12:$BC$93,$A92-1921,'Report - ALL (DASHBOARD)'!$W$3) -> 53.92457962 | D92: =INDEX('Compile Data'!$BF$12:$CA$93,$A92-1921,'Report - ALL (DASHBOARD)'!$W$3) -> 54.14173889 | O92: 64 | P92: 0.7777777778 | Q92: =INDEX('Compile Data'!$J$123:$AE$204,$O92,'Report - ALL (DASHBOARD)'!$W$3) -> 51.2853241 | R92: =INDEX('Compile Data'!$AH$123:$BC$204,$O92,'Report - ALL (DASHBOARD)'!$W$3) -> 51.08849716 | S92: =INDEX('Compile Data'!$BF$123:$CA$204,$O92,'Report - ALL (DASHBOARD)'!$W$3) -> 51.16576385 | T92: =INDEX('Compile Data'!$CD$123:$CY$204,$O92,'Report - ALL (DASHBOARD)'!$W$3) -> 0 | U92: =INDEX('Compile Data'!$DB$123:$DW$204,$O92,'Report - ALL (DASHBOARD)'!$W$3) -> 0 | V92: =INDEX('Compile Data'!$DZ$123:$EU$204,$O92,'Report - ALL (DASHBOARD)'!$W$3) -> 0
A93: 1986 | B93: =INDEX('Compile Data'!$J$12:$AE$93,$A93-1921,'Report - ALL (DASHBOARD)'!$W$3) -> 51.82427597 | C93: =INDEX('Compile Data'!$AH$12:$BC$93,$A93-1921,'Report - ALL (DASHBOARD)'!$W$3) -> 51.82254028 | D93: =INDEX('Compile Data'!$BF$12:$CA$93,$A93-1921,'Report - ALL (DASHBOARD)'!$W$3) -> 51.83163452 | O93: 65 | P93: =(O93-1)/81 -> 0.7901234568 | Q93: =INDEX('Compile Data'!$J$123:$AE$204,$O93,'Report - ALL (DASHBOARD)'!$W$3) -> 51.2109642 | R93: =INDEX('Compile Data'!$AH$123:$BC$204,$O93,'Report - ALL (DASHBOARD)'!$W$3) -> 51.08730316 | S93: =INDEX('Compile Data'!$BF$123:$CA$204,$O93,'Report - ALL (DASHBOARD)'!$W$3) -> 51.15203476 | T93: =INDEX('Compile Data'!$CD$123:$CY$204,$O93,'Report - ALL (DASHBOARD)'!$W$3) -> 0 | U93: =INDEX('Compile Data'!$DB$123:$DW$204,$O93,'Report - ALL (DASHBOARD)'!$W$3) -> 0 | V93: =INDEX('Compile Data'!$DZ$123:$EU$204,$O93,'Report - ALL (DASHBOARD)'!$W$3) -> 0
A94: 1987 | B94: =INDEX('Compile Data'!$J$12:$AE$93,$A94-1921,'Report - ALL (DASHBOARD)'!$W$3) -> 53.37779236 | C94: =INDEX('Compile Data'!$AH$12:$BC$93,$A94-1921,'Report - ALL (DASHBOARD)'!$W$3) -> 53.24953842 | D94: =INDEX('Compile Data'!$BF$12:$CA$93,$A94-1921,'Report - ALL (DASHBOARD)'!$W$3) -> 53.29816437 | O94: 66 | P94: 0.8024691358 | Q94: =INDEX('Compile Data'!$J$123:$AE$204,$O94,'Report - ALL (DASHBOARD)'!$W$3) -> 51.12465668 | R94: =INDEX('Compile Data'!$AH$123:$BC$204,$O94,'Report - ALL (DASHBOARD)'!$W$3) -> 51.08172226 | S94: =INDEX('Compile Data'!$BF$123:$CA$204,$O94,'Report - ALL (DASHBOARD)'!$W$3) -> 51.07410431 | T94: =INDEX('Compile Data'!$CD$123:$CY$204,$O94,'Report - ALL (DASHBOARD)'!$W$3) -> 0 | U94: =INDEX('Compile Data'!$DB$123:$DW$204,$O94,'Report - ALL (DASHBOARD)'!$W$3) -> 0 | V94: =INDEX('Compile Data'!$DZ$123:$EU$204,$O94,'Report - ALL (DASHBOARD)'!$W$3) -> 0
A95: =A94+1 -> 1988 | B95: =INDEX('Compile Data'!$J$12:$AE$93,$A95-1921,'Report - ALL (DASHBOARD)'!$W$3) -> 54.22033691 | C95: =INDEX('Compile Data'!$AH$12:$BC$93,$A95-1921,'Report - ALL (DASHBOARD)'!$W$3) -> 53.75404358 | D95: =INDEX('Compile Data'!$BF$12:$CA$93,$A95-1921,'Report - ALL (DASHBOARD)'!$W$3) -> 53.76053619 | O95: 67 | P95: 0.8148148148 | Q95: =INDEX('Compile Data'!$J$123:$AE$204,$O95,'Report - ALL (DASHBOARD)'!$W$3) -> 51.09747696 | R95: =INDEX('Compile Data'!$AH$123:$BC$204,$O95,'Report - ALL (DASHBOARD)'!$W$3) -> 51.06853867 | S95: =INDEX('Compile Data'!$BF$123:$CA$204,$O95,'Report - ALL (DASHBOARD)'!$W$3) -> 51.0188179 | T95: =INDEX('Compile Data'!$CD$123:$CY$204,$O95,'Report - ALL (DASHBOARD)'!$W$3) -> 0 | U95: =INDEX('Compile Data'!$DB$123:$DW$204,$O95,'Report - ALL (DASHBOARD)'!$W$3) -> 0 | V95: =INDEX('Compile Data'!$DZ$123:$EU$204,$O95,'Report - ALL (DASHBOARD)'!$W$3) -> 0
A96: 1989 | B96: =INDEX('Compile Data'!$J$12:$AE$93,$A96-1921,'Report - ALL (DASHBOARD)'!$W$3) -> 55.11851501 | C96: =INDEX('Compile Data'!$AH$12:$BC$93,$A96-1921,'Report - ALL (DASHBOARD)'!$W$3) -> 55.28279877 | D96: =INDEX('Compile Data'!$BF$12:$CA$93,$A96-1921,'Report - ALL (DASHBOARD)'!$W$3) -> 55.29911804 | O96: 68 | P96: 0.8271604938 | Q96: =INDEX('Compile Data'!$J$123:$AE$204,$O96,'Report - ALL (DASHBOARD)'!$W$3) -> 51.03599167 | R96: =INDEX('Compile Data'!$AH$123:$BC$204,$O96,'Report - ALL (DASHBOARD)'!$W$3) -> 51.00215149 | S96: =INDEX('Compile Data'!$BF$123:$CA$204,$O96,'Report - ALL (DASHBOARD)'!$W$3) -> 51.01550293 | T96: =INDEX('Compile Data'!$CD$123:$CY$204,$O96,'Report - ALL (DASHBOARD)'!$W$3) -> 0 | U96: =INDEX('Compile Data'!$DB$123:$DW$204,$O96,'Report - ALL (DASHBOARD)'!$W$3) -> 0 | V96: =INDEX('Compile Data'!$DZ$123:$EU$204,$O96,'Report - ALL (DASHBOARD)'!$W$3) -> 0
A97: 1990 | B97: =INDEX('Compile Data'!$J$12:$AE$93,$A97-1921,'Report - ALL (DASHBOARD)'!$W$3) -> 55.7435379 | C97: =INDEX('Compile Data'!$AH$12:$BC$93,$A97-1921,'Report - ALL (DASHBOARD)'!$W$3) -> 55.75688171 | D97: =INDEX('Compile Data'!$BF$12:$CA$93,$A97-1921,'Report - ALL (DASHBOARD)'!$W$3) -> 55.76026535 | O97: 69 | P97: 0.8395061728 | Q97: =INDEX('Compile Data'!$J$123:$AE$204,$O97,'Report - ALL (DASHBOARD)'!$W$3) -> 51.01390076 | R97: =INDEX('Compile Data'!$AH$123:$BC$204,$O97,'Report - ALL (DASHBOARD)'!$W$3) -> 51.00147247 | S97: =INDEX('Compile Data'!$BF$123:$CA$204,$O97,'Report - ALL (DASHBOARD)'!$W$3) -> 50.99897385 | T97: =INDEX('Compile Data'!$CD$123:$CY$204,$O97,'Report - ALL (DASHBOARD)'!$W$3) -> 0 | U97: =INDEX('Compile Data'!$DB$123:$DW$204,$O97,'Report - ALL (DASHBOARD)'!$W$3) -> 0 | V97: =INDEX('Compile Data'!$DZ$123:$EU$204,$O97,'Report - ALL (DASHBOARD)'!$W$3) -> 0
A98: 1991 | B98: =INDEX('Compile Data'!$J$12:$AE$93,$A98-1921,'Report - ALL (DASHBOARD)'!$W$3) -> 56.4277153 | C98: =INDEX('Compile Data'!$AH$12:$BC$93,$A98-1921,'Report - ALL (DASHBOARD)'!$W$3) -> 56.48462677 | D98: =INDEX('Compile Data'!$BF$12:$CA$93,$A98-1921,'Report - ALL (DASHBOARD)'!$W$3) -> 56.48501968 | O98: 70 | P98: 0.8518518519 | Q98: =INDEX('Compile Data'!$J$123:$AE$204,$O98,'Report - ALL (DASHBOARD)'!$W$3) -> 51.01079559 | R98: =INDEX('Compile Data'!$AH$123:$BC$204,$O98,'Report - ALL (DASHBOARD)'!$W$3) -> 50.99836349 | S98: =INDEX('Compile Data'!$BF$123:$CA$204,$O98,'Report - ALL (DASHBOARD)'!$W$3) -> 50.98510742 | T98: =INDEX('Compile Data'!$CD$123:$CY$204,$O98,'Report - ALL (DASHBOARD)'!$W$3) -> 0 | U98: =INDEX('Compile Data'!$DB$123:$DW$204,$O98,'Report - ALL (DASHBOARD)'!$W$3) -> 0 | V98: =INDEX('Compile Data'!$DZ$123:$EU$204,$O98,'Report - ALL (DASHBOARD)'!$W$3) -> 0
A99: 1992 | B99: =INDEX('Compile Data'!$J$12:$AE$93,$A99-1921,'Report - ALL (DASHBOARD)'!$W$3) -> 56.46458054 | C99: =INDEX('Compile Data'!$AH$12:$BC$93,$A99-1921,'Report - ALL (DASHBOARD)'!$W$3) -> 56.23894501 | D99: =INDEX('Compile Data'!$BF$12:$CA$93,$A99-1921,'Report - ALL (DASHBOARD)'!$W$3) -> 56.27095795 | O99: 71 | P99: 0.8641975309 | Q99: =INDEX('Compile Data'!$J$123:$AE$204,$O99,'Report - ALL (DASHBOARD)'!$W$3) -> 50.89739227 | R99: =INDEX('Compile Data'!$AH$123:$BC$204,$O99,'Report - ALL (DASHBOARD)'!$W$3) -> 50.9850235 | S99: =INDEX('Compile Data'!$BF$123:$CA$204,$O99,'Report - ALL (DASHBOARD)'!$W$3) -> 50.96857452 | T99: =INDEX('Compile Data'!$CD$123:$CY$204,$O99,'Report - ALL (DASHBOARD)'!$W$3) -> 0 | U99: =INDEX('Compile Data'!$DB$123:$DW$204,$O99,'Report - ALL (DASHBOARD)'!$W$3) -> 0 | V99: =INDEX('Compile Data'!$DZ$123:$EU$204,$O99,'Report - ALL (DASHBOARD)'!$W$3) -> 0
A100: 1993 | B100: =INDEX('Compile Data'!$J$12:$AE$93,$A100-1921,'Report - ALL (DASHBOARD)'!$W$3) -> 50.80172348 | C100: =INDEX('Compile Data'!$AH$12:$BC$93,$A100-1921,'Report - ALL (DASHBOARD)'!$W$3) -> 50.616539 | D100: =INDEX('Compile Data'!$BF$12:$CA$93,$A100-1921,'Report - ALL (DASHBOARD)'!$W$3) -> 50.81795883 | O100: 72 | P100: 0.8765432099 | Q100: =INDEX('Compile Data'!$J$123:$AE$204,$O100,'Report - ALL (DASHBOARD)'!$W$3) -> 50.80172348 | R100: =INDEX('Compile Data'!$AH$123:$BC$204,$O100,'Report - ALL (DASHBOARD)'!$W$3) -> 50.97195435 | S100: =INDEX('Compile Data'!$BF$123:$CA$204,$O100,'Report - ALL (DASHBOARD)'!$W$3) -> 50.81795883 | T100: =INDEX('Compile Data'!$CD$123:$CY$204,$O100,'Report - ALL (DASHBOARD)'!$W$3) -> 0 | U100: =INDEX('Compile Data'!$DB$123:$DW$204,$O100,'Report - ALL (DASHBOARD)'!$W$3) -> 0 | V100: =INDEX('Compile Data'!$DZ$123:$EU$204,$O100,'Report - ALL (DASHBOARD)'!$W$3) -> 0
A101: 1994 | B101: =INDEX('Compile Data'!$J$12:$AE$93,$A101-1921,'Report - ALL (DASHBOARD)'!$W$3) -> 54.99458694 | C101: =INDEX('Compile Data'!$AH$12:$BC$93,$A101-1921,'Report - ALL (DASHBOARD)'!$W$3) -> 54.90309143 | D101: =INDEX('Compile Data'!$BF$12:$CA$93,$A101-1921,'Report - ALL (DASHBOARD)'!$W$3) -> 54.96260834 | O101: 73 | P101: 0.8888888889 | Q101: =INDEX('Compile Data'!$J$123:$AE$204,$O101,'Report - ALL (DASHBOARD)'!$W$3) -> 50.78051376 | R101: =INDEX('Compile Data'!$AH$123:$BC$204,$O101,'Report - ALL (DASHBOARD)'!$W$3) -> 50.77692032 | S101: =INDEX('Compile Data'!$BF$123:$CA$204,$O101,'Report - ALL (DASHBOARD)'!$W$3) -> 50.76752472 | T101: =INDEX('Compile Data'!$CD$123:$CY$204,$O101,'Report - ALL (DASHBOARD)'!$W$3) -> 0 | U101: =INDEX('Compile Data'!$DB$123:$DW$204,$O101,'Report - ALL (DASHBOARD)'!$W$3) -> 0 | V101: =INDEX('Compile Data'!$DZ$123:$EU$204,$O101,'Report - ALL (DASHBOARD)'!$W$3) -> 0
A102: 1995 | B102: =INDEX('Compile Data'!$J$12:$AE$93,$A102-1921,'Report - ALL (DASHBOARD)'!$W$3) -> 51.83333969 | C102: =INDEX('Compile Data'!$AH$12:$BC$93,$A102-1921,'Report - ALL (DASHBOARD)'!$W$3) -> 51.8615799 | D102: =INDEX('Compile Data'!$BF$12:$CA$93,$A102-1921,'Report - ALL (DASHBOARD)'!$W$3) -> 51.83931351 | O102: 74 | P102: 0.9012345679 | Q102: =INDEX('Compile Data'!$J$123:$AE$204,$O102,'Report - ALL (DASHBOARD)'!$W$3) -> 50.74197769 | R102: =INDEX('Compile Data'!$AH$123:$BC$204,$O102,'Report - ALL (DASHBOARD)'!$W$3) -> 50.74759674 | S102: =INDEX('Compile Data'!$BF$123:$CA$204,$O102,'Report - ALL (DASHBOARD)'!$W$3) -> 50.75167465 | T102: =INDEX('Compile Data'!$CD$123:$CY$204,$O102,'Report - ALL (DASHBOARD)'!$W$3) -> 0 | U102: =INDEX('Compile Data'!$DB$123:$DW$204,$O102,'Report - ALL (DASHBOARD)'!$W$3) -> 0 | V102: =INDEX('Compile Data'!$DZ$123:$EU$204,$O102,'Report - ALL (DASHBOARD)'!$W$3) -> 0
A103: 1996 | B103: =INDEX('Compile Data'!$J$12:$AE$93,$A103-1921,'Report - ALL (DASHBOARD)'!$W$3) -> 54.65166092 | C103: =INDEX('Compile Data'!$AH$12:$BC$93,$A103-1921,'Report - ALL (DASHBOARD)'!$W$3) -> 54.68719101 | D103: =INDEX('Compile Data'!$BF$12:$CA$93,$A103-1921,'Report - ALL (DASHBOARD)'!$W$3) -> 54.69404602 | O103: 75 | P103: 0.9135802469 | Q103: =INDEX('Compile Data'!$J$123:$AE$204,$O103,'Report - ALL (DASHBOARD)'!$W$3) -> 50.71501541 | R103: =INDEX('Compile Data'!$AH$123:$BC$204,$O103,'Report - ALL (DASHBOARD)'!$W$3) -> 50.74520874 | S103: =INDEX('Compile Data'!$BF$123:$CA$204,$O103,'Report - ALL (DASHBOARD)'!$W$3) -> 50.74810791 | T103: =INDEX('Compile Data'!$CD$123:$CY$204,$O103,'Report - ALL (DASHBOARD)'!$W$3) -> 0 | U103: =INDEX('Compile Data'!$DB$123:$DW$204,$O103,'Report - ALL (DASHBOARD)'!$W$3) -> 0 | V103: =INDEX('Compile Data'!$DZ$123:$EU$204,$O103,'Report - ALL (DASHBOARD)'!$W$3) -> 0
A104: 1997 | B104: =INDEX('Compile Data'!$J$12:$AE$93,$A104-1921,'Report - ALL (DASHBOARD)'!$W$3) -> 51.32295227 | C104: =INDEX('Compile Data'!$AH$12:$BC$93,$A104-1921,'Report - ALL (DASHBOARD)'!$W$3) -> 51.16514969 | D104: =INDEX('Compile Data'!$BF$12:$CA$93,$A104-1921,'Report - ALL (DASHBOARD)'!$W$3) -> 51.17425537 | O104: 76 | P104: 0.9259259259 | Q104: =INDEX('Compile Data'!$J$123:$AE$204,$O104,'Report - ALL (DASHBOARD)'!$W$3) -> 50.70121765 | R104: =INDEX('Compile Data'!$AH$123:$BC$204,$O104,'Report - ALL (DASHBOARD)'!$W$3) -> 50.71796799 | S104: =INDEX('Compile Data'!$BF$123:$CA$204,$O104,'Report - ALL (DASHBOARD)'!$W$3) -> 50.73120499 | T104: =INDEX('Compile Data'!$CD$123:$CY$204,$O104,'Report - ALL (DASHBOARD)'!$W$3) -> 0 | U104: =INDEX('Compile Data'!$DB$123:$DW$204,$O104,'Report - ALL (DASHBOARD)'!$W$3) -> 0 | V104: =INDEX('Compile Data'!$DZ$123:$EU$204,$O104,'Report - ALL (DASHBOARD)'!$W$3) -> 0
A105: 1998 | B105: =INDEX('Compile Data'!$J$12:$AE$93,$A105-1921,'Report - ALL (DASHBOARD)'!$W$3) -> 52.15048218 | C105: =INDEX('Compile Data'!$AH$12:$BC$93,$A105-1921,'Report - ALL (DASHBOARD)'!$W$3) -> 52.16763687 | D105: =INDEX('Compile Data'!$BF$12:$CA$93,$A105-1921,'Report - ALL (DASHBOARD)'!$W$3) -> 52.18132401 | O105: 77 | P105: 0.9382716049 | Q105: =INDEX('Compile Data'!$J$123:$AE$204,$O105,'Report - ALL (DASHBOARD)'!$W$3) -> 50.6885376 | R105: =INDEX('Compile Data'!$AH$123:$BC$204,$O105,'Report - ALL (DASHBOARD)'!$W$3) -> 50.70884705 | S105: =INDEX('Compile Data'!$BF$123:$CA$204,$O105,'Report - ALL (DASHBOARD)'!$W$3) -> 50.72054291 | T105: =INDEX('Compile Data'!$CD$123:$CY$204,$O105,'Report - ALL (DASHBOARD)'!$W$3) -> 0 | U105: =INDEX('Compile Data'!$DB$123:$DW$204,$O105,'Report - ALL (DASHBOARD)'!$W$3) -> 0 | V105: =INDEX('Compile Data'!$DZ$123:$EU$204,$O105,'Report - ALL (DASHBOARD)'!$W$3) -> 0
A106: 1999 | B106: =INDEX('Compile Data'!$J$12:$AE$93,$A106-1921,'Report - ALL (DASHBOARD)'!$W$3) -> 51.92366028 | C106: =INDEX('Compile Data'!$AH$12:$BC$93,$A106-1921,'Report - ALL (DASHBOARD)'!$W$3) -> 51.89552689 | D106: =INDEX('Compile Data'!$BF$12:$CA$93,$A106-1921,'Report - ALL (DASHBOARD)'!$W$3) -> 51.89706039 | O106: 78 | P106: 0.950617284 | Q106: =INDEX('Compile Data'!$J$123:$AE$204,$O106,'Report - ALL (DASHBOARD)'!$W$3) -> 50.68099976 | R106: =INDEX('Compile Data'!$AH$123:$BC$204,$O106,'Report - ALL (DASHBOARD)'!$W$3) -> 50.68886948 | S106: =INDEX('Compile Data'!$BF$123:$CA$204,$O106,'Report - ALL (DASHBOARD)'!$W$3) -> 50.71874619 | T106: =INDEX('Compile Data'!$CD$123:$CY$204,$O106,'Report - ALL (DASHBOARD)'!$W$3) -> 0 | U106: =INDEX('Compile Data'!$DB$123:$DW$204,$O106,'Report - ALL (DASHBOARD)'!$W$3) -> 0 | V106: =INDEX('Compile Data'!$DZ$123:$EU$204,$O106,'Report - ALL (DASHBOARD)'!$W$3) -> 0
A107: 2000 | B107: =INDEX('Compile Data'!$J$12:$AE$93,$A107-1921,'Report - ALL (DASHBOARD)'!$W$3) -> 53.98387527 | C107: =INDEX('Compile Data'!$AH$12:$BC$93,$A107-1921,'Report - ALL (DASHBOARD)'!$W$3) -> 53.2322197 | D107: =INDEX('Compile Data'!$BF$12:$CA$93,$A107-1921,'Report - ALL (DASHBOARD)'!$W$3) -> 53.39818192 | O107: 79 | P107: 0.962962963 | Q107: =INDEX('Compile Data'!$J$123:$AE$204,$O107,'Report - ALL (DASHBOARD)'!$W$3) -> 50.65712738 | R107: =INDEX('Compile Data'!$AH$123:$BC$204,$O107,'Report - ALL (DASHBOARD)'!$W$3) -> 50.61919403 | S107: =INDEX('Compile Data'!$BF$123:$CA$204,$O107,'Report - ALL (DASHBOARD)'!$W$3) -> 50.59937286 | T107: =INDEX('Compile Data'!$CD$123:$CY$204,$O107,'Report - ALL (DASHBOARD)'!$W$3) -> 0 | U107: =INDEX('Compile Data'!$DB$123:$DW$204,$O107,'Report - ALL (DASHBOARD)'!$W$3) -> 0 | V107: =INDEX('Compile Data'!$DZ$123:$EU$204,$O107,'Report - ALL (DASHBOARD)'!$W$3) -> 0
A108: 2001 | B108: =INDEX('Compile Data'!$J$12:$AE$93,$A108-1921,'Report - ALL (DASHBOARD)'!$W$3) -> 55.3494339 | C108: =INDEX('Compile Data'!$AH$12:$BC$93,$A108-1921,'Report - ALL (DASHBOARD)'!$W$3) -> 55.36148453 | D108: =INDEX('Compile Data'!$BF$12:$CA$93,$A108-1921,'Report - ALL (DASHBOARD)'!$W$3) -> 55.53918076 | O108: 80 | P108: 0.975308642 | Q108: =INDEX('Compile Data'!$J$123:$AE$204,$O108,'Report - ALL (DASHBOARD)'!$W$3) -> 50.62338638 | R108: =INDEX('Compile Data'!$AH$123:$BC$204,$O108,'Report - ALL (DASHBOARD)'!$W$3) -> 50.616539 | S108: =INDEX('Compile Data'!$BF$123:$CA$204,$O108,'Report - ALL (DASHBOARD)'!$W$3) -> 50.58662796 | T108: =INDEX('Compile Data'!$CD$123:$CY$204,$O108,'Report - ALL (DASHBOARD)'!$W$3) -> 0 | U108: =INDEX('Compile Data'!$DB$123:$DW$204,$O108,'Report - ALL (DASHBOARD)'!$W$3) -> 0 | V108: =INDEX('Compile Data'!$DZ$123:$EU$204,$O108,'Report - ALL (DASHBOARD)'!$W$3) -> 0
A109: 2002 | B109: =INDEX('Compile Data'!$J$12:$AE$93,$A109-1921,'Report - ALL (DASHBOARD)'!$W$3) -> 53.07067108 | C109: =INDEX('Compile Data'!$AH$12:$BC$93,$A109-1921,'Report - ALL (DASHBOARD)'!$W$3) -> 53.07266617 | D109: =INDEX('Compile Data'!$BF$12:$CA$93,$A109-1921,'Report - ALL (DASHBOARD)'!$W$3) -> 53.0759964 | O109: 81 | P109: 0.987654321 | Q109: =INDEX('Compile Data'!$J$123:$AE$204,$O109,'Report - ALL (DASHBOARD)'!$W$3) -> 50.41746902 | R109: =INDEX('Compile Data'!$AH$123:$BC$204,$O109,'Report - ALL (DASHBOARD)'!$W$3) -> 50.51259613 | S109: =INDEX('Compile Data'!$BF$123:$CA$204,$O109,'Report - ALL (DASHBOARD)'!$W$3) -> 50.4930687 | T109: =INDEX('Compile Data'!$CD$123:$CY$204,$O109,'Report - ALL (DASHBOARD)'!$W$3) -> 0 | U109: =INDEX('Compile Data'!$DB$123:$DW$204,$O109,'Report - ALL (DASHBOARD)'!$W$3) -> 0 | V109: =INDEX('Compile Data'!$DZ$123:$EU$204,$O109,'Report - ALL (DASHBOARD)'!$W$3) -> 0
A110: 2003 | B110: =INDEX('Compile Data'!$J$12:$AE$93,$A110-1921,'Report - ALL (DASHBOARD)'!$W$3) -> 51.70005798 | C110: =INDEX('Compile Data'!$AH$12:$BC$93,$A110-1921,'Report - ALL (DASHBOARD)'!$W$3) -> 51.52051926 | D110: =INDEX('Compile Data'!$BF$12:$CA$93,$A110-1921,'Report - ALL (DASHBOARD)'!$W$3) -> 51.57191086 | O110: 82 | P110: 1 | Q110: =INDEX('Compile Data'!$J$123:$AE$204,$O110,'Report - ALL (DASHBOARD)'!$W$3) -> 50.3997879 | R110: =INDEX('Compile Data'!$AH$123:$BC$204,$O110,'Report - ALL (DASHBOARD)'!$W$3) -> 50.43185425 | S110: =INDEX('Compile Data'!$BF$123:$CA$204,$O110,'Report - ALL (DASHBOARD)'!$W$3) -> 50.45535278 | T110: =INDEX('Compile Data'!$CD$123:$CY$204,$O110,'Report - ALL (DASHBOARD)'!$W$3) -> 0 | U110: =INDEX('Compile Data'!$DB$123:$DW$204,$O110,'Report - ALL (DASHBOARD)'!$W$3) -> 0 | V110: =INDEX('Compile Data'!$DZ$123:$EU$204,$O110,'Report - ALL (DASHBOARD)'!$W$3) -> 0

Sheet Compile Data
B1: =Control!$C$9 -> NAA 041122 2035CT | C1: =Control!$C$10 -> ALT3A 041122 2035CT | D1: =Control!$C$11 -> ALT3B 041122 2035CT | E1: =Control!$C$12 -> EXTRA1 | F1: =Control!$C$13 -> EXTRA2 | G1: =Control!$C$14 -> EXTRA3 | AA1: =$B$8 -> PER-AVER | AY1: =$C$8 -> PER-AVER | BW1: ='Compile Data'!$D$8 -> PER-AVER | CU1: ='Compile Data'!$E$8 -> PER-AVER | DS1: ='Compile Data'!$F$8 -> PER-AVER | EQ1: ='Compile Data'!$F$8 -> PER-AVER
A2: Index: | B2: ='Report - ALL (DASHBOARD)'!W1 -> 10 | C2: =B2 -> 10 | D2: 10 | E2: 10 | F2: 10 | G2: 10
A3: Convert? | B3: =IF('Report - ALL (DASHBOARD)'!W4,1,0) -> 0 | C3: 0 | D3: 0 | E3: 0 | F3: 0 | G3: 0
A4: Column: | B4: =VLOOKUP(B$2,Control!$A$39:$J$125,7) -> J | C4: J | D4: J | E4: J | F4: J | G4: J
A5: Title: | B5: =VLOOKUP(B$2,Control!$A$39:$J$125,10) -> Sacramento River Below Clear Creek Temperature | C5: =VLOOKUP(C$2,Control!$A$39:$J$125,10) -> Sacramento River Below Clear Creek Temperature | D5: =VLOOKUP(D$2,Control!$A$39:$J$125,10) -> Sacramento River Below Clear Creek Temperature | E5: =VLOOKUP(E$2,Control!$A$39:$J$111,10) -> Sacramento River Below Clear Creek Temperature | F5: =VLOOKUP(F$2,Control!$A$39:$J$111,10) -> Sacramento River Below Clear Creek Temperature | G5: =VLOOKUP(G$2,Control!$A$39:$J$111,10) -> Sacramento River Below Clear Creek Temperature
A6: Parameter: | B6: =INDIRECT(CONCATENATE("'",B$1,"'!",B$4,2)) -> BLW CLEAR CREEK | C6: BLW CLEAR CREEK | D6: BLW CLEAR CREEK | E6: BLW CLEAR CREEK | F6: BLW CLEAR CREEK | G6: BLW CLEAR CREEK
B7: =INDIRECT(CONCATENATE("'",B$1,"'!",B$4,3)) -> TEMP | C7: TEMP | D7: TEMP | E7: TEMP | F7: TEMP | G7: TEMP
A8: Type: | B8: =TRIM(VLOOKUP(B$2,Control!$A$39:$J$111,9)) -> PER-AVER | C8: =TRIM(VLOOKUP(C$2,Control!$A$39:$J$111,9)) -> PER-AVER | D8: =TRIM(VLOOKUP(D$2,Control!$A$39:$J$111,9)) -> PER-AVER | E8: =TRIM(VLOOKUP(E$2,Control!$A$39:$J$111,9)) -> PER-AVER | F8: =TRIM(VLOOKUP(F$2,Control!$A$39:$J$111,9)) -> PER-AVER | G8: =TRIM(VLOOKUP(G$2,Control!$A$39:$J$111,9)) -> PER-AVER | I8: =CONCATENATE(TRIM(B$1),": ",TRIM(B$5)," - ",TRIM(B$6)," ",TRIM(B$7)," (",TRIM(B$10),") ",TRIM(B$11)) -> NAA 041122 2035CT: Sacramento River Below Clear Creek Temperature - BLW CLEAR CREEK TEMP (DEGF) | AG8: =CONCATENATE(TRIM(C$1),": ",TRIM(C$5)," - ",TRIM(C$6)," ",TRIM(C$7)," (",TRIM(C$10),") ",TRIM(C$11)) -> ALT3A 041122 2035CT: Sacramento River Below Clear Creek Temperature - BLW CLEAR CREEK TEMP (DEGF) | BE8: =CONCATENATE(TRIM('Compile Data'!D$1),": ",TRIM('Compile Data'!D$5)," - ",TRIM('Compile Data'!D$6)," ",TRIM('Compile Data'!D$7)," (",TRIM('Compile Data'!D$10),") ",TRIM('Compile Data'!D$11)) -> ALT3B 041122 2035CT: Sacramento River Below Clear Creek Temperature - BLW CLEAR CREEK TEMP (DEGF) | CC8: =CONCATENATE(TRIM('Compile Data'!E$1),": ",TRIM('Compile Data'!E$5)," - ",TRIM('Compile Data'!E$6)," ",TRIM('Compile Data'!E$7)," (",TRIM('Compile Data'!E$10),") ",TRIM('Compile Data'!E$11)) -> EXTRA1: Sacramento River Below Clear Creek Temperature - BLW CLEAR CREEK TEMP (DEGF) | DA8: =CONCATENATE(TRIM('Compile Data'!F$1),": ",TRIM('Compile Data'!F$5)," - ",TRIM('Compile Data'!F$6)," ",TRIM('Compile Data'!F$7)," (",TRIM('Compile Data'!F$10),") ",TRIM('Compile Data'!F$11)) -> EXTRA2: Sacramento River Below Clear Creek Temperature - BLW CLEAR CREEK TEMP (DEGF) | DY8: =CONCATENATE(TRIM('Compile Data'!G$1),": ",TRIM('Compile Data'!G$5)," - ",TRIM('Compile Data'!G$6)," ",TRIM('Compile Data'!G$7)," (",TRIM('Compile Data'!G$10),") ",TRIM('Compile Data'!G$11)) -> EXTRA3: Sacramento River Below Clear Creek Temperature - BLW CLEAR CREEK TEMP (DEGF)
A9: Units-native: | B9: =TRIM(INDIRECT(CONCATENATE("'",B$1,"'!",B$4,11))) -> DEGF | C9: DEGF | D9: DEGF | E9: DEGF | F9: DEGF | G9: DEGF
A10: Units-shown: | B10: =IF(AND(B$3>0,B$9="CFS"),"TAF",B$9) -> DEGF | C10: DEGF | D10: DEGF | E10: DEGF | F10: DEGF | G10: DEGF | W10: Jan-Dec | X10: Mar-Feb | Y10: Oct-Sep | AA10: Oct-Jan | AB10: Dec-Feb | AC10: Mar-Jun | AD10: Jun-Sep | AE10: Sep-Nov | AU10: Jan-Dec | AV10: Mar-Feb | AW10: Oct-Sep | AY10: Oct-Jan | AZ10: Dec-Feb | BA10: Mar-Jun | BB10: Jun-Sep | BC10: Sep-Nov | BS10: Jan-Dec | BT10: Mar-Feb | BU10: Oct-Sep | BW10: Oct-Jan | BX10: Dec-Feb | BY10: Mar-Jun | BZ10: Jun-Sep | CA10: Sep-Nov | CQ10: Jan-Dec | CR10: Mar-Feb | CS10: Oct-Sep | CU10: Oct-Jan | CV10: Dec-Feb | CW10: Mar-Jun | CX10: Jun-Sep | CY10: Sep-Nov | DO10: Jan-Dec | DP10: Mar-Feb | DQ10: Oct-Sep | DS10: Oct-Jan | DT10: Dec-Feb | DU10: Mar-Jun | DV10: Jun-Sep | DW10: Sep-Nov | EM10: Jan-Dec | EN10: Mar-Feb | EO10: Oct-Sep | EQ10: Oct-Jan | ER10: Dec-Feb | ES10: Mar-Jun | ET10: Jun-Sep | EU10: Sep-Nov
A11: Date | B11: =IF(ISNUMBER(FIND("PRV",B$6)),"SHIFTED","") ->  | I11: YEAR | J11: OCT | K11: NOV | L11: DEC | M11: JAN | N11: FEB | O11: MAR | P11: APR | Q11: MAY | R11: JUN | S11: JUL | T11: AUG | U11: SEP | W11: =IF(AND($B$10="TAF",$B$8="PER-AVER"),"TOT","AVG") -> AVG | X11: =IF(AND($B$10="TAF",$B$8="PER-AVER"),"TOT","AVG") -> AVG | Y11: =IF(AND($B$10="TAF",$B$8="PER-AVER"),"TOT","AVG") -> AVG | AA11: =IF(AND($B$10="TAF",$B$8="PER-AVER"),"TOT","AVG") -> AVG | AB11: =IF(AND($B$10="TAF",$B$8="PER-AVER"),"TOT","AVG") -> AVG | AC11: =IF(AND($B$10="TAF",$B$8="PER-AVER"),"TOT","AVG") -> AVG | AD11: =IF(AND($B$10="TAF",$B$8="PER-AVER"),"TOT","AVG") -> AVG | AE11: =IF(AND($B$10="TAF",$B$8="PER-AVER"),"TOT","AVG") -> AVG | AG11: YEAR | AH11: OCT | AI11: NOV | AJ11: DEC | AK11: JAN | AL11: FEB | AM11: MAR | AN11: APR | AO11: MAY | AP11: JUN | AQ11: JUL | AR11: AUG | AS11: SEP | AU11: =IF(AND($C$10="TAF",$C$8="PER-AVER"),"TOT","AVG") -> AVG | AV11: =IF(AND($C$10="TAF",$C$8="PER-AVER"),"TOT","AVG") -> AVG | AW11: =IF(AND($C$10="TAF",$C$8="PER-AVER"),"TOT","AVG") -> AVG | AY11: =IF(AND($C$10="TAF",$C$8="PER-AVER"),"TOT","AVG") -> AVG | AZ11: =IF(AND($C$10="TAF",$C$8="PER-AVER"),"TOT","AVG") -> AVG | BA11: =IF(AND($C$10="TAF",$C$8="PER-AVER"),"TOT","AVG") -> AVG | BB11: =IF(AND($C$10="TAF",$C$8="PER-AVER"),"TOT","AVG") -> AVG | BC11: =IF(AND($C$10="TAF",$C$8="PER-AVER"),"TOT","AVG") -> AVG | BE11: YEAR | BF11: OCT | BG11: NOV | BH11: DEC | BI11: JAN | BJ11: FEB | BK11: MAR | BL11: APR | BM11: MAY | BN11: JUN | BO11: JUL | BP11: AUG | BQ11: SEP | BS11: =IF(AND('Compile Data'!$D$10="TAF",'Compile Data'!$D$8="PER-AVER"),"TOT","AVG") -> AVG | BT11: =IF(AND('Compile Data'!$D$10="TAF",'Compile Data'!$D$8="PER-AVER"),"TOT","AVG") -> AVG | BU11: =IF(AND('Compile Data'!$D$10="TAF",'Compile Data'!$D$8="PER-AVER"),"TOT","AVG") -> AVG | BW11: =IF(AND('Compile Data'!$D$10="TAF",'Compile Data'!$D$8="PER-AVER"),"TOT","AVG") -> AVG | BX11: =IF(AND('Compile Data'!$D$10="TAF",'Compile Data'!$D$8="PER-AVER"),"TOT","AVG") -> AVG | BY11: =IF(AND('Compile Data'!$D$10="TAF",'Compile Data'!$D$8="PER-AVER"),"TOT","AVG") -> AVG | BZ11: =IF(AND('Compile Data'!$D$10="TAF",'Compile Data'!$D$8="PER-AVER"),"TOT","AVG") -> AVG | CA11: =IF(AND('Compile Data'!$D$10="TAF",'Compile Data'!$D$8="PER-AVER"),"TOT","AVG") -> AVG | CC11: YEAR | CD11: OCT | CE11: NOV | CF11: DEC | CG11: JAN | CH11: FEB | CI11: MAR | CJ11: APR | CK11: MAY | CL11: JUN | CM11: JUL | CN11: AUG | CO11: SEP | CQ11: =IF(AND('Compile Data'!$E$10="TAF",'Compile Data'!$E$8="PER-AVER"),"TOT","AVG") -> AVG | CR11: =IF(AND('Compile Data'!$E$10="TAF",'Compile Data'!$E$8="PER-AVER"),"TOT","AVG") -> AVG | CS11: =IF(AND('Compile Data'!$E$10="TAF",'Compile Data'!$E$8="PER-AVER"),"TOT","AVG") -> AVG | CU11: =IF(AND('Compile Data'!$E$10="TAF",'Compile Data'!$E$8="PER-AVER"),"TOT","AVG") -> AVG | CV11: =IF(AND('Compile Data'!$E$10="TAF",'Compile Data'!$E$8="PER-AVER"),"TOT","AVG") -> AVG | CW11: =IF(AND('Compile Data'!$E$10="TAF",'Compile Data'!$E$8="PER-AVER"),"TOT","AVG") -> AVG | CX11: =IF(AND('Compile Data'!$E$10="TAF",'Compile Data'!$E$8="PER-AVER"),"TOT","AVG") -> AVG | CY11: =IF(AND('Compile Data'!$E$10="TAF",'Compile Data'!$E$8="PER-AVER"),"TOT","AVG") -> AVG | DA11: YEAR | DB11: OCT | DC11: NOV | DD11: DEC | DE11: JAN | DF11: FEB | DG11: MAR | DH11: APR | DI11: MAY | DJ11: JUN | DK11: JUL | DL11: AUG | DM11: SEP | DO11: =IF(AND('Compile Data'!$F$10="TAF",'Compile Data'!$F$8="PER-AVER"),"TOT","AVG") -> AVG | DP11: =IF(AND('Compile Data'!$F$10="TAF",'Compile Data'!$F$8="PER-AVER"),"TOT","AVG") -> AVG | DQ11: =IF(AND('Compile Data'!$F$10="TAF",'Compile Data'!$F$8="PER-AVER"),"TOT","AVG") -> AVG | DS11: =IF(AND('Compile Data'!$F$10="TAF",'Compile Data'!$F$8="PER-AVER"),"TOT","AVG") -> AVG | DT11: =IF(AND('Compile Data'!$F$10="TAF",'Compile Data'!$F$8="PER-AVER"),"TOT","AVG") -> AVG | DU11: =IF(AND('Compile Data'!$F$10="TAF",'Compile Data'!$F$8="PER-AVER"),"TOT","AVG") -> AVG | DV11: =IF(AND('Compile Data'!$F$10="TAF",'Compile Data'!$F$8="PER-AVER"),"TOT","AVG") -> AVG | DW11: =IF(AND('Compile Data'!$F$10="TAF",'Compile Data'!$F$8="PER-AVER"),"TOT","AVG") -> AVG | DY11: YEAR | DZ11: OCT | EA11: NOV | EB11: DEC | EC11: JAN | ED11: FEB | EE11: MAR | EF11: APR | EG11: MAY | EH11: JUN | EI11: JUL | EJ11: AUG | EK11: SEP | EM11: =IF(AND('Compile Data'!$F$10="TAF",'Compile Data'!$F$8="PER-AVER"),"TOT","AVG") -> AVG | EN11: =IF(AND('Compile Data'!$F$10="TAF",'Compile Data'!$F$8="PER-AVER"),"TOT","AVG") -> AVG | EO11: =IF(AND('Compile Data'!$F$10="TAF",'Compile Data'!$F$8="PER-AVER"),"TOT","AVG") -> AVG | EQ11: =IF(AND('Compile Data'!$F$10="TAF",'Compile Data'!$F$8="PER-AVER"),"TOT","AVG") -> AVG | ER11: =IF(AND('Compile Data'!$F$10="TAF",'Compile Data'!$F$8="PER-AVER"),"TOT","AVG") -> AVG | ES11: =IF(AND('Compile Data'!$F$10="TAF",'Compile Data'!$F$8="PER-AVER"),"TOT","AVG") -> AVG | ET11: =IF(AND('Compile Data'!$F$10="TAF",'Compile Data'!$F$8="PER-AVER"),"TOT","AVG") -> AVG | EU11: =IF(AND('Compile Data'!$F$10="TAF",'Compile Data'!$F$8="PER-AVER"),"TOT","AVG") -> AVG
A12: 1921-09-30 | I12: 1922 | J12: =NA() ->  | K12: =NA() ->  | L12: =NA() ->  | M12: =B16 -> 46.31557083 | N12: =B17 -> 46.17838287 | O12: =B18 -> 48.96064758 | P12: =B19 -> 51.33030701 | Q12: =B20 -> 52.65354538 | R12: =B21 -> 52.19549942 | S12: =B22 -> 52.90038681 | T12: =B23 -> 51.9318428 | U12: =B24 -> 51.92146301 | W12: =IF(W$11="AVG",AVERAGE(M12:U12,J13:L13),SUM(M12:U12,J13:L13)) -> 50.98305988 | X12: =IF(X$11="AVG",AVERAGE(O12:U12,J13:N13),SUM(O12:U12,J13:N13)) -> 51.36111418 | Y12: =NA() ->  | AA12: =NA() ->  | AB12: =NA() ->  | AC12: =IF(AC$11="AVG",IF(AA$1="INST-VAL",AVERAGE(N12:Q12,O12:R12),AVERAGE(O12:R12)),SUM(O12:R12)) -> 51.28499985 | AD12: =IF(AD$11="AVG",IF(AA$1="INST-VAL",AVERAGE(Q12:T12,R12:U12),AVERAGE(R12:U12)),SUM(R12:U12)) -> 52.23729801 | AE12: =IF(AE$11="AVG",IF(AA$1="INST-VAL",AVERAGE(T12:U12,J13,U12,J13:K13),AVERAGE(U12,J13:K13)),SUM(U12,J13:K13)) -> 52.49424744 | AG12: 1922 | AH12: =NA() ->  | AI12: =NA() ->  | AJ12: =NA() ->  | AK12: ='Compile Data'!C16 -> 46.31827164 | AL12: ='Compile Data'!C17 -> 46.17562485 | AM12: ='Compile Data'!C18 -> 48.99189758 | AN12: ='Compile Data'!C19 -> 51.15528107 | AO12: ='Compile Data'!C20 -> 52.64852524 | AP12: ='Compile Data'!C21 -> 52.34033966 | AQ12: ='Compile Data'!C22 -> 53.47005844 | AR12: ='Compile Data'!C23 -> 52.40244675 | AS12: ='Compile Data'!C24 -> 50.9850235 | AU12: =IF(AU$11="AVG",AVERAGE(AK12:AS12,AH13:AJ13),SUM(AK12:AS12,AH13:AJ13)) -> 50.97050603 | AV12: =IF(AV$11="AVG",AVERAGE(AM12:AS12,AH13:AL13),SUM(AM12:AS12,AH13:AL13)) -> 51.34877586 | AW12: =NA() ->  | AY12: =NA() ->  | AZ12: =NA() ->  | BA12: =IF(BA$11="AVG",IF(AY$1="INST-VAL",AVERAGE(AL12:AO12,AM12:AP12),AVERAGE(AM12:AP12)),SUM(AM12:AP12)) -> 51.28401089 | BB12: =IF(BB$11="AVG",IF(AY$1="INST-VAL",AVERAGE(AO12:AR12,AP12:AS12),AVERAGE(AP12:AS12)),SUM(AP12:AS12)) -> 52.29946709 | BC12: =IF(BC$11="AVG",IF(AY$1="INST-VAL",AVERAGE(AR12:AS12,AH13,AS12,AH13:AI13),AVERAGE(AS12,AH13:AI13)),SUM(AS12,AH13:AI13)) -> 52.10000102 | BE12: 1922 | BF12: =NA() ->  | BG12: =NA() ->  | BH12: =NA() ->  | BI12: ='Compile Data'!D16 -> 46.31838226 | BJ12: ='Compile Data'!D17 -> 46.1761055 | BK12: ='Compile Data'!D18 -> 48.99396133 | BL12: ='Compile Data'!D19 -> 51.19488907 | BM12: ='Compile Data'!D20 -> 52.64738083 | BN12: ='Compile Data'!D21 -> 52.3392868 | BO12: ='Compile Data'!D22 -> 53.47435379 | BP12: ='Compile Data'!D23 -> 52.4020462 | BQ12: ='Compile Data'!D24 -> 50.98510742 | BS12: =IF(BS$11="AVG",AVERAGE(BI12:BQ12,BF13:BH13),SUM(BI12:BQ12,BF13:BH13)) -> 50.97371991 | BT12: =IF(BT$11="AVG",AVERAGE(BK12:BQ12,BF13:BJ13),SUM(BK12:BQ12,BF13:BJ13)) -> 51.35186068 | BU12: =NA() ->  | BW12: =NA() ->  | BX12: =NA() ->  | BY12: =IF(BY$11="AVG",IF(BW$1="INST-VAL",AVERAGE(BJ12:BM12,BK12:BN12),AVERAGE(BK12:BN12)),SUM(BK12:BN12)) -> 51.29387951 | BZ12: =IF(BZ$11="AVG",IF(BW$1="INST-VAL",AVERAGE(BM12:BP12,BN12:BQ12),AVERAGE(BN12:BQ12)),SUM(BN12:BQ12)) -> 52.30019855 | CA12: =IF(CA$11="AVG",IF(BW$1="INST-VAL",AVERAGE(BP12:BQ12,BF13,BQ12,BF13:BG13),AVERAGE(BQ12,BF13:BG13)),SUM(BQ12,BF13:BG13)) -> 52.09831238 | CC12: 1922 | CD12: =NA() ->  | CE12: =NA() ->  | CF12: =NA() ->  | CG12: ='Compile Data'!E16 -> 0 | CH12: ='Compile Data'!E17 -> 0 | CI12: ='Compile Data'!E18 -> 0 | CJ12: ='Compile Data'!E19 -> 0 | CK12: ='Compile Data'!E20 -> 0 | CL12: ='Compile Data'!E21 -> 0 | CM12: ='Compile Data'!E22 -> 0 | CN12: ='Compile Data'!E23 -> 0 | CO12: ='Compile Data'!E24 -> 0 | CQ12: =IF(CQ$11="AVG",AVERAGE(CG12:CO12,CD13:CF13),SUM(CG12:CO12,CD13:CF13)) -> 0 | CR12: =IF(CR$11="AVG",AVERAGE(CI12:CO12,CD13:CH13),SUM(CI12:CO12,CD13:CH13)) -> 0 | CS12: =NA() ->  | CU12: =NA() ->  | CV12: =NA() ->  | CW12: =IF(CW$11="AVG",IF(CU$1="INST-VAL",AVERAGE(CH12:CK12,CI12:CL12),AVERAGE(CI12:CL12)),SUM(CI12:CL12)) -> 0 | CX12: =IF(CX$11="AVG",IF(CU$1="INST-VAL",AVERAGE(CK12:CN12,CL12:CO12),AVERAGE(CL12:CO12)),SUM(CL12:CO12)) -> 0 | CY12: =IF(CY$11="AVG",IF(CU$1="INST-VAL",AVERAGE(CN12:CO12,CD13,CO12,CD13:CE13),AVERAGE(CO12,CD13:CE13)),SUM(CO12,CD13:CE13)) -> 0 | DA12: 1922 | DB12: =NA() ->  | DC12: =NA() ->  | DD12: =NA() ->  | DE12: ='Compile Data'!F16 -> 0 | DF12: ='Compile Data'!F17 -> 0 | DG12: ='Compile Data'!F18 -> 0 | DH12: ='Compile Data'!F19 -> 0 | DI12: ='Compile Data'!F20 -> 0 | DJ12: ='Compile Data'!F21 -> 0 | DK12: ='Compile Data'!F22 -> 0 | DL12: ='Compile Data'!F23 -> 0 | DM12: ='Compile Data'!F24 -> 0 | DO12: =IF(DO$11="AVG",AVERAGE(DE12:DM12,DB13:DD13),SUM(DE12:DM12,DB13:DD13)) -> 0 | DP12: =IF(DP$11="AVG",AVERAGE(DG12:DM12,DB13:DF13),SUM(DG12:DM12,DB13:DF13)) -> 0 | DQ12: =NA() ->  | DS12: =NA() ->  | DT12: =NA() ->  | DU12: =IF(DU$11="AVG",IF(DS$1="INST-VAL",AVERAGE(DF12:DI12,DG12:DJ12),AVERAGE(DG12:DJ12)),SUM(DG12:DJ12)) -> 0 | DV12: =IF(DV$11="AVG",IF(DS$1="INST-VAL",AVERAGE(DI12:DL12,DJ12:DM12),AVERAGE(DJ12:DM12)),SUM(DJ12:DM12)) -> 0 | DW12: =IF(DW$11="AVG",IF(DS$1="INST-VAL",AVERAGE(DL12:DM12,DB13,DM12,DB13:DC13),AVERAGE(DM12,DB13:DC13)),SUM(DM12,DB13:DC13)) -> 0 | DY12: 1922 | DZ12: =NA() ->  | EA12: =NA() ->  | EB12: =NA() ->  | EC12: ='Compile Data'!G16 -> 0 | ED12: ='Compile Data'!G17 -> 0 | EE12: ='Compile Data'!G18 -> 0 | EF12: ='Compile Data'!G19 -> 0 | EG12: ='Compile Data'!G20 -> 0 | EH12: ='Compile Data'!G21 -> 0 | EI12: ='Compile Data'!G22 -> 0 | EJ12: ='Compile Data'!G23 -> 0 | EK12: ='Compile Data'!G24 -> 0 | EM12: =IF(EM$11="AVG",AVERAGE(EC12:EK12,DZ13:EB13),SUM(EC12:EK12,DZ13:EB13)) -> 0 | EN12: =IF(EN$11="AVG",AVERAGE(EE12:EK12,DZ13:ED13),SUM(EE12:EK12,DZ13:ED13)) -> 0 | EO12: =NA() ->  | EQ12: =NA() ->  | ER12: =NA() ->  | ES12: =IF(ES$11="AVG",IF(EQ$1="INST-VAL",AVERAGE(ED12:EG12,EE12:EH12),AVERAGE(EE12:EH12)),SUM(EE12:EH12)) -> 0 | ET12: =IF(ET$11="AVG",IF(EQ$1="INST-VAL",AVERAGE(EG12:EJ12,EH12:EK12),AVERAGE(EH12:EK12)),SUM(EH12:EK12)) -> 0 | EU12: =IF(EU$11="AVG",IF(EQ$1="INST-VAL",AVERAGE(EJ12:EK12,DZ13,EK12,DZ13:EA13),AVERAGE(EK12,DZ13:EA13)),SUM(EK12,DZ13:EA13)) -> 0
A13: 1921-10-31 | I13: 1923 | J13: =B25 -> 51.81913376 | K13: =B26 -> 53.74214554 | L13: =B27 -> 51.84779358 | M13: =B28 -> 48.32777786 | N13: =B29 -> 48.70282745 | O13: =B30 -> 51.75386429 | P13: =B31 -> 54.13629532 | Q13: =B32 -> 52.84474182 | R13: =B33 -> 51.9956665 | S13: =B34 -> 52.59576797 | T13: =B35 -> 51.8772316 | U13: =B36 -> 53.56455994 | W13: 52.1672341 | X13: 52.54924202 | Y13: =IF(Y$11="AVG",AVERAGE(J13:U13),SUM(J13:U13)) -> 51.9339838 | AA13: =IF(AA$11="AVG",IF(AA$1="INST-VAL",AVERAGE(U12,J13:L13,J13:M13),AVERAGE(J13:M13)),SUM(J13:M13)) -> 51.43421268 | AB13: =IF(AB$11="AVG",IF(AA$1="INST-VAL",AVERAGE(K13:M13,L13:N13),AVERAGE(L13:N13)),SUM(L13:N13)) -> 49.62613297 | AC13: 52.68264198 | AD13: 52.5083065 | AE13: 53.39915721 | AG13: 1923 | AH13: ='Compile Data'!C25 -> 51.51708603 | AI13: ='Compile Data'!C26 -> 53.79789352 | AJ13: ='Compile Data'!C27 -> 51.84362411 | AK13: ='Compile Data'!C28 -> 48.33247375 | AL13: ='Compile Data'!C29 -> 48.70066071 | AM13: ='Compile Data'!C30 -> 51.82702255 | AN13: ='Compile Data'!C31 -> 54.12968826 | AO13: ='Compile Data'!C32 -> 52.86576843 | AP13: ='Compile Data'!C33 -> 52.4689064 | AQ13: ='Compile Data'!C34 -> 52.66256332 | AR13: ='Compile Data'!C35 -> 51.82342529 | AS13: ='Compile Data'!C36 -> 53.12665558 | AU13: =IF(AU$11="AVG",AVERAGE(AK13:AS13,AH14:AJ14),SUM(AK13:AS13,AH14:AJ14)) -> 52.16798528 | AV13: =IF(AV$11="AVG",AVERAGE(AM13:AS13,AH14:AL14),SUM(AM13:AS13,AH14:AL14)) -> 52.53710779 | AW13: =IF(AW$11="AVG",AVERAGE(AH13:AS13),SUM(AH13:AS13)) -> 51.92464733 | AY13: =IF(AY$11="AVG",IF(AY$1="INST-VAL",AVERAGE(AS12,AH13:AJ13,AH13:AK13),AVERAGE(AH13:AK13)),SUM(AH13:AK13)) -> 51.37276936 | AZ13: =IF(AZ$11="AVG",IF(AY$1="INST-VAL",AVERAGE(AI13:AK13,AJ13:AL13),AVERAGE(AJ13:AL13)),SUM(AJ13:AL13)) -> 49.62558619 | BA13: =IF(BA$11="AVG",IF(AY$1="INST-VAL",AVERAGE(AL13:AO13,AM13:AP13),AVERAGE(AM13:AP13)),SUM(AM13:AP13)) -> 52.82284641 | BB13: =IF(BB$11="AVG",IF(AY$1="INST-VAL",AVERAGE(AO13:AR13,AP13:AS13),AVERAGE(AP13:AS13)),SUM(AP13:AS13)) -> 52.52038765 | BC13: =IF(BC$11="AVG",IF(AY$1="INST-VAL",AVERAGE(AR13:AS13,AH14,AS13,AH14:AI14),AVERAGE(AS13,AH14:AI14)),SUM(AS13,AH14:AI14)) -> 53.24753952 | BE13: 1923 | BF13: ='Compile Data'!D25 -> 51.51301956 | BG13: ='Compile Data'!D26 -> 53.79681015 | BH13: ='Compile Data'!D27 -> 51.84329605 | BI13: ='Compile Data'!D28 -> 48.33198929 | BJ13: ='Compile Data'!D29 -> 48.70018768 | BK13: ='Compile Data'!D30 -> 51.80233765 | BL13: ='Compile Data'!D31 -> 54.13401413 | BM13: ='Compile Data'!D32 -> 52.86524582 | BN13: ='Compile Data'!D33 -> 52.18794632 | BO13: ='Compile Data'!D34 -> 52.5250206 | BP13: ='Compile Data'!D35 -> 51.84690857 | BQ13: ='Compile Data'!D36 -> 53.62259293 | BS13: =IF(BS$11="AVG",AVERAGE(BI13:BQ13,BF14:BH14),SUM(BI13:BQ13,BF14:BH14)) -> 52.18330129 | BT13: =IF(BT$11="AVG",AVERAGE(BK13:BQ13,BF14:BJ14),SUM(BK13:BQ13,BF14:BJ14)) -> 52.5587937 | BU13: =IF(BU$11="AVG",AVERAGE(BF13:BQ13),SUM(BF13:BQ13)) -> 51.93078073 | BW13: =IF(BW$11="AVG",IF(BW$1="INST-VAL",AVERAGE(BQ12,BF13:BH13,BF13:BI13),AVERAGE(BF13:BI13)),SUM(BF13:BI13)) -> 51.37127876 | BX13: =IF(BX$11="AVG",IF(BW$1="INST-VAL",AVERAGE(BG13:BI13,BH13:BJ13),AVERAGE(BH13:BJ13)),SUM(BH13:BJ13)) -> 49.62515767 | BY13: =IF(BY$11="AVG",IF(BW$1="INST-VAL",AVERAGE(BJ13:BM13,BK13:BN13),AVERAGE(BK13:BN13)),SUM(BK13:BN13)) -> 52.74738598 | BZ13: =IF(BZ$11="AVG",IF(BW$1="INST-VAL",AVERAGE(BM13:BP13,BN13:BQ13),AVERAGE(BN13:BQ13)),SUM(BN13:BQ13)) -> 52.5456171 | CA13: =IF(CA$11="AVG",IF(BW$1="INST-VAL",AVERAGE(BP13:BQ13,BF14,BQ13,BF14:BG14),AVERAGE(BQ13,BF14:BG14)),SUM(BQ13,BF14:BG14)) -> 53.42931747 | CC13: 1923 | CD13: ='Compile Data'!E25 -> 0 | CE13: ='Compile Data'!E26 -> 0 | CF13: ='Compile Data'!E27 -> 0 | CG13: ='Compile Data'!E28 -> 0 | CH13: ='Compile Data'!E29 -> 0 | CI13: ='Compile Data'!E30 -> 0 | CJ13: ='Compile Data'!E31 -> 0 | CK13: ='Compile Data'!E32 -> 0 | CL13: ='Compile Data'!E33 -> 0 | CM13: ='Compile Data'!E34 -> 0 | CN13: ='Compile Data'!E35 -> 0 | CO13: ='Compile Data'!E36 -> 0 | CQ13: =IF(CQ$11="AVG",AVERAGE(CG13:CO13,CD14:CF14),SUM(CG13:CO13,CD14:CF14)) -> 0 | CR13: =IF(CR$11="AVG",AVERAGE(CI13:CO13,CD14:CH14),SUM(CI13:CO13,CD14:CH14)) -> 0 | CS13: =IF(CS$11="AVG",AVERAGE(CD13:CO13),SUM(CD13:CO13)) -> 0 | CU13: =IF(CU$11="AVG",IF(CU$1="INST-VAL",AVERAGE(CO12,CD13:CF13,CD13:CG13),AVERAGE(CD13:CG13)),SUM(CD13:CG13)) -> 0 | CV13: =IF(CV$11="AVG",IF(CU$1="INST-VAL",AVERAGE(CE13:CG13,CF13:CH13),AVERAGE(CF13:CH13)),SUM(CF13:CH13)) -> 0 | CW13: =IF(CW$11="AVG",IF(CU$1="INST-VAL",AVERAGE(CH13:CK13,CI13:CL13),AVERAGE(CI13:CL13)),SUM(CI13:CL13)) -> 0 | CX13: =IF(CX$11="AVG",IF(CU$1="INST-VAL",AVERAGE(CK13:CN13,CL13:CO13),AVERAGE(CL13:CO13)),SUM(CL13:CO13)) -> 0 | CY13: =IF(CY$11="AVG",IF(CU$1="INST-VAL",AVERAGE(CN13:CO13,CD14,CO13,CD14:CE14),AVERAGE(CO13,CD14:CE14)),SUM(CO13,CD14:CE14)) -> 0 | DA13: 1923 | DB13: ='Compile Data'!F25 -> 0 | DC13: ='Compile Data'!F26 -> 0 | DD13: ='Compile Data'!F27 -> 0 | DE13: ='Compile Data'!F28 -> 0 | DF13: ='Compile Data'!F29 -> 0 | DG13: ='Compile Data'!F30 -> 0 | DH13: ='Compile Data'!F31 -> 0 | DI13: ='Compile Data'!F32 -> 0 | DJ13: ='Compile Data'!F33 -> 0 | DK13: ='Compile Data'!F34 -> 0 | DL13: ='Compile Data'!F35 -> 0 | DM13: ='Compile Data'!F36 -> 0 | DO13: =IF(DO$11="AVG",AVERAGE(DE13:DM13,DB14:DD14),SUM(DE13:DM13,DB14:DD14)) -> 0 | DP13: =IF(DP$11="AVG",AVERAGE(DG13:DM13,DB14:DF14),SUM(DG13:DM13,DB14:DF14)) -> 0 | DQ13: =IF(DQ$11="AVG",AVERAGE(DB13:DM13),SUM(DB13:DM13)) -> 0 | DS13: =IF(DS$11="AVG",IF(DS$1="INST-VAL",AVERAGE(DM12,DB13:DD13,DB13:DE13),AVERAGE(DB13:DE13)),SUM(DB13:DE13)) -> 0 | DT13: =IF(DT$11="AVG",IF(DS$1="INST-VAL",AVERAGE(DC13:DE13,DD13:DF13),AVERAGE(DD13:DF13)),SUM(DD13:DF13)) -> 0 | DU13: =IF(DU$11="AVG",IF(DS$1="INST-VAL",AVERAGE(DF13:DI13,DG13:DJ13),AVERAGE(DG13:DJ13)),SUM(DG13:DJ13)) -> 0 | DV13: =IF(DV$11="AVG",IF(DS$1="INST-VAL",AVERAGE(DI13:DL13,DJ13:DM13),AVERAGE(DJ13:DM13)),SUM(DJ13:DM13)) -> 0 | DW13: =IF(DW$11="AVG",IF(DS$1="INST-VAL",AVERAGE(DL13:DM13,DB14,DM13,DB14:DC14),AVERAGE(DM13,DB14:DC14)),SUM(DM13,DB14:DC14)) -> 0 | DY13: 1923 | DZ13: ='Compile Data'!G25 -> 0 | EA13: ='Compile Data'!G26 -> 0 | EB13: ='Compile Data'!G27 -> 0 | EC13: ='Compile Data'!G28 -> 0 | ED13: ='Compile Data'!G29 -> 0 | EE13: ='Compile Data'!G30 -> 0 | EF13: ='Compile Data'!G31 -> 0 | EG13: ='Compile Data'!G32 -> 0 | EH13: ='Compile Data'!G33 -> 0 | EI13: ='Compile Data'!G34 -> 0 | EJ13: ='Compile Data'!G35 -> 0 | EK13: ='Compile Data'!G36 -> 0 | EM13: 0 | EN13: 0 | EO13: =IF(EO$11="AVG",AVERAGE(DZ13:EK13),SUM(DZ13:EK13)) -> 0 | EQ13: =IF(EQ$11="AVG",IF(EQ$1="INST-VAL",AVERAGE(EK12,DZ13:EB13,DZ13:EC13),AVERAGE(DZ13:EC13)),SUM(DZ13:EC13)) -> 0 | ER13: =IF(ER$11="AVG",IF(EQ$1="INST-VAL",AVERAGE(EA13:EC13,EB13:ED13),AVERAGE(EB13:ED13)),SUM(EB13:ED13)) -> 0 | ES13: 0 | ET13: 0 | EU13: 0
A14: 1921-11-30 | I14: 1924 | J14: =B37 -> 51.7937851 | K14: =B38 -> 54.83912659 | L14: =B39 -> 53.57516479 | M14: =B40 -> 50.56716919 | N14: =B41 -> 51.04753113 | O14: =B42 -> 50.60562134 | P14: =B43 -> 52.50468826 | Q14: =B44 -> 55.05237198 | R14: =B45 -> 56.3149147 | S14: =B46 -> 54.89344406 | T14: =B47 -> 54.20643234 | U14: =B48 -> 56.61570358 | W14: 53.77247747 | X14: 53.38575713 | Y14: 53.50132942 | AA14: 52.69381142 | AB14: 51.72995504 | AC14: 53.61939907 | AD14: 55.50762367 | AE14: 56.38076146 | AG14: 1924 | AH14: ='Compile Data'!C37 -> 51.76633453 | AI14: ='Compile Data'!C38 -> 54.84962845 | AJ14: ='Compile Data'!C39 -> 53.46269608 | AK14: ='Compile Data'!C40 -> 50.49151993 | AL14: ='Compile Data'!C41 -> 50.97108459 | AM14: ='Compile Data'!C42 -> 50.36113358 | AN14: ='Compile Data'!C43 -> 52.8470459 | AO14: ='Compile Data'!C44 -> 54.08725357 | AP14: ='Compile Data'!C45 -> 56.32482529 | AQ14: ='Compile Data'!C46 -> 54.80548477 | AR14: ='Compile Data'!C47 -> 53.65209579 | AS14: ='Compile Data'!C48 -> 55.76191711 | AU14: 53.60117435 | AV14: 53.23584398 | AW14: 53.28175163 | AY14: 52.64254475 | AZ14: 51.64176687 | BA14: 53.40506458 | BB14: 55.13608074 | BC14: 55.89438629 | BE14: 1924 | BF14: ='Compile Data'!D37 -> 51.81084824 | BG14: ='Compile Data'!D38 -> 54.85451126 | BH14: ='Compile Data'!D39 -> 53.518013 | BI14: ='Compile Data'!D40 -> 50.52687836 | BJ14: ='Compile Data'!D41 -> 51.01120758 | BK14: ='Compile Data'!D42 -> 50.47861862 | BL14: ='Compile Data'!D43 -> 52.90725327 | BM14: ='Compile Data'!D44 -> 54.16097641 | BN14: ='Compile Data'!D45 -> 56.50957489 | BO14: ='Compile Data'!D46 -> 54.84751511 | BP14: ='Compile Data'!D47 -> 53.76387405 | BQ14: ='Compile Data'!D48 -> 56.07388687 | BS14: 53.69424216 | BT14: 53.32154814 | BU14: 53.3719298 | BW14: 52.67756271 | BX14: 51.68536631 | BY14: 53.5141058 | BZ14: 55.29871273 | CA14: 56.18273926 | CC14: 1924 | CD14: ='Compile Data'!E37 -> 0 | CE14: ='Compile Data'!E38 -> 0 | CF14: ='Compile Data'!E39 -> 0 | CG14: ='Compile Data'!E40 -> 0 | CH14: ='Compile Data'!E41 -> 0 | CI14: ='Compile Data'!E42 -> 0 | CJ14: ='Compile Data'!E43 -> 0 | CK14: ='Compile Data'!E44 -> 0 | CL14: ='Compile Data'!E45 -> 0 | CM14: ='Compile Data'!E46 -> 0 | CN14: ='Compile Data'!E47 -> 0 | CO14: ='Compile Data'!E48 -> 0 | CQ14: 0 | CR14: 0 | CS14: 0 | CU14: 0 | CV14: 0 | CW14: 0 | CX14: 0 | CY14: 0 | DA14: 1924 | DB14: ='Compile Data'!F37 -> 0 | DC14: ='Compile Data'!F38 -> 0 | DD14: ='Compile Data'!F39 -> 0 | DE14: ='Compile Data'!F40 -> 0 | DF14: ='Compile Data'!F41 -> 0 | DG14: ='Compile Data'!F42 -> 0 | DH14: ='Compile Data'!F43 -> 0 | DI14: ='Compile Data'!F44 -> 0 | DJ14: ='Compile Data'!F45 -> 0 | DK14: ='Compile Data'!F46 -> 0 | DL14: ='Compile Data'!F47 -> 0 | DM14: ='Compile Data'!F48 -> 0 | DO14: 0 | DP14: 0 | DQ14: 0 | DS14: 0 | DT14: 0 | DU14: 0 | DV14: 0 | DW14: 0 | DY14: 1924 | DZ14: ='Compile Data'!G37 -> 0 | EA14: ='Compile Data'!G38 -> 0 | EB14: ='Compile Data'!G39 -> 0 | EC14: ='Compile Data'!G40 -> 0 | ED14: ='Compile Data'!G41 -> 0 | EE14: ='Compile Data'!G42 -> 0 | EF14: ='Compile Data'!G43 -> 0 | EG14: ='Compile Data'!G44 -> 0 | EH14: ='Compile Data'!G45 -> 0 | EI14: ='Compile Data'!G46 -> 0 | EJ14: ='Compile Data'!G47 -> 0 | EK14: ='Compile Data'!G48 -> 0 | EM14: 0 | EN14: 0 | EO14: 0 | EQ14: 0 | ER14: 0 | ES14: 0 | ET14: 0 | EU14: 0
A15: 1921-12-31 | I15: 1925 | J15: =B49 -> 57.47820663 | K15: =B50 -> 55.04837418 | L15: =B51 -> 50.93527222 | M15: =B52 -> 48.70176315 | N15: =B53 -> 48.27229309 | O15: =B54 -> 49.84468842 | P15: =B55 -> 52.89595032 | Q15: =B56 -> 53.19968414 | R15: =B57 -> 52.32645035 | S15: =B58 -> 52.59786224 | T15: =B59 -> 52.25364685 | U15: =B60 -> 51.47712326 | W15: 51.72784996 | X15: 51.86762333 | Y15: 52.0859429 | AA15: 53.04090405 | AB15: 49.30310949 | AC15: 52.06669331 | AD15: 52.16377068 | AE15: 52.59126282 | AG15: 1925 | AH15: ='Compile Data'!C49 -> 56.88410187 | AI15: ='Compile Data'!C50 -> 55.03713989 | AJ15: ='Compile Data'!C51 -> 51.99048996 | AK15: ='Compile Data'!C52 -> 48.79633331 | AL15: ='Compile Data'!C53 -> 48.28230667 | AM15: ='Compile Data'!C54 -> 50.53685379 | AN15: ='Compile Data'!C55 -> 53.14602661 | AO15: ='Compile Data'!C56 -> 53.19068909 | AP15: ='Compile Data'!C57 -> 52.2726059 | AQ15: ='Compile Data'!C58 -> 52.66784668 | AR15: ='Compile Data'!C59 -> 52.10212708 | AS15: ='Compile Data'!C60 -> 51.5223732 | AU15: 51.80006186 | AV15: 51.93704414 | AW15: 52.20240784 | AY15: 53.17701626 | AZ15: 49.68970998 | BA15: 52.28654385 | BB15: 52.14123821 | BC15: 52.60805766 | BE15: 1925 | BF15: ='Compile Data'!D49 -> 57.34565735 | BG15: ='Compile Data'!D50 -> 55.12867355 | BH15: ='Compile Data'!D51 -> 51.57678986 | BI15: ='Compile Data'!D52 -> 48.76811218 | BJ15: ='Compile Data'!D53 -> 48.29764557 | BK15: ='Compile Data'!D54 -> 50.12312698 | BL15: ='Compile Data'!D55 -> 53.13209915 | BM15: ='Compile Data'!D56 -> 53.29909515 | BN15: ='Compile Data'!D57 -> 52.28990936 | BO15: ='Compile Data'!D58 -> 52.64863586 | BP15: ='Compile Data'!D59 -> 52.07644272 | BQ15: ='Compile Data'!D60 -> 51.49492264 | BS15: 51.77023125 | BT15: 51.90810998 | BU15: 52.1817592 | BW15: 53.20480824 | BX15: 49.54751587 | BY15: 52.21105766 | BZ15: 52.12747765 | CA15: 52.58294296 | CC15: 1925 | CD15: ='Compile Data'!E49 -> 0 | CE15: ='Compile Data'!E50 -> 0 | CF15: ='Compile Data'!E51 -> 0 | CG15: ='Compile Data'!E52 -> 0 | CH15: ='Compile Data'!E53 -> 0 | CI15: ='Compile Data'!E54 -> 0 | CJ15: ='Compile Data'!E55 -> 0 | CK15: ='Compile Data'!E56 -> 0 | CL15: ='Compile Data'!E57 -> 0 | CM15: ='Compile Data'!E58 -> 0 | CN15: ='Compile Data'!E59 -> 0 | CO15: ='Compile Data'!E60 -> 0 | CQ15: 0 | CR15: 0 | CS15: 0 | CU15: 0 | CV15: 0 | CW15: 0 | CX15: 0 | CY15: 0 | DA15: 1925 | DB15: ='Compile Data'!F49 -> 0 | DC15: ='Compile Data'!F50 -> 0 | DD15: ='Compile Data'!F51 -> 0 | DE15: ='Compile Data'!F52 -> 0 | DF15: ='Compile Data'!F53 -> 0 | DG15: ='Compile Data'!F54 -> 0 | DH15: ='Compile Data'!F55 -> 0 | DI15: ='Compile Data'!F56 -> 0 | DJ15: ='Compile Data'!F57 -> 0 | DK15: ='Compile Data'!F58 -> 0 | DL15: ='Compile Data'!F59 -> 0 | DM15: ='Compile Data'!F60 -> 0 | DO15: 0 | DP15: 0 | DQ15: 0 | DS15: 0 | DT15: 0 | DU15: 0 | DV15: 0 | DW15: 0 | DY15: 1925 | DZ15: ='Compile Data'!G49 -> 0 | EA15: ='Compile Data'!G50 -> 0 | EB15: ='Compile Data'!G51 -> 0 | EC15: ='Compile Data'!G52 -> 0 | ED15: ='Compile Data'!G53 -> 0 | EE15: ='Compile Data'!G54 -> 0 | EF15: ='Compile Data'!G55 -> 0 | EG15: ='Compile Data'!G56 -> 0 | EH15: ='Compile Data'!G57 -> 0 | EI15: ='Compile Data'!G58 -> 0 | EJ15: ='Compile Data'!G59 -> 0 | EK15: ='Compile Data'!G60 -> 0 | EM15: 0 | EN15: 0 | EO15: 0 | EQ15: 0 | ER15: 0 | ES15: 0 | ET15: 0 | EU15: 0
A16: 1922-01-31 | B16: =INDIRECT(CONCATENATE("'",B$1,"'!",B$4,(YEAR($A16)-1921)*12+MONTH($A16)+3+IF(ISNUMBER(FIND("PRV",B$6)),1,0)))*IF(AND(B$3>0,TRIM(B$9)="CFS"),Conv_Flags!$C16,1) -> 46.31557083 | C16: =IF(INDIRECT(CONCATENATE("'",C$1,"'!",C$4,(YEAR($A16)-1921)*12+MONTH($A16)+3+IF(ISNUMBER(FIND("PRV",C$6)),1,0)))=-901,NA(),INDIRECT(CONCATENATE("'",C$1,"'!",C$4,(YEAR($A16)-1921)*12+MONTH($A16)+3+IF(ISNUMBER(FIND("PRV",C$6)),1,0)))*IF(AND(C$3>0,TRIM(C$9)="CFS"),Conv_Flags!$C16,1)) -> 46.31827164 | D16: =IF(INDIRECT(CONCATENATE("'",D$1,"'!",D$4,(YEAR($A16)-1921)*12+MONTH($A16)+3+IF(ISNUMBER(FIND("PRV",D$6)),1,0)))=-901,NA(),INDIRECT(CONCATENATE("'",D$1,"'!",D$4,(YEAR($A16)-1921)*12+MONTH($A16)+3+IF(ISNUMBER(FIND("PRV",D$6)),1,0)))*IF(AND(D$3>0,TRIM(D$9)="CFS"),Conv_Flags!$C16,1)) -> 46.31838226 | E16: =IF(INDIRECT(CONCATENATE("'",E$1,"'!",E$4,(YEAR($A16)-1921)*12+MONTH($A16)+3+IF(ISNUMBER(FIND("PRV",E$6)),1,0)))=-901,NA(),INDIRECT(CONCATENATE("'",E$1,"'!",E$4,(YEAR($A16)-1921)*12+MONTH($A16)+3+IF(ISNUMBER(FIND("PRV",E$6)),1,0)))*IF(AND(E$3>0,TRIM(E$9)="CFS"),Conv_Flags!$C16,1)) -> 0 | F16: =IF(INDIRECT(CONCATENATE("'",F$1,"'!",F$4,(YEAR($A16)-1921)*12+MONTH($A16)+3+IF(ISNUMBER(FIND("PRV",F$6)),1,0)))=-901,NA(),INDIRECT(CONCATENATE("'",F$1,"'!",F$4,(YEAR($A16)-1921)*12+MONTH($A16)+3+IF(ISNUMBER(FIND("PRV",F$6)),1,0)))*IF(AND(F$3>0,TRIM(F$9)="CFS"),Conv_Flags!$C16,1)) -> 0 | G16: =IF(INDIRECT(CONCATENATE("'",G$1,"'!",G$4,(YEAR($A16)-1921)*12+MONTH($A16)+3+IF(ISNUMBER(FIND("PRV",G$6)),1,0)))=-901,NA(),INDIRECT(CONCATENATE("'",G$1,"'!",G$4,(YEAR($A16)-1921)*12+MONTH($A16)+3+IF(ISNUMBER(FIND("PRV",G$6)),1,0)))*IF(AND(G$3>0,TRIM(G$9)="CFS"),Conv_Flags!$C16,1)) -> 0 | I16: 1926 | J16: =B61 -> 51.99081802 | K16: =B62 -> 54.30584717 | L16: =B63 -> 52.86807251 | M16: =B64 -> 49.70927429 | N16: =B65 -> 48.94206238 | O16: =B66 -> 51.65666962 | P16: =B67 -> 56.01929092 | Q16: =B68 -> 55.00068283 | R16: =B69 -> 53.56347656 | S16: =B70 -> 53.27042389 | T16: =B71 -> 53.05061722 | U16: =B72 -> 53.68751907 | W16: 52.90026824 | X16: 52.5551815 | Y16: 52.83872954 | AA16: 52.218503 | AB16: 50.50646973 | AC16: 54.06002998 | AD16: 53.39300919 | AE16: 54.16065725 | AG16: 1926 | AH16: ='Compile Data'!C61 -> 52.05009079 | AI16: ='Compile Data'!C62 -> 54.25170898 | AJ16: ='Compile Data'!C63 -> 52.78178024 | AK16: ='Compile Data'!C64 -> 49.70181656 | AL16: ='Compile Data'!C65 -> 49.02061081 | AM16: ='Compile Data'!C66 -> 51.57708359 | AN16: ='Compile Data'!C67 -> 55.88731003 | AO16: ='Compile Data'!C68 -> 54.10690689 | AP16: ='Compile Data'!C69 -> 52.38309479 | AQ16: ='Compile Data'!C70 -> 53.06780624 | AR16: ='Compile Data'!C71 -> 53.03319168 | AS16: ='Compile Data'!C72 -> 53.49151993 | AU16: 52.66770713 | AV16: 52.34445413 | AW16: 52.61274338 | AY16: 52.19634914 | AZ16: 50.50140254 | BA16: 53.48859882 | BB16: 52.99390316 | BC16: 53.81347402 | BE16: 1926 | BF16: ='Compile Data'!D61 -> 51.98236465 | BG16: ='Compile Data'!D62 -> 54.2715416 | BH16: ='Compile Data'!D63 -> 52.85887909 | BI16: ='Compile Data'!D64 -> 49.72822571 | BJ16: ='Compile Data'!D65 -> 48.99207687 | BK16: ='Compile Data'!D66 -> 51.635952 | BL16: ='Compile Data'!D67 -> 55.97058487 | BM16: ='Compile Data'!D68 -> 55.07610703 | BN16: ='Compile Data'!D69 -> 53.87165451 | BO16: ='Compile Data'!D70 -> 53.31009293 | BP16: ='Compile Data'!D71 -> 53.05072403 | BQ16: ='Compile Data'!D72 -> 53.73656082 | BS16: 52.98547554 | BT16: 52.62648392 | BU16: 52.87373034 | BW16: 52.21025276 | BX16: 50.52639389 | BY16: 54.1385746 | BZ16: 53.49225807 | CA16: 54.25954819 | CC16: 1926 | CD16: ='Compile Data'!E61 -> 0 | CE16: ='Compile Data'!E62 -> 0 | CF16: ='Compile Data'!E63 -> 0 | CG16: ='Compile Data'!E64 -> 0 | CH16: ='Compile Data'!E65 -> 0 | CI16: ='Compile Data'!E66 -> 0 | CJ16: ='Compile Data'!E67 -> 0 | CK16: ='Compile Data'!E68 -> 0 | CL16: ='Compile Data'!E69 -> 0 | CM16: ='Compile Data'!E70 -> 0 | CN16: ='Compile Data'!E71 -> 0 | CO16: ='Compile Data'!E72 -> 0 | CQ16: 0 | CR16: 0 | CS16: 0 | CU16: 0 | CV16: 0 | CW16: 0 | CX16: 0 | CY16: 0 | DA16: 1926 | DB16: ='Compile Data'!F61 -> 0 | DC16: ='Compile Data'!F62 -> 0 | DD16: ='Compile Data'!F63 -> 0 | DE16: ='Compile Data'!F64 -> 0 | DF16: ='Compile Data'!F65 -> 0 | DG16: ='Compile Data'!F66 -> 0 | DH16: ='Compile Data'!F67 -> 0 | DI16: ='Compile Data'!F68 -> 0 | DJ16: ='Compile Data'!F69 -> 0 | DK16: ='Compile Data'!F70 -> 0 | DL16: ='Compile Data'!F71 -> 0 | DM16: ='Compile Data'!F72 -> 0 | DO16: 0 | DP16: 0 | DQ16: 0 | DS16: 0 | DT16: 0 | DU16: 0 | DV16: 0 | DW16: 0 | DY16: 1926 | DZ16: ='Compile Data'!G61 -> 0 | EA16: ='Compile Data'!G62 -> 0 | EB16: ='Compile Data'!G63 -> 0 | EC16: ='Compile Data'!G64 -> 0 | ED16: ='Compile Data'!G65 -> 0 | EE16: ='Compile Data'!G66 -> 0 | EF16: ='Compile Data'!G67 -> 0 | EG16: ='Compile Data'!G68 -> 0 | EH16: ='Compile Data'!G69 -> 0 | EI16: ='Compile Data'!G70 -> 0 | EJ16: ='Compile Data'!G71 -> 0 | EK16: ='Compile Data'!G72 -> 0 | EM16: 0 | EN16: 0 | EO16: 0 | EQ16: 0 | ER16: 0 | ES16: 0 | ET16: 0 | EU16: 0
A17: 1922-02-28 | B17: =IF(INDIRECT(CONCATENATE("'",B$1,"'!",B$4,(YEAR($A17)-1921)*12+MONTH($A17)+3+IF(ISNUMBER(FIND("PRV",B$6)),1,0)))=-901,NA(),INDIRECT(CONCATENATE("'",B$1,"'!",B$4,(YEAR($A17)-1921)*12+MONTH($A17)+3+IF(ISNUMBER(FIND("PRV",B$6)),1,0)))*IF(AND(B$3>0,TRIM(B$9)="CFS"),Conv_Flags!$C17,1)) -> 46.17838287 | C17: =IF(INDIRECT(CONCATENATE("'",C$1,"'!",C$4,(YEAR($A17)-1921)*12+MONTH($A17)+3+IF(ISNUMBER(FIND("PRV",C$6)),1,0)))=-901,NA(),INDIRECT(CONCATENATE("'",C$1,"'!",C$4,(YEAR($A17)-1921)*12+MONTH($A17)+3+IF(ISNUMBER(FIND("PRV",C$6)),1,0)))*IF(AND(C$3>0,TRIM(C$9)="CFS"),Conv_Flags!$C17,1)) -> 46.17562485 | D17: =IF(INDIRECT(CONCATENATE("'",D$1,"'!",D$4,(YEAR($A17)-1921)*12+MONTH($A17)+3+IF(ISNUMBER(FIND("PRV",D$6)),1,0)))=-901,NA(),INDIRECT(CONCATENATE("'",D$1,"'!",D$4,(YEAR($A17)-1921)*12+MONTH($A17)+3+IF(ISNUMBER(FIND("PRV",D$6)),1,0)))*IF(AND(D$3>0,TRIM(D$9)="CFS"),Conv_Flags!$C17,1)) -> 46.1761055 | E17: =IF(INDIRECT(CONCATENATE("'",E$1,"'!",E$4,(YEAR($A17)-1921)*12+MONTH($A17)+3+IF(ISNUMBER(FIND("PRV",E$6)),1,0)))=-901,NA(),INDIRECT(CONCATENATE("'",E$1,"'!",E$4,(YEAR($A17)-1921)*12+MONTH($A17)+3+IF(ISNUMBER(FIND("PRV",E$6)),1,0)))*IF(AND(E$3>0,TRIM(E$9)="CFS"),Conv_Flags!$C17,1)) -> 0 | F17: =IF(INDIRECT(CONCATENATE("'",F$1,"'!",F$4,(YEAR($A17)-1921)*12+MONTH($A17)+3+IF(ISNUMBER(FIND("PRV",F$6)),1,0)))=-901,NA(),INDIRECT(CONCATENATE("'",F$1,"'!",F$4,(YEAR($A17)-1921)*12+MONTH($A17)+3+IF(ISNUMBER(FIND("PRV",F$6)),1,0)))*IF(AND(F$3>0,TRIM(F$9)="CFS"),Conv_Flags!$C17,1)) -> 0 | G17: =IF(INDIRECT(CONCATENATE("'",G$1,"'!",G$4,(YEAR($A17)-1921)*12+MONTH($A17)+3+IF(ISNUMBER(FIND("PRV",G$6)),1,0)))=-901,NA(),INDIRECT(CONCATENATE("'",G$1,"'!",G$4,(YEAR($A17)-1921)*12+MONTH($A17)+3+IF(ISNUMBER(FIND("PRV",G$6)),1,0)))*IF(AND(G$3>0,TRIM(G$9)="CFS"),Conv_Flags!$C17,1)) -> 0 | I17: 1927 | J17: =B73 -> 54.08463287 | K17: =B74 -> 54.70981979 | L17: =B75 -> 51.10874939 | M17: =B76 -> 48.17681885 | N17: =B77 -> 46.33347702 | O17: =B78 -> 48.9684639 | P17: =B79 -> 50.58113098 | Q17: =B80 -> 53.35220337 | R17: =B81 -> 52.37226486 | S17: =B82 -> 51.91154861 | T17: =B83 -> 51.13874817 | U17: =B84 -> 50.3997879 | W17: 50.81141853 | X17: 51.08050124 | Y17: 51.09480381 | AA17: 52.02000523 | AB17: 48.53968175 | AC17: 51.31851578 | AD17: 51.45558739 | AE17: 51.73172124 | AG17: 1927 | AH17: ='Compile Data'!C73 -> 53.42630386 | AI17: ='Compile Data'!C74 -> 54.52259827 | AJ17: ='Compile Data'!C75 -> 51.79424286 | AK17: ='Compile Data'!C76 -> 48.39108658 | AL17: ='Compile Data'!C77 -> 46.45230484 | AM17: ='Compile Data'!C78 -> 48.99660873 | AN17: ='Compile Data'!C79 -> 50.60572433 | AO17: ='Compile Data'!C80 -> 53.48690033 | AP17: ='Compile Data'!C81 -> 52.26698685 | AQ17: ='Compile Data'!C82 -> 51.9080925 | AR17: ='Compile Data'!C83 -> 51.21906281 | AS17: ='Compile Data'!C84 -> 50.43185425 | AU17: 50.84883849 | AV17: 51.09329128 | AW17: 51.12514718 | AY17: 52.03355789 | AZ17: 48.87921143 | BA17: 51.33905506 | BB17: 51.4564991 | BC17: 51.73601532 | BE17: 1927 | BF17: ='Compile Data'!D73 -> 54.43594742 | BG17: ='Compile Data'!D74 -> 54.60613632 | BH17: ='Compile Data'!D75 -> 51.41164398 | BI17: ='Compile Data'!D76 -> 48.13363647 | BJ17: ='Compile Data'!D77 -> 46.27876663 | BK17: ='Compile Data'!D78 -> 48.92630005 | BL17: ='Compile Data'!D79 -> 50.55813599 | BM17: ='Compile Data'!D80 -> 53.47962952 | BN17: ='Compile Data'!D81 -> 52.26673126 | BO17: ='Compile Data'!D82 -> 51.89975357 | BP17: ='Compile Data'!D83 -> 51.1729126 | BQ17: ='Compile Data'!D84 -> 50.45535278 | BS17: 50.79706319 | BT17: 51.07158534 | BU17: 51.13541222 | BW17: 52.14684105 | BX17: 48.6080157 | BY17: 51.3076992 | BZ17: 51.44868755 | CA17: 51.74711355 | CC17: 1927 | CD17: ='Compile Data'!E73 -> 0 | CE17: ='Compile Data'!E74 -> 0 | CF17: ='Compile Data'!E75 -> 0 | CG17: ='Compile Data'!E76 -> 0 | CH17: ='Compile Data'!E77 -> 0 | CI17: ='Compile Data'!E78 -> 0 | CJ17: ='Compile Data'!E79 -> 0 | CK17: ='Compile Data'!E80 -> 0 | CL17: ='Compile Data'!E81 -> 0 | CM17: ='Compile Data'!E82 -> 0 | CN17: ='Compile Data'!E83 -> 0 | CO17: ='Compile Data'!E84 -> 0 | CQ17: 0 | CR17: 0 | CS17: 0 | CU17: 0 | CV17: 0 | CW17: 0 | CX17: 0 | CY17: 0 | DA17: 1927 | DB17: ='Compile Data'!F73 -> 0 | DC17: ='Compile Data'!F74 -> 0 | DD17: ='Compile Data'!F75 -> 0 | DE17: ='Compile Data'!F76 -> 0 | DF17: ='Compile Data'!F77 -> 0 | DG17: ='Compile Data'!F78 -> 0 | DH17: ='Compile Data'!F79 -> 0 | DI17: ='Compile Data'!F80 -> 0 | DJ17: ='Compile Data'!F81 -> 0 | DK17: ='Compile Data'!F82 -> 0 | DL17: ='Compile Data'!F83 -> 0 | DM17: ='Compile Data'!F84 -> 0 | DO17: 0 | DP17: 0 | DQ17: 0 | DS17: 0 | DT17: 0 | DU17: 0 | DV17: 0 | DW17: 0 | DY17: 1927 | DZ17: ='Compile Data'!G73 -> 0 | EA17: ='Compile Data'!G74 -> 0 | EB17: ='Compile Data'!G75 -> 0 | EC17: ='Compile Data'!G76 -> 0 | ED17: ='Compile Data'!G77 -> 0 | EE17: ='Compile Data'!G78 -> 0 | EF17: ='Compile Data'!G79 -> 0 | EG17: ='Compile Data'!G80 -> 0 | EH17: ='Compile Data'!G81 -> 0 | EI17: ='Compile Data'!G82 -> 0 | EJ17: ='Compile Data'!G83 -> 0 | EK17: ='Compile Data'!G84 -> 0 | EM17: 0 | EN17: 0 | EO17: 0 | EQ17: 0 | ER17: 0 | ES17: 0 | ET17: 0 | EU17: 0
A18: 1922-03-31 | B18: =IF(INDIRECT(CONCATENATE("'",B$1,"'!",B$4,(YEAR($A18)-1921)*12+MONTH($A18)+3+IF(ISNUMBER(FIND("PRV",B$6)),1,0)))=-901,NA(),INDIRECT(CONCATENATE("'",B$1,"'!",B$4,(YEAR($A18)-1921)*12+MONTH($A18)+3+IF(ISNUMBER(FIND("PRV",B$6)),1,0)))*IF(AND(B$3>0,TRIM(B$9)="CFS"),Conv_Flags!$C18,1)) -> 48.96064758 | C18: =IF(INDIRECT(CONCATENATE("'",C$1,"'!",C$4,(YEAR($A18)-1921)*12+MONTH($A18)+3+IF(ISNUMBER(FIND("PRV",C$6)),1,0)))=-901,NA(),INDIRECT(CONCATENATE("'",C$1,"'!",C$4,(YEAR($A18)-1921)*12+MONTH($A18)+3+IF(ISNUMBER(FIND("PRV",C$6)),1,0)))*IF(AND(C$3>0,TRIM(C$9)="CFS"),Conv_Flags!$C18,1)) -> 48.99189758 | D18: =IF(INDIRECT(CONCATENATE("'",D$1,"'!",D$4,(YEAR($A18)-1921)*12+MONTH($A18)+3+IF(ISNUMBER(FIND("PRV",D$6)),1,0)))=-901,NA(),INDIRECT(CONCATENATE("'",D$1,"'!",D$4,(YEAR($A18)-1921)*12+MONTH($A18)+3+IF(ISNUMBER(FIND("PRV",D$6)),1,0)))*IF(AND(D$3>0,TRIM(D$9)="CFS"),Conv_Flags!$C18,1)) -> 48.99396133 | E18: =IF(INDIRECT(CONCATENATE("'",E$1,"'!",E$4,(YEAR($A18)-1921)*12+MONTH($A18)+3+IF(ISNUMBER(FIND("PRV",E$6)),1,0)))=-901,NA(),INDIRECT(CONCATENATE("'",E$1,"'!",E$4,(YEAR($A18)-1921)*12+MONTH($A18)+3+IF(ISNUMBER(FIND("PRV",E$6)),1,0)))*IF(AND(E$3>0,TRIM(E$9)="CFS"),Conv_Flags!$C18,1)) -> 0 | F18: =IF(INDIRECT(CONCATENATE("'",F$1,"'!",F$4,(YEAR($A18)-1921)*12+MONTH($A18)+3+IF(ISNUMBER(FIND("PRV",F$6)),1,0)))=-901,NA(),INDIRECT(CONCATENATE("'",F$1,"'!",F$4,(YEAR($A18)-1921)*12+MONTH($A18)+3+IF(ISNUMBER(FIND("PRV",F$6)),1,0)))*IF(AND(F$3>0,TRIM(F$9)="CFS"),Conv_Flags!$C18,1)) -> 0 | G18: =IF(INDIRECT(CONCATENATE("'",G$1,"'!",G$4,(YEAR($A18)-1921)*12+MONTH($A18)+3+IF(ISNUMBER(FIND("PRV",G$6)),1,0)))=-901,NA(),INDIRECT(CONCATENATE("'",G$1,"'!",G$4,(YEAR($A18)-1921)*12+MONTH($A18)+3+IF(ISNUMBER(FIND("PRV",G$6)),1,0)))*IF(AND(G$3>0,TRIM(G$9)="CFS"),Conv_Flags!$C18,1)) -> 0 | I18: 1928 | J18: =B85 -> 51.91064453 | K18: =B86 -> 52.88473129 | L18: =B87 -> 51.70720291 | M18: =B88 -> 49.05409241 | N18: =B89 -> 48.68519592 | O18: =B90 -> 49.10460281 | P18: =B91 -> 53.49263 | Q18: =B92 -> 53.04488754 | R18: =B93 -> 51.77043152 | S18: =B94 -> 51.93707275 | T18: =B95 -> 51.12989044 | U18: =B96 -> 52.04974747 | W18: 51.86626466 | X18: 51.81978861 | Y18: 51.39759413 | AA18: 51.38916779 | AB18: 49.81549708 | AC18: 51.85313797 | AD18: 51.72178555 | AE18: 53.66796875 | AG18: 1928 | AH18: ='Compile Data'!C85 -> 51.90643311 | AI18: ='Compile Data'!C86 -> 52.86975861 | AJ18: ='Compile Data'!C87 -> 51.65124893 | AK18: ='Compile Data'!C88 -> 49.05487061 | AL18: ='Compile Data'!C89 -> 48.72195435 | AM18: ='Compile Data'!C90 -> 49.12460709 | AN18: ='Compile Data'!C91 -> 53.51036072 | AO18: ='Compile Data'!C92 -> 52.90584946 | AP18: ='Compile Data'!C93 -> 51.92881775 | AQ18: ='Compile Data'!C94 -> 51.96574783 | AR18: ='Compile Data'!C95 -> 51.75671768 | AS18: ='Compile Data'!C96 -> 51.55938339 | AU18: 51.66685359 | AV18: 51.62753073 | AW18: 51.41297913 | AY18: 51.37057781 | AZ18: 49.80935796 | BA18: 51.86740875 | BB18: 51.80266666 | BC18: 52.64770635 | BE18: 1928 | BF18: ='Compile Data'!D85 -> 51.88508987 | BG18: ='Compile Data'!D86 -> 52.90089798 | BH18: ='Compile Data'!D87 -> 51.60755157 | BI18: ='Compile Data'!D88 -> 49.01163864 | BJ18: ='Compile Data'!D89 -> 48.69503021 | BK18: ='Compile Data'!D90 -> 49.10565567 | BL18: ='Compile Data'!D91 -> 53.50113678 | BM18: ='Compile Data'!D92 -> 52.8990593 | BN18: ='Compile Data'!D93 -> 51.91651535 | BO18: ='Compile Data'!D94 -> 52.08683395 | BP18: ='Compile Data'!D95 -> 51.31281662 | BQ18: ='Compile Data'!D96 -> 51.63959122 | BS18: 51.66209157 | BT18: 51.62289302 | BU18: 51.38015143 | BW18: 51.35129452 | BX18: 49.77140681 | BY18: 51.85559177 | BZ18: 51.73893929 | CA18: 52.80405172 | CC18: 1928 | CD18: ='Compile Data'!E85 -> 0 | CE18: ='Compile Data'!E86 -> 0 | CF18: ='Compile Data'!E87 -> 0 | CG18: ='Compile Data'!E88 -> 0 | CH18: ='Compile Data'!E89 -> 0 | CI18: ='Compile Data'!E90 -> 0 | CJ18: ='Compile Data'!E91 -> 0 | CK18: ='Compile Data'!E92 -> 0 | CL18: ='Compile Data'!E93 -> 0 | CM18: ='Compile Data'!E94 -> 0 | CN18: ='Compile Data'!E95 -> 0 | CO18: ='Compile Data'!E96 -> 0 | CQ18: 0 | CR18: 0 | CS18: 0 | CU18: 0 | CV18: 0 | CW18: 0 | CX18: 0 | CY18: 0 | DA18: 1928 | DB18: ='Compile Data'!F85 -> 0 | DC18: ='Compile Data'!F86 -> 0 | DD18: ='Compile Data'!F87 -> 0 | DE18: ='Compile Data'!F88 -> 0 | DF18: ='Compile Data'!F89 -> 0 | DG18: ='Compile Data'!F90 -> 0 | DH18: ='Compile Data'!F91 -> 0 | DI18: ='Compile Data'!F92 -> 0 | DJ18: ='Compile Data'!F93 -> 0 | DK18: ='Compile Data'!F94 -> 0 | DL18: ='Compile Data'!F95 -> 0 | DM18: ='Compile Data'!F96 -> 0 | DO18: 0 | DP18: 0 | DQ18: 0 | DS18: 0 | DT18: 0 | DU18: 0 | DV18: 0 | DW18: 0 | DY18: 1928 | DZ18: ='Compile Data'!G85 -> 0 | EA18: ='Compile Data'!G86 -> 0 | EB18: ='Compile Data'!G87 -> 0 | EC18: ='Compile Data'!G88 -> 0 | ED18: ='Compile Data'!G89 -> 0 | EE18: ='Compile Data'!G90 -> 0 | EF18: ='Compile Data'!G91 -> 0 | EG18: ='Compile Data'!G92 -> 0 | EH18: ='Compile Data'!G93 -> 0 | EI18: ='Compile Data'!G94 -> 0 | EJ18: ='Compile Data'!G95 -> 0 | EK18: ='Compile Data'!G96 -> 0 | EM18: 0 | EN18: 0 | EO18: 0 | EQ18: 0 | ER18: 0 | ES18: 0 | ET18: 0 | EU18: 0
A19: 1922-04-30 | B19: =IF(INDIRECT(CONCATENATE("'",B$1,"'!",B$4,(YEAR($A19)-1921)*12+MONTH($A19)+3+IF(ISNUMBER(FIND("PRV",B$6)),1,0)))=-901,NA(),INDIRECT(CONCATENATE("'",B$1,"'!",B$4,(YEAR($A19)-1921)*12+MONTH($A19)+3+IF(ISNUMBER(FIND("PRV",B$6)),1,0)))*IF(AND(B$3>0,TRIM(B$9)="CFS"),Conv_Flags!$C19,1)) -> 51.33030701 | C19: =IF(INDIRECT(CONCATENATE("'",C$1,"'!",C$4,(YEAR($A19)-1921)*12+MONTH($A19)+3+IF(ISNUMBER(FIND("PRV",C$6)),1,0)))=-901,NA(),INDIRECT(CONCATENATE("'",C$1,"'!",C$4,(YEAR($A19)-1921)*12+MONTH($A19)+3+IF(ISNUMBER(FIND("PRV",C$6)),1,0)))*IF(AND(C$3>0,TRIM(C$9)="CFS"),Conv_Flags!$C19,1)) -> 51.15528107 | D19: =IF(INDIRECT(CONCATENATE("'",D$1,"'!",D$4,(YEAR($A19)-1921)*12+MONTH($A19)+3+IF(ISNUMBER(FIND("PRV",D$6)),1,0)))=-901,NA(),INDIRECT(CONCATENATE("'",D$1,"'!",D$4,(YEAR($A19)-1921)*12+MONTH($A19)+3+IF(ISNUMBER(FIND("PRV",D$6)),1,0)))*IF(AND(D$3>0,TRIM(D$9)="CFS"),Conv_Flags!$C19,1)) -> 51.19488907 | E19: =IF(INDIRECT(CONCATENATE("'",E$1,"'!",E$4,(YEAR($A19)-1921)*12+MONTH($A19)+3+IF(ISNUMBER(FIND("PRV",E$6)),1,0)))=-901,NA(),INDIRECT(CONCATENATE("'",E$1,"'!",E$4,(YEAR($A19)-1921)*12+MONTH($A19)+3+IF(ISNUMBER(FIND("PRV",E$6)),1,0)))*IF(AND(E$3>0,TRIM(E$9)="CFS"),Conv_Flags!$C19,1)) -> 0 | F19: =IF(INDIRECT(CONCATENATE("'",F$1,"'!",F$4,(YEAR($A19)-1921)*12+MONTH($A19)+3+IF(ISNUMBER(FIND("PRV",F$6)),1,0)))=-901,NA(),INDIRECT(CONCATENATE("'",F$1,"'!",F$4,(YEAR($A19)-1921)*12+MONTH($A19)+3+IF(ISNUMBER(FIND("PRV",F$6)),1,0)))*IF(AND(F$3>0,TRIM(F$9)="CFS"),Conv_Flags!$C19,1)) -> 0 | G19: =IF(INDIRECT(CONCATENATE("'",G$1,"'!",G$4,(YEAR($A19)-1921)*12+MONTH($A19)+3+IF(ISNUMBER(FIND("PRV",G$6)),1,0)))=-901,NA(),INDIRECT(CONCATENATE("'",G$1,"'!",G$4,(YEAR($A19)-1921)*12+MONTH($A19)+3+IF(ISNUMBER(FIND("PRV",G$6)),1,0)))*IF(AND(G$3>0,TRIM(G$9)="CFS"),Conv_Flags!$C19,1)) -> 0 | I19: 1929 | J19: =B97 -> 53.83457565 | K19: =B98 -> 55.11958313 | L19: =B99 -> 53.17246628 | M19: =B100 -> 48.1935997 | N19: =B101 -> 48.98797607 | O19: =B102 -> 50.30521774 | P19: =B103 -> 51.60289001 | Q19: =B104 -> 53.05783844 | R19: =B105 -> 55.96847153 | S19: =B106 -> 54.86792374 | T19: =B107 -> 53.7054863 | U19: =B108 -> 55.03935623 | W19: 53.06781928 | X19: 53.12146219 | Y19: 52.82128207 | AA19: 52.58005619 | AB19: 50.11801402 | AC19: 52.73360443 | AD19: 54.89530945 | AE19: 55.59077454 | AG19: 1929 | AH19: ='Compile Data'!C97 -> 52.09081268 | AI19: ='Compile Data'!C98 -> 54.29292297 | AJ19: ='Compile Data'!C99 -> 53.09019852 | AK19: ='Compile Data'!C100 -> 48.26107407 | AL19: ='Compile Data'!C101 -> 49.04387665 | AM19: ='Compile Data'!C102 -> 50.06581879 | AN19: ='Compile Data'!C103 -> 51.85466766 | AO19: ='Compile Data'!C104 -> 52.59647751 | AP19: ='Compile Data'!C105 -> 55.43746185 | AQ19: ='Compile Data'!C106 -> 54.99437332 | AR19: ='Compile Data'!C107 -> 53.13624954 | AS19: ='Compile Data'!C108 -> 54.27732086 | AU19: 52.78852431 | AV19: 52.89276854 | AW19: 52.42843787 | AY19: 51.93375206 | AZ19: 50.13171641 | BA19: 52.48860645 | BB19: 54.46135139 | BC19: 54.63222249 | BE19: 1929 | BF19: ='Compile Data'!D97 -> 52.45077133 | BG19: ='Compile Data'!D98 -> 54.3217926 | BH19: ='Compile Data'!D99 -> 53.0042572 | BI19: ='Compile Data'!D100 -> 48.1824913 | BJ19: ='Compile Data'!D101 -> 49.05379486 | BK19: ='Compile Data'!D102 -> 50.10967255 | BL19: ='Compile Data'!D103 -> 51.91244888 | BM19: ='Compile Data'!D104 -> 52.70975113 | BN19: ='Compile Data'!D105 -> 55.65487671 | BO19: ='Compile Data'!D106 -> 54.97802734 | BP19: ='Compile Data'!D107 -> 53.16155624 | BQ19: ='Compile Data'!D108 -> 54.32376099 | BS19: 52.85374292 | BT19: 52.95601114 | BU19: 52.4886001 | BW19: 51.98982811 | BX19: 50.08018112 | BY19: 52.59668732 | BZ19: 54.52955532 | CA19: 54.77554321 | CC19: 1929 | CD19: ='Compile Data'!E97 -> 0 | CE19: ='Compile Data'!E98 -> 0 | CF19: ='Compile Data'!E99 -> 0 | CG19: ='Compile Data'!E100 -> 0 | CH19: ='Compile Data'!E101 -> 0 | CI19: ='Compile Data'!E102 -> 0 | CJ19: ='Compile Data'!E103 -> 0 | CK19: ='Compile Data'!E104 -> 0 | CL19: ='Compile Data'!E105 -> 0 | CM19: ='Compile Data'!E106 -> 0 | CN19: ='Compile Data'!E107 -> 0 | CO19: ='Compile Data'!E108 -> 0 | CQ19: 0 | CR19: 0 | CS19: 0 | CU19: 0 | CV19: 0 | CW19: 0 | CX19: 0 | CY19: 0 | DA19: 1929 | DB19: ='Compile Data'!F97 -> 0 | DC19: ='Compile Data'!F98 -> 0 | DD19: ='Compile Data'!F99 -> 0 | DE19: ='Compile Data'!F100 -> 0 | DF19: ='Compile Data'!F101 -> 0 | DG19: ='Compile Data'!F102 -> 0 | DH19: ='Compile Data'!F103 -> 0 | DI19: ='Compile Data'!F104 -> 0 | DJ19: ='Compile Data'!F105 -> 0 | DK19: ='Compile Data'!F106 -> 0 | DL19: ='Compile Data'!F107 -> 0 | DM19: ='Compile Data'!F108 -> 0 | DO19: 0 | DP19: 0 | DQ19: 0 | DS19: 0 | DT19: 0 | DU19: 0 | DV19: 0 | DW19: 0 | DY19: 1929 | DZ19: ='Compile Data'!G97 -> 0 | EA19: ='Compile Data'!G98 -> 0 | EB19: ='Compile Data'!G99 -> 0 | EC19: ='Compile Data'!G100 -> 0 | ED19: ='Compile Data'!G101 -> 0 | EE19: ='Compile Data'!G102 -> 0 | EF19: ='Compile Data'!G103 -> 0 | EG19: ='Compile Data'!G104 -> 0 | EH19: ='Compile Data'!G105 -> 0 | EI19: ='Compile Data'!G106 -> 0 | EJ19: ='Compile Data'!G107 -> 0 | EK19: ='Compile Data'!G108 -> 0 | EM19: 0 | EN19: 0 | EO19: 0 | EQ19: 0 | ER19: 0 | ES19: 0 | ET19: 0 | EU19: 0
A20: 1922-05-31 | B20: =IF(INDIRECT(CONCATENATE("'",B$1,"'!",B$4,(YEAR($A20)-1921)*12+MONTH($A20)+3+IF(ISNUMBER(FIND("PRV",B$6)),1,0)))=-901,NA(),INDIRECT(CONCATENATE("'",B$1,"'!",B$4,(YEAR($A20)-1921)*12+MONTH($A20)+3+IF(ISNUMBER(FIND("PRV",B$6)),1,0)))*IF(AND(B$3>0,TRIM(B$9)="CFS"),Conv_Flags!$C20,1)) -> 52.65354538 | C20: =IF(INDIRECT(CONCATENATE("'",C$1,"'!",C$4,(YEAR($A20)-1921)*12+MONTH($A20)+3+IF(ISNUMBER(FIND("PRV",C$6)),1,0)))=-901,NA(),INDIRECT(CONCATENATE("'",C$1,"'!",C$4,(YEAR($A20)-1921)*12+MONTH($A20)+3+IF(ISNUMBER(FIND("PRV",C$6)),1,0)))*IF(AND(C$3>0,TRIM(C$9)="CFS"),Conv_Flags!$C20,1)) -> 52.64852524 | D20: =IF(INDIRECT(CONCATENATE("'",D$1,"'!",D$4,(YEAR($A20)-1921)*12+MONTH($A20)+3+IF(ISNUMBER(FIND("PRV",D$6)),1,0)))=-901,NA(),INDIRECT(CONCATENATE("'",D$1,"'!",D$4,(YEAR($A20)-1921)*12+MONTH($A20)+3+IF(ISNUMBER(FIND("PRV",D$6)),1,0)))*IF(AND(D$3>0,TRIM(D$9)="CFS"),Conv_Flags!$C20,1)) -> 52.64738083 | E20: =IF(INDIRECT(CONCATENATE("'",E$1,"'!",E$4,(YEAR($A20)-1921)*12+MONTH($A20)+3+IF(ISNUMBER(FIND("PRV",E$6)),1,0)))=-901,NA(),INDIRECT(CONCATENATE("'",E$1,"'!",E$4,(YEAR($A20)-1921)*12+MONTH($A20)+3+IF(ISNUMBER(FIND("PRV",E$6)),1,0)))*IF(AND(E$3>0,TRIM(E$9)="CFS"),Conv_Flags!$C20,1)) -> 0 | F20: =IF(INDIRECT(CONCATENATE("'",F$1,"'!",F$4,(YEAR($A20)-1921)*12+MONTH($A20)+3+IF(ISNUMBER(FIND("PRV",F$6)),1,0)))=-901,NA(),INDIRECT(CONCATENATE("'",F$1,"'!",F$4,(YEAR($A20)-1921)*12+MONTH($A20)+3+IF(ISNUMBER(FIND("PRV",F$6)),1,0)))*IF(AND(F$3>0,TRIM(F$9)="CFS"),Conv_Flags!$C20,1)) -> 0 | G20: =IF(INDIRECT(CONCATENATE("'",G$1,"'!",G$4,(YEAR($A20)-1921)*12+MONTH($A20)+3+IF(ISNUMBER(FIND("PRV",G$6)),1,0)))=-901,NA(),INDIRECT(CONCATENATE("'",G$1,"'!",G$4,(YEAR($A20)-1921)*12+MONTH($A20)+3+IF(ISNUMBER(FIND("PRV",G$6)),1,0)))*IF(AND(G$3>0,TRIM(G$9)="CFS"),Conv_Flags!$C20,1)) -> 0 | I20: 1930 | J20: =B109 -> 54.93627548 | K20: =B110 -> 56.79669189 | L20: =B111 -> 53.35210419 | M20: =B112 -> 48.69258499 | N20: =B113 -> 49.13270569 | O20: =B114 -> 49.995121 | P20: =B115 -> 52.03866959 | Q20: =B116 -> 52.42606354 | R20: =B117 -> 54.35160065 | S20: =B118 -> 54.50042343 | T20: =B119 -> 53.21183777 | U20: =B120 -> 54.16691208 | W20: 52.66903146 | X20: 52.86074638 | Y20: 52.80008252 | AA20: 53.44441414 | AB20: 50.39246496 | AC20: 52.20286369 | AD20: 54.05769348 | AE20: 54.57422002 | AG20: 1930 | AH20: ='Compile Data'!C109 -> 54.42676926 | AI20: ='Compile Data'!C110 -> 55.19257736 | AJ20: ='Compile Data'!C111 -> 54.17562485 | AK20: ='Compile Data'!C112 -> 49.17146301 | AL20: ='Compile Data'!C113 -> 49.38441849 | AM20: ='Compile Data'!C114 -> 50.09641647 | AN20: ='Compile Data'!C115 -> 55.28638458 | AO20: ='Compile Data'!C116 -> 55.419384 | AP20: ='Compile Data'!C117 -> 54.19152832 | AQ20: ='Compile Data'!C118 -> 53.43444824 | AR20: ='Compile Data'!C119 -> 52.51144409 | AS20: ='Compile Data'!C120 -> 53.83881378 | AU20: 52.98967393 | AV20: 53.12898858 | AW20: 53.09410604 | AY20: 53.24160862 | AZ20: 50.91050212 | BA20: 53.74842834 | BB20: 53.49405861 | BC20: 54.22840246 | BE20: 1930 | BF20: ='Compile Data'!D109 -> 54.54236221 | BG20: ='Compile Data'!D110 -> 55.46050644 | BH20: ='Compile Data'!D111 -> 54.15566635 | BI20: ='Compile Data'!D112 -> 49.11628342 | BJ20: ='Compile Data'!D113 -> 49.34722137 | BK20: ='Compile Data'!D114 -> 50.07212067 | BL20: ='Compile Data'!D115 -> 54.2586174 | BM20: ='Compile Data'!D116 -> 55.30574036 | BN20: ='Compile Data'!D117 -> 53.70370865 | BO20: ='Compile Data'!D118 -> 53.4831543 | BP20: ='Compile Data'!D119 -> 52.56535721 | BQ20: ='Compile Data'!D120 -> 53.828022 | BS20: 52.86303552 | BT20: 53.01947308 | BU20: 52.98656336 | BW20: 53.31870461 | BX20: 50.87305705 | BY20: 53.33504677 | BZ20: 53.39506054 | CA20: 54.23191325 | CC20: 1930 | CD20: ='Compile Data'!E109 -> 0 | CE20: ='Compile Data'!E110 -> 0 | CF20: ='Compile Data'!E111 -> 0 | CG20: ='Compile Data'!E112 -> 0 | CH20: ='Compile Data'!E113 -> 0 | CI20: ='Compile Data'!E114 -> 0 | CJ20: ='Compile Data'!E115 -> 0 | CK20: ='Compile Data'!E116 -> 0 | CL20: ='Compile Data'!E117 -> 0 | CM20: ='Compile Data'!E118 -> 0 | CN20: ='Compile Data'!E119 -> 0 | CO20: ='Compile Data'!E120 -> 0 | CQ20: 0 | CR20: 0 | CS20: 0 | CU20: 0 | CV20: 0 | CW20: 0 | CX20: 0 | CY20: 0 | DA20: 1930 | DB20: ='Compile Data'!F109 -> 0 | DC20: ='Compile Data'!F110 -> 0 | DD20: ='Compile Data'!F111 -> 0 | DE20: ='Compile Data'!F112 -> 0 | DF20: ='Compile Data'!F113 -> 0 | DG20: ='Compile Data'!F114 -> 0 | DH20: ='Compile Data'!F115 -> 0 | DI20: ='Compile Data'!F116 -> 0 | DJ20: ='Compile Data'!F117 -> 0 | DK20: ='Compile Data'!F118 -> 0 | DL20: ='Compile Data'!F119 -> 0 | DM20: ='Compile Data'!F120 -> 0 | DO20: 0 | DP20: 0 | DQ20: 0 | DS20: 0 | DT20: 0 | DU20: 0 | DV20: 0 | DW20: 0 | DY20: 1930 | DZ20: ='Compile Data'!G109 -> 0 | EA20: ='Compile Data'!G110 -> 0 | EB20: ='Compile Data'!G111 -> 0 | EC20: ='Compile Data'!G112 -> 0 | ED20: ='Compile Data'!G113 -> 0 | EE20: ='Compile Data'!G114 -> 0 | EF20: ='Compile Data'!G115 -> 0 | EG20: ='Compile Data'!G116 -> 0 | EH20: ='Compile Data'!G117 -> 0 | EI20: ='Compile Data'!G118 -> 0 | EJ20: ='Compile Data'!G119 -> 0 | EK20: ='Compile Data'!G120 -> 0 | EM20: 0 | EN20: 0 | EO20: 0 | EQ20: 0 | ER20: 0 | ES20: 0 | ET20: 0 | EU20: 0
A21: 1922-06-30 | B21: =IF(INDIRECT(CONCATENATE("'",B$1,"'!",B$4,(YEAR($A21)-1921)*12+MONTH($A21)+3+IF(ISNUMBER(FIND("PRV",B$6)),1,0)))=-901,NA(),INDIRECT(CONCATENATE("'",B$1,"'!",B$4,(YEAR($A21)-1921)*12+MONTH($A21)+3+IF(ISNUMBER(FIND("PRV",B$6)),1,0)))*IF(AND(B$3>0,TRIM(B$9)="CFS"),Conv_Flags!$C21,1)) -> 52.19549942 | C21: =IF(INDIRECT(CONCATENATE("'",C$1,"'!",C$4,(YEAR($A21)-1921)*12+MONTH($A21)+3+IF(ISNUMBER(FIND("PRV",C$6)),1,0)))=-901,NA(),INDIRECT(CONCATENATE("'",C$1,"'!",C$4,(YEAR($A21)-1921)*12+MONTH($A21)+3+IF(ISNUMBER(FIND("PRV",C$6)),1,0)))*IF(AND(C$3>0,TRIM(C$9)="CFS"),Conv_Flags!$C21,1)) -> 52.34033966 | D21: =IF(INDIRECT(CONCATENATE("'",D$1,"'!",D$4,(YEAR($A21)-1921)*12+MONTH($A21)+3+IF(ISNUMBER(FIND("PRV",D$6)),1,0)))=-901,NA(),INDIRECT(CONCATENATE("'",D$1,"'!",D$4,(YEAR($A21)-1921)*12+MONTH($A21)+3+IF(ISNUMBER(FIND("PRV",D$6)),1,0)))*IF(AND(D$3>0,TRIM(D$9)="CFS"),Conv_Flags!$C21,1)) -> 52.3392868 | E21: =IF(INDIRECT(CONCATENATE("'",E$1,"'!",E$4,(YEAR($A21)-1921)*12+MONTH($A21)+3+IF(ISNUMBER(FIND("PRV",E$6)),1,0)))=-901,NA(),INDIRECT(CONCATENATE("'",E$1,"'!",E$4,(YEAR($A21)-1921)*12+MONTH($A21)+3+IF(ISNUMBER(FIND("PRV",E$6)),1,0)))*IF(AND(E$3>0,TRIM(E$9)="CFS"),Conv_Flags!$C21,1)) -> 0 | F21: =IF(INDIRECT(CONCATENATE("'",F$1,"'!",F$4,(YEAR($A21)-1921)*12+MONTH($A21)+3+IF(ISNUMBER(FIND("PRV",F$6)),1,0)))=-901,NA(),INDIRECT(CONCATENATE("'",F$1,"'!",F$4,(YEAR($A21)-1921)*12+MONTH($A21)+3+IF(ISNUMBER(FIND("PRV",F$6)),1,0)))*IF(AND(F$3>0,TRIM(F$9)="CFS"),Conv_Flags!$C21,1)) -> 0 | G21: =IF(INDIRECT(CONCATENATE("'",G$1,"'!",G$4,(YEAR($A21)-1921)*12+MONTH($A21)+3+IF(ISNUMBER(FIND("PRV",G$6)),1,0)))=-901,NA(),INDIRECT(CONCATENATE("'",G$1,"'!",G$4,(YEAR($A21)-1921)*12+MONTH($A21)+3+IF(ISNUMBER(FIND("PRV",G$6)),1,0)))*IF(AND(G$3>0,TRIM(G$9)="CFS"),Conv_Flags!$C21,1)) -> 0 | I21: 1931 | J21: =B121 -> 54.7832756 | K21: =B122 -> 54.77247238 | L21: =B123 -> 53.95671082 | M21: =B124 -> 50.442173 | N21: =B125 -> 49.68369675 | O21: =B126 -> 51.01402664 | P21: =B127 -> 53.65834427 | Q21: =B128 -> 56.13776016 | R21: =B129 -> 56.50509644 | S21: =B130 -> 54.63152695 | T21: =B131 -> 55.80063248 | U21: =B132 -> 62.12483978 | W21: 54.72849909 | X21: 53.88884958 | Y21: 54.45921294 | AA21: 53.48865795 | AB21: 51.36086019 | AC21: 54.32880688 | AD21: 57.26552391 | AE21: 59.82003784 | AG21: 1931 | AH21: ='Compile Data'!C121 -> 54.14881134 | AI21: ='Compile Data'!C122 -> 54.69758224 | AJ21: ='Compile Data'!C123 -> 53.69539261 | AK21: ='Compile Data'!C124 -> 50.43988037 | AL21: ='Compile Data'!C125 -> 49.78777695 | AM21: ='Compile Data'!C126 -> 50.95245361 | AN21: ='Compile Data'!C127 -> 52.87670135 | AO21: ='Compile Data'!C128 -> 55.8002739 | AP21: ='Compile Data'!C129 -> 56.72955322 | AQ21: ='Compile Data'!C130 -> 55.45669937 | AR21: ='Compile Data'!C131 -> 54.37487793 | AS21: ='Compile Data'!C132 -> 57.65580368 | AU21: 54.13369687 | AV21: 53.4529136 | AW21: 53.88465055 | AY21: 53.24541664 | AZ21: 51.30768331 | BA21: 54.08974552 | BB21: 56.05423355 | BC21: 57.66723633 | BE21: 1931 | BF21: ='Compile Data'!D121 -> 54.16176224 | BG21: ='Compile Data'!D122 -> 54.70595551 | BH21: ='Compile Data'!D123 -> 53.80848312 | BI21: ='Compile Data'!D124 -> 50.50933075 | BJ21: ='Compile Data'!D125 -> 49.83142471 | BK21: ='Compile Data'!D126 -> 51.038517 | BL21: ='Compile Data'!D127 -> 53.02220154 | BM21: ='Compile Data'!D128 -> 55.88001633 | BN21: ='Compile Data'!D129 -> 56.75511169 | BO21: ='Compile Data'!D130 -> 55.54143143 | BP21: ='Compile Data'!D131 -> 54.47544861 | BQ21: ='Compile Data'!D132 -> 58.13283157 | BS21: 54.26196702 | BT21: 53.51150799 | BU21: 53.98854287 | BW21: 53.2963829 | BX21: 51.38307953 | BY21: 54.17396164 | BZ21: 56.22620583 | CA21: 58.0008405 | CC21: 1931 | CD21: ='Compile Data'!E121 -> 0 | CE21: ='Compile Data'!E122 -> 0 | CF21: ='Compile Data'!E123 -> 0 | CG21: ='Compile Data'!E124 -> 0 | CH21: ='Compile Data'!E125 -> 0 | CI21: ='Compile Data'!E126 -> 0 | CJ21: ='Compile Data'!E127 -> 0 | CK21: ='Compile Data'!E128 -> 0 | CL21: ='Compile Data'!E129 -> 0 | CM21: ='Compile Data'!E130 -> 0 | CN21: ='Compile Data'!E131 -> 0 | CO21: ='Compile Data'!E132 -> 0 | CQ21: 0 | CR21: 0 | CS21: 0 | CU21: 0 | CV21: 0 | CW21: 0 | CX21: 0 | CY21: 0 | DA21: 1931 | DB21: ='Compile Data'!F121 -> 0 | DC21: ='Compile Data'!F122 -> 0 | DD21: ='Compile Data'!F123 -> 0 | DE21: ='Compile Data'!F124 -> 0 | DF21: ='Compile Data'!F125 -> 0 | DG21: ='Compile Data'!F126 -> 0 | DH21: ='Compile Data'!F127 -> 0 | DI21: ='Compile Data'!F128 -> 0 | DJ21: ='Compile Data'!F129 -> 0 | DK21: ='Compile Data'!F130 -> 0 | DL21: ='Compile Data'!F131 -> 0 | DM21: ='Compile Data'!F132 -> 0 | DO21: 0 | DP21: 0 | DQ21: 0 | DS21: 0 | DT21: 0 | DU21: 0 | DV21: 0 | DW21: 0 | DY21: 1931 | DZ21: ='Compile Data'!G121 -> 0 | EA21: ='Compile Data'!G122 -> 0 | EB21: ='Compile Data'!G123 -> 0 | EC21: ='Compile Data'!G124 -> 0 | ED21: ='Compile Data'!G125 -> 0 | EE21: ='Compile Data'!G126 -> 0 | EF21: ='Compile Data'!G127 -> 0 | EG21: ='Compile Data'!G128 -> 0 | EH21: ='Compile Data'!G129 -> 0 | EI21: ='Compile Data'!G130 -> 0 | EJ21: ='Compile Data'!G131 -> 0 | EK21: ='Compile Data'!G132 -> 0 | EM21: 0 | EN21: 0 | EO21: 0 | EQ21: 0 | ER21: 0 | ES21: 0 | ET21: 0 | EU21: 0
A22: 1922-07-31 | B22: =IF(INDIRECT(CONCATENATE("'",B$1,"'!",B$4,(YEAR($A22)-1921)*12+MONTH($A22)+3+IF(ISNUMBER(FIND("PRV",B$6)),1,0)))=-901,NA(),INDIRECT(CONCATENATE("'",B$1,"'!",B$4,(YEAR($A22)-1921)*12+MONTH($A22)+3+IF(ISNUMBER(FIND("PRV",B$6)),1,0)))*IF(AND(B$3>0,TRIM(B$9)="CFS"),Conv_Flags!$C22,1)) -> 52.90038681 | C22: =IF(INDIRECT(CONCATENATE("'",C$1,"'!",C$4,(YEAR($A22)-1921)*12+MONTH($A22)+3+IF(ISNUMBER(FIND("PRV",C$6)),1,0)))=-901,NA(),INDIRECT(CONCATENATE("'",C$1,"'!",C$4,(YEAR($A22)-1921)*12+MONTH($A22)+3+IF(ISNUMBER(FIND("PRV",C$6)),1,0)))*IF(AND(C$3>0,TRIM(C$9)="CFS"),Conv_Flags!$C22,1)) -> 53.47005844 | D22: =IF(INDIRECT(CONCATENATE("'",D$1,"'!",D$4,(YEAR($A22)-1921)*12+MONTH($A22)+3+IF(ISNUMBER(FIND("PRV",D$6)),1,0)))=-901,NA(),INDIRECT(CONCATENATE("'",D$1,"'!",D$4,(YEAR($A22)-1921)*12+MONTH($A22)+3+IF(ISNUMBER(FIND("PRV",D$6)),1,0)))*IF(AND(D$3>0,TRIM(D$9)="CFS"),Conv_Flags!$C22,1)) -> 53.47435379 | E22: =IF(INDIRECT(CONCATENATE("'",E$1,"'!",E$4,(YEAR($A22)-1921)*12+MONTH($A22)+3+IF(ISNUMBER(FIND("PRV",E$6)),1,0)))=-901,NA(),INDIRECT(CONCATENATE("'",E$1,"'!",E$4,(YEAR($A22)-1921)*12+MONTH($A22)+3+IF(ISNUMBER(FIND("PRV",E$6)),1,0)))*IF(AND(E$3>0,TRIM(E$9)="CFS"),Conv_Flags!$C22,1)) -> 0 | F22: =IF(INDIRECT(CONCATENATE("'",F$1,"'!",F$4,(YEAR($A22)-1921)*12+MONTH($A22)+3+IF(ISNUMBER(FIND("PRV",F$6)),1,0)))=-901,NA(),INDIRECT(CONCATENATE("'",F$1,"'!",F$4,(YEAR($A22)-1921)*12+MONTH($A22)+3+IF(ISNUMBER(FIND("PRV",F$6)),1,0)))*IF(AND(F$3>0,TRIM(F$9)="CFS"),Conv_Flags!$C22,1)) -> 0 | G22: =IF(INDIRECT(CONCATENATE("'",G$1,"'!",G$4,(YEAR($A22)-1921)*12+MONTH($A22)+3+IF(ISNUMBER(FIND("PRV",G$6)),1,0)))=-901,NA(),INDIRECT(CONCATENATE("'",G$1,"'!",G$4,(YEAR($A22)-1921)*12+MONTH($A22)+3+IF(ISNUMBER(FIND("PRV",G$6)),1,0)))*IF(AND(G$3>0,TRIM(G$9)="CFS"),Conv_Flags!$C22,1)) -> 0 | I22: 1932 | J22: =B133 -> 61.72766876 | K22: =B134 -> 55.60760498 | L22: =B135 -> 49.40861893 | M22: =B136 -> 45.36122894 | N22: =B137 -> 44.68884659 | O22: =B138 -> 49.15486908 | P22: =B139 -> 53.16945648 | Q22: =B140 -> 55.36394882 | R22: =B141 -> 56.74775696 | S22: =B142 -> 55.78033066 | T22: =B143 -> 53.807827 | U22: =B144 -> 54.07388306 | W22: 52.55359459 | X22: 53.00337728 | Y22: 52.90767002 | AA22: 53.0262804 | AB22: 46.48623149 | AC22: 53.60900784 | AD22: 55.10244942 | AE22: 54.72960027 | AG22: 1932 | AH22: ='Compile Data'!C133 -> 59.68141556 | AI22: ='Compile Data'!C134 -> 55.66448975 | AJ22: ='Compile Data'!C135 -> 50.1844368 | AK22: ='Compile Data'!C136 -> 46.1511116 | AL22: ='Compile Data'!C137 -> 45.90714645 | AM22: ='Compile Data'!C138 -> 49.87578964 | AN22: ='Compile Data'!C139 -> 52.27309799 | AO22: ='Compile Data'!C140 -> 54.33905792 | AP22: ='Compile Data'!C141 -> 56.04183578 | AQ22: ='Compile Data'!C142 -> 55.65594482 | AR22: ='Compile Data'!C143 -> 53.37553787 | AS22: ='Compile Data'!C144 -> 54.09553909 | AU22: 52.36385059 | AV22: 52.76800156 | AW22: 52.77045027 | AY22: 52.92036343 | AZ22: 47.41423162 | BA22: 53.13244534 | BB22: 54.79221439 | BC22: 54.42230988 | BE22: 1932 | BF22: ='Compile Data'!D133 -> 60.15521622 | BG22: ='Compile Data'!D134 -> 55.71447372 | BH22: ='Compile Data'!D135 -> 50.08760071 | BI22: ='Compile Data'!D136 -> 45.71398163 | BJ22: ='Compile Data'!D137 -> 45.62126541 | BK22: ='Compile Data'!D138 -> 49.92782974 | BL22: ='Compile Data'!D139 -> 52.66101456 | BM22: ='Compile Data'!D140 -> 55.05418777 | BN22: ='Compile Data'!D141 -> 56.47290039 | BO22: ='Compile Data'!D142 -> 55.63864136 | BP22: ='Compile Data'!D143 -> 53.21162796 | BQ22: ='Compile Data'!D144 -> 54.34266663 | BS22: 52.48366992 | BT22: 52.84784603 | BU22: 52.88345051 | BW22: 52.91781807 | BX22: 47.14094925 | BY22: 53.52898312 | BZ22: 54.91645908 | CA22: 54.61690776 | CC22: 1932 | CD22: ='Compile Data'!E133 -> 0 | CE22: ='Compile Data'!E134 -> 0 | CF22: ='Compile Data'!E135 -> 0 | CG22: ='Compile Data'!E136 -> 0 | CH22: ='Compile Data'!E137 -> 0 | CI22: ='Compile Data'!E138 -> 0 | CJ22: ='Compile Data'!E139 -> 0 | CK22: ='Compile Data'!E140 -> 0 | CL22: ='Compile Data'!E141 -> 0 | CM22: ='Compile Data'!E142 -> 0 | CN22: ='Compile Data'!E143 -> 0 | CO22: ='Compile Data'!E144 -> 0 | CQ22: 0 | CR22: 0 | CS22: 0 | CU22: 0 | CV22: 0 | CW22: 0 | CX22: 0 | CY22: 0 | DA22: 1932 | DB22: ='Compile Data'!F133 -> 0 | DC22: ='Compile Data'!F134 -> 0 | DD22: ='Compile Data'!F135 -> 0 | DE22: ='Compile Data'!F136 -> 0 | DF22: ='Compile Data'!F137 -> 0 | DG22: ='Compile Data'!F138 -> 0 | DH22: ='Compile Data'!F139 -> 0 | DI22: ='Compile Data'!F140 -> 0 | DJ22: ='Compile Data'!F141 -> 0 | DK22: ='Compile Data'!F142 -> 0 | DL22: ='Compile Data'!F143 -> 0 | DM22: ='Compile Data'!F144 -> 0 | DO22: 0 | DP22: 0 | DQ22: 0 | DS22: 0 | DT22: 0 | DU22: 0 | DV22: 0 | DW22: 0 | DY22: 1932 | DZ22: ='Compile Data'!G133 -> 0 | EA22: ='Compile Data'!G134 -> 0 | EB22: ='Compile Data'!G135 -> 0 | EC22: ='Compile Data'!G136 -> 0 | ED22: ='Compile Data'!G137 -> 0 | EE22: ='Compile Data'!G138 -> 0 | EF22: ='Compile Data'!G139 -> 0 | EG22: ='Compile Data'!G140 -> 0 | EH22: ='Compile Data'!G141 -> 0 | EI22: ='Compile Data'!G142 -> 0 | EJ22: ='Compile Data'!G143 -> 0 | EK22: ='Compile Data'!G144 -> 0 | EM22: 0 | EN22: 0 | EO22: 0 | EQ22: 0 | ER22: 0 | ES22: 0 | ET22: 0 | EU22: 0
A23: 1922-08-31 | B23: =IF(INDIRECT(CONCATENATE("'",B$1,"'!",B$4,(YEAR($A23)-1921)*12+MONTH($A23)+3+IF(ISNUMBER(FIND("PRV",B$6)),1,0)))=-901,NA(),INDIRECT(CONCATENATE("'",B$1,"'!",B$4,(YEAR($A23)-1921)*12+MONTH($A23)+3+IF(ISNUMBER(FIND("PRV",B$6)),1,0)))*IF(AND(B$3>0,TRIM(B$9)="CFS"),Conv_Flags!$C23,1)) -> 51.9318428 | C23: =IF(INDIRECT(CONCATENATE("'",C$1,"'!",C$4,(YEAR($A23)-1921)*12+MONTH($A23)+3+IF(ISNUMBER(FIND("PRV",C$6)),1,0)))=-901,NA(),INDIRECT(CONCATENATE("'",C$1,"'!",C$4,(YEAR($A23)-1921)*12+MONTH($A23)+3+IF(ISNUMBER(FIND("PRV",C$6)),1,0)))*IF(AND(C$3>0,TRIM(C$9)="CFS"),Conv_Flags!$C23,1)) -> 52.40244675 | D23: =IF(INDIRECT(CONCATENATE("'",D$1,"'!",D$4,(YEAR($A23)-1921)*12+MONTH($A23)+3+IF(ISNUMBER(FIND("PRV",D$6)),1,0)))=-901,NA(),INDIRECT(CONCATENATE("'",D$1,"'!",D$4,(YEAR($A23)-1921)*12+MONTH($A23)+3+IF(ISNUMBER(FIND("PRV",D$6)),1,0)))*IF(AND(D$3>0,TRIM(D$9)="CFS"),Conv_Flags!$C23,1)) -> 52.4020462 | E23: =IF(INDIRECT(CONCATENATE("'",E$1,"'!",E$4,(YEAR($A23)-1921)*12+MONTH($A23)+3+IF(ISNUMBER(FIND("PRV",E$6)),1,0)))=-901,NA(),INDIRECT(CONCATENATE("'",E$1,"'!",E$4,(YEAR($A23)-1921)*12+MONTH($A23)+3+IF(ISNUMBER(FIND("PRV",E$6)),1,0)))*IF(AND(E$3>0,TRIM(E$9)="CFS"),Conv_Flags!$C23,1)) -> 0 | F23: =IF(INDIRECT(CONCATENATE("'",F$1,"'!",F$4,(YEAR($A23)-1921)*12+MONTH($A23)+3+IF(ISNUMBER(FIND("PRV",F$6)),1,0)))=-901,NA(),INDIRECT(CONCATENATE("'",F$1,"'!",F$4,(YEAR($A23)-1921)*12+MONTH($A23)+3+IF(ISNUMBER(FIND("PRV",F$6)),1,0)))*IF(AND(F$3>0,TRIM(F$9)="CFS"),Conv_Flags!$C23,1)) -> 0 | G23: =IF(INDIRECT(CONCATENATE("'",G$1,"'!",G$4,(YEAR($A23)-1921)*12+MONTH($A23)+3+IF(ISNUMBER(FIND("PRV",G$6)),1,0)))=-901,NA(),INDIRECT(CONCATENATE("'",G$1,"'!",G$4,(YEAR($A23)-1921)*12+MONTH($A23)+3+IF(ISNUMBER(FIND("PRV",G$6)),1,0)))*IF(AND(G$3>0,TRIM(G$9)="CFS"),Conv_Flags!$C23,1)) -> 0 | I23: 1933 | J23: =B145 -> 55.10112381 | K23: =B146 -> 55.01379395 | L23: =B147 -> 52.38006973 | M23: =B148 -> 48.35977173 | N23: =B149 -> 47.08769608 | O23: =B150 -> 49.94789886 | P23: =B151 -> 54.00447845 | Q23: =B152 -> 54.06974411 | R23: =B153 -> 56.30606079 | S23: =B154 -> 55.49830627 | T23: =B155 -> 53.91963196 | U23: =B156 -> 55.73537064 | W23: 53.65290292 | X23: 53.47423712 | Y23: 53.1186622 | AA23: 52.7136898 | AB23: 49.27584585 | AC23: 53.58204556 | AD23: 55.36484241 | AE23: 57.30040232 | AG23: 1933 | AH23: ='Compile Data'!C145 -> 54.86266327 | AI23: ='Compile Data'!C146 -> 54.30872726 | AJ23: ='Compile Data'!C147 -> 51.4797554 | AK23: ='Compile Data'!C148 -> 48.72291946 | AL23: ='Compile Data'!C149 -> 48.18515015 | AM23: ='Compile Data'!C150 -> 50.0464592 | AN23: ='Compile Data'!C151 -> 52.91179657 | AO23: ='Compile Data'!C152 -> 53.50348663 | AP23: ='Compile Data'!C153 -> 56.24723816 | AQ23: ='Compile Data'!C154 -> 55.64981079 | AR23: ='Compile Data'!C155 -> 53.95362854 | AS23: ='Compile Data'!C156 -> 54.48940659 | AU23: 53.1841135 | AV23: 53.01019796 | AW23: 52.86342017 | AY23: 52.34351635 | AZ23: 49.46260834 | BA23: 53.17724514 | BB23: 55.08502102 | BC23: 55.42223358 | BE23: 1933 | BF23: ='Compile Data'!D145 -> 55.19847107 | BG23: ='Compile Data'!D146 -> 54.30958557 | BH23: ='Compile Data'!D147 -> 51.65186691 | BI23: ='Compile Data'!D148 -> 48.39755249 | BJ23: ='Compile Data'!D149 -> 47.30780792 | BK23: ='Compile Data'!D150 -> 50.13975143 | BL23: ='Compile Data'!D151 -> 53.19210815 | BM23: ='Compile Data'!D152 -> 53.65032578 | BN23: ='Compile Data'!D153 -> 56.21933365 | BO23: ='Compile Data'!D154 -> 55.67646408 | BP23: ='Compile Data'!D155 -> 53.95848083 | BQ23: ='Compile Data'!D156 -> 54.55738449 | BS23: 53.25856113 | BT23: 53.15580177 | BU23: 52.8549277 | BW23: 52.38936901 | BX23: 49.11907578 | BY23: 53.30037975 | BZ23: 55.10291576 | CA23: 55.93782934 | CC23: 1933 | CD23: ='Compile Data'!E145 -> 0 | CE23: ='Compile Data'!E146 -> 0 | CF23: ='Compile Data'!E147 -> 0 | CG23: ='Compile Data'!E148 -> 0 | CH23: ='Compile Data'!E149 -> 0 | CI23: ='Compile Data'!E150 -> 0 | CJ23: ='Compile Data'!E151 -> 0 | CK23: ='Compile Data'!E152 -> 0 | CL23: ='Compile Data'!E153 -> 0 | CM23: ='Compile Data'!E154 -> 0 | CN23: ='Compile Data'!E155 -> 0 | CO23: ='Compile Data'!E156 -> 0 | CQ23: 0 | CR23: 0 | CS23: 0 | CU23: 0 | CV23: 0 | CW23: 0 | CX23: 0 | CY23: 0 | DA23: 1933 | DB23: ='Compile Data'!F145 -> 0 | DC23: ='Compile Data'!F146 -> 0 | DD23: ='Compile Data'!F147 -> 0 | DE23: ='Compile Data'!F148 -> 0 | DF23: ='Compile Data'!F149 -> 0 | DG23: ='Compile Data'!F150 -> 0 | DH23: ='Compile Data'!F151 -> 0 | DI23: ='Compile Data'!F152 -> 0 | DJ23: ='Compile Data'!F153 -> 0 | DK23: ='Compile Data'!F154 -> 0 | DL23: ='Compile Data'!F155 -> 0 | DM23: ='Compile Data'!F156 -> 0 | DO23: 0 | DP23: 0 | DQ23: 0 | DS23: 0 | DT23: 0 | DU23: 0 | DV23: 0 | DW23: 0 | DY23: 1933 | DZ23: ='Compile Data'!G145 -> 0 | EA23: ='Compile Data'!G146 -> 0 | EB23: ='Compile Data'!G147 -> 0 | EC23: ='Compile Data'!G148 -> 0 | ED23: ='Compile Data'!G149 -> 0 | EE23: ='Compile Data'!G150 -> 0 | EF23: ='Compile Data'!G151 -> 0 | EG23: ='Compile Data'!G152 -> 0 | EH23: ='Compile Data'!G153 -> 0 | EI23: ='Compile Data'!G154 -> 0 | EJ23: ='Compile Data'!G155 -> 0 | EK23: ='Compile Data'!G156 -> 0 | EM23: 0 | EN23: 0 | EO23: 0 | EQ23: 0 | ER23: 0 | ES23: 0 | ET23: 0 | EU23: 0
A24: 1922-09-30 | B24: =IF(INDIRECT(CONCATENATE("'",B$1,"'!",B$4,(YEAR($A24)-1921)*12+MONTH($A24)+3+IF(ISNUMBER(FIND("PRV",B$6)),1,0)))=-901,NA(),INDIRECT(CONCATENATE("'",B$1,"'!",B$4,(YEAR($A24)-1921)*12+MONTH($A24)+3+IF(ISNUMBER(FIND("PRV",B$6)),1,0)))*IF(AND(B$3>0,TRIM(B$9)="CFS"),Conv_Flags!$C24,1)) -> 51.92146301 | C24: =IF(INDIRECT(CONCATENATE("'",C$1,"'!",C$4,(YEAR($A24)-1921)*12+MONTH($A24)+3+IF(ISNUMBER(FIND("PRV",C$6)),1,0)))=-901,NA(),INDIRECT(CONCATENATE("'",C$1,"'!",C$4,(YEAR($A24)-1921)*12+MONTH($A24)+3+IF(ISNUMBER(FIND("PRV",C$6)),1,0)))*IF(AND(C$3>0,TRIM(C$9)="CFS"),Conv_Flags!$C24,1)) -> 50.9850235 | D24: =IF(INDIRECT(CONCATENATE("'",D$1,"'!",D$4,(YEAR($A24)-1921)*12+MONTH($A24)+3+IF(ISNUMBER(FIND("PRV",D$6)),1,0)))=-901,NA(),INDIRECT(CONCATENATE("'",D$1,"'!",D$4,(YEAR($A24)-1921)*12+MONTH($A24)+3+IF(ISNUMBER(FIND("PRV",D$6)),1,0)))*IF(AND(D$3>0,TRIM(D$9)="CFS"),Conv_Flags!$C24,1)) -> 50.98510742 | E24: =IF(INDIRECT(CONCATENATE("'",E$1,"'!",E$4,(YEAR($A24)-1921)*12+MONTH($A24)+3+IF(ISNUMBER(FIND("PRV",E$6)),1,0)))=-901,NA(),INDIRECT(CONCATENATE("'",E$1,"'!",E$4,(YEAR($A24)-1921)*12+MONTH($A24)+3+IF(ISNUMBER(FIND("PRV",E$6)),1,0)))*IF(AND(E$3>0,TRIM(E$9)="CFS"),Conv_Flags!$C24,1)) -> 0 | F24: =IF(INDIRECT(CONCATENATE("'",F$1,"'!",F$4,(YEAR($A24)-1921)*12+MONTH($A24)+3+IF(ISNUMBER(FIND("PRV",F$6)),1,0)))=-901,NA(),INDIRECT(CONCATENATE("'",F$1,"'!",F$4,(YEAR($A24)-1921)*12+MONTH($A24)+3+IF(ISNUMBER(FIND("PRV",F$6)),1,0)))*IF(AND(F$3>0,TRIM(F$9)="CFS"),Conv_Flags!$C24,1)) -> 0 | G24: =IF(INDIRECT(CONCATENATE("'",G$1,"'!",G$4,(YEAR($A24)-1921)*12+MONTH($A24)+3+IF(ISNUMBER(FIND("PRV",G$6)),1,0)))=-901,NA(),INDIRECT(CONCATENATE("'",G$1,"'!",G$4,(YEAR($A24)-1921)*12+MONTH($A24)+3+IF(ISNUMBER(FIND("PRV",G$6)),1,0)))*IF(AND(G$3>0,TRIM(G$9)="CFS"),Conv_Flags!$C24,1)) -> 0 | I24: 1934 | J24: =B157 -> 58.57984543 | K24: =B158 -> 57.58599091 | L24: =B159 -> 52.74003983 | M24: =B160 -> 46.85644913 | N24: =B161 -> 46.44702911 | O24: =B162 -> 50.99243927 | P24: =B163 -> 55.10989761 | Q24: =B164 -> 55.35963821 | R24: =B165 -> 55.24436188 | S24: =B166 -> 53.81932068 | T24: =B167 -> 54.31540298 | U24: =B168 -> 57.99652481 | W24: 53.71538003 | X24: 53.74249585 | Y24: 53.75391165 | AA24: 53.94058132 | AB24: 48.68117269 | AC24: 54.17658424 | AD24: 55.34390259 | AE24: 58.3236618 | AG24: 1934 | AH24: ='Compile Data'!C157 -> 55.3026619 | AI24: ='Compile Data'!C158 -> 56.47463226 | AJ24: ='Compile Data'!C159 -> 52.72217178 | AK24: ='Compile Data'!C160 -> 47.44750977 | AL24: ='Compile Data'!C161 -> 47.3735733 | AM24: ='Compile Data'!C162 -> 50.96193695 | AN24: ='Compile Data'!C163 -> 54.02749634 | AO24: ='Compile Data'!C164 -> 55.00908661 | AP24: ='Compile Data'!C165 -> 55.98583221 | AQ24: ='Compile Data'!C166 -> 55.1229248 | AR24: ='Compile Data'!C167 -> 54.2716217 | AS24: ='Compile Data'!C168 -> 55.21926117 | AU24: 53.36453787 | AV24: 53.37628301 | AW24: 53.32655907 | AY24: 52.98674393 | AZ24: 49.18108495 | BA24: 53.99608803 | BB24: 55.14990997 | BC24: 56.18308385 | BE24: 1934 | BF24: ='Compile Data'!D157 -> 56.2395134 | BG24: ='Compile Data'!D158 -> 57.01659012 | BH24: ='Compile Data'!D159 -> 52.74742126 | BI24: ='Compile Data'!D160 -> 47.32032394 | BJ24: ='Compile Data'!D161 -> 47.15192413 | BK24: ='Compile Data'!D162 -> 50.90631866 | BL24: ='Compile Data'!D163 -> 54.02909851 | BM24: ='Compile Data'!D164 -> 55.02582932 | BN24: ='Compile Data'!D165 -> 55.99411392 | BO24: ='Compile Data'!D166 -> 54.94927979 | BP24: ='Compile Data'!D167 -> 54.28388596 | BQ24: ='Compile Data'!D168 -> 55.26591873 | BS24: 53.34020201 | BT24: 53.36236382 | BU24: 53.41085148 | BW24: 53.33096218 | BX24: 49.07322311 | BY24: 53.9888401 | BZ24: 55.1232996 | CA24: 56.27735519 | CC24: 1934 | CD24: ='Compile Data'!E157 -> 0 | CE24: ='Compile Data'!E158 -> 0 | CF24: ='Compile Data'!E159 -> 0 | CG24: ='Compile Data'!E160 -> 0 | CH24: ='Compile Data'!E161 -> 0 | CI24: ='Compile Data'!E162 -> 0 | CJ24: ='Compile Data'!E163 -> 0 | CK24: ='Compile Data'!E164 -> 0 | CL24: ='Compile Data'!E165 -> 0 | CM24: ='Compile Data'!E166 -> 0 | CN24: ='Compile Data'!E167 -> 0 | CO24: ='Compile Data'!E168 -> 0 | CQ24: 0 | CR24: 0 | CS24: 0 | CU24: 0 | CV24: 0 | CW24: 0 | CX24: 0 | CY24: 0 | DA24: 1934 | DB24: ='Compile Data'!F157 -> 0 | DC24: ='Compile Data'!F158 -> 0 | DD24: ='Compile Data'!F159 -> 0 | DE24: ='Compile Data'!F160 -> 0 | DF24: ='Compile Data'!F161 -> 0 | DG24: ='Compile Data'!F162 -> 0 | DH24: ='Compile Data'!F163 -> 0 | DI24: ='Compile Data'!F164 -> 0 | DJ24: ='Compile Data'!F165 -> 0 | DK24: ='Compile Data'!F166 -> 0 | DL24: ='Compile Data'!F167 -> 0 | DM24: ='Compile Data'!F168 -> 0 | DO24: 0 | DP24: 0 | DQ24: 0 | DS24: 0 | DT24: 0 | DU24: 0 | DV24: 0 | DW24: 0 | DY24: 1934 | DZ24: ='Compile Data'!G157 -> 0 | EA24: ='Compile Data'!G158 -> 0 | EB24: ='Compile Data'!G159 -> 0 | EC24: ='Compile Data'!G160 -> 0 | ED24: ='Compile Data'!G161 -> 0 | EE24: ='Compile Data'!G162 -> 0 | EF24: ='Compile Data'!G163 -> 0 | EG24: ='Compile Data'!G164 -> 0 | EH24: ='Compile Data'!G165 -> 0 | EI24: ='Compile Data'!G166 -> 0 | EJ24: ='Compile Data'!G167 -> 0 | EK24: ='Compile Data'!G168 -> 0 | EM24: 0 | EN24: 0 | EO24: 0 | EQ24: 0 | ER24: 0 | ES24: 0 | ET24: 0 | EU24: 0
A25: 1922-10-31 | B25: =IF(INDIRECT(CONCATENATE("'",B$1,"'!",B$4,(YEAR($A25)-1921)*12+MONTH($A25)+3+IF(ISNUMBER(FIND("PRV",B$6)),1,0)))=-901,NA(),INDIRECT(CONCATENATE("'",B$1,"'!",B$4,(YEAR($A25)-1921)*12+MONTH($A25)+3+IF(ISNUMBER(FIND("PRV",B$6)),1,0)))*IF(AND(B$3>0,TRIM(B$9)="CFS"),Conv_Flags!$C25,1)) -> 51.81913376 | C25: =IF(INDIRECT(CONCATENATE("'",C$1,"'!",C$4,(YEAR($A25)-1921)*12+MONTH($A25)+3+IF(ISNUMBER(FIND("PRV",C$6)),1,0)))=-901,NA(),INDIRECT(CONCATENATE("'",C$1,"'!",C$4,(YEAR($A25)-1921)*12+MONTH($A25)+3+IF(ISNUMBER(FIND("PRV",C$6)),1,0)))*IF(AND(C$3>0,TRIM(C$9)="CFS"),Conv_Flags!$C25,1)) -> 51.51708603 | D25: =IF(INDIRECT(CONCATENATE("'",D$1,"'!",D$4,(YEAR($A25)-1921)*12+MONTH($A25)+3+IF(ISNUMBER(FIND("PRV",D$6)),1,0)))=-901,NA(),INDIRECT(CONCATENATE("'",D$1,"'!",D$4,(YEAR($A25)-1921)*12+MONTH($A25)+3+IF(ISNUMBER(FIND("PRV",D$6)),1,0)))*IF(AND(D$3>0,TRIM(D$9)="CFS"),Conv_Flags!$C25,1)) -> 51.51301956 | E25: =IF(INDIRECT(CONCATENATE("'",E$1,"'!",E$4,(YEAR($A25)-1921)*12+MONTH($A25)+3+IF(ISNUMBER(FIND("PRV",E$6)),1,0)))=-901,NA(),INDIRECT(CONCATENATE("'",E$1,"'!",E$4,(YEAR($A25)-1921)*12+MONTH($A25)+3+IF(ISNUMBER(FIND("PRV",E$6)),1,0)))*IF(AND(E$3>0,TRIM(E$9)="CFS"),Conv_Flags!$C25,1)) -> 0 | F25: =IF(INDIRECT(CONCATENATE("'",F$1,"'!",F$4,(YEAR($A25)-1921)*12+MONTH($A25)+3+IF(ISNUMBER(FIND("PRV",F$6)),1,0)))=-901,NA(),INDIRECT(CONCATENATE("'",F$1,"'!",F$4,(YEAR($A25)-1921)*12+MONTH($A25)+3+IF(ISNUMBER(FIND("PRV",F$6)),1,0)))*IF(AND(F$3>0,TRIM(F$9)="CFS"),Conv_Flags!$C25,1)) -> 0 | G25: =IF(INDIRECT(CONCATENATE("'",G$1,"'!",G$4,(YEAR($A25)-1921)*12+MONTH($A25)+3+IF(ISNUMBER(FIND("PRV",G$6)),1,0)))=-901,NA(),INDIRECT(CONCATENATE("'",G$1,"'!",G$4,(YEAR($A25)-1921)*12+MONTH($A25)+3+IF(ISNUMBER(FIND("PRV",G$6)),1,0)))*IF(AND(G$3>0,TRIM(G$9)="CFS"),Conv_Flags!$C25,1)) -> 0 | I25: 1935 | J25: =B169 -> 60.82187271 | K25: =B170 -> 56.15258789 | L25: =B171 -> 51.4690361 | M25: =B172 -> 47.69000626 | N25: =B173 -> 45.93886185 | O25: =B174 -> 47.62922287 | P25: =B175 -> 51.00570679 | Q25: =B176 -> 52.66638565 | R25: =B177 -> 53.52967834 | S25: =B178 -> 54.22574997 | T25: =B179 -> 53.02107239 | U25: =B180 -> 53.69449997 | W25: 51.72482268 | X25: 51.87325128 | Y25: 52.32039007 | AA25: 54.03337574 | AB25: 48.36596807 | AC25: 51.20774841 | AD25: 53.61775017 | AE25: 54.21784592 | AG25: 1935 | AH25: ='Compile Data'!C169 -> 57.36091232 | AI25: ='Compile Data'!C170 -> 55.96907806 | AJ25: ='Compile Data'!C171 -> 51.62522125 | AK25: ='Compile Data'!C172 -> 48.12041855 | AL25: ='Compile Data'!C173 -> 46.84160614 | AM25: ='Compile Data'!C174 -> 47.79398346 | AN25: ='Compile Data'!C175 -> 50.82751083 | AO25: ='Compile Data'!C176 -> 55.57300186 | AP25: ='Compile Data'!C177 -> 55.41668701 | AQ25: ='Compile Data'!C178 -> 53.1611557 | AR25: ='Compile Data'!C179 -> 52.52931213 | AS25: ='Compile Data'!C180 -> 53.25844955 | AU25: 51.9890178 | AV25: 52.02214209 | AW25: 52.37311141 | AY25: 53.26890755 | AZ25: 48.86241531 | BA25: 52.40279579 | BB25: 53.5914011 | BC25: 53.80520248 | BE25: 1935 | BF25: ='Compile Data'!D169 -> 57.57810593 | BG25: ='Compile Data'!D170 -> 55.98804092 | BH25: ='Compile Data'!D171 -> 51.58958435 | BI25: ='Compile Data'!D172 -> 48.06721115 | BJ25: ='Compile Data'!D173 -> 46.67097855 | BK25: ='Compile Data'!D174 -> 47.80105591 | BL25: ='Compile Data'!D175 -> 50.83975601 | BM25: ='Compile Data'!D176 -> 55.43411636 | BN25: ='Compile Data'!D177 -> 54.90532684 | BO25: ='Compile Data'!D178 -> 53.19224548 | BP25: ='Compile Data'!D179 -> 52.54356003 | BQ25: ='Compile Data'!D180 -> 53.29381561 | BS25: 51.92499797 | BT25: 51.97696495 | BU25: 52.32531643 | BW25: 53.30573559 | BX25: 48.77592468 | BY25: 52.24506378 | BZ25: 53.48373699 | CA25: 53.82918421 | CC25: 1935 | CD25: ='Compile Data'!E169 -> 0 | CE25: ='Compile Data'!E170 -> 0 | CF25: ='Compile Data'!E171 -> 0 | CG25: ='Compile Data'!E172 -> 0 | CH25: ='Compile Data'!E173 -> 0 | CI25: ='Compile Data'!E174 -> 0 | CJ25: ='Compile Data'!E175 -> 0 | CK25: ='Compile Data'!E176 -> 0 | CL25: ='Compile Data'!E177 -> 0 | CM25: ='Compile Data'!E178 -> 0 | CN25: ='Compile Data'!E179 -> 0 | CO25: ='Compile Data'!E180 -> 0 | CQ25: 0 | CR25: 0 | CS25: 0 | CU25: 0 | CV25: 0 | CW25: 0 | CX25: 0 | CY25: 0 | DA25: 1935 | DB25: ='Compile Data'!F169 -> 0 | DC25: ='Compile Data'!F170 -> 0 | DD25: ='Compile Data'!F171 -> 0 | DE25: ='Compile Data'!F172 -> 0 | DF25: ='Compile Data'!F173 -> 0 | DG25: ='Compile Data'!F174 -> 0 | DH25: ='Compile Data'!F175 -> 0 | DI25: ='Compile Data'!F176 -> 0 | DJ25: ='Compile Data'!F177 -> 0 | DK25: ='Compile Data'!F178 -> 0 | DL25: ='Compile Data'!F179 -> 0 | DM25: ='Compile Data'!F180 -> 0 | DO25: 0 | DP25: 0 | DQ25: 0 | DS25: 0 | DT25: 0 | DU25: 0 | DV25: 0 | DW25: 0 | DY25: 1935 | DZ25: ='Compile Data'!G169 -> 0 | EA25: ='Compile Data'!G170 -> 0 | EB25: ='Compile Data'!G171 -> 0 | EC25: ='Compile Data'!G172 -> 0 | ED25: ='Compile Data'!G173 -> 0 | EE25: ='Compile Data'!G174 -> 0 | EF25: ='Compile Data'!G175 -> 0 | EG25: ='Compile Data'!G176 -> 0 | EH25: ='Compile Data'!G177 -> 0 | EI25: ='Compile Data'!G178 -> 0 | EJ25: ='Compile Data'!G179 -> 0 | EK25: ='Compile Data'!G180 -> 0 | EM25: 0 | EN25: 0 | EO25: 0 | EQ25: 0 | ER25: 0 | ES25: 0 | ET25: 0 | EU25: 0
A26: 1922-11-30 | B26: =IF(INDIRECT(CONCATENATE("'",B$1,"'!",B$4,(YEAR($A26)-1921)*12+MONTH($A26)+3+IF(ISNUMBER(FIND("PRV",B$6)),1,0)))=-901,NA(),INDIRECT(CONCATENATE("'",B$1,"'!",B$4,(YEAR($A26)-1921)*12+MONTH($A26)+3+IF(ISNUMBER(FIND("PRV",B$6)),1,0)))*IF(AND(B$3>0,TRIM(B$9)="CFS"),Conv_Flags!$C26,1)) -> 53.74214554 | C26: =IF(INDIRECT(CONCATENATE("'",C$1,"'!",C$4,(YEAR($A26)-1921)*12+MONTH($A26)+3+IF(ISNUMBER(FIND("PRV",C$6)),1,0)))=-901,NA(),INDIRECT(CONCATENATE("'",C$1,"'!",C$4,(YEAR($A26)-1921)*12+MONTH($A26)+3+IF(ISNUMBER(FIND("PRV",C$6)),1,0)))*IF(AND(C$3>0,TRIM(C$9)="CFS"),Conv_Flags!$C26,1)) -> 53.79789352 | D26: =IF(INDIRECT(CONCATENATE("'",D$1,"'!",D$4,(YEAR($A26)-1921)*12+MONTH($A26)+3+IF(ISNUMBER(FIND("PRV",D$6)),1,0)))=-901,NA(),INDIRECT(CONCATENATE("'",D$1,"'!",D$4,(YEAR($A26)-1921)*12+MONTH($A26)+3+IF(ISNUMBER(FIND("PRV",D$6)),1,0)))*IF(AND(D$3>0,TRIM(D$9)="CFS"),Conv_Flags!$C26,1)) -> 53.79681015 | E26: =IF(INDIRECT(CONCATENATE("'",E$1,"'!",E$4,(YEAR($A26)-1921)*12+MONTH($A26)+3+IF(ISNUMBER(FIND("PRV",E$6)),1,0)))=-901,NA(),INDIRECT(CONCATENATE("'",E$1,"'!",E$4,(YEAR($A26)-1921)*12+MONTH($A26)+3+IF(ISNUMBER(FIND("PRV",E$6)),1,0)))*IF(AND(E$3>0,TRIM(E$9)="CFS"),Conv_Flags!$C26,1)) -> 0 | F26: =IF(INDIRECT(CONCATENATE("'",F$1,"'!",F$4,(YEAR($A26)-1921)*12+MONTH($A26)+3+IF(ISNUMBER(FIND("PRV",F$6)),1,0)))=-901,NA(),INDIRECT(CONCATENATE("'",F$1,"'!",F$4,(YEAR($A26)-1921)*12+MONTH($A26)+3+IF(ISNUMBER(FIND("PRV",F$6)),1,0)))*IF(AND(F$3>0,TRIM(F$9)="CFS"),Conv_Flags!$C26,1)) -> 0 | G26: =IF(INDIRECT(CONCATENATE("'",G$1,"'!",G$4,(YEAR($A26)-1921)*12+MONTH($A26)+3+IF(ISNUMBER(FIND("PRV",G$6)),1,0)))=-901,NA(),INDIRECT(CONCATENATE("'",G$1,"'!",G$4,(YEAR($A26)-1921)*12+MONTH($A26)+3+IF(ISNUMBER(FIND("PRV",G$6)),1,0)))*IF(AND(G$3>0,TRIM(G$9)="CFS"),Conv_Flags!$C26,1)) -> 0 | I26: 1936 | J26: =B181 -> 54.88763809 | K26: =B182 -> 54.07139969 | L26: =B183 -> 52.3376503 | M26: =B184 -> 48.93918228 | N26: =B185 -> 46.47082901 | O26: =B186 -> 50.5459671 | P26: =B187 -> 53.55369186 | Q26: =B188 -> 54.50499725 | R26: =B189 -> 53.26557922 | S26: =B190 -> 52.68449402 | T26: =B191 -> 52.51645279 | U26: =B192 -> 51.51321793 | W26: 51.94535033 | X26: 52.1178112 | Y26: 52.10759163 | AA26: 52.55896759 | AB26: 49.24922053 | AC26: 52.96755886 | AD26: 52.49493599 | AE26: 52.82184728 | AG26: 1936 | AH26: ='Compile Data'!C181 -> 54.17897797 | AI26: ='Compile Data'!C182 -> 53.97817993 | AJ26: ='Compile Data'!C183 -> 52.18893051 | AK26: ='Compile Data'!C184 -> 48.84466934 | AL26: ='Compile Data'!C185 -> 46.5148468 | AM26: ='Compile Data'!C186 -> 50.59634399 | AN26: ='Compile Data'!C187 -> 53.58639526 | AO26: ='Compile Data'!C188 -> 54.98336029 | AP26: ='Compile Data'!C189 -> 53.40817642 | AQ26: ='Compile Data'!C190 -> 52.56080246 | AR26: ='Compile Data'!C191 -> 52.5095787 | AS26: ='Compile Data'!C192 -> 51.76611328 | AU26: 52.01222738 | AV26: 52.19247246 | AW26: 52.09303125 | AY26: 52.29768944 | AZ26: 49.18281555 | BA26: 53.14356899 | BB26: 52.56116772 | BC26: 52.90699005 | BE26: 1936 | BF26: ='Compile Data'!D181 -> 54.24250793 | BG26: ='Compile Data'!D182 -> 53.9512291 | BH26: ='Compile Data'!D183 -> 52.15817261 | BI26: ='Compile Data'!D184 -> 48.87807846 | BJ26: ='Compile Data'!D185 -> 46.48371506 | BK26: ='Compile Data'!D186 -> 50.58891678 | BL26: ='Compile Data'!D187 -> 53.57786179 | BM26: ='Compile Data'!D188 -> 54.76977539 | BN26: ='Compile Data'!D189 -> 53.38466644 | BO26: ='Compile Data'!D190 -> 52.57496643 | BP26: ='Compile Data'!D191 -> 52.5114975 | BQ26: ='Compile Data'!D192 -> 51.67343903 | BS26: 51.98670896 | BT26: 52.16725604 | BU26: 52.06623554 | BW26: 52.30749702 | BX26: 49.17332204 | BY26: 53.0803051 | BZ26: 52.53614235 | CA26: 52.87965647 | CC26: 1936 | CD26: ='Compile Data'!E181 -> 0 | CE26: ='Compile Data'!E182 -> 0 | CF26: ='Compile Data'!E183 -> 0 | CG26: ='Compile Data'!E184 -> 0 | CH26: ='Compile Data'!E185 -> 0 | CI26: ='Compile Data'!E186 -> 0 | CJ26: ='Compile Data'!E187 -> 0 | CK26: ='Compile Data'!E188 -> 0 | CL26: ='Compile Data'!E189 -> 0 | CM26: ='Compile Data'!E190 -> 0 | CN26: ='Compile Data'!E191 -> 0 | CO26: ='Compile Data'!E192 -> 0 | CQ26: 0 | CR26: 0 | CS26: 0 | CU26: 0 | CV26: 0 | CW26: 0 | CX26: 0 | CY26: 0 | DA26: 1936 | DB26: ='Compile Data'!F181 -> 0 | DC26: ='Compile Data'!F182 -> 0 | DD26: ='Compile Data'!F183 -> 0 | DE26: ='Compile Data'!F184 -> 0 | DF26: ='Compile Data'!F185 -> 0 | DG26: ='Compile Data'!F186 -> 0 | DH26: ='Compile Data'!F187 -> 0 | DI26: ='Compile Data'!F188 -> 0 | DJ26: ='Compile Data'!F189 -> 0 | DK26: ='Compile Data'!F190 -> 0 | DL26: ='Compile Data'!F191 -> 0 | DM26: ='Compile Data'!F192 -> 0 | DO26: 0 | DP26: 0 | DQ26: 0 | DS26: 0 | DT26: 0 | DU26: 0 | DV26: 0 | DW26: 0 | DY26: 1936 | DZ26: ='Compile Data'!G181 -> 0 | EA26: ='Compile Data'!G182 -> 0 | EB26: ='Compile Data'!G183 -> 0 | EC26: ='Compile Data'!G184 -> 0 | ED26: ='Compile Data'!G185 -> 0 | EE26: ='Compile Data'!G186 -> 0 | EF26: ='Compile Data'!G187 -> 0 | EG26: ='Compile Data'!G188 -> 0 | EH26: ='Compile Data'!G189 -> 0 | EI26: ='Compile Data'!G190 -> 0 | EJ26: ='Compile Data'!G191 -> 0 | EK26: ='Compile Data'!G192 -> 0 | EM26: 0 | EN26: 0 | EO26: 0 | EQ26: 0 | ER26: 0 | ES26: 0 | ET26: 0 | EU26: 0
A27: 1922-12-31 | B27: =IF(INDIRECT(CONCATENATE("'",B$1,"'!",B$4,(YEAR($A27)-1921)*12+MONTH($A27)+3+IF(ISNUMBER(FIND("PRV",B$6)),1,0)))=-901,NA(),INDIRECT(CONCATENATE("'",B$1,"'!",B$4,(YEAR($A27)-1921)*12+MONTH($A27)+3+IF(ISNUMBER(FIND("PRV",B$6)),1,0)))*IF(AND(B$3>0,TRIM(B$9)="CFS"),Conv_Flags!$C27,1)) -> 51.84779358 | C27: =IF(INDIRECT(CONCATENATE("'",C$1,"'!",C$4,(YEAR($A27)-1921)*12+MONTH($A27)+3+IF(ISNUMBER(FIND("PRV",C$6)),1,0)))=-901,NA(),INDIRECT(CONCATENATE("'",C$1,"'!",C$4,(YEAR($A27)-1921)*12+MONTH($A27)+3+IF(ISNUMBER(FIND("PRV",C$6)),1,0)))*IF(AND(C$3>0,TRIM(C$9)="CFS"),Conv_Flags!$C27,1)) -> 51.84362411 | D27: =IF(INDIRECT(CONCATENATE("'",D$1,"'!",D$4,(YEAR($A27)-1921)*12+MONTH($A27)+3+IF(ISNUMBER(FIND("PRV",D$6)),1,0)))=-901,NA(),INDIRECT(CONCATENATE("'",D$1,"'!",D$4,(YEAR($A27)-1921)*12+MONTH($A27)+3+IF(ISNUMBER(FIND("PRV",D$6)),1,0)))*IF(AND(D$3>0,TRIM(D$9)="CFS"),Conv_Flags!$C27,1)) -> 51.84329605 | E27: =IF(INDIRECT(CONCATENATE("'",E$1,"'!",E$4,(YEAR($A27)-1921)*12+MONTH($A27)+3+IF(ISNUMBER(FIND("PRV",E$6)),1,0)))=-901,NA(),INDIRECT(CONCATENATE("'",E$1,"'!",E$4,(YEAR($A27)-1921)*12+MONTH($A27)+3+IF(ISNUMBER(FIND("PRV",E$6)),1,0)))*IF(AND(E$3>0,TRIM(E$9)="CFS"),Conv_Flags!$C27,1)) -> 0 | F27: =IF(INDIRECT(CONCATENATE("'",F$1,"'!",F$4,(YEAR($A27)-1921)*12+MONTH($A27)+3+IF(ISNUMBER(FIND("PRV",F$6)),1,0)))=-901,NA(),INDIRECT(CONCATENATE("'",F$1,"'!",F$4,(YEAR($A27)-1921)*12+MONTH($A27)+3+IF(ISNUMBER(FIND("PRV",F$6)),1,0)))*IF(AND(F$3>0,TRIM(F$9)="CFS"),Conv_Flags!$C27,1)) -> 0 | G27: =IF(INDIRECT(CONCATENATE("'",G$1,"'!",G$4,(YEAR($A27)-1921)*12+MONTH($A27)+3+IF(ISNUMBER(FIND("PRV",G$6)),1,0)))=-901,NA(),INDIRECT(CONCATENATE("'",G$1,"'!",G$4,(YEAR($A27)-1921)*12+MONTH($A27)+3+IF(ISNUMBER(FIND("PRV",G$6)),1,0)))*IF(AND(G$3>0,TRIM(G$9)="CFS"),Conv_Flags!$C27,1)) -> 0 | I27: 1937 | J27: =B193 -> 52.58175659 | K27: =B194 -> 54.37056732 | L27: =B195 -> 52.39746857 | M27: =B196 -> 49.32969666 | N27: =B197 -> 48.14984512 | O27: =B198 -> 49.73940277 | P27: =B199 -> 53.18411255 | Q27: =B200 -> 54.0588913 | R27: =B201 -> 52.61197662 | S27: =B202 -> 52.51385498 | T27: =B203 -> 52.22266388 | U27: =B204 -> 52.79985428 | W27: 51.88387458 | X27: 51.52760315 | Y27: 51.99667422 | AA27: 52.16987228 | AB27: 49.95900345 | AC27: 52.39859581 | AD27: 52.53708744 | AE27: 53.27989451 | AG27: 1937 | AH27: ='Compile Data'!C193 -> 52.6041832 | AI27: ='Compile Data'!C194 -> 54.35067368 | AJ27: ='Compile Data'!C195 -> 52.42158508 | AK27: ='Compile Data'!C196 -> 49.34358597 | AL27: ='Compile Data'!C197 -> 48.17887115 | AM27: ='Compile Data'!C198 -> 49.76091766 | AN27: ='Compile Data'!C199 -> 53.30686951 | AO27: ='Compile Data'!C200 -> 54.09151077 | AP27: ='Compile Data'!C201 -> 52.91827774 | AQ27: ='Compile Data'!C202 -> 52.42847443 | AR27: ='Compile Data'!C203 -> 52.0094223 | AS27: ='Compile Data'!C204 -> 52.40950775 | AU27: 51.87415473 | AV27: 51.51906013 | AW27: 51.98532327 | AY27: 52.18000698 | AZ27: 49.9813474 | BA27: 52.51939392 | BB27: 52.44142056 | BC27: 53.15343602 | BE27: 1937 | BF27: ='Compile Data'!D193 -> 52.57946396 | BG27: ='Compile Data'!D194 -> 54.38606644 | BH27: ='Compile Data'!D195 -> 52.43206024 | BI27: ='Compile Data'!D196 -> 49.34992599 | BJ27: ='Compile Data'!D197 -> 48.17843246 | BK27: ='Compile Data'!D198 -> 49.75972366 | BL27: ='Compile Data'!D199 -> 53.32129288 | BM27: ='Compile Data'!D200 -> 54.12128448 | BN27: ='Compile Data'!D201 -> 52.76114655 | BO27: ='Compile Data'!D202 -> 52.47927094 | BP27: ='Compile Data'!D203 -> 52.22893906 | BQ27: ='Compile Data'!D204 -> 52.40189743 | BS27: 51.883207 | BT27: 51.52520911 | BU27: 51.99995867 | BW27: 52.18687916 | BX27: 49.98680623 | BY27: 52.49086189 | BZ27: 52.46781349 | CA27: 53.14083862 | CC27: 1937 | CD27: ='Compile Data'!E193 -> 0 | CE27: ='Compile Data'!E194 -> 0 | CF27: ='Compile Data'!E195 -> 0 | CG27: ='Compile Data'!E196 -> 0 | CH27: ='Compile Data'!E197 -> 0 | CI27: ='Compile Data'!E198 -> 0 | CJ27: ='Compile Data'!E199 -> 0 | CK27: ='Compile Data'!E200 -> 0 | CL27: ='Compile Data'!E201 -> 0 | CM27: ='Compile Data'!E202 -> 0 | CN27: ='Compile Data'!E203 -> 0 | CO27: ='Compile Data'!E204 -> 0 | CQ27: 0 | CR27: 0 | CS27: 0 | CU27: 0 | CV27: 0 | CW27: 0 | CX27: 0 | CY27: 0 | DA27: 1937 | DB27: ='Compile Data'!F193 -> 0 | DC27: ='Compile Data'!F194 -> 0 | DD27: ='Compile Data'!F195 -> 0 | DE27: ='Compile Data'!F196 -> 0 | DF27: ='Compile Data'!F197 -> 0 | DG27: ='Compile Data'!F198 -> 0 | DH27: ='Compile Data'!F199 -> 0 | DI27: ='Compile Data'!F200 -> 0 | DJ27: ='Compile Data'!F201 -> 0 | DK27: ='Compile Data'!F202 -> 0 | DL27: ='Compile Data'!F203 -> 0 | DM27: ='Compile Data'!F204 -> 0 | DO27: 0 | DP27: 0 | DQ27: 0 | DS27: 0 | DT27: 0 | DU27: 0 | DV27: 0 | DW27: 0 | DY27: 1937 | DZ27: ='Compile Data'!G193 -> 0 | EA27: ='Compile Data'!G194 -> 0 | EB27: ='Compile Data'!G195 -> 0 | EC27: ='Compile Data'!G196 -> 0 | ED27: ='Compile Data'!G197 -> 0 | EE27: ='Compile Data'!G198 -> 0 | EF27: ='Compile Data'!G199 -> 0 | EG27: ='Compile Data'!G200 -> 0 | EH27: ='Compile Data'!G201 -> 0 | EI27: ='Compile Data'!G202 -> 0 | EJ27: ='Compile Data'!G203 -> 0 | EK27: ='Compile Data'!G204 -> 0 | EM27: 0 | EN27: 0 | EO27: 0 | EQ27: 0 | ER27: 0 | ES27: 0 | ET27: 0 | EU27: 0
A28: 1923-01-31 | B28: =IF(INDIRECT(CONCATENATE("'",B$1,"'!",B$4,(YEAR($A28)-1921)*12+MONTH($A28)+3+IF(ISNUMBER(FIND("PRV",B$6)),1,0)))=-901,NA(),INDIRECT(CONCATENATE("'",B$1,"'!",B$4,(YEAR($A28)-1921)*12+MONTH($A28)+3+IF(ISNUMBER(FIND("PRV",B$6)),1,0)))*IF(AND(B$3>0,TRIM(B$9)="CFS"),Conv_Flags!$C28,1)) -> 48.32777786 | C28: =IF(INDIRECT(CONCATENATE("'",C$1,"'!",C$4,(YEAR($A28)-1921)*12+MONTH($A28)+3+IF(ISNUMBER(FIND("PRV",C$6)),1,0)))=-901,NA(),INDIRECT(CONCATENATE("'",C$1,"'!",C$4,(YEAR($A28)-1921)*12+MONTH($A28)+3+IF(ISNUMBER(FIND("PRV",C$6)),1,0)))*IF(AND(C$3>0,TRIM(C$9)="CFS"),Conv_Flags!$C28,1)) -> 48.33247375 | D28: =IF(INDIRECT(CONCATENATE("'",D$1,"'!",D$4,(YEAR($A28)-1921)*12+MONTH($A28)+3+IF(ISNUMBER(FIND("PRV",D$6)),1,0)))=-901,NA(),INDIRECT(CONCATENATE("'",D$1,"'!",D$4,(YEAR($A28)-1921)*12+MONTH($A28)+3+IF(ISNUMBER(FIND("PRV",D$6)),1,0)))*IF(AND(D$3>0,TRIM(D$9)="CFS"),Conv_Flags!$C28,1)) -> 48.33198929 | E28: =IF(INDIRECT(CONCATENATE("'",E$1,"'!",E$4,(YEAR($A28)-1921)*12+MONTH($A28)+3+IF(ISNUMBER(FIND("PRV",E$6)),1,0)))=-901,NA(),INDIRECT(CONCATENATE("'",E$1,"'!",E$4,(YEAR($A28)-1921)*12+MONTH($A28)+3+IF(ISNUMBER(FIND("PRV",E$6)),1,0)))*IF(AND(E$3>0,TRIM(E$9)="CFS"),Conv_Flags!$C28,1)) -> 0 | F28: =IF(INDIRECT(CONCATENATE("'",F$1,"'!",F$4,(YEAR($A28)-1921)*12+MONTH($A28)+3+IF(ISNUMBER(FIND("PRV",F$6)),1,0)))=-901,NA(),INDIRECT(CONCATENATE("'",F$1,"'!",F$4,(YEAR($A28)-1921)*12+MONTH($A28)+3+IF(ISNUMBER(FIND("PRV",F$6)),1,0)))*IF(AND(F$3>0,TRIM(F$9)="CFS"),Conv_Flags!$C28,1)) -> 0 | G28: =IF(INDIRECT(CONCATENATE("'",G$1,"'!",G$4,(YEAR($A28)-1921)*12+MONTH($A28)+3+IF(ISNUMBER(FIND("PRV",G$6)),1,0)))=-901,NA(),INDIRECT(CONCATENATE("'",G$1,"'!",G$4,(YEAR($A28)-1921)*12+MONTH($A28)+3+IF(ISNUMBER(FIND("PRV",G$6)),1,0)))*IF(AND(G$3>0,TRIM(G$9)="CFS"),Conv_Flags!$C28,1)) -> 0 | I28: 1938 | J28: =B205 -> 52.97503662 | K28: =B206 -> 54.06479263 | L28: =B207 -> 50.95636749 | M28: =B208 -> 47.39727783 | N28: =B209 -> 45.80700684 | O28: =B210 -> 46.16321945 | P28: =B211 -> 50.44304657 | Q28: =B212 -> 54.95500946 | R28: =B213 -> 55.58007431 | S28: =B214 -> 53.51578522 | T28: =B215 -> 51.87503815 | U28: =B216 -> 51.2853241 | W28: 51.35192935 | X28: 51.72729937 | Y28: 51.25149822 | AA28: 51.34836864 | AB28: 48.05355072 | AC28: 51.78533745 | AD28: 53.06405544 | AE28: 52.70815277 | AG28: 1938 | AH28: ='Compile Data'!C205 -> 52.91038513 | AI28: ='Compile Data'!C206 -> 54.14041519 | AJ28: ='Compile Data'!C207 -> 50.99161911 | AK28: ='Compile Data'!C208 -> 47.44441605 | AL28: ='Compile Data'!C209 -> 45.81690598 | AM28: ='Compile Data'!C210 -> 46.17076492 | AN28: ='Compile Data'!C211 -> 50.43021011 | AO28: ='Compile Data'!C212 -> 54.95761871 | AP28: ='Compile Data'!C213 -> 55.6882019 | AQ28: ='Compile Data'!C214 -> 53.52655411 | AR28: ='Compile Data'!C215 -> 51.88203049 | AS28: ='Compile Data'!C216 -> 51.00147247 | AU28: 51.34765466 | AV28: 51.70936108 | AW28: 51.24671618 | AY28: 51.37170887 | AZ28: 48.08431371 | BA28: 51.81169891 | BB28: 53.02456474 | BC28: 52.61253484 | BE28: 1938 | BF28: ='Compile Data'!D205 -> 52.89887238 | BG28: ='Compile Data'!D206 -> 54.12174606 | BH28: ='Compile Data'!D207 -> 50.97595215 | BI28: ='Compile Data'!D208 -> 47.42688751 | BJ28: ='Compile Data'!D209 -> 45.80549622 | BK28: ='Compile Data'!D210 -> 46.16500092 | BL28: ='Compile Data'!D211 -> 50.44271851 | BM28: ='Compile Data'!D212 -> 54.96114731 | BN28: ='Compile Data'!D213 -> 55.68881607 | BO28: ='Compile Data'!D214 -> 53.52424622 | BP28: ='Compile Data'!D215 -> 51.88044739 | BQ28: ='Compile Data'!D216 -> 50.99897385 | BS28: 51.34579468 | BT28: 51.71005694 | BU28: 51.24085871 | BW28: 51.35586452 | BX28: 48.06944529 | BY28: 51.8144207 | BZ28: 53.02312088 | CA28: 52.60908381 | CC28: 1938 | CD28: ='Compile Data'!E205 -> 0 | CE28: ='Compile Data'!E206 -> 0 | CF28: ='Compile Data'!E207 -> 0 | CG28: ='Compile Data'!E208 -> 0 | CH28: ='Compile Data'!E209 -> 0 | CI28: ='Compile Data'!E210 -> 0 | CJ28: ='Compile Data'!E211 -> 0 | CK28: ='Compile Data'!E212 -> 0 | CL28: ='Compile Data'!E213 -> 0 | CM28: ='Compile Data'!E214 -> 0 | CN28: ='Compile Data'!E215 -> 0 | CO28: ='Compile Data'!E216 -> 0 | CQ28: 0 | CR28: 0 | CS28: 0 | CU28: 0 | CV28: 0 | CW28: 0 | CX28: 0 | CY28: 0 | DA28: 1938 | DB28: ='Compile Data'!F205 -> 0 | DC28: ='Compile Data'!F206 -> 0 | DD28: ='Compile Data'!F207 -> 0 | DE28: ='Compile Data'!F208 -> 0 | DF28: ='Compile Data'!F209 -> 0 | DG28: ='Compile Data'!F210 -> 0 | DH28: ='Compile Data'!F211 -> 0 | DI28: ='Compile Data'!F212 -> 0 | DJ28: ='Compile Data'!F213 -> 0 | DK28: ='Compile Data'!F214 -> 0 | DL28: ='Compile Data'!F215 -> 0 | DM28: ='Compile Data'!F216 -> 0 | DO28: 0 | DP28: 0 | DQ28: 0 | DS28: 0 | DT28: 0 | DU28: 0 | DV28: 0 | DW28: 0 | DY28: 1938 | DZ28: ='Compile Data'!G205 -> 0 | EA28: ='Compile Data'!G206 -> 0 | EB28: ='Compile Data'!G207 -> 0 | EC28: ='Compile Data'!G208 -> 0 | ED28: ='Compile Data'!G209 -> 0 | EE28: ='Compile Data'!G210 -> 0 | EF28: ='Compile Data'!G211 -> 0 | EG28: ='Compile Data'!G212 -> 0 | EH28: ='Compile Data'!G213 -> 0 | EI28: ='Compile Data'!G214 -> 0 | EJ28: ='Compile Data'!G215 -> 0 | EK28: ='Compile Data'!G216 -> 0 | EM28: 0 | EN28: 0 | EO28: 0 | EQ28: 0 | ER28: 0 | ES28: 0 | ET28: 0 | EU28: 0
A29: 1923-02-28 | B29: =IF(INDIRECT(CONCATENATE("'",B$1,"'!",B$4,(YEAR($A29)-1921)*12+MONTH($A29)+3+IF(ISNUMBER(FIND("PRV",B$6)),1,0)))=-901,NA(),INDIRECT(CONCATENATE("'",B$1,"'!",B$4,(YEAR($A29)-1921)*12+MONTH($A29)+3+IF(ISNUMBER(FIND("PRV",B$6)),1,0)))*IF(AND(B$3>0,TRIM(B$9)="CFS"),Conv_Flags!$C29,1)) -> 48.70282745 | C29: =IF(INDIRECT(CONCATENATE("'",C$1,"'!",C$4,(YEAR($A29)-1921)*12+MONTH($A29)+3+IF(ISNUMBER(FIND("PRV",C$6)),1,0)))=-901,NA(),INDIRECT(CONCATENATE("'",C$1,"'!",C$4,(YEAR($A29)-1921)*12+MONTH($A29)+3+IF(ISNUMBER(FIND("PRV",C$6)),1,0)))*IF(AND(C$3>0,TRIM(C$9)="CFS"),Conv_Flags!$C29,1)) -> 48.70066071 | D29: =IF(INDIRECT(CONCATENATE("'",D$1,"'!",D$4,(YEAR($A29)-1921)*12+MONTH($A29)+3+IF(ISNUMBER(FIND("PRV",D$6)),1,0)))=-901,NA(),INDIRECT(CONCATENATE("'",D$1,"'!",D$4,(YEAR($A29)-1921)*12+MONTH($A29)+3+IF(ISNUMBER(FIND("PRV",D$6)),1,0)))*IF(AND(D$3>0,TRIM(D$9)="CFS"),Conv_Flags!$C29,1)) -> 48.70018768 | E29: =IF(INDIRECT(CONCATENATE("'",E$1,"'!",E$4,(YEAR($A29)-1921)*12+MONTH($A29)+3+IF(ISNUMBER(FIND("PRV",E$6)),1,0)))=-901,NA(),INDIRECT(CONCATENATE("'",E$1,"'!",E$4,(YEAR($A29)-1921)*12+MONTH($A29)+3+IF(ISNUMBER(FIND("PRV",E$6)),1,0)))*IF(AND(E$3>0,TRIM(E$9)="CFS"),Conv_Flags!$C29,1)) -> 0 | F29: =IF(INDIRECT(CONCATENATE("'",F$1,"'!",F$4,(YEAR($A29)-1921)*12+MONTH($A29)+3+IF(ISNUMBER(FIND("PRV",F$6)),1,0)))=-901,NA(),INDIRECT(CONCATENATE("'",F$1,"'!",F$4,(YEAR($A29)-1921)*12+MONTH($A29)+3+IF(ISNUMBER(FIND("PRV",F$6)),1,0)))*IF(AND(F$3>0,TRIM(F$9)="CFS"),Conv_Flags!$C29,1)) -> 0 | G29: =IF(INDIRECT(CONCATENATE("'",G$1,"'!",G$4,(YEAR($A29)-1921)*12+MONTH($A29)+3+IF(ISNUMBER(FIND("PRV",G$6)),1,0)))=-901,NA(),INDIRECT(CONCATENATE("'",G$1,"'!",G$4,(YEAR($A29)-1921)*12+MONTH($A29)+3+IF(ISNUMBER(FIND("PRV",G$6)),1,0)))*IF(AND(G$3>0,TRIM(G$9)="CFS"),Conv_Flags!$C29,1)) -> 0 | I29: 1939 | J29: =B217 -> 52.74916077 | K29: =B218 -> 54.08997345 | L29: =B219 -> 52.36223602 | M29: =B220 -> 48.92609406 | N29: =B221 -> 48.78263092 | O29: =B222 -> 51.09375 | P29: =B223 -> 54.04735565 | Q29: =B224 -> 53.4522934 | R29: =B225 -> 52.60340881 | S29: =B226 -> 53.0705452 | T29: =B227 -> 52.51769257 | U29: =B228 -> 53.82596588 | W29: 52.52228101 | X29: 52.34442647 | Y29: 52.29342556 | AA29: 52.03186607 | AB29: 50.02365367 | AC29: 52.79920197 | AD29: 53.00440311 | AE29: 53.97952779 | AG29: 1939 | AH29: ='Compile Data'!C217 -> 52.75904083 | AI29: ='Compile Data'!C218 -> 54.07709122 | AJ29: ='Compile Data'!C219 -> 52.41754913 | AK29: ='Compile Data'!C220 -> 48.697052 | AL29: ='Compile Data'!C221 -> 48.90474701 | AM29: ='Compile Data'!C222 -> 51.10787201 | AN29: ='Compile Data'!C223 -> 53.94590759 | AO29: ='Compile Data'!C224 -> 54.26140976 | AP29: ='Compile Data'!C225 -> 52.94813919 | AQ29: ='Compile Data'!C226 -> 53.07696152 | AR29: ='Compile Data'!C227 -> 52.34892273 | AS29: ='Compile Data'!C228 -> 53.62793732 | AU29: 52.54048284 | AV29: 52.3685929 | AW29: 52.34771919 | AY29: 51.9876833 | AZ29: 50.00644938 | BA29: 53.06583214 | BB29: 53.00049019 | BC29: 53.8609492 | BE29: 1939 | BF29: ='Compile Data'!D217 -> 52.76061249 | BG29: ='Compile Data'!D218 -> 54.0676651 | BH29: ='Compile Data'!D219 -> 52.42752457 | BI29: ='Compile Data'!D220 -> 48.69782639 | BJ29: ='Compile Data'!D221 -> 48.9057045 | BK29: ='Compile Data'!D222 -> 51.10214615 | BL29: ='Compile Data'!D223 -> 53.95728683 | BM29: ='Compile Data'!D224 -> 54.26095963 | BN29: ='Compile Data'!D225 -> 52.7264595 | BO29: ='Compile Data'!D226 -> 53.03012466 | BP29: ='Compile Data'!D227 -> 52.37170792 | BQ29: ='Compile Data'!D228 -> 53.69997025 | BS29: 52.53825792 | BT29: 52.36772251 | BU29: 52.333999 | BW29: 51.98840714 | BX29: 50.01035182 | BY29: 53.01171303 | BZ29: 52.95706558 | CA29: 53.90066528 | CC29: 1939 | CD29: ='Compile Data'!E217 -> 0 | CE29: ='Compile Data'!E218 -> 0 | CF29: ='Compile Data'!E219 -> 0 | CG29: ='Compile Data'!E220 -> 0 | CH29: ='Compile Data'!E221 -> 0 | CI29: ='Compile Data'!E222 -> 0 | CJ29: ='Compile Data'!E223 -> 0 | CK29: ='Compile Data'!E224 -> 0 | CL29: ='Compile Data'!E225 -> 0 | CM29: ='Compile Data'!E226 -> 0 | CN29: ='Compile Data'!E227 -> 0 | CO29: ='Compile Data'!E228 -> 0 | CQ29: 0 | CR29: 0 | CS29: 0 | CU29: 0 | CV29: 0 | CW29: 0 | CX29: 0 | CY29: 0 | DA29: 1939 | DB29: ='Compile Data'!F217 -> 0 | DC29: ='Compile Data'!F218 -> 0 | DD29: ='Compile Data'!F219 -> 0 | DE29: ='Compile Data'!F220 -> 0 | DF29: ='Compile Data'!F221 -> 0 | DG29: ='Compile Data'!F222 -> 0 | DH29: ='Compile Data'!F223 -> 0 | DI29: ='Compile Data'!F224 -> 0 | DJ29: ='Compile Data'!F225 -> 0 | DK29: ='Compile Data'!F226 -> 0 | DL29: ='Compile Data'!F227 -> 0 | DM29: ='Compile Data'!F228 -> 0 | DO29: 0 | DP29: 0 | DQ29: 0 | DS29: 0 | DT29: 0 | DU29: 0 | DV29: 0 | DW29: 0 | DY29: 1939 | DZ29: ='Compile Data'!G217 -> 0 | EA29: ='Compile Data'!G218 -> 0 | EB29: ='Compile Data'!G219 -> 0 | EC29: ='Compile Data'!G220 -> 0 | ED29: ='Compile Data'!G221 -> 0 | EE29: ='Compile Data'!G222 -> 0 | EF29: ='Compile Data'!G223 -> 0 | EG29: ='Compile Data'!G224 -> 0 | EH29: ='Compile Data'!G225 -> 0 | EI29: ='Compile Data'!G226 -> 0 | EJ29: ='Compile Data'!G227 -> 0 | EK29: ='Compile Data'!G228 -> 0 | EM29: 0 | EN29: 0 | EO29: 0 | EQ29: 0 | ER29: 0 | ES29: 0 | ET29: 0 | EU29: 0
A30: 1923-03-31 | B30: =IF(INDIRECT(CONCATENATE("'",B$1,"'!",B$4,(YEAR($A30)-1921)*12+MONTH($A30)+3+IF(ISNUMBER(FIND("PRV",B$6)),1,0)))=-901,NA(),INDIRECT(CONCATENATE("'",B$1,"'!",B$4,(YEAR($A30)-1921)*12+MONTH($A30)+3+IF(ISNUMBER(FIND("PRV",B$6)),1,0)))*IF(AND(B$3>0,TRIM(B$9)="CFS"),Conv_Flags!$C30,1)) -> 51.75386429 | C30: =IF(INDIRECT(CONCATENATE("'",C$1,"'!",C$4,(YEAR($A30)-1921)*12+MONTH($A30)+3+IF(ISNUMBER(FIND("PRV",C$6)),1,0)))=-901,NA(),INDIRECT(CONCATENATE("'",C$1,"'!",C$4,(YEAR($A30)-1921)*12+MONTH($A30)+3+IF(ISNUMBER(FIND("PRV",C$6)),1,0)))*IF(AND(C$3>0,TRIM(C$9)="CFS"),Conv_Flags!$C30,1)) -> 51.82702255 | D30: =IF(INDIRECT(CONCATENATE("'",D$1,"'!",D$4,(YEAR($A30)-1921)*12+MONTH($A30)+3+IF(ISNUMBER(FIND("PRV",D$6)),1,0)))=-901,NA(),INDIRECT(CONCATENATE("'",D$1,"'!",D$4,(YEAR($A30)-1921)*12+MONTH($A30)+3+IF(ISNUMBER(FIND("PRV",D$6)),1,0)))*IF(AND(D$3>0,TRIM(D$9)="CFS"),Conv_Flags!$C30,1)) -> 51.80233765 | E30: =IF(INDIRECT(CONCATENATE("'",E$1,"'!",E$4,(YEAR($A30)-1921)*12+MONTH($A30)+3+IF(ISNUMBER(FIND("PRV",E$6)),1,0)))=-901,NA(),INDIRECT(CONCATENATE("'",E$1,"'!",E$4,(YEAR($A30)-1921)*12+MONTH($A30)+3+IF(ISNUMBER(FIND("PRV",E$6)),1,0)))*IF(AND(E$3>0,TRIM(E$9)="CFS"),Conv_Flags!$C30,1)) -> 0 | F30: =IF(INDIRECT(CONCATENATE("'",F$1,"'!",F$4,(YEAR($A30)-1921)*12+MONTH($A30)+3+IF(ISNUMBER(FIND("PRV",F$6)),1,0)))=-901,NA(),INDIRECT(CONCATENATE("'",F$1,"'!",F$4,(YEAR($A30)-1921)*12+MONTH($A30)+3+IF(ISNUMBER(FIND("PRV",F$6)),1,0)))*IF(AND(F$3>0,TRIM(F$9)="CFS"),Conv_Flags!$C30,1)) -> 0 | G30: =IF(INDIRECT(CONCATENATE("'",G$1,"'!",G$4,(YEAR($A30)-1921)*12+MONTH($A30)+3+IF(ISNUMBER(FIND("PRV",G$6)),1,0)))=-901,NA(),INDIRECT(CONCATENATE("'",G$1,"'!",G$4,(YEAR($A30)-1921)*12+MONTH($A30)+3+IF(ISNUMBER(FIND("PRV",G$6)),1,0)))*IF(AND(G$3>0,TRIM(G$9)="CFS"),Conv_Flags!$C30,1)) -> 0 | I30: 1940 | J30: =B229 -> 53.89294052 | K30: =B230 -> 54.21967697 | L30: =B231 -> 53.83501816 | M30: =B232 -> 49.17914963 | N30: =B233 -> 46.39532089 | O30: =B234 -> 47.18715668 | P30: =B235 -> 54.24111176 | Q30: =B236 -> 54.75361252 | R30: =B237 -> 52.94411087 | S30: =B238 -> 53.21979904 | T30: =B239 -> 51.32272339 | U30: =B240 -> 52.14256668 | W30: 51.86018022 | X30: 51.65940952 | Y30: 51.94443226 | AA30: 52.78169632 | AB30: 49.80316289 | AC30: 52.28149796 | AD30: 52.4073 | AE30: 53.80655924 | AG30: 1940 | AH30: ='Compile Data'!C229 -> 53.75248337 | AI30: ='Compile Data'!C230 -> 54.20242691 | AJ30: ='Compile Data'!C231 -> 53.61193466 | AK30: ='Compile Data'!C232 -> 49.05917358 | AL30: ='Compile Data'!C233 -> 46.47994614 | AM30: ='Compile Data'!C234 -> 47.24750137 | AN30: ='Compile Data'!C235 -> 54.25771332 | AO30: ='Compile Data'!C236 -> 55.07914734 | AP30: ='Compile Data'!C237 -> 53.43374634 | AQ30: ='Compile Data'!C238 -> 53.19517136 | AR30: ='Compile Data'!C239 -> 51.44104767 | AS30: ='Compile Data'!C240 -> 51.61782837 | AU30: 51.82547442 | AV30: 51.63780721 | AW30: 51.9481767 | AY30: 52.65650463 | AZ30: 49.71701813 | BA30: 52.50452709 | BB30: 52.42194843 | BC30: 53.35649999 | BE30: 1940 | BF30: ='Compile Data'!D229 -> 53.8326416 | BG30: ='Compile Data'!D230 -> 54.169384 | BH30: ='Compile Data'!D231 -> 53.70488358 | BI30: ='Compile Data'!D232 -> 49.09402084 | BJ30: ='Compile Data'!D233 -> 46.46308517 | BK30: ='Compile Data'!D234 -> 47.23059082 | BL30: ='Compile Data'!D235 -> 54.258255 | BM30: ='Compile Data'!D236 -> 55.06123734 | BN30: ='Compile Data'!D237 -> 53.23022079 | BO30: ='Compile Data'!D238 -> 53.20594025 | BP30: ='Compile Data'!D239 -> 51.31567001 | BQ30: ='Compile Data'!D240 -> 51.8566246 | BS30: 51.80209573 | BT30: 51.62036896 | BU30: 51.9518795 | BW30: 52.70023251 | BX30: 49.75399653 | BY30: 52.44507599 | BZ30: 52.40211391 | CA30: 53.46044922 | CC30: 1940 | CD30: ='Compile Data'!E229 -> 0 | CE30: ='Compile Data'!E230 -> 0 | CF30: ='Compile Data'!E231 -> 0 | CG30: ='Compile Data'!E232 -> 0 | CH30: ='Compile Data'!E233 -> 0 | CI30: ='Compile Data'!E234 -> 0 | CJ30: ='Compile Data'!E235 -> 0 | CK30: ='Compile Data'!E236 -> 0 | CL30: ='Compile Data'!E237 -> 0 | CM30: ='Compile Data'!E238 -> 0 | CN30: ='Compile Data'!E239 -> 0 | CO30: ='Compile Data'!E240 -> 0 | CQ30: 0 | CR30: 0 | CS30: 0 | CU30: 0 | CV30: 0 | CW30: 0 | CX30: 0 | CY30: 0 | DA30: 1940 | DB30: ='Compile Data'!F229 -> 0 | DC30: ='Compile Data'!F230 -> 0 | DD30: ='Compile Data'!F231 -> 0 | DE30: ='Compile Data'!F232 -> 0 | DF30: ='Compile Data'!F233 -> 0 | DG30: ='Compile Data'!F234 -> 0 | DH30: ='Compile Data'!F235 -> 0 | DI30: ='Compile Data'!F236 -> 0 | DJ30: ='Compile Data'!F237 -> 0 | DK30: ='Compile Data'!F238 -> 0 | DL30: ='Compile Data'!F239 -> 0 | DM30: ='Compile Data'!F240 -> 0 | DO30: 0 | DP30: 0 | DQ30: 0 | DS30: 0 | DT30: 0 | DU30: 0 | DV30: 0 | DW30: 0 | DY30: 1940 | DZ30: ='Compile Data'!G229 -> 0 | EA30: ='Compile Data'!G230 -> 0 | EB30: ='Compile Data'!G231 -> 0 | EC30: ='Compile Data'!G232 -> 0 | ED30: ='Compile Data'!G233 -> 0 | EE30: ='Compile Data'!G234 -> 0 | EF30: ='Compile Data'!G235 -> 0 | EG30: ='Compile Data'!G236 -> 0 | EH30: ='Compile Data'!G237 -> 0 | EI30: ='Compile Data'!G238 -> 0 | EJ30: ='Compile Data'!G239 -> 0 | EK30: ='Compile Data'!G240 -> 0 | EM30: 0 | EN30: 0 | EO30: 0 | EQ30: 0 | ER30: 0 | ES30: 0 | ET30: 0 | EU30: 0
A31: 1923-04-30 | B31: =IF(INDIRECT(CONCATENATE("'",B$1,"'!",B$4,(YEAR($A31)-1921)*12+MONTH($A31)+3+IF(ISNUMBER(FIND("PRV",B$6)),1,0)))=-901,NA(),INDIRECT(CONCATENATE("'",B$1,"'!",B$4,(YEAR($A31)-1921)*12+MONTH($A31)+3+IF(ISNUMBER(FIND("PRV",B$6)),1,0)))*IF(AND(B$3>0,TRIM(B$9)="CFS"),Conv_Flags!$C31,1)) -> 54.13629532 | C31: =IF(INDIRECT(CONCATENATE("'",C$1,"'!",C$4,(YEAR($A31)-1921)*12+MONTH($A31)+3+IF(ISNUMBER(FIND("PRV",C$6)),1,0)))=-901,NA(),INDIRECT(CONCATENATE("'",C$1,"'!",C$4,(YEAR($A31)-1921)*12+MONTH($A31)+3+IF(ISNUMBER(FIND("PRV",C$6)),1,0)))*IF(AND(C$3>0,TRIM(C$9)="CFS"),Conv_Flags!$C31,1)) -> 54.12968826 | D31: =IF(INDIRECT(CONCATENATE("'",D$1,"'!",D$4,(YEAR($A31)-1921)*12+MONTH($A31)+3+IF(ISNUMBER(FIND("PRV",D$6)),1,0)))=-901,NA(),INDIRECT(CONCATENATE("'",D$1,"'!",D$4,(YEAR($A31)-1921)*12+MONTH($A31)+3+IF(ISNUMBER(FIND("PRV",D$6)),1,0)))*IF(AND(D$3>0,TRIM(D$9)="CFS"),Conv_Flags!$C31,1)) -> 54.13401413 | E31: =IF(INDIRECT(CONCATENATE("'",E$1,"'!",E$4,(YEAR($A31)-1921)*12+MONTH($A31)+3+IF(ISNUMBER(FIND("PRV",E$6)),1,0)))=-901,NA(),INDIRECT(CONCATENATE("'",E$1,"'!",E$4,(YEAR($A31)-1921)*12+MONTH($A31)+3+IF(ISNUMBER(FIND("PRV",E$6)),1,0)))*IF(AND(E$3>0,TRIM(E$9)="CFS"),Conv_Flags!$C31,1)) -> 0 | F31: =IF(INDIRECT(CONCATENATE("'",F$1,"'!",F$4,(YEAR($A31)-1921)*12+MONTH($A31)+3+IF(ISNUMBER(FIND("PRV",F$6)),1,0)))=-901,NA(),INDIRECT(CONCATENATE("'",F$1,"'!",F$4,(YEAR($A31)-1921)*12+MONTH($A31)+3+IF(ISNUMBER(FIND("PRV",F$6)),1,0)))*IF(AND(F$3>0,TRIM(F$9)="CFS"),Conv_Flags!$C31,1)) -> 0 | G31: =IF(INDIRECT(CONCATENATE("'",G$1,"'!",G$4,(YEAR($A31)-1921)*12+MONTH($A31)+3+IF(ISNUMBER(FIND("PRV",G$6)),1,0)))=-901,NA(),INDIRECT(CONCATENATE("'",G$1,"'!",G$4,(YEAR($A31)-1921)*12+MONTH($A31)+3+IF(ISNUMBER(FIND("PRV",G$6)),1,0)))*IF(AND(G$3>0,TRIM(G$9)="CFS"),Conv_Flags!$C31,1)) -> 0 | I31: 1941 | J31: =B241 -> 54.60140228 | K31: =B242 -> 54.67570877 | L31: =B243 -> 51.65950012 | M31: =B244 -> 47.45244217 | N31: =B245 -> 45.71278 | O31: =B246 -> 47.79960251 | P31: =B247 -> 50.80233765 | Q31: =B248 -> 52.81842804 | R31: =B249 -> 52.78750992 | S31: =B250 -> 52.12514496 | T31: =B251 -> 51.73078537 | U31: =B252 -> 51.03599167 | W31: 50.8028237 | X31: 50.76995055 | Y31: 51.10013612 | AA31: 52.09726334 | AB31: 48.27490743 | AC31: 51.05196953 | AD31: 51.91985798 | AE31: 52.27877172 | AG31: 1941 | AH31: ='Compile Data'!C241 -> 54.03523636 | AI31: ='Compile Data'!C242 -> 54.41643524 | AJ31: ='Compile Data'!C243 -> 51.64274597 | AK31: ='Compile Data'!C244 -> 47.53503799 | AL31: ='Compile Data'!C245 -> 45.7520752 | AM31: ='Compile Data'!C246 -> 47.82917404 | AN31: ='Compile Data'!C247 -> 50.84418869 | AO31: ='Compile Data'!C248 -> 52.90283203 | AP31: ='Compile Data'!C249 -> 52.87635803 | AQ31: ='Compile Data'!C250 -> 52.15314484 | AR31: ='Compile Data'!C251 -> 51.7674408 | AS31: ='Compile Data'!C252 -> 50.97195435 | AU31: 50.83164215 | AV31: 50.79009851 | AW31: 51.06055196 | AY31: 51.90736389 | AZ31: 48.30995305 | BA31: 51.1131382 | BB31: 51.9422245 | BC31: 52.24746068 | BE31: 1941 | BF31: ='Compile Data'!D241 -> 54.15616608 | BG31: ='Compile Data'!D242 -> 54.36855698 | BH31: ='Compile Data'!D243 -> 51.38478088 | BI31: ='Compile Data'!D244 -> 47.59081268 | BJ31: ='Compile Data'!D245 -> 45.78557205 | BK31: ='Compile Data'!D246 -> 47.81956863 | BL31: ='Compile Data'!D247 -> 50.82063293 | BM31: ='Compile Data'!D248 -> 52.8886528 | BN31: ='Compile Data'!D249 -> 52.85754395 | BO31: ='Compile Data'!D250 -> 52.14641953 | BP31: ='Compile Data'!D251 -> 51.73981094 | BQ31: ='Compile Data'!D252 -> 50.96857452 | BS31: 50.83434073 | BT31: 50.78886159 | BU31: 51.04392433 | BW31: 51.87507915 | BX31: 48.25372187 | BY31: 51.09659958 | BZ31: 51.92808723 | CA31: 52.25418727 | CC31: 1941 | CD31: ='Compile Data'!E241 -> 0 | CE31: ='Compile Data'!E242 -> 0 | CF31: ='Compile Data'!E243 -> 0 | CG31: ='Compile Data'!E244 -> 0 | CH31: ='Compile Data'!E245 -> 0 | CI31: ='Compile Data'!E246 -> 0 | CJ31: ='Compile Data'!E247 -> 0 | CK31: ='Compile Data'!E248 -> 0 | CL31: ='Compile Data'!E249 -> 0 | CM31: ='Compile Data'!E250 -> 0 | CN31: ='Compile Data'!E251 -> 0 | CO31: ='Compile Data'!E252 -> 0 | CQ31: 0 | CR31: 0 | CS31: 0 | CU31: 0 | CV31: 0 | CW31: 0 | CX31: 0 | CY31: 0 | DA31: 1941 | DB31: ='Compile Data'!F241 -> 0 | DC31: ='Compile Data'!F242 -> 0 | DD31: ='Compile Data'!F243 -> 0 | DE31: ='Compile Data'!F244 -> 0 | DF31: ='Compile Data'!F245 -> 0 | DG31: ='Compile Data'!F246 -> 0 | DH31: ='Compile Data'!F247 -> 0 | DI31: ='Compile Data'!F248 -> 0 | DJ31: ='Compile Data'!F249 -> 0 | DK31: ='Compile Data'!F250 -> 0 | DL31: ='Compile Data'!F251 -> 0 | DM31: ='Compile Data'!F252 -> 0 | DO31: 0 | DP31: 0 | DQ31: 0 | DS31: 0 | DT31: 0 | DU31: 0 | DV31: 0 | DW31: 0 | DY31: 1941 | DZ31: ='Compile Data'!G241 -> 0 | EA31: ='Compile Data'!G242 -> 0 | EB31: ='Compile Data'!G243 -> 0 | EC31: ='Compile Data'!G244 -> 0 | ED31: ='Compile Data'!G245 -> 0 | EE31: ='Compile Data'!G246 -> 0 | EF31: ='Compile Data'!G247 -> 0 | EG31: ='Compile Data'!G248 -> 0 | EH31: ='Compile Data'!G249 -> 0 | EI31: ='Compile Data'!G250 -> 0 | EJ31: ='Compile Data'!G251 -> 0 | EK31: ='Compile Data'!G252 -> 0 | EM31: 0 | EN31: 0 | EO31: 0 | EQ31: 0 | ER31: 0 | ES31: 0 | ET31: 0 | EU31: 0
A32: 1923-05-31 | B32: =IF(INDIRECT(CONCATENATE("'",B$1,"'!",B$4,(YEAR($A32)-1921)*12+MONTH($A32)+3+IF(ISNUMBER(FIND("PRV",B$6)),1,0)))=-901,NA(),INDIRECT(CONCATENATE("'",B$1,"'!",B$4,(YEAR($A32)-1921)*12+MONTH($A32)+3+IF(ISNUMBER(FIND("PRV",B$6)),1,0)))*IF(AND(B$3>0,TRIM(B$9)="CFS"),Conv_Flags!$C32,1)) -> 52.84474182 | C32: =IF(INDIRECT(CONCATENATE("'",C$1,"'!",C$4,(YEAR($A32)-1921)*12+MONTH($A32)+3+IF(ISNUMBER(FIND("PRV",C$6)),1,0)))=-901,NA(),INDIRECT(CONCATENATE("'",C$1,"'!",C$4,(YEAR($A32)-1921)*12+MONTH($A32)+3+IF(ISNUMBER(FIND("PRV",C$6)),1,0)))*IF(AND(C$3>0,TRIM(C$9)="CFS"),Conv_Flags!$C32,1)) -> 52.86576843 | D32: =IF(INDIRECT(CONCATENATE("'",D$1,"'!",D$4,(YEAR($A32)-1921)*12+MONTH($A32)+3+IF(ISNUMBER(FIND("PRV",D$6)),1,0)))=-901,NA(),INDIRECT(CONCATENATE("'",D$1,"'!",D$4,(YEAR($A32)-1921)*12+MONTH($A32)+3+IF(ISNUMBER(FIND("PRV",D$6)),1,0)))*IF(AND(D$3>0,TRIM(D$9)="CFS"),Conv_Flags!$C32,1)) -> 52.86524582 | E32: =IF(INDIRECT(CONCATENATE("'",E$1,"'!",E$4,(YEAR($A32)-1921)*12+MONTH($A32)+3+IF(ISNUMBER(FIND("PRV",E$6)),1,0)))=-901,NA(),INDIRECT(CONCATENATE("'",E$1,"'!",E$4,(YEAR($A32)-1921)*12+MONTH($A32)+3+IF(ISNUMBER(FIND("PRV",E$6)),1,0)))*IF(AND(E$3>0,TRIM(E$9)="CFS"),Conv_Flags!$C32,1)) -> 0 | F32: =IF(INDIRECT(CONCATENATE("'",F$1,"'!",F$4,(YEAR($A32)-1921)*12+MONTH($A32)+3+IF(ISNUMBER(FIND("PRV",F$6)),1,0)))=-901,NA(),INDIRECT(CONCATENATE("'",F$1,"'!",F$4,(YEAR($A32)-1921)*12+MONTH($A32)+3+IF(ISNUMBER(FIND("PRV",F$6)),1,0)))*IF(AND(F$3>0,TRIM(F$9)="CFS"),Conv_Flags!$C32,1)) -> 0 | G32: =IF(INDIRECT(CONCATENATE("'",G$1,"'!",G$4,(YEAR($A32)-1921)*12+MONTH($A32)+3+IF(ISNUMBER(FIND("PRV",G$6)),1,0)))=-901,NA(),INDIRECT(CONCATENATE("'",G$1,"'!",G$4,(YEAR($A32)-1921)*12+MONTH($A32)+3+IF(ISNUMBER(FIND("PRV",G$6)),1,0)))*IF(AND(G$3>0,TRIM(G$9)="CFS"),Conv_Flags!$C32,1)) -> 0 | I32: 1942 | J32: =B253 -> 51.58817291 | K32: =B254 -> 54.21215057 | L32: =B255 -> 51.56853867 | M32: =B256 -> 47.31277847 | N32: =B257 -> 45.45796585 | O32: =B258 -> 48.67906189 | P32: =B259 -> 52.21186066 | Q32: =B260 -> 52.02401733 | R32: =B261 -> 52.77523804 | S32: =B262 -> 52.43166733 | T32: =B263 -> 51.86124802 | U32: =B264 -> 50.70121765 | W32: 50.94183731 | X32: 51.13111337 | Y32: 50.90199312 | AA32: 51.17041016 | AB32: 48.11309433 | AC32: 51.42254448 | AD32: 51.94234276 | AE32: 52.25491333 | AG32: 1942 | AH32: ='Compile Data'!C253 -> 51.5716629 | AI32: ='Compile Data'!C254 -> 54.1987648 | AJ32: ='Compile Data'!C255 -> 51.57707214 | AK32: ='Compile Data'!C256 -> 47.32117081 | AL32: ='Compile Data'!C257 -> 45.46741867 | AM32: ='Compile Data'!C258 -> 48.69655228 | AN32: ='Compile Data'!C259 -> 52.67301559 | AO32: ='Compile Data'!C260 -> 51.72997284 | AP32: ='Compile Data'!C261 -> 52.87426376 | AQ32: ='Compile Data'!C262 -> 52.44221878 | AR32: ='Compile Data'!C263 -> 51.86645889 | AS32: ='Compile Data'!C264 -> 50.61919403 | AU32: 50.96377722 | AV32: 51.1508344 | AW32: 50.91981379 | AY32: 51.16716766 | AZ32: 48.12188721 | BA32: 51.49345112 | BB32: 51.95053387 | BC32: 52.22658793 | BE32: 1942 | BF32: ='Compile Data'!D253 -> 51.58747101 | BG32: ='Compile Data'!D254 -> 54.20651627 | BH32: ='Compile Data'!D255 -> 51.60051346 | BI32: ='Compile Data'!D256 -> 47.35153198 | BJ32: ='Compile Data'!D257 -> 45.47910309 | BK32: ='Compile Data'!D258 -> 48.68438721 | BL32: ='Compile Data'!D259 -> 52.67056274 | BM32: ='Compile Data'!D260 -> 51.73106766 | BN32: ='Compile Data'!D261 -> 52.87799072 | BO32: ='Compile Data'!D262 -> 52.44265747 | BP32: ='Compile Data'!D263 -> 51.86911392 | BQ32: ='Compile Data'!D264 -> 50.58662796 | BS32: 50.9641482 | BT32: 51.14969063 | BU32: 50.92396196 | BW32: 51.18650818 | BX32: 48.14371618 | BY32: 51.49100208 | BZ32: 51.94409752 | CA32: 52.21342977 | CC32: 1942 | CD32: ='Compile Data'!E253 -> 0 | CE32: ='Compile Data'!E254 -> 0 | CF32: ='Compile Data'!E255 -> 0 | CG32: ='Compile Data'!E256 -> 0 | CH32: ='Compile Data'!E257 -> 0 | CI32: ='Compile Data'!E258 -> 0 | CJ32: ='Compile Data'!E259 -> 0 | CK32: ='Compile Data'!E260 -> 0 | CL32: ='Compile Data'!E261 -> 0 | CM32: ='Compile Data'!E262 -> 0 | CN32: ='Compile Data'!E263 -> 0 | CO32: ='Compile Data'!E264 -> 0 | CQ32: 0 | CR32: 0 | CS32: 0 | CU32: 0 | CV32: 0 | CW32: 0 | CX32: 0 | CY32: 0 | DA32: 1942 | DB32: ='Compile Data'!F253 -> 0 | DC32: ='Compile Data'!F254 -> 0 | DD32: ='Compile Data'!F255 -> 0 | DE32: ='Compile Data'!F256 -> 0 | DF32: ='Compile Data'!F257 -> 0 | DG32: ='Compile Data'!F258 -> 0 | DH32: ='Compile Data'!F259 -> 0 | DI32: ='Compile Data'!F260 -> 0 | DJ32: ='Compile Data'!F261 -> 0 | DK32: ='Compile Data'!F262 -> 0 | DL32: ='Compile Data'!F263 -> 0 | DM32: ='Compile Data'!F264 -> 0 | DO32: 0 | DP32: 0 | DQ32: 0 | DS32: 0 | DT32: 0 | DU32: 0 | DV32: 0 | DW32: 0 | DY32: 1942 | DZ32: ='Compile Data'!G253 -> 0 | EA32: ='Compile Data'!G254 -> 0 | EB32: ='Compile Data'!G255 -> 0 | EC32: ='Compile Data'!G256 -> 0 | ED32: ='Compile Data'!G257 -> 0 | EE32: ='Compile Data'!G258 -> 0 | EF32: ='Compile Data'!G259 -> 0 | EG32: ='Compile Data'!G260 -> 0 | EH32: ='Compile Data'!G261 -> 0 | EI32: ='Compile Data'!G262 -> 0 | EJ32: ='Compile Data'!G263 -> 0 | EK32: ='Compile Data'!G264 -> 0 | EM32: 0 | EN32: 0 | EO32: 0 | EQ32: 0 | ER32: 0 | ES32: 0 | ET32: 0 | EU32: 0
A33: 1923-06-30 | B33: =IF(INDIRECT(CONCATENATE("'",B$1,"'!",B$4,(YEAR($A33)-1921)*12+MONTH($A33)+3+IF(ISNUMBER(FIND("PRV",B$6)),1,0)))=-901,NA(),INDIRECT(CONCATENATE("'",B$1,"'!",B$4,(YEAR($A33)-1921)*12+MONTH($A33)+3+IF(ISNUMBER(FIND("PRV",B$6)),1,0)))*IF(AND(B$3>0,TRIM(B$9)="CFS"),Conv_Flags!$C33,1)) -> 51.9956665 | C33: =IF(INDIRECT(CONCATENATE("'",C$1,"'!",C$4,(YEAR($A33)-1921)*12+MONTH($A33)+3+IF(ISNUMBER(FIND("PRV",C$6)),1,0)))=-901,NA(),INDIRECT(CONCATENATE("'",C$1,"'!",C$4,(YEAR($A33)-1921)*12+MONTH($A33)+3+IF(ISNUMBER(FIND("PRV",C$6)),1,0)))*IF(AND(C$3>0,TRIM(C$9)="CFS"),Conv_Flags!$C33,1)) -> 52.4689064 | D33: =IF(INDIRECT(CONCATENATE("'",D$1,"'!",D$4,(YEAR($A33)-1921)*12+MONTH($A33)+3+IF(ISNUMBER(FIND("PRV",D$6)),1,0)))=-901,NA(),INDIRECT(CONCATENATE("'",D$1,"'!",D$4,(YEAR($A33)-1921)*12+MONTH($A33)+3+IF(ISNUMBER(FIND("PRV",D$6)),1,0)))*IF(AND(D$3>0,TRIM(D$9)="CFS"),Conv_Flags!$C33,1)) -> 52.18794632 | E33: =IF(INDIRECT(CONCATENATE("'",E$1,"'!",E$4,(YEAR($A33)-1921)*12+MONTH($A33)+3+IF(ISNUMBER(FIND("PRV",E$6)),1,0)))=-901,NA(),INDIRECT(CONCATENATE("'",E$1,"'!",E$4,(YEAR($A33)-1921)*12+MONTH($A33)+3+IF(ISNUMBER(FIND("PRV",E$6)),1,0)))*IF(AND(E$3>0,TRIM(E$9)="CFS"),Conv_Flags!$C33,1)) -> 0 | F33: =IF(INDIRECT(CONCATENATE("'",F$1,"'!",F$4,(YEAR($A33)-1921)*12+MONTH($A33)+3+IF(ISNUMBER(FIND("PRV",F$6)),1,0)))=-901,NA(),INDIRECT(CONCATENATE("'",F$1,"'!",F$4,(YEAR($A33)-1921)*12+MONTH($A33)+3+IF(ISNUMBER(FIND("PRV",F$6)),1,0)))*IF(AND(F$3>0,TRIM(F$9)="CFS"),Conv_Flags!$C33,1)) -> 0 | G33: =IF(INDIRECT(CONCATENATE("'",G$1,"'!",G$4,(YEAR($A33)-1921)*12+MONTH($A33)+3+IF(ISNUMBER(FIND("PRV",G$6)),1,0)))=-901,NA(),INDIRECT(CONCATENATE("'",G$1,"'!",G$4,(YEAR($A33)-1921)*12+MONTH($A33)+3+IF(ISNUMBER(FIND("PRV",G$6)),1,0)))*IF(AND(G$3>0,TRIM(G$9)="CFS"),Conv_Flags!$C33,1)) -> 0 | I33: 1943 | J33: =B265 -> 52.07478714 | K33: =B266 -> 53.9887352 | L33: =B267 -> 51.78347015 | M33: =B268 -> 48.05109406 | N33: =B269 -> 46.99096298 | O33: =B270 -> 48.17770767 | P33: =B271 -> 52.70890808 | Q33: =B272 -> 52.91809082 | R33: =B273 -> 52.1710701 | S33: =B274 -> 51.95317841 | T33: =B275 -> 51.27716827 | U33: =B276 -> 50.41746902 | W33: 51.19384766 | X33: 51.54677963 | Y33: 51.04272016 | AA33: 51.47452164 | AB33: 48.9418424 | AC33: 51.49394417 | AD33: 51.45472145 | AE33: 52.15915807 | AG33: 1943 | AH33: ='Compile Data'!C265 -> 52.06406784 | AI33: ='Compile Data'!C266 -> 53.99650192 | AJ33: ='Compile Data'!C267 -> 51.81449127 | AK33: ='Compile Data'!C268 -> 48.06624603 | AL33: ='Compile Data'!C269 -> 46.96702957 | AM33: ='Compile Data'!C270 -> 48.19500351 | AN33: ='Compile Data'!C271 -> 52.7177887 | AO33: ='Compile Data'!C272 -> 52.5099144 | AP33: ='Compile Data'!C273 -> 52.20655823 | AQ33: ='Compile Data'!C274 -> 52.05287933 | AR33: ='Compile Data'!C275 -> 51.42146683 | AS33: ='Compile Data'!C276 -> 50.51259613 | AU33: 51.18457731 | AV33: 51.52324899 | AW33: 51.04371198 | AY33: 51.48532677 | AZ33: 48.94925563 | BA33: 51.40731621 | BB33: 51.54837513 | BC33: 52.20114644 | BE33: 1943 | BF33: ='Compile Data'!D265 -> 52.05448151 | BG33: ='Compile Data'!D266 -> 53.99917984 | BH33: ='Compile Data'!D267 -> 51.82307434 | BI33: ='Compile Data'!D268 -> 48.07148743 | BJ33: ='Compile Data'!D269 -> 46.98565674 | BK33: ='Compile Data'!D270 -> 48.18031693 | BL33: ='Compile Data'!D271 -> 52.71697998 | BM33: ='Compile Data'!D272 -> 52.50350952 | BN33: ='Compile Data'!D273 -> 52.20651627 | BO33: ='Compile Data'!D274 -> 52.05608368 | BP33: ='Compile Data'!D275 -> 51.37539673 | BQ33: ='Compile Data'!D276 -> 50.4930687 | BS33: 51.18228213 | BT33: 51.52293332 | BU33: 51.03881264 | BW33: 51.48705578 | BX33: 48.96007284 | BY33: 51.40183067 | BZ33: 51.53276634 | CA33: 52.19473775 | CC33: 1943 | CD33: ='Compile Data'!E265 -> 0 | CE33: ='Compile Data'!E266 -> 0 | CF33: ='Compile Data'!E267 -> 0 | CG33: ='Compile Data'!E268 -> 0 | CH33: ='Compile Data'!E269 -> 0 | CI33: ='Compile Data'!E270 -> 0 | CJ33: ='Compile Data'!E271 -> 0 | CK33: ='Compile Data'!E272 -> 0 | CL33: ='Compile Data'!E273 -> 0 | CM33: ='Compile Data'!E274 -> 0 | CN33: ='Compile Data'!E275 -> 0 | CO33: ='Compile Data'!E276 -> 0 | CQ33: 0 | CR33: 0 | CS33: 0 | CU33: 0 | CV33: 0 | CW33: 0 | CX33: 0 | CY33: 0 | DA33: 1943 | DB33: ='Compile Data'!F265 -> 0 | DC33: ='Compile Data'!F266 -> 0 | DD33: ='Compile Data'!F267 -> 0 | DE33: ='Compile Data'!F268 -> 0 | DF33: ='Compile Data'!F269 -> 0 | DG33: ='Compile Data'!F270 -> 0 | DH33: ='Compile Data'!F271 -> 0 | DI33: ='Compile Data'!F272 -> 0 | DJ33: ='Compile Data'!F273 -> 0 | DK33: ='Compile Data'!F274 -> 0 | DL33: ='Compile Data'!F275 -> 0 | DM33: ='Compile Data'!F276 -> 0 | DO33: 0 | DP33: 0 | DQ33: 0 | DS33: 0 | DT33: 0 | DU33: 0 | DV33: 0 | DW33: 0 | DY33: 1943 | DZ33: ='Compile Data'!G265 -> 0 | EA33: ='Compile Data'!G266 -> 0 | EB33: ='Compile Data'!G267 -> 0 | EC33: ='Compile Data'!G268 -> 0 | ED33: ='Compile Data'!G269 -> 0 | EE33: ='Compile Data'!G270 -> 0 | EF33: ='Compile Data'!G271 -> 0 | EG33: ='Compile Data'!G272 -> 0 | EH33: ='Compile Data'!G273 -> 0 | EI33: ='Compile Data'!G274 -> 0 | EJ33: ='Compile Data'!G275 -> 0 | EK33: ='Compile Data'!G276 -> 0 | EM33: 0 | EN33: 0 | EO33: 0 | EQ33: 0 | ER33: 0 | ES33: 0 | ET33: 0 | EU33: 0
A34: 1923-07-31 | B34: =IF(INDIRECT(CONCATENATE("'",B$1,"'!",B$4,(YEAR($A34)-1921)*12+MONTH($A34)+3+IF(ISNUMBER(FIND("PRV",B$6)),1,0)))=-901,NA(),INDIRECT(CONCATENATE("'",B$1,"'!",B$4,(YEAR($A34)-1921)*12+MONTH($A34)+3+IF(ISNUMBER(FIND("PRV",B$6)),1,0)))*IF(AND(B$3>0,TRIM(B$9)="CFS"),Conv_Flags!$C34,1)) -> 52.59576797 | C34: =IF(INDIRECT(CONCATENATE("'",C$1,"'!",C$4,(YEAR($A34)-1921)*12+MONTH($A34)+3+IF(ISNUMBER(FIND("PRV",C$6)),1,0)))=-901,NA(),INDIRECT(CONCATENATE("'",C$1,"'!",C$4,(YEAR($A34)-1921)*12+MONTH($A34)+3+IF(ISNUMBER(FIND("PRV",C$6)),1,0)))*IF(AND(C$3>0,TRIM(C$9)="CFS"),Conv_Flags!$C34,1)) -> 52.66256332 | D34: =IF(INDIRECT(CONCATENATE("'",D$1,"'!",D$4,(YEAR($A34)-1921)*12+MONTH($A34)+3+IF(ISNUMBER(FIND("PRV",D$6)),1,0)))=-901,NA(),INDIRECT(CONCATENATE("'",D$1,"'!",D$4,(YEAR($A34)-1921)*12+MONTH($A34)+3+IF(ISNUMBER(FIND("PRV",D$6)),1,0)))*IF(AND(D$3>0,TRIM(D$9)="CFS"),Conv_Flags!$C34,1)) -> 52.5250206 | E34: =IF(INDIRECT(CONCATENATE("'",E$1,"'!",E$4,(YEAR($A34)-1921)*12+MONTH($A34)+3+IF(ISNUMBER(FIND("PRV",E$6)),1,0)))=-901,NA(),INDIRECT(CONCATENATE("'",E$1,"'!",E$4,(YEAR($A34)-1921)*12+MONTH($A34)+3+IF(ISNUMBER(FIND("PRV",E$6)),1,0)))*IF(AND(E$3>0,TRIM(E$9)="CFS"),Conv_Flags!$C34,1)) -> 0 | F34: =IF(INDIRECT(CONCATENATE("'",F$1,"'!",F$4,(YEAR($A34)-1921)*12+MONTH($A34)+3+IF(ISNUMBER(FIND("PRV",F$6)),1,0)))=-901,NA(),INDIRECT(CONCATENATE("'",F$1,"'!",F$4,(YEAR($A34)-1921)*12+MONTH($A34)+3+IF(ISNUMBER(FIND("PRV",F$6)),1,0)))*IF(AND(F$3>0,TRIM(F$9)="CFS"),Conv_Flags!$C34,1)) -> 0 | G34: =IF(INDIRECT(CONCATENATE("'",G$1,"'!",G$4,(YEAR($A34)-1921)*12+MONTH($A34)+3+IF(ISNUMBER(FIND("PRV",G$6)),1,0)))=-901,NA(),INDIRECT(CONCATENATE("'",G$1,"'!",G$4,(YEAR($A34)-1921)*12+MONTH($A34)+3+IF(ISNUMBER(FIND("PRV",G$6)),1,0)))*IF(AND(G$3>0,TRIM(G$9)="CFS"),Conv_Flags!$C34,1)) -> 0 | I34: 1944 | J34: =B277 -> 51.88316345 | K34: =B278 -> 54.17684174 | L34: =B279 -> 53.60051727 | M34: =B280 -> 50.5395813 | N34: =B281 -> 48.73765945 | O34: =B282 -> 50.23506165 | P34: =B283 -> 50.94804382 | Q34: =B284 -> 53.22621155 | R34: =B285 -> 52.91703033 | S34: =B286 -> 53.26603699 | T34: =B287 -> 52.35453796 | U34: =B288 -> 53.9645462 | W34: 52.19593334 | X34: 52.09111881 | Y34: 52.15410264 | AA34: 52.55002594 | AB34: 50.95925268 | AC34: 51.83158684 | AD34: 53.12553787 | AE34: 53.9544754 | AG34: 1944 | AH34: ='Compile Data'!C277 -> 51.90589905 | AI34: ='Compile Data'!C278 -> 54.18494415 | AJ34: ='Compile Data'!C279 -> 53.47460175 | AK34: ='Compile Data'!C280 -> 50.44042969 | AL34: ='Compile Data'!C281 -> 48.65690613 | AM34: ='Compile Data'!C282 -> 50.19697571 | AN34: ='Compile Data'!C283 -> 53.12862778 | AO34: ='Compile Data'!C284 -> 55.60163498 | AP34: ='Compile Data'!C285 -> 52.8194809 | AQ34: ='Compile Data'!C286 -> 53.47177887 | AR34: ='Compile Data'!C287 -> 52.65208435 | AS34: ='Compile Data'!C288 -> 53.91723251 | AU34: 52.50952371 | AV34: 52.33697764 | AW34: 52.53754965 | AY34: 52.50146866 | AZ34: 50.85731252 | BA34: 52.93667984 | BB34: 53.21514416 | BC34: 53.93888474 | BE34: 1944 | BF34: ='Compile Data'!D277 -> 51.91104126 | BG34: ='Compile Data'!D278 -> 54.1801033 | BH34: ='Compile Data'!D279 -> 53.50722504 | BI34: ='Compile Data'!D280 -> 50.46909332 | BJ34: ='Compile Data'!D281 -> 48.67586517 | BK34: ='Compile Data'!D282 -> 50.20271301 | BL34: ='Compile Data'!D283 -> 52.91849899 | BM34: ='Compile Data'!D284 -> 55.50032425 | BN34: ='Compile Data'!D285 -> 52.76529694 | BO34: ='Compile Data'!D286 -> 53.40197372 | BP34: ='Compile Data'!D287 -> 52.29332733 | BQ34: ='Compile Data'!D288 -> 53.72122192 | BS34: 52.47917684 | BT34: 52.31677945 | BU34: 52.46222369 | BW34: 52.51686573 | BX34: 50.88406118 | BY34: 52.8467083 | BZ34: 53.04545498 | CA34: 53.98080953 | CC34: 1944 | CD34: ='Compile Data'!E277 -> 0 | CE34: ='Compile Data'!E278 -> 0 | CF34: ='Compile Data'!E279 -> 0 | CG34: ='Compile Data'!E280 -> 0 | CH34: ='Compile Data'!E281 -> 0 | CI34: ='Compile Data'!E282 -> 0 | CJ34: ='Compile Data'!E283 -> 0 | CK34: ='Compile Data'!E284 -> 0 | CL34: ='Compile Data'!E285 -> 0 | CM34: ='Compile Data'!E286 -> 0 | CN34: ='Compile Data'!E287 -> 0 | CO34: ='Compile Data'!E288 -> 0 | CQ34: 0 | CR34: 0 | CS34: 0 | CU34: 0 | CV34: 0 | CW34: 0 | CX34: 0 | CY34: 0 | DA34: 1944 | DB34: ='Compile Data'!F277 -> 0 | DC34: ='Compile Data'!F278 -> 0 | DD34: ='Compile Data'!F279 -> 0 | DE34: ='Compile Data'!F280 -> 0 | DF34: ='Compile Data'!F281 -> 0 | DG34: ='Compile Data'!F282 -> 0 | DH34: ='Compile Data'!F283 -> 0 | DI34: ='Compile Data'!F284 -> 0 | DJ34: ='Compile Data'!F285 -> 0 | DK34: ='Compile Data'!F286 -> 0 | DL34: ='Compile Data'!F287 -> 0 | DM34: ='Compile Data'!F288 -> 0 | DO34: 0 | DP34: 0 | DQ34: 0 | DS34: 0 | DT34: 0 | DU34: 0 | DV34: 0 | DW34: 0 | DY34: 1944 | DZ34: ='Compile Data'!G277 -> 0 | EA34: ='Compile Data'!G278 -> 0 | EB34: ='Compile Data'!G279 -> 0 | EC34: ='Compile Data'!G280 -> 0 | ED34: ='Compile Data'!G281 -> 0 | EE34: ='Compile Data'!G282 -> 0 | EF34: ='Compile Data'!G283 -> 0 | EG34: ='Compile Data'!G284 -> 0 | EH34: ='Compile Data'!G285 -> 0 | EI34: ='Compile Data'!G286 -> 0 | EJ34: ='Compile Data'!G287 -> 0 | EK34: ='Compile Data'!G288 -> 0 | EM34: 0 | EN34: 0 | EO34: 0 | EQ34: 0 | ER34: 0 | ES34: 0 | ET34: 0 | EU34: 0
A35: 1923-08-31 | B35: =IF(INDIRECT(CONCATENATE("'",B$1,"'!",B$4,(YEAR($A35)-1921)*12+MONTH($A35)+3+IF(ISNUMBER(FIND("PRV",B$6)),1,0)))=-901,NA(),INDIRECT(CONCATENATE("'",B$1,"'!",B$4,(YEAR($A35)-1921)*12+MONTH($A35)+3+IF(ISNUMBER(FIND("PRV",B$6)),1,0)))*IF(AND(B$3>0,TRIM(B$9)="CFS"),Conv_Flags!$C35,1)) -> 51.8772316 | C35: =IF(INDIRECT(CONCATENATE("'",C$1,"'!",C$4,(YEAR($A35)-1921)*12+MONTH($A35)+3+IF(ISNUMBER(FIND("PRV",C$6)),1,0)))=-901,NA(),INDIRECT(CONCATENATE("'",C$1,"'!",C$4,(YEAR($A35)-1921)*12+MONTH($A35)+3+IF(ISNUMBER(FIND("PRV",C$6)),1,0)))*IF(AND(C$3>0,TRIM(C$9)="CFS"),Conv_Flags!$C35,1)) -> 51.82342529 | D35: =IF(INDIRECT(CONCATENATE("'",D$1,"'!",D$4,(YEAR($A35)-1921)*12+MONTH($A35)+3+IF(ISNUMBER(FIND("PRV",D$6)),1,0)))=-901,NA(),INDIRECT(CONCATENATE("'",D$1,"'!",D$4,(YEAR($A35)-1921)*12+MONTH($A35)+3+IF(ISNUMBER(FIND("PRV",D$6)),1,0)))*IF(AND(D$3>0,TRIM(D$9)="CFS"),Conv_Flags!$C35,1)) -> 51.84690857 | E35: =IF(INDIRECT(CONCATENATE("'",E$1,"'!",E$4,(YEAR($A35)-1921)*12+MONTH($A35)+3+IF(ISNUMBER(FIND("PRV",E$6)),1,0)))=-901,NA(),INDIRECT(CONCATENATE("'",E$1,"'!",E$4,(YEAR($A35)-1921)*12+MONTH($A35)+3+IF(ISNUMBER(FIND("PRV",E$6)),1,0)))*IF(AND(E$3>0,TRIM(E$9)="CFS"),Conv_Flags!$C35,1)) -> 0 | F35: =IF(INDIRECT(CONCATENATE("'",F$1,"'!",F$4,(YEAR($A35)-1921)*12+MONTH($A35)+3+IF(ISNUMBER(FIND("PRV",F$6)),1,0)))=-901,NA(),INDIRECT(CONCATENATE("'",F$1,"'!",F$4,(YEAR($A35)-1921)*12+MONTH($A35)+3+IF(ISNUMBER(FIND("PRV",F$6)),1,0)))*IF(AND(F$3>0,TRIM(F$9)="CFS"),Conv_Flags!$C35,1)) -> 0 | G35: =IF(INDIRECT(CONCATENATE("'",G$1,"'!",G$4,(YEAR($A35)-1921)*12+MONTH($A35)+3+IF(ISNUMBER(FIND("PRV",G$6)),1,0)))=-901,NA(),INDIRECT(CONCATENATE("'",G$1,"'!",G$4,(YEAR($A35)-1921)*12+MONTH($A35)+3+IF(ISNUMBER(FIND("PRV",G$6)),1,0)))*IF(AND(G$3>0,TRIM(G$9)="CFS"),Conv_Flags!$C35,1)) -> 0 | I35: 1945 | J35: =B289 -> 54.11533356 | K35: =B290 -> 53.78354645 | L35: =B291 -> 52.26361084 | M35: =B292 -> 49.42456818 | N35: =B293 -> 48.59489822 | O35: =B294 -> 49.35705948 | P35: =B295 -> 52.99298859 | Q35: =B296 -> 52.88359451 | R35: =B297 -> 52.04177475 | S35: =B298 -> 52.41049576 | T35: =B299 -> 52.01546097 | U35: =B300 -> 52.37115479 | W35: 51.50788212 | X35: 51.02653535 | Y35: 51.85454051 | AA35: 52.39676476 | AB35: 50.09435908 | AC35: 51.81885433 | AD35: 52.20972157 | AE35: 52.78928502 | AG35: 1945 | AH35: ='Compile Data'!C289 -> 54.1027565 | AI35: ='Compile Data'!C290 -> 53.79666519 | AJ35: ='Compile Data'!C291 -> 51.32971191 | AK35: ='Compile Data'!C292 -> 48.87626266 | AL35: ='Compile Data'!C293 -> 48.15052032 | AM35: ='Compile Data'!C294 -> 49.2663002 | AN35: ='Compile Data'!C295 -> 52.82600021 | AO35: ='Compile Data'!C296 -> 53.04425049 | AP35: ='Compile Data'!C297 -> 52.26486206 | AQ35: ='Compile Data'!C298 -> 52.33721542 | AR35: ='Compile Data'!C299 -> 52.02737045 | AS35: ='Compile Data'!C300 -> 52.38035965 | AU35: 51.43288771 | AV35: 51.01713912 | AW35: 51.70018959 | AY35: 52.02634907 | AZ35: 49.45216497 | BA35: 51.85035324 | BB35: 52.2524519 | BC35: 52.86017481 | BE35: 1945 | BF35: ='Compile Data'!D289 -> 54.39119339 | BG35: ='Compile Data'!D290 -> 53.83001328 | BH35: ='Compile Data'!D291 -> 51.58060074 | BI35: ='Compile Data'!D292 -> 48.99821472 | BJ35: ='Compile Data'!D293 -> 48.19797516 | BK35: ='Compile Data'!D294 -> 49.29033661 | BL35: ='Compile Data'!D295 -> 52.85734558 | BM35: ='Compile Data'!D296 -> 53.05285645 | BN35: ='Compile Data'!D297 -> 52.06840515 | BO35: ='Compile Data'!D298 -> 52.36400986 | BP35: ='Compile Data'!D299 -> 52.03240967 | BQ35: ='Compile Data'!D300 -> 52.42902374 | BS35: 51.44930649 | BT35: 51.02722359 | BU35: 51.75769869 | BW35: 52.20000553 | BX35: 49.59226354 | BY35: 51.81723595 | BZ35: 52.2234621 | CA35: 52.8797938 | CC35: 1945 | CD35: ='Compile Data'!E289 -> 0 | CE35: ='Compile Data'!E290 -> 0 | CF35: ='Compile Data'!E291 -> 0 | CG35: ='Compile Data'!E292 -> 0 | CH35: ='Compile Data'!E293 -> 0 | CI35: ='Compile Data'!E294 -> 0 | CJ35: ='Compile Data'!E295 -> 0 | CK35: ='Compile Data'!E296 -> 0 | CL35: ='Compile Data'!E297 -> 0 | CM35: ='Compile Data'!E298 -> 0 | CN35: ='Compile Data'!E299 -> 0 | CO35: ='Compile Data'!E300 -> 0 | CQ35: 0 | CR35: 0 | CS35: 0 | CU35: 0 | CV35: 0 | CW35: 0 | CX35: 0 | CY35: 0 | DA35: 1945 | DB35: ='Compile Data'!F289 -> 0 | DC35: ='Compile Data'!F290 -> 0 | DD35: ='Compile Data'!F291 -> 0 | DE35: ='Compile Data'!F292 -> 0 | DF35: ='Compile Data'!F293 -> 0 | DG35: ='Compile Data'!F294 -> 0 | DH35: ='Compile Data'!F295 -> 0 | DI35: ='Compile Data'!F296 -> 0 | DJ35: ='Compile Data'!F297 -> 0 | DK35: ='Compile Data'!F298 -> 0 | DL35: ='Compile Data'!F299 -> 0 | DM35: ='Compile Data'!F300 -> 0 | DO35: 0 | DP35: 0 | DQ35: 0 | DS35: 0 | DT35: 0 | DU35: 0 | DV35: 0 | DW35: 0 | DY35: 1945 | DZ35: ='Compile Data'!G289 -> 0 | EA35: ='Compile Data'!G290 -> 0 | EB35: ='Compile Data'!G291 -> 0 | EC35: ='Compile Data'!G292 -> 0 | ED35: ='Compile Data'!G293 -> 0 | EE35: ='Compile Data'!G294 -> 0 | EF35: ='Compile Data'!G295 -> 0 | EG35: ='Compile Data'!G296 -> 0 | EH35: ='Compile Data'!G297 -> 0 | EI35: ='Compile Data'!G298 -> 0 | EJ35: ='Compile Data'!G299 -> 0 | EK35: ='Compile Data'!G300 -> 0 | EM35: 0 | EN35: 0 | EO35: 0 | EQ35: 0 | ER35: 0 | ES35: 0 | ET35: 0 | EU35: 0
A36: 1923-09-30 | B36: =IF(INDIRECT(CONCATENATE("'",B$1,"'!",B$4,(YEAR($A36)-1921)*12+MONTH($A36)+3+IF(ISNUMBER(FIND("PRV",B$6)),1,0)))=-901,NA(),INDIRECT(CONCATENATE("'",B$1,"'!",B$4,(YEAR($A36)-1921)*12+MONTH($A36)+3+IF(ISNUMBER(FIND("PRV",B$6)),1,0)))*IF(AND(B$3>0,TRIM(B$9)="CFS"),Conv_Flags!$C36,1)) -> 53.56455994 | C36: =IF(INDIRECT(CONCATENATE("'",C$1,"'!",C$4,(YEAR($A36)-1921)*12+MONTH($A36)+3+IF(ISNUMBER(FIND("PRV",C$6)),1,0)))=-901,NA(),INDIRECT(CONCATENATE("'",C$1,"'!",C$4,(YEAR($A36)-1921)*12+MONTH($A36)+3+IF(ISNUMBER(FIND("PRV",C$6)),1,0)))*IF(AND(C$3>0,TRIM(C$9)="CFS"),Conv_Flags!$C36,1)) -> 53.12665558 | D36: =IF(INDIRECT(CONCATENATE("'",D$1,"'!",D$4,(YEAR($A36)-1921)*12+MONTH($A36)+3+IF(ISNUMBER(FIND("PRV",D$6)),1,0)))=-901,NA(),INDIRECT(CONCATENATE("'",D$1,"'!",D$4,(YEAR($A36)-1921)*12+MONTH($A36)+3+IF(ISNUMBER(FIND("PRV",D$6)),1,0)))*IF(AND(D$3>0,TRIM(D$9)="CFS"),Conv_Flags!$C36,1)) -> 53.62259293 | E36: =IF(INDIRECT(CONCATENATE("'",E$1,"'!",E$4,(YEAR($A36)-1921)*12+MONTH($A36)+3+IF(ISNUMBER(FIND("PRV",E$6)),1,0)))=-901,NA(),INDIRECT(CONCATENATE("'",E$1,"'!",E$4,(YEAR($A36)-1921)*12+MONTH($A36)+3+IF(ISNUMBER(FIND("PRV",E$6)),1,0)))*IF(AND(E$3>0,TRIM(E$9)="CFS"),Conv_Flags!$C36,1)) -> 0 | F36: =IF(INDIRECT(CONCATENATE("'",F$1,"'!",F$4,(YEAR($A36)-1921)*12+MONTH($A36)+3+IF(ISNUMBER(FIND("PRV",F$6)),1,0)))=-901,NA(),INDIRECT(CONCATENATE("'",F$1,"'!",F$4,(YEAR($A36)-1921)*12+MONTH($A36)+3+IF(ISNUMBER(FIND("PRV",F$6)),1,0)))*IF(AND(F$3>0,TRIM(F$9)="CFS"),Conv_Flags!$C36,1)) -> 0 | G36: =IF(INDIRECT(CONCATENATE("'",G$1,"'!",G$4,(YEAR($A36)-1921)*12+MONTH($A36)+3+IF(ISNUMBER(FIND("PRV",G$6)),1,0)))=-901,NA(),INDIRECT(CONCATENATE("'",G$1,"'!",G$4,(YEAR($A36)-1921)*12+MONTH($A36)+3+IF(ISNUMBER(FIND("PRV",G$6)),1,0)))*IF(AND(G$3>0,TRIM(G$9)="CFS"),Conv_Flags!$C36,1)) -> 0 | I36: 1946 | J36: =B301 -> 52.40270615 | K36: =B302 -> 53.59399414 | L36: =B303 -> 50.00588989 | M36: =B304 -> 46.22877502 | N36: =B305 -> 46.01453018 | O36: =B306 -> 49.41244888 | P36: =B307 -> 51.86293411 | Q36: =B308 -> 52.19095993 | R36: =B309 -> 51.95528412 | S36: =B310 -> 51.95608521 | T36: =B311 -> 51.77769089 | U36: =B312 -> 51.30534363 | W36: 50.72055658 | X36: 51.12323729 | Y36: 50.72555351 | AA36: 50.5578413 | AB36: 47.41639837 | AC36: 51.35540676 | AD36: 51.74860096 | AE36: 51.97667185 | AG36: 1946 | AH36: ='Compile Data'!C301 -> 52.53357315 | AI36: ='Compile Data'!C302 -> 53.66659164 | AJ36: ='Compile Data'!C303 -> 49.82134628 | AK36: ='Compile Data'!C304 -> 46.10277939 | AL36: ='Compile Data'!C305 -> 45.93502045 | AM36: ='Compile Data'!C306 -> 49.35123062 | AN36: ='Compile Data'!C307 -> 51.82609558 | AO36: ='Compile Data'!C308 -> 52.46004105 | AP36: ='Compile Data'!C309 -> 51.97325897 | AQ36: ='Compile Data'!C310 -> 51.96961594 | AR36: ='Compile Data'!C311 -> 51.77557755 | AS36: ='Compile Data'!C312 -> 51.4882431 | AU36: 50.6885074 | AV36: 51.09601243 | AW36: 50.74194781 | AY36: 50.53107262 | AZ36: 47.28638204 | BA36: 51.40265656 | BB36: 51.80167389 | BC36: 51.99263509 | BE36: 1946 | BF36: ='Compile Data'!D301 -> 52.54634857 | BG36: ='Compile Data'!D302 -> 53.66400909 | BH36: ='Compile Data'!D303 -> 49.89074326 | BI36: ='Compile Data'!D304 -> 46.15184784 | BJ36: ='Compile Data'!D305 -> 45.97934723 | BK36: ='Compile Data'!D306 -> 49.39115906 | BL36: ='Compile Data'!D307 -> 51.8528595 | BM36: ='Compile Data'!D308 -> 52.37067413 | BN36: ='Compile Data'!D309 -> 51.93593979 | BO36: ='Compile Data'!D310 -> 51.9956131 | BP36: ='Compile Data'!D311 -> 51.78594208 | BQ36: ='Compile Data'!D312 -> 51.3233757 | BS36: 50.6884683 | BT36: 51.09476376 | BU36: 50.74065495 | BW36: 50.56323719 | BX36: 47.34064611 | BY36: 51.38765812 | BZ36: 51.76021767 | CA36: 51.92365265 | CC36: 1946 | CD36: ='Compile Data'!E301 -> 0 | CE36: ='Compile Data'!E302 -> 0 | CF36: ='Compile Data'!E303 -> 0 | CG36: ='Compile Data'!E304 -> 0 | CH36: ='Compile Data'!E305 -> 0 | CI36: ='Compile Data'!E306 -> 0 | CJ36: ='Compile Data'!E307 -> 0 | CK36: ='Compile Data'!E308 -> 0 | CL36: ='Compile Data'!E309 -> 0 | CM36: ='Compile Data'!E310 -> 0 | CN36: ='Compile Data'!E311 -> 0 | CO36: ='Compile Data'!E312 -> 0 | CQ36: 0 | CR36: 0 | CS36: 0 | CU36: 0 | CV36: 0 | CW36: 0 | CX36: 0 | CY36: 0 | DA36: 1946 | DB36: ='Compile Data'!F301 -> 0 | DC36: ='Compile Data'!F302 -> 0 | DD36: ='Compile Data'!F303 -> 0 | DE36: ='Compile Data'!F304 -> 0 | DF36: ='Compile Data'!F305 -> 0 | DG36: ='Compile Data'!F306 -> 0 | DH36: ='Compile Data'!F307 -> 0 | DI36: ='Compile Data'!F308 -> 0 | DJ36: ='Compile Data'!F309 -> 0 | DK36: ='Compile Data'!F310 -> 0 | DL36: ='Compile Data'!F311 -> 0 | DM36: ='Compile Data'!F312 -> 0 | DO36: 0 | DP36: 0 | DQ36: 0 | DS36: 0 | DT36: 0 | DU36: 0 | DV36: 0 | DW36: 0 | DY36: 1946 | DZ36: ='Compile Data'!G301 -> 0 | EA36: ='Compile Data'!G302 -> 0 | EB36: ='Compile Data'!G303 -> 0 | EC36: ='Compile Data'!G304 -> 0 | ED36: ='Compile Data'!G305 -> 0 | EE36: ='Compile Data'!G306 -> 0 | EF36: ='Compile Data'!G307 -> 0 | EG36: ='Compile Data'!G308 -> 0 | EH36: ='Compile Data'!G309 -> 0 | EI36: ='Compile Data'!G310 -> 0 | EJ36: ='Compile Data'!G311 -> 0 | EK36: ='Compile Data'!G312 -> 0 | EM36: 0 | EN36: 0 | EO36: 0 | EQ36: 0 | ER36: 0 | ES36: 0 | ET36: 0 | EU36: 0
A37: 1923-10-31 | B37: =IF(INDIRECT(CONCATENATE("'",B$1,"'!",B$4,(YEAR($A37)-1921)*12+MONTH($A37)+3+IF(ISNUMBER(FIND("PRV",B$6)),1,0)))=-901,NA(),INDIRECT(CONCATENATE("'",B$1,"'!",B$4,(YEAR($A37)-1921)*12+MONTH($A37)+3+IF(ISNUMBER(FIND("PRV",B$6)),1,0)))*IF(AND(B$3>0,TRIM(B$9)="CFS"),Conv_Flags!$C37,1)) -> 51.7937851 | C37: =IF(INDIRECT(CONCATENATE("'",C$1,"'!",C$4,(YEAR($A37)-1921)*12+MONTH($A37)+3+IF(ISNUMBER(FIND("PRV",C$6)),1,0)))=-901,NA(),INDIRECT(CONCATENATE("'",C$1,"'!",C$4,(YEAR($A37)-1921)*12+MONTH($A37)+3+IF(ISNUMBER(FIND("PRV",C$6)),1,0)))*IF(AND(C$3>0,TRIM(C$9)="CFS"),Conv_Flags!$C37,1)) -> 51.76633453 | D37: =IF(INDIRECT(CONCATENATE("'",D$1,"'!",D$4,(YEAR($A37)-1921)*12+MONTH($A37)+3+IF(ISNUMBER(FIND("PRV",D$6)),1,0)))=-901,NA(),INDIRECT(CONCATENATE("'",D$1,"'!",D$4,(YEAR($A37)-1921)*12+MONTH($A37)+3+IF(ISNUMBER(FIND("PRV",D$6)),1,0)))*IF(AND(D$3>0,TRIM(D$9)="CFS"),Conv_Flags!$C37,1)) -> 51.81084824 | E37: =IF(INDIRECT(CONCATENATE("'",E$1,"'!",E$4,(YEAR($A37)-1921)*12+MONTH($A37)+3+IF(ISNUMBER(FIND("PRV",E$6)),1,0)))=-901,NA(),INDIRECT(CONCATENATE("'",E$1,"'!",E$4,(YEAR($A37)-1921)*12+MONTH($A37)+3+IF(ISNUMBER(FIND("PRV",E$6)),1,0)))*IF(AND(E$3>0,TRIM(E$9)="CFS"),Conv_Flags!$C37,1)) -> 0 | F37: =IF(INDIRECT(CONCATENATE("'",F$1,"'!",F$4,(YEAR($A37)-1921)*12+MONTH($A37)+3+IF(ISNUMBER(FIND("PRV",F$6)),1,0)))=-901,NA(),INDIRECT(CONCATENATE("'",F$1,"'!",F$4,(YEAR($A37)-1921)*12+MONTH($A37)+3+IF(ISNUMBER(FIND("PRV",F$6)),1,0)))*IF(AND(F$3>0,TRIM(F$9)="CFS"),Conv_Flags!$C37,1)) -> 0 | G37: =IF(INDIRECT(CONCATENATE("'",G$1,"'!",G$4,(YEAR($A37)-1921)*12+MONTH($A37)+3+IF(ISNUMBER(FIND("PRV",G$6)),1,0)))=-901,NA(),INDIRECT(CONCATENATE("'",G$1,"'!",G$4,(YEAR($A37)-1921)*12+MONTH($A37)+3+IF(ISNUMBER(FIND("PRV",G$6)),1,0)))*IF(AND(G$3>0,TRIM(G$9)="CFS"),Conv_Flags!$C37,1)) -> 0 | I37: 1947 | J37: =B313 -> 51.83098984 | K37: =B314 -> 52.7936821 | L37: =B315 -> 51.31795502 | M37: =B316 -> 48.4695549 | N37: =B317 -> 48.60591888 | O37: =B318 -> 50.84279633 | P37: =B319 -> 55.81198883 | Q37: =B320 -> 53.79407883 | R37: =B321 -> 52.0158577 | S37: =B322 -> 52.70051575 | T37: =B323 -> 52.54771805 | U37: =B324 -> 53.37270737 | W37: 52.27166462 | X37: 52.25979169 | Y37: 52.00864697 | AA37: 51.10304546 | AB37: 49.46447627 | AC37: 53.11618042 | AD37: 52.65919971 | AE37: 53.3025856 | AG37: 1947 | AH37: ='Compile Data'!C313 -> 51.81154251 | AI37: ='Compile Data'!C314 -> 52.67811966 | AJ37: ='Compile Data'!C315 -> 50.89056396 | AK37: ='Compile Data'!C316 -> 48.37660217 | AL37: ='Compile Data'!C317 -> 48.55125809 | AM37: ='Compile Data'!C318 -> 50.96536255 | AN37: ='Compile Data'!C319 -> 55.62859344 | AO37: ='Compile Data'!C320 -> 53.73476791 | AP37: ='Compile Data'!C321 -> 51.96177673 | AQ37: ='Compile Data'!C322 -> 52.74253082 | AR37: ='Compile Data'!C323 -> 52.48947525 | AS37: ='Compile Data'!C324 -> 53.27164459 | AU37: 52.22433917 | AV37: 52.21503417 | AW37: 51.92518648 | AY37: 50.93920708 | AZ37: 49.27280807 | BA37: 53.07262516 | BB37: 52.61635685 | BC37: 53.24981308 | BE37: 1947 | BF37: ='Compile Data'!D313 -> 51.83473587 | BG37: ='Compile Data'!D314 -> 52.61284637 | BH37: ='Compile Data'!D315 -> 51.0272789 | BI37: ='Compile Data'!D316 -> 48.42007828 | BJ37: ='Compile Data'!D317 -> 48.58666229 | BK37: ='Compile Data'!D318 -> 50.90960312 | BL37: ='Compile Data'!D319 -> 55.76015091 | BM37: ='Compile Data'!D320 -> 53.63429642 | BN37: ='Compile Data'!D321 -> 51.9792099 | BO37: ='Compile Data'!D322 -> 52.77577591 | BP37: ='Compile Data'!D323 -> 52.51541519 | BQ37: ='Compile Data'!D324 -> 53.34896851 | BS37: 52.25706641 | BT37: 52.24579048 | BU37: 51.95041847 | BW37: 50.97373486 | BX37: 49.34467316 | BY37: 53.07081509 | BZ37: 52.65484238 | CA37: 53.32919184 | CC37: 1947 | CD37: ='Compile Data'!E313 -> 0 | CE37: ='Compile Data'!E314 -> 0 | CF37: ='Compile Data'!E315 -> 0 | CG37: ='Compile Data'!E316 -> 0 | CH37: ='Compile Data'!E317 -> 0 | CI37: ='Compile Data'!E318 -> 0 | CJ37: ='Compile Data'!E319 -> 0 | CK37: ='Compile Data'!E320 -> 0 | CL37: ='Compile Data'!E321 -> 0 | CM37: ='Compile Data'!E322 -> 0 | CN37: ='Compile Data'!E323 -> 0 | CO37: ='Compile Data'!E324 -> 0 | CQ37: 0 | CR37: 0 | CS37: 0 | CU37: 0 | CV37: 0 | CW37: 0 | CX37: 0 | CY37: 0 | DA37: 1947 | DB37: ='Compile Data'!F313 -> 0 | DC37: ='Compile Data'!F314 -> 0 | DD37: ='Compile Data'!F315 -> 0 | DE37: ='Compile Data'!F316 -> 0 | DF37: ='Compile Data'!F317 -> 0 | DG37: ='Compile Data'!F318 -> 0 | DH37: ='Compile Data'!F319 -> 0 | DI37: ='Compile Data'!F320 -> 0 | DJ37: ='Compile Data'!F321 -> 0 | DK37: ='Compile Data'!F322 -> 0 | DL37: ='Compile Data'!F323 -> 0 | DM37: ='Compile Data'!F324 -> 0 | DO37: 0 | DP37: 0 | DQ37: 0 | DS37: 0 | DT37: 0 | DU37: 0 | DV37: 0 | DW37: 0 | DY37: 1947 | DZ37: ='Compile Data'!G313 -> 0 | EA37: ='Compile Data'!G314 -> 0 | EB37: ='Compile Data'!G315 -> 0 | EC37: ='Compile Data'!G316 -> 0 | ED37: ='Compile Data'!G317 -> 0 | EE37: ='Compile Data'!G318 -> 0 | EF37: ='Compile Data'!G319 -> 0 | EG37: ='Compile Data'!G320 -> 0 | EH37: ='Compile Data'!G321 -> 0 | EI37: ='Compile Data'!G322 -> 0 | EJ37: ='Compile Data'!G323 -> 0 | EK37: ='Compile Data'!G324 -> 0 | EM37: 0 | EN37: 0 | EO37: 0 | EQ37: 0 | ER37: 0 | ES37: 0 | ET37: 0 | EU37: 0
A38: 1923-11-30 | B38: =IF(INDIRECT(CONCATENATE("'",B$1,"'!",B$4,(YEAR($A38)-1921)*12+MONTH($A38)+3+IF(ISNUMBER(FIND("PRV",B$6)),1,0)))=-901,NA(),INDIRECT(CONCATENATE("'",B$1,"'!",B$4,(YEAR($A38)-1921)*12+MONTH($A38)+3+IF(ISNUMBER(FIND("PRV",B$6)),1,0)))*IF(AND(B$3>0,TRIM(B$9)="CFS"),Conv_Flags!$C38,1)) -> 54.83912659 | C38: =IF(INDIRECT(CONCATENATE("'",C$1,"'!",C$4,(YEAR($A38)-1921)*12+MONTH($A38)+3+IF(ISNUMBER(FIND("PRV",C$6)),1,0)))=-901,NA(),INDIRECT(CONCATENATE("'",C$1,"'!",C$4,(YEAR($A38)-1921)*12+MONTH($A38)+3+IF(ISNUMBER(FIND("PRV",C$6)),1,0)))*IF(AND(C$3>0,TRIM(C$9)="CFS"),Conv_Flags!$C38,1)) -> 54.84962845 | D38: =IF(INDIRECT(CONCATENATE("'",D$1,"'!",D$4,(YEAR($A38)-1921)*12+MONTH($A38)+3+IF(ISNUMBER(FIND("PRV",D$6)),1,0)))=-901,NA(),INDIRECT(CONCATENATE("'",D$1,"'!",D$4,(YEAR($A38)-1921)*12+MONTH($A38)+3+IF(ISNUMBER(FIND("PRV",D$6)),1,0)))*IF(AND(D$3>0,TRIM(D$9)="CFS"),Conv_Flags!$C38,1)) -> 54.85451126 | E38: =IF(INDIRECT(CONCATENATE("'",E$1,"'!",E$4,(YEAR($A38)-1921)*12+MONTH($A38)+3+IF(ISNUMBER(FIND("PRV",E$6)),1,0)))=-901,NA(),INDIRECT(CONCATENATE("'",E$1,"'!",E$4,(YEAR($A38)-1921)*12+MONTH($A38)+3+IF(ISNUMBER(FIND("PRV",E$6)),1,0)))*IF(AND(E$3>0,TRIM(E$9)="CFS"),Conv_Flags!$C38,1)) -> 0 | F38: =IF(INDIRECT(CONCATENATE("'",F$1,"'!",F$4,(YEAR($A38)-1921)*12+MONTH($A38)+3+IF(ISNUMBER(FIND("PRV",F$6)),1,0)))=-901,NA(),INDIRECT(CONCATENATE("'",F$1,"'!",F$4,(YEAR($A38)-1921)*12+MONTH($A38)+3+IF(ISNUMBER(FIND("PRV",F$6)),1,0)))*IF(AND(F$3>0,TRIM(F$9)="CFS"),Conv_Flags!$C38,1)) -> 0 | G38: =IF(INDIRECT(CONCATENATE("'",G$1,"'!",G$4,(YEAR($A38)-1921)*12+MONTH($A38)+3+IF(ISNUMBER(FIND("PRV",G$6)),1,0)))=-901,NA(),INDIRECT(CONCATENATE("'",G$1,"'!",G$4,(YEAR($A38)-1921)*12+MONTH($A38)+3+IF(ISNUMBER(FIND("PRV",G$6)),1,0)))*IF(AND(G$3>0,TRIM(G$9)="CFS"),Conv_Flags!$C38,1)) -> 0 | I38: 1948 | J38: =B325 -> 52.86156082 | K38: =B326 -> 53.67348862 | L38: =B327 -> 52.56378937 | M38: =B328 -> 49.33386612 | N38: =B329 -> 47.59913254 | O38: =B330 -> 48.94177628 | P38: =B331 -> 50.49246597 | Q38: =B332 -> 51.64009094 | R38: =B333 -> 53.15652466 | S38: =B334 -> 52.36317825 | T38: =B335 -> 51.90836334 | U38: =B336 -> 51.91395187 | W38: 51.32534726 | X38: 51.41087023 | Y38: 51.3706824 | AA38: 52.10817623 | AB38: 49.83226267 | AC38: 51.05771446 | AD38: 52.33550453 | AE38: 52.69333394 | AG38: 1948 | AH38: ='Compile Data'!C325 -> 52.74655533 | AI38: ='Compile Data'!C326 -> 53.73123932 | AJ38: ='Compile Data'!C327 -> 52.49226379 | AK38: ='Compile Data'!C328 -> 49.2748909 | AL38: ='Compile Data'!C329 -> 47.54130936 | AM38: ='Compile Data'!C330 -> 48.95365524 | AN38: ='Compile Data'!C331 -> 50.44228745 | AO38: ='Compile Data'!C332 -> 51.63639832 | AP38: ='Compile Data'!C333 -> 53.14676285 | AQ38: ='Compile Data'!C334 -> 52.17863846 | AR38: ='Compile Data'!C335 -> 51.84200287 | AS38: ='Compile Data'!C336 -> 52.7096138 | AU38: 51.34940275 | AV38: 51.44196479 | AW38: 51.39130147 | AY38: 52.06123734 | AZ38: 49.76948802 | BA38: 51.04477596 | BB38: 52.46925449 | BC38: 52.92066956 | BE38: 1948 | BF38: ='Compile Data'!D325 -> 52.89970398 | BG38: ='Compile Data'!D326 -> 53.73890305 | BH38: ='Compile Data'!D327 -> 52.51602936 | BI38: ='Compile Data'!D328 -> 49.30821609 | BJ38: ='Compile Data'!D329 -> 47.56321335 | BK38: ='Compile Data'!D330 -> 48.93384933 | BL38: ='Compile Data'!D331 -> 50.47901917 | BM38: ='Compile Data'!D332 -> 51.64452744 | BN38: ='Compile Data'!D333 -> 53.1552887 | BO38: ='Compile Data'!D334 -> 52.16806412 | BP38: ='Compile Data'!D335 -> 51.81424713 | BQ38: ='Compile Data'!D336 -> 52.72180176 | BS38: 51.35778046 | BT38: 51.44752153 | BU38: 51.41190529 | BW38: 52.11571312 | BX38: 49.7958196 | BY38: 51.05317116 | BZ38: 52.46485043 | CA38: 52.93579737 | CC38: 1948 | CD38: ='Compile Data'!E325 -> 0 | CE38: ='Compile Data'!E326 -> 0 | CF38: ='Compile Data'!E327 -> 0 | CG38: ='Compile Data'!E328 -> 0 | CH38: ='Compile Data'!E329 -> 0 | CI38: ='Compile Data'!E330 -> 0 | CJ38: ='Compile Data'!E331 -> 0 | CK38: ='Compile Data'!E332 -> 0 | CL38: ='Compile Data'!E333 -> 0 | CM38: ='Compile Data'!E334 -> 0 | CN38: ='Compile Data'!E335 -> 0 | CO38: ='Compile Data'!E336 -> 0 | CQ38: 0 | CR38: 0 | CS38: 0 | CU38: 0 | CV38: 0 | CW38: 0 | CX38: 0 | CY38: 0 | DA38: 1948 | DB38: ='Compile Data'!F325 -> 0 | DC38: ='Compile Data'!F326 -> 0 | DD38: ='Compile Data'!F327 -> 0 | DE38: ='Compile Data'!F328 -> 0 | DF38: ='Compile Data'!F329 -> 0 | DG38: ='Compile Data'!F330 -> 0 | DH38: ='Compile Data'!F331 -> 0 | DI38: ='Compile Data'!F332 -> 0 | DJ38: ='Compile Data'!F333 -> 0 | DK38: ='Compile Data'!F334 -> 0 | DL38: ='Compile Data'!F335 -> 0 | DM38: ='Compile Data'!F336 -> 0 | DO38: 0 | DP38: 0 | DQ38: 0 | DS38: 0 | DT38: 0 | DU38: 0 | DV38: 0 | DW38: 0 | DY38: 1948 | DZ38: ='Compile Data'!G325 -> 0 | EA38: ='Compile Data'!G326 -> 0 | EB38: ='Compile Data'!G327 -> 0 | EC38: ='Compile Data'!G328 -> 0 | ED38: ='Compile Data'!G329 -> 0 | EE38: ='Compile Data'!G330 -> 0 | EF38: ='Compile Data'!G331 -> 0 | EG38: ='Compile Data'!G332 -> 0 | EH38: ='Compile Data'!G333 -> 0 | EI38: ='Compile Data'!G334 -> 0 | EJ38: ='Compile Data'!G335 -> 0 | EK38: ='Compile Data'!G336 -> 0 | EM38: 0 | EN38: 0 | EO38: 0 | EQ38: 0 | ER38: 0 | ES38: 0 | ET38: 0 | EU38: 0
A39: 1923-12-31 | B39: =IF(INDIRECT(CONCATENATE("'",B$1,"'!",B$4,(YEAR($A39)-1921)*12+MONTH($A39)+3+IF(ISNUMBER(FIND("PRV",B$6)),1,0)))=-901,NA(),INDIRECT(CONCATENATE("'",B$1,"'!",B$4,(YEAR($A39)-1921)*12+MONTH($A39)+3+IF(ISNUMBER(FIND("PRV",B$6)),1,0)))*IF(AND(B$3>0,TRIM(B$9)="CFS"),Conv_Flags!$C39,1)) -> 53.57516479 | C39: =IF(INDIRECT(CONCATENATE("'",C$1,"'!",C$4,(YEAR($A39)-1921)*12+MONTH($A39)+3+IF(ISNUMBER(FIND("PRV",C$6)),1,0)))=-901,NA(),INDIRECT(CONCATENATE("'",C$1,"'!",C$4,(YEAR($A39)-1921)*12+MONTH($A39)+3+IF(ISNUMBER(FIND("PRV",C$6)),1,0)))*IF(AND(C$3>0,TRIM(C$9)="CFS"),Conv_Flags!$C39,1)) -> 53.46269608 | D39: =IF(INDIRECT(CONCATENATE("'",D$1,"'!",D$4,(YEAR($A39)-1921)*12+MONTH($A39)+3+IF(ISNUMBER(FIND("PRV",D$6)),1,0)))=-901,NA(),INDIRECT(CONCATENATE("'",D$1,"'!",D$4,(YEAR($A39)-1921)*12+MONTH($A39)+3+IF(ISNUMBER(FIND("PRV",D$6)),1,0)))*IF(AND(D$3>0,TRIM(D$9)="CFS"),Conv_Flags!$C39,1)) -> 53.518013 | E39: =IF(INDIRECT(CONCATENATE("'",E$1,"'!",E$4,(YEAR($A39)-1921)*12+MONTH($A39)+3+IF(ISNUMBER(FIND("PRV",E$6)),1,0)))=-901,NA(),INDIRECT(CONCATENATE("'",E$1,"'!",E$4,(YEAR($A39)-1921)*12+MONTH($A39)+3+IF(ISNUMBER(FIND("PRV",E$6)),1,0)))*IF(AND(E$3>0,TRIM(E$9)="CFS"),Conv_Flags!$C39,1)) -> 0 | F39: =IF(INDIRECT(CONCATENATE("'",F$1,"'!",F$4,(YEAR($A39)-1921)*12+MONTH($A39)+3+IF(ISNUMBER(FIND("PRV",F$6)),1,0)))=-901,NA(),INDIRECT(CONCATENATE("'",F$1,"'!",F$4,(YEAR($A39)-1921)*12+MONTH($A39)+3+IF(ISNUMBER(FIND("PRV",F$6)),1,0)))*IF(AND(F$3>0,TRIM(F$9)="CFS"),Conv_Flags!$C39,1)) -> 0 | G39: =IF(INDIRECT(CONCATENATE("'",G$1,"'!",G$4,(YEAR($A39)-1921)*12+MONTH($A39)+3+IF(ISNUMBER(FIND("PRV",G$6)),1,0)))=-901,NA(),INDIRECT(CONCATENATE("'",G$1,"'!",G$4,(YEAR($A39)-1921)*12+MONTH($A39)+3+IF(ISNUMBER(FIND("PRV",G$6)),1,0)))*IF(AND(G$3>0,TRIM(G$9)="CFS"),Conv_Flags!$C39,1)) -> 0 | I39: 1949 | J39: =B337 -> 52.05970001 | K39: =B338 -> 54.10634995 | L39: =B339 -> 52.38876724 | M39: =B340 -> 49.35943604 | N39: =B341 -> 48.59983826 | O39: =B342 -> 48.27833939 | P39: =B343 -> 54.4630928 | Q39: =B344 -> 53.12171555 | R39: =B345 -> 52.48148346 | S39: =B346 -> 52.47890854 | T39: =B347 -> 51.8902359 | U39: =B348 -> 52.43151855 | W39: 51.71774864 | X39: 51.59343624 | Y39: 51.80494881 | AA39: 51.97856331 | AB39: 50.11601384 | AC39: 52.0861578 | AD39: 52.32053661 | AE39: 52.71674601 | AG39: 1949 | AH39: ='Compile Data'!C337 -> 51.94422531 | AI39: ='Compile Data'!C338 -> 54.10816956 | AJ39: ='Compile Data'!C339 -> 52.41487885 | AK39: ='Compile Data'!C340 -> 49.33975983 | AL39: ='Compile Data'!C341 -> 48.58718491 | AM39: ='Compile Data'!C342 -> 48.28020096 | AN39: ='Compile Data'!C343 -> 54.45747757 | AO39: ='Compile Data'!C344 -> 53.43262863 | AP39: ='Compile Data'!C345 -> 52.44085312 | AQ39: ='Compile Data'!C346 -> 52.52368164 | AR39: ='Compile Data'!C347 -> 51.97438049 | AS39: ='Compile Data'!C348 -> 52.46397018 | AU39: 51.76502864 | AV39: 51.63346513 | AW39: 51.83061759 | AY39: 51.95175838 | AZ39: 50.11394119 | BA39: 52.15279007 | BB39: 52.35072136 | BC39: 52.70826213 | BE39: 1949 | BF39: ='Compile Data'!D337 -> 51.97122574 | BG39: ='Compile Data'!D338 -> 54.11436462 | BH39: ='Compile Data'!D339 -> 52.41954803 | BI39: ='Compile Data'!D340 -> 49.35255432 | BJ39: ='Compile Data'!D341 -> 48.59576797 | BK39: ='Compile Data'!D342 -> 48.28698349 | BL39: ='Compile Data'!D343 -> 54.46284485 | BM39: ='Compile Data'!D344 -> 53.30773163 | BN39: ='Compile Data'!D345 -> 52.45759201 | BO39: ='Compile Data'!D346 -> 52.50756836 | BP39: ='Compile Data'!D347 -> 51.96224594 | BQ39: ='Compile Data'!D348 -> 52.49565506 | BS39: 51.76539358 | BT39: 51.63339233 | BU39: 51.82784017 | BW39: 51.96442318 | BX39: 50.12262344 | BY39: 52.12878799 | BZ39: 52.35576534 | CA39: 52.72715505 | CC39: 1949 | CD39: ='Compile Data'!E337 -> 0 | CE39: ='Compile Data'!E338 -> 0 | CF39: ='Compile Data'!E339 -> 0 | CG39: ='Compile Data'!E340 -> 0 | CH39: ='Compile Data'!E341 -> 0 | CI39: ='Compile Data'!E342 -> 0 | CJ39: ='Compile Data'!E343 -> 0 | CK39: ='Compile Data'!E344 -> 0 | CL39: ='Compile Data'!E345 -> 0 | CM39: ='Compile Data'!E346 -> 0 | CN39: ='Compile Data'!E347 -> 0 | CO39: ='Compile Data'!E348 -> 0 | CQ39: 0 | CR39: 0 | CS39: 0 | CU39: 0 | CV39: 0 | CW39: 0 | CX39: 0 | CY39: 0 | DA39: 1949 | DB39: ='Compile Data'!F337 -> 0 | DC39: ='Compile Data'!F338 -> 0 | DD39: ='Compile Data'!F339 -> 0 | DE39: ='Compile Data'!F340 -> 0 | DF39: ='Compile Data'!F341 -> 0 | DG39: ='Compile Data'!F342 -> 0 | DH39: ='Compile Data'!F343 -> 0 | DI39: ='Compile Data'!F344 -> 0 | DJ39: ='Compile Data'!F345 -> 0 | DK39: ='Compile Data'!F346 -> 0 | DL39: ='Compile Data'!F347 -> 0 | DM39: ='Compile Data'!F348 -> 0 | DO39: 0 | DP39: 0 | DQ39: 0 | DS39: 0 | DT39: 0 | DU39: 0 | DV39: 0 | DW39: 0 | DY39: 1949 | DZ39: ='Compile Data'!G337 -> 0 | EA39: ='Compile Data'!G338 -> 0 | EB39: ='Compile Data'!G339 -> 0 | EC39: ='Compile Data'!G340 -> 0 | ED39: ='Compile Data'!G341 -> 0 | EE39: ='Compile Data'!G342 -> 0 | EF39: ='Compile Data'!G343 -> 0 | EG39: ='Compile Data'!G344 -> 0 | EH39: ='Compile Data'!G345 -> 0 | EI39: ='Compile Data'!G346 -> 0 | EJ39: ='Compile Data'!G347 -> 0 | EK39: ='Compile Data'!G348 -> 0 | EM39: 0 | EN39: 0 | EO39: 0 | EQ39: 0 | ER39: 0 | ES39: 0 | ET39: 0 | EU39: 0
A40: 1924-01-31 | B40: =IF(INDIRECT(CONCATENATE("'",B$1,"'!",B$4,(YEAR($A40)-1921)*12+MONTH($A40)+3+IF(ISNUMBER(FIND("PRV",B$6)),1,0)))=-901,NA(),INDIRECT(CONCATENATE("'",B$1,"'!",B$4,(YEAR($A40)-1921)*12+MONTH($A40)+3+IF(ISNUMBER(FIND("PRV",B$6)),1,0)))*IF(AND(B$3>0,TRIM(B$9)="CFS"),Conv_Flags!$C40,1)) -> 50.56716919 | C40: =IF(INDIRECT(CONCATENATE("'",C$1,"'!",C$4,(YEAR($A40)-1921)*12+MONTH($A40)+3+IF(ISNUMBER(FIND("PRV",C$6)),1,0)))=-901,NA(),INDIRECT(CONCATENATE("'",C$1,"'!",C$4,(YEAR($A40)-1921)*12+MONTH($A40)+3+IF(ISNUMBER(FIND("PRV",C$6)),1,0)))*IF(AND(C$3>0,TRIM(C$9)="CFS"),Conv_Flags!$C40,1)) -> 50.49151993 | D40: =IF(INDIRECT(CONCATENATE("'",D$1,"'!",D$4,(YEAR($A40)-1921)*12+MONTH($A40)+3+IF(ISNUMBER(FIND("PRV",D$6)),1,0)))=-901,NA(),INDIRECT(CONCATENATE("'",D$1,"'!",D$4,(YEAR($A40)-1921)*12+MONTH($A40)+3+IF(ISNUMBER(FIND("PRV",D$6)),1,0)))*IF(AND(D$3>0,TRIM(D$9)="CFS"),Conv_Flags!$C40,1)) -> 50.52687836 | E40: =IF(INDIRECT(CONCATENATE("'",E$1,"'!",E$4,(YEAR($A40)-1921)*12+MONTH($A40)+3+IF(ISNUMBER(FIND("PRV",E$6)),1,0)))=-901,NA(),INDIRECT(CONCATENATE("'",E$1,"'!",E$4,(YEAR($A40)-1921)*12+MONTH($A40)+3+IF(ISNUMBER(FIND("PRV",E$6)),1,0)))*IF(AND(E$3>0,TRIM(E$9)="CFS"),Conv_Flags!$C40,1)) -> 0 | F40: =IF(INDIRECT(CONCATENATE("'",F$1,"'!",F$4,(YEAR($A40)-1921)*12+MONTH($A40)+3+IF(ISNUMBER(FIND("PRV",F$6)),1,0)))=-901,NA(),INDIRECT(CONCATENATE("'",F$1,"'!",F$4,(YEAR($A40)-1921)*12+MONTH($A40)+3+IF(ISNUMBER(FIND("PRV",F$6)),1,0)))*IF(AND(F$3>0,TRIM(F$9)="CFS"),Conv_Flags!$C40,1)) -> 0 | G40: =IF(INDIRECT(CONCATENATE("'",G$1,"'!",G$4,(YEAR($A40)-1921)*12+MONTH($A40)+3+IF(ISNUMBER(FIND("PRV",G$6)),1,0)))=-901,NA(),INDIRECT(CONCATENATE("'",G$1,"'!",G$4,(YEAR($A40)-1921)*12+MONTH($A40)+3+IF(ISNUMBER(FIND("PRV",G$6)),1,0)))*IF(AND(G$3>0,TRIM(G$9)="CFS"),Conv_Flags!$C40,1)) -> 0 | I40: 1950 | J40: =B349 -> 51.80558014 | K40: =B350 -> 53.91313934 | L40: =B351 -> 51.78969574 | M40: =B352 -> 48.60895157 | N40: =B353 -> 47.85857391 | O40: =B354 -> 50.42957687 | P40: =B355 -> 52.76860428 | Q40: =B356 -> 53.20347214 | R40: =B357 -> 52.74213028 | S40: =B358 -> 52.64447021 | T40: =B359 -> 52.12463379 | U40: =B360 -> 52.74036026 | W40: 51.75759188 | X40: 51.50062784 | Y40: 51.71909904 | AA40: 51.5293417 | AB40: 49.41907374 | AC40: 52.28594589 | AD40: 52.56289864 | AE40: 53.21796926 | AG40: 1950 | AH40: ='Compile Data'!C349 -> 51.80505753 | AI40: ='Compile Data'!C350 -> 53.85575867 | AJ40: ='Compile Data'!C351 -> 52.01939011 | AK40: ='Compile Data'!C352 -> 48.55428696 | AL40: ='Compile Data'!C353 -> 47.79389572 | AM40: ='Compile Data'!C354 -> 50.41719437 | AN40: ='Compile Data'!C355 -> 52.87623215 | AO40: ='Compile Data'!C356 -> 53.45209503 | AP40: ='Compile Data'!C357 -> 52.79841232 | AQ40: ='Compile Data'!C358 -> 52.45559311 | AR40: ='Compile Data'!C359 -> 52.10085297 | AS40: ='Compile Data'!C360 -> 52.77445221 | AU40: 51.76197974 | AV40: 51.50889397 | AW40: 51.74193509 | AY40: 51.55862331 | AZ40: 49.45585759 | BA40: 52.38598347 | BB40: 52.53232765 | BC40: 53.23085531 | BE40: 1950 | BF40: ='Compile Data'!D349 -> 51.79708481 | BG40: ='Compile Data'!D350 -> 53.88872528 | BH40: ='Compile Data'!D351 -> 52.06996918 | BI40: ='Compile Data'!D352 -> 48.56612015 | BJ40: ='Compile Data'!D353 -> 47.79818726 | BK40: ='Compile Data'!D354 -> 50.40453339 | BL40: ='Compile Data'!D355 -> 52.99227524 | BM40: ='Compile Data'!D356 -> 53.38267136 | BN40: ='Compile Data'!D357 -> 52.7626152 | BO40: ='Compile Data'!D358 -> 52.48687744 | BP40: ='Compile Data'!D359 -> 52.10681915 | BQ40: ='Compile Data'!D360 -> 52.77996445 | BS40: 51.77116489 | BT40: 51.52006849 | BU40: 51.75298691 | BW40: 51.58047485 | BX40: 49.47809219 | BY40: 52.3855238 | BZ40: 52.53406906 | CA40: 53.24013392 | CC40: 1950 | CD40: ='Compile Data'!E349 -> 0 | CE40: ='Compile Data'!E350 -> 0 | CF40: ='Compile Data'!E351 -> 0 | CG40: ='Compile Data'!E352 -> 0 | CH40: ='Compile Data'!E353 -> 0 | CI40: ='Compile Data'!E354 -> 0 | CJ40: ='Compile Data'!E355 -> 0 | CK40: ='Compile Data'!E356 -> 0 | CL40: ='Compile Data'!E357 -> 0 | CM40: ='Compile Data'!E358 -> 0 | CN40: ='Compile Data'!E359 -> 0 | CO40: ='Compile Data'!E360 -> 0 | CQ40: 0 | CR40: 0 | CS40: 0 | CU40: 0 | CV40: 0 | CW40: 0 | CX40: 0 | CY40: 0 | DA40: 1950 | DB40: ='Compile Data'!F349 -> 0 | DC40: ='Compile Data'!F350 -> 0 | DD40: ='Compile Data'!F351 -> 0 | DE40: ='Compile Data'!F352 -> 0 | DF40: ='Compile Data'!F353 -> 0 | DG40: ='Compile Data'!F354 -> 0 | DH40: ='Compile Data'!F355 -> 0 | DI40: ='Compile Data'!F356 -> 0 | DJ40: ='Compile Data'!F357 -> 0 | DK40: ='Compile Data'!F358 -> 0 | DL40: ='Compile Data'!F359 -> 0 | DM40: ='Compile Data'!F360 -> 0 | DO40: 0 | DP40: 0 | DQ40: 0 | DS40: 0 | DT40: 0 | DU40: 0 | DV40: 0 | DW40: 0 | DY40: 1950 | DZ40: ='Compile Data'!G349 -> 0 | EA40: ='Compile Data'!G350 -> 0 | EB40: ='Compile Data'!G351 -> 0 | EC40: ='Compile Data'!G352 -> 0 | ED40: ='Compile Data'!G353 -> 0 | EE40: ='Compile Data'!G354 -> 0 | EF40: ='Compile Data'!G355 -> 0 | EG40: ='Compile Data'!G356 -> 0 | EH40: ='Compile Data'!G357 -> 0 | EI40: ='Compile Data'!G358 -> 0 | EJ40: ='Compile Data'!G359 -> 0 | EK40: ='Compile Data'!G360 -> 0 | EM40: 0 | EN40: 0 | EO40: 0 | EQ40: 0 | ER40: 0 | ES40: 0 | ET40: 0 | EU40: 0
A41: 1924-02-29 | B41: =IF(INDIRECT(CONCATENATE("'",B$1,"'!",B$4,(YEAR($A41)-1921)*12+MONTH($A41)+3+IF(ISNUMBER(FIND("PRV",B$6)),1,0)))=-901,NA(),INDIRECT(CONCATENATE("'",B$1,"'!",B$4,(YEAR($A41)-1921)*12+MONTH($A41)+3+IF(ISNUMBER(FIND("PRV",B$6)),1,0)))*IF(AND(B$3>0,TRIM(B$9)="CFS"),Conv_Flags!$C41,1)) -> 51.04753113 | C41: =IF(INDIRECT(CONCATENATE("'",C$1,"'!",C$4,(YEAR($A41)-1921)*12+MONTH($A41)+3+IF(ISNUMBER(FIND("PRV",C$6)),1,0)))=-901,NA(),INDIRECT(CONCATENATE("'",C$1,"'!",C$4,(YEAR($A41)-1921)*12+MONTH($A41)+3+IF(ISNUMBER(FIND("PRV",C$6)),1,0)))*IF(AND(C$3>0,TRIM(C$9)="CFS"),Conv_Flags!$C41,1)) -> 50.97108459 | D41: =IF(INDIRECT(CONCATENATE("'",D$1,"'!",D$4,(YEAR($A41)-1921)*12+MONTH($A41)+3+IF(ISNUMBER(FIND("PRV",D$6)),1,0)))=-901,NA(),INDIRECT(CONCATENATE("'",D$1,"'!",D$4,(YEAR($A41)-1921)*12+MONTH($A41)+3+IF(ISNUMBER(FIND("PRV",D$6)),1,0)))*IF(AND(D$3>0,TRIM(D$9)="CFS"),Conv_Flags!$C41,1)) -> 51.01120758 | E41: =IF(INDIRECT(CONCATENATE("'",E$1,"'!",E$4,(YEAR($A41)-1921)*12+MONTH($A41)+3+IF(ISNUMBER(FIND("PRV",E$6)),1,0)))=-901,NA(),INDIRECT(CONCATENATE("'",E$1,"'!",E$4,(YEAR($A41)-1921)*12+MONTH($A41)+3+IF(ISNUMBER(FIND("PRV",E$6)),1,0)))*IF(AND(E$3>0,TRIM(E$9)="CFS"),Conv_Flags!$C41,1)) -> 0 | F41: =IF(INDIRECT(CONCATENATE("'",F$1,"'!",F$4,(YEAR($A41)-1921)*12+MONTH($A41)+3+IF(ISNUMBER(FIND("PRV",F$6)),1,0)))=-901,NA(),INDIRECT(CONCATENATE("'",F$1,"'!",F$4,(YEAR($A41)-1921)*12+MONTH($A41)+3+IF(ISNUMBER(FIND("PRV",F$6)),1,0)))*IF(AND(F$3>0,TRIM(F$9)="CFS"),Conv_Flags!$C41,1)) -> 0 | G41: =IF(INDIRECT(CONCATENATE("'",G$1,"'!",G$4,(YEAR($A41)-1921)*12+MONTH($A41)+3+IF(ISNUMBER(FIND("PRV",G$6)),1,0)))=-901,NA(),INDIRECT(CONCATENATE("'",G$1,"'!",G$4,(YEAR($A41)-1921)*12+MONTH($A41)+3+IF(ISNUMBER(FIND("PRV",G$6)),1,0)))*IF(AND(G$3>0,TRIM(G$9)="CFS"),Conv_Flags!$C41,1)) -> 0 | I41: 1951 | J41: =B361 -> 52.4885788 | K41: =B362 -> 54.42496872 | L41: =B363 -> 51.05678177 | M41: =B364 -> 47.17129517 | N41: =B365 -> 46.21266174 | O41: =B366 -> 48.97087479 | P41: =B367 -> 52.81826401 | Q41: =B368 -> 53.60348892 | R41: =B369 -> 51.65775681 | S41: =B370 -> 51.87392044 | T41: =B371 -> 51.34556198 | U41: =B372 -> 50.74197769 | W41: 50.87202708 | X41: 50.74823062 | Y41: 51.0305109 | AA41: 51.28540611 | AB41: 48.14691289 | AC41: 51.76259613 | AD41: 51.40480423 | AE41: 52.03396479 | AG41: 1951 | AH41: ='Compile Data'!C361 -> 52.48591232 | AI41: ='Compile Data'!C362 -> 54.43220139 | AJ41: ='Compile Data'!C363 -> 51.00262833 | AK41: ='Compile Data'!C364 -> 47.13100433 | AL41: ='Compile Data'!C365 -> 46.18014908 | AM41: ='Compile Data'!C366 -> 48.93368149 | AN41: ='Compile Data'!C367 -> 52.83789062 | AO41: ='Compile Data'!C368 -> 53.83592606 | AP41: ='Compile Data'!C369 -> 51.64083481 | AQ41: ='Compile Data'!C370 -> 51.86928177 | AR41: ='Compile Data'!C371 -> 51.30575943 | AS41: ='Compile Data'!C372 -> 50.74520874 | AU41: 50.87842687 | AV41: 50.75889556 | AW41: 51.0333732 | AY41: 51.26293659 | AZ41: 48.10459391 | BA41: 51.81208324 | BB41: 51.39027119 | BC41: 52.03100713 | BE41: 1951 | BF41: ='Compile Data'!D361 -> 52.51621628 | BG41: ='Compile Data'!D362 -> 54.42422104 | BH41: ='Compile Data'!D363 -> 51.03347778 | BI41: ='Compile Data'!D364 -> 47.1493988 | BJ41: ='Compile Data'!D365 -> 46.20175171 | BK41: ='Compile Data'!D366 -> 48.94578934 | BL41: ='Compile Data'!D367 -> 52.85016251 | BM41: ='Compile Data'!D368 -> 53.84819031 | BN41: ='Compile Data'!D369 -> 51.62812805 | BO41: ='Compile Data'!D370 -> 51.87911606 | BP41: ='Compile Data'!D371 -> 51.30976486 | BQ41: ='Compile Data'!D372 -> 50.74810791 | BS41: 50.88431136 | BT41: 50.76236947 | BU41: 51.04452705 | BW41: 51.28082848 | BX41: 48.12820943 | BY41: 51.81806755 | BZ41: 51.39127922 | CA41: 52.02653631 | CC41: 1951 | CD41: ='Compile Data'!E361 -> 0 | CE41: ='Compile Data'!E362 -> 0 | CF41: ='Compile Data'!E363 -> 0 | CG41: ='Compile Data'!E364 -> 0 | CH41: ='Compile Data'!E365 -> 0 | CI41: ='Compile Data'!E366 -> 0 | CJ41: ='Compile Data'!E367 -> 0 | CK41: ='Compile Data'!E368 -> 0 | CL41: ='Compile Data'!E369 -> 0 | CM41: ='Compile Data'!E370 -> 0 | CN41: ='Compile Data'!E371 -> 0 | CO41: ='Compile Data'!E372 -> 0 | CQ41: 0 | CR41: 0 | CS41: 0 | CU41: 0 | CV41: 0 | CW41: 0 | CX41: 0 | CY41: 0 | DA41: 1951 | DB41: ='Compile Data'!F361 -> 0 | DC41: ='Compile Data'!F362 -> 0 | DD41: ='Compile Data'!F363 -> 0 | DE41: ='Compile Data'!F364 -> 0 | DF41: ='Compile Data'!F365 -> 0 | DG41: ='Compile Data'!F366 -> 0 | DH41: ='Compile Data'!F367 -> 0 | DI41: ='Compile Data'!F368 -> 0 | DJ41: ='Compile Data'!F369 -> 0 | DK41: ='Compile Data'!F370 -> 0 | DL41: ='Compile Data'!F371 -> 0 | DM41: ='Compile Data'!F372 -> 0 | DO41: 0 | DP41: 0 | DQ41: 0 | DS41: 0 | DT41: 0 | DU41: 0 | DV41: 0 | DW41: 0 | DY41: 1951 | DZ41: ='Compile Data'!G361 -> 0 | EA41: ='Compile Data'!G362 -> 0 | EB41: ='Compile Data'!G363 -> 0 | EC41: ='Compile Data'!G364 -> 0 | ED41: ='Compile Data'!G365 -> 0 | EE41: ='Compile Data'!G366 -> 0 | EF41: ='Compile Data'!G367 -> 0 | EG41: ='Compile Data'!G368 -> 0 | EH41: ='Compile Data'!G369 -> 0 | EI41: ='Compile Data'!G370 -> 0 | EJ41: ='Compile Data'!G371 -> 0 | EK41: ='Compile Data'!G372 -> 0 | EM41: 0 | EN41: 0 | EO41: 0 | EQ41: 0 | ER41: 0 | ES41: 0 | ET41: 0 | EU41: 0
A42: 1924-03-31 | B42: =IF(INDIRECT(CONCATENATE("'",B$1,"'!",B$4,(YEAR($A42)-1921)*12+MONTH($A42)+3+IF(ISNUMBER(FIND("PRV",B$6)),1,0)))=-901,NA(),INDIRECT(CONCATENATE("'",B$1,"'!",B$4,(YEAR($A42)-1921)*12+MONTH($A42)+3+IF(ISNUMBER(FIND("PRV",B$6)),1,0)))*IF(AND(B$3>0,TRIM(B$9)="CFS"),Conv_Flags!$C42,1)) -> 50.60562134 | C42: =IF(INDIRECT(CONCATENATE("'",C$1,"'!",C$4,(YEAR($A42)-1921)*12+MONTH($A42)+3+IF(ISNUMBER(FIND("PRV",C$6)),1,0)))=-901,NA(),INDIRECT(CONCATENATE("'",C$1,"'!",C$4,(YEAR($A42)-1921)*12+MONTH($A42)+3+IF(ISNUMBER(FIND("PRV",C$6)),1,0)))*IF(AND(C$3>0,TRIM(C$9)="CFS"),Conv_Flags!$C42,1)) -> 50.36113358 | D42: =IF(INDIRECT(CONCATENATE("'",D$1,"'!",D$4,(YEAR($A42)-1921)*12+MONTH($A42)+3+IF(ISNUMBER(FIND("PRV",D$6)),1,0)))=-901,NA(),INDIRECT(CONCATENATE("'",D$1,"'!",D$4,(YEAR($A42)-1921)*12+MONTH($A42)+3+IF(ISNUMBER(FIND("PRV",D$6)),1,0)))*IF(AND(D$3>0,TRIM(D$9)="CFS"),Conv_Flags!$C42,1)) -> 50.47861862 | E42: =IF(INDIRECT(CONCATENATE("'",E$1,"'!",E$4,(YEAR($A42)-1921)*12+MONTH($A42)+3+IF(ISNUMBER(FIND("PRV",E$6)),1,0)))=-901,NA(),INDIRECT(CONCATENATE("'",E$1,"'!",E$4,(YEAR($A42)-1921)*12+MONTH($A42)+3+IF(ISNUMBER(FIND("PRV",E$6)),1,0)))*IF(AND(E$3>0,TRIM(E$9)="CFS"),Conv_Flags!$C42,1)) -> 0 | F42: =IF(INDIRECT(CONCATENATE("'",F$1,"'!",F$4,(YEAR($A42)-1921)*12+MONTH($A42)+3+IF(ISNUMBER(FIND("PRV",F$6)),1,0)))=-901,NA(),INDIRECT(CONCATENATE("'",F$1,"'!",F$4,(YEAR($A42)-1921)*12+MONTH($A42)+3+IF(ISNUMBER(FIND("PRV",F$6)),1,0)))*IF(AND(F$3>0,TRIM(F$9)="CFS"),Conv_Flags!$C42,1)) -> 0 | G42: =IF(INDIRECT(CONCATENATE("'",G$1,"'!",G$4,(YEAR($A42)-1921)*12+MONTH($A42)+3+IF(ISNUMBER(FIND("PRV",G$6)),1,0)))=-901,NA(),INDIRECT(CONCATENATE("'",G$1,"'!",G$4,(YEAR($A42)-1921)*12+MONTH($A42)+3+IF(ISNUMBER(FIND("PRV",G$6)),1,0)))*IF(AND(G$3>0,TRIM(G$9)="CFS"),Conv_Flags!$C42,1)) -> 0 | I42: 1952 | J42: =B373 -> 52.04119873 | K42: =B374 -> 53.31871796 | L42: =B375 -> 50.70860672 | M42: =B376 -> 46.55085754 | N42: =B377 -> 45.34754181 | O42: =B378 -> 47.2266922 | P42: =B379 -> 50.77208328 | Q42: =B380 -> 54.31738663 | R42: =B381 -> 53.41481781 | S42: =B382 -> 53.50468063 | T42: =B383 -> 51.89917755 | U42: =B384 -> 50.6885376 | W42: 50.9564085 | X42: 51.14842065 | Y42: 50.81585821 | AA42: 50.65484524 | AB42: 47.53566869 | AC42: 51.43274498 | AD42: 52.3768034 | AE42: 52.08733495 | AG42: 1952 | AH42: ='Compile Data'!C373 -> 52.03073502 | AI42: ='Compile Data'!C374 -> 53.31707764 | AJ42: ='Compile Data'!C375 -> 50.71357346 | AK42: ='Compile Data'!C376 -> 46.53583145 | AL42: ='Compile Data'!C377 -> 45.3409462 | AM42: ='Compile Data'!C378 -> 47.21303558 | AN42: ='Compile Data'!C379 -> 50.7653923 | AO42: ='Compile Data'!C380 -> 54.31831741 | AP42: ='Compile Data'!C381 -> 53.5826683 | AQ42: ='Compile Data'!C382 -> 53.56008911 | AR42: ='Compile Data'!C383 -> 51.7508316 | AS42: ='Compile Data'!C384 -> 50.68886948 | AU42: 50.95826976 | AV42: 51.15330029 | AW42: 50.81811396 | AY42: 50.64930439 | AZ42: 47.53011703 | BA42: 51.4698534 | BB42: 52.39561462 | BC42: 52.07998021 | BE42: 1952 | BF42: ='Compile Data'!D373 -> 52.01760101 | BG42: ='Compile Data'!D374 -> 53.31389999 | BH42: ='Compile Data'!D375 -> 50.71982574 | BI42: ='Compile Data'!D376 -> 46.54455566 | BJ42: ='Compile Data'!D377 -> 45.34329224 | BK42: ='Compile Data'!D378 -> 47.21273804 | BL42: ='Compile Data'!D379 -> 50.76576614 | BM42: ='Compile Data'!D380 -> 54.32349396 | BN42: ='Compile Data'!D381 -> 53.58722305 | BO42: ='Compile Data'!D382 -> 53.56418228 | BP42: ='Compile Data'!D383 -> 51.75495148 | BQ42: ='Compile Data'!D384 -> 50.72054291 | BS42: 50.96365039 | BT42: 51.12882487 | BU42: 50.82233938 | BW42: 50.6489706 | BX42: 47.53589122 | BY42: 51.4723053 | BZ42: 52.40672493 | CA42: 52.09239451 | CC42: 1952 | CD42: ='Compile Data'!E373 -> 0 | CE42: ='Compile Data'!E374 -> 0 | CF42: ='Compile Data'!E375 -> 0 | CG42: ='Compile Data'!E376 -> 0 | CH42: ='Compile Data'!E377 -> 0 | CI42: ='Compile Data'!E378 -> 0 | CJ42: ='Compile Data'!E379 -> 0 | CK42: ='Compile Data'!E380 -> 0 | CL42: ='Compile Data'!E381 -> 0 | CM42: ='Compile Data'!E382 -> 0 | CN42: ='Compile Data'!E383 -> 0 | CO42: ='Compile Data'!E384 -> 0 | CQ42: 0 | CR42: 0 | CS42: 0 | CU42: 0 | CV42: 0 | CW42: 0 | CX42: 0 | CY42: 0 | DA42: 1952 | DB42: ='Compile Data'!F373 -> 0 | DC42: ='Compile Data'!F374 -> 0 | DD42: ='Compile Data'!F375 -> 0 | DE42: ='Compile Data'!F376 -> 0 | DF42: ='Compile Data'!F377 -> 0 | DG42: ='Compile Data'!F378 -> 0 | DH42: ='Compile Data'!F379 -> 0 | DI42: ='Compile Data'!F380 -> 0 | DJ42: ='Compile Data'!F381 -> 0 | DK42: ='Compile Data'!F382 -> 0 | DL42: ='Compile Data'!F383 -> 0 | DM42: ='Compile Data'!F384 -> 0 | DO42: 0 | DP42: 0 | DQ42: 0 | DS42: 0 | DT42: 0 | DU42: 0 | DV42: 0 | DW42: 0 | DY42: 1952 | DZ42: ='Compile Data'!G373 -> 0 | EA42: ='Compile Data'!G374 -> 0 | EB42: ='Compile Data'!G375 -> 0 | EC42: ='Compile Data'!G376 -> 0 | ED42: ='Compile Data'!G377 -> 0 | EE42: ='Compile Data'!G378 -> 0 | EF42: ='Compile Data'!G379 -> 0 | EG42: ='Compile Data'!G380 -> 0 | EH42: ='Compile Data'!G381 -> 0 | EI42: ='Compile Data'!G382 -> 0 | EJ42: ='Compile Data'!G383 -> 0 | EK42: ='Compile Data'!G384 -> 0 | EM42: 0 | EN42: 0 | EO42: 0 | EQ42: 0 | ER42: 0 | ES42: 0 | ET42: 0 | EU42: 0
A43: 1924-04-30 | B43: =IF(INDIRECT(CONCATENATE("'",B$1,"'!",B$4,(YEAR($A43)-1921)*12+MONTH($A43)+3+IF(ISNUMBER(FIND("PRV",B$6)),1,0)))=-901,NA(),INDIRECT(CONCATENATE("'",B$1,"'!",B$4,(YEAR($A43)-1921)*12+MONTH($A43)+3+IF(ISNUMBER(FIND("PRV",B$6)),1,0)))*IF(AND(B$3>0,TRIM(B$9)="CFS"),Conv_Flags!$C43,1)) -> 52.50468826 | C43: =IF(INDIRECT(CONCATENATE("'",C$1,"'!",C$4,(YEAR($A43)-1921)*12+MONTH($A43)+3+IF(ISNUMBER(FIND("PRV",C$6)),1,0)))=-901,NA(),INDIRECT(CONCATENATE("'",C$1,"'!",C$4,(YEAR($A43)-1921)*12+MONTH($A43)+3+IF(ISNUMBER(FIND("PRV",C$6)),1,0)))*IF(AND(C$3>0,TRIM(C$9)="CFS"),Conv_Flags!$C43,1)) -> 52.8470459 | D43: =IF(INDIRECT(CONCATENATE("'",D$1,"'!",D$4,(YEAR($A43)-1921)*12+MONTH($A43)+3+IF(ISNUMBER(FIND("PRV",D$6)),1,0)))=-901,NA(),INDIRECT(CONCATENATE("'",D$1,"'!",D$4,(YEAR($A43)-1921)*12+MONTH($A43)+3+IF(ISNUMBER(FIND("PRV",D$6)),1,0)))*IF(AND(D$3>0,TRIM(D$9)="CFS"),Conv_Flags!$C43,1)) -> 52.90725327 | E43: =IF(INDIRECT(CONCATENATE("'",E$1,"'!",E$4,(YEAR($A43)-1921)*12+MONTH($A43)+3+IF(ISNUMBER(FIND("PRV",E$6)),1,0)))=-901,NA(),INDIRECT(CONCATENATE("'",E$1,"'!",E$4,(YEAR($A43)-1921)*12+MONTH($A43)+3+IF(ISNUMBER(FIND("PRV",E$6)),1,0)))*IF(AND(E$3>0,TRIM(E$9)="CFS"),Conv_Flags!$C43,1)) -> 0 | F43: =IF(INDIRECT(CONCATENATE("'",F$1,"'!",F$4,(YEAR($A43)-1921)*12+MONTH($A43)+3+IF(ISNUMBER(FIND("PRV",F$6)),1,0)))=-901,NA(),INDIRECT(CONCATENATE("'",F$1,"'!",F$4,(YEAR($A43)-1921)*12+MONTH($A43)+3+IF(ISNUMBER(FIND("PRV",F$6)),1,0)))*IF(AND(F$3>0,TRIM(F$9)="CFS"),Conv_Flags!$C43,1)) -> 0 | G43: =IF(INDIRECT(CONCATENATE("'",G$1,"'!",G$4,(YEAR($A43)-1921)*12+MONTH($A43)+3+IF(ISNUMBER(FIND("PRV",G$6)),1,0)))=-901,NA(),INDIRECT(CONCATENATE("'",G$1,"'!",G$4,(YEAR($A43)-1921)*12+MONTH($A43)+3+IF(ISNUMBER(FIND("PRV",G$6)),1,0)))*IF(AND(G$3>0,TRIM(G$9)="CFS"),Conv_Flags!$C43,1)) -> 0 | I43: 1953 | J43: =B385 -> 51.5933876 | K43: =B386 -> 53.98007965 | L43: =B387 -> 52.1816597 | M43: =B388 -> 47.35276031 | N43: =B389 -> 46.84978485 | O43: =B390 -> 49.33079529 | P43: =B391 -> 52.96358871 | Q43: =B392 -> 51.87304306 | R43: =B393 -> 52.67179108 | S43: =B394 -> 52.07956696 | T43: =B395 -> 51.57938385 | U43: =B396 -> 51.2109642 | W43: 51.0845693 | X43: 51.12895743 | Y43: 51.13890044 | AA43: 51.27697182 | AB43: 48.79473495 | AC43: 51.70980453 | AD43: 51.88542652 | AE43: 52.21527735 | AG43: 1953 | AH43: ='Compile Data'!C385 -> 51.57712555 | AI43: ='Compile Data'!C386 -> 53.97394562 | AJ43: ='Compile Data'!C387 -> 52.19218445 | AK43: ='Compile Data'!C388 -> 47.36423111 | AL43: ='Compile Data'!C389 -> 46.8529129 | AM43: ='Compile Data'!C390 -> 49.33543777 | AN43: ='Compile Data'!C391 -> 52.97523499 | AO43: ='Compile Data'!C392 -> 51.87215424 | AP43: ='Compile Data'!C393 -> 52.7097168 | AQ43: ='Compile Data'!C394 -> 52.0796051 | AR43: ='Compile Data'!C395 -> 51.57808304 | AS43: ='Compile Data'!C396 -> 51.12269974 | AU43: 51.09074593 | AV43: 51.13436762 | AW43: 51.13611094 | AY43: 51.27687168 | AZ43: 48.80310949 | BA43: 51.72313595 | BB43: 51.87252617 | BC43: 52.19777552 | BE43: 1953 | BF43: ='Compile Data'!D385 -> 51.58241653 | BG43: ='Compile Data'!D386 -> 53.97422409 | BH43: ='Compile Data'!D387 -> 52.19041824 | BI43: ='Compile Data'!D388 -> 47.35524368 | BJ43: ='Compile Data'!D389 -> 46.51469803 | BK43: ='Compile Data'!D390 -> 49.34759521 | BL43: ='Compile Data'!D391 -> 53.2216835 | BM43: ='Compile Data'!D392 -> 52.35770416 | BN43: ='Compile Data'!D393 -> 52.7194519 | BO43: ='Compile Data'!D394 -> 52.08069611 | BP43: ='Compile Data'!D395 -> 51.56511307 | BQ43: ='Compile Data'!D396 -> 51.15203476 | BS43: 51.12617207 | BT43: 51.19782925 | BU43: 51.17177327 | BW43: 51.27557564 | BX43: 48.68678665 | BY43: 51.9116087 | BZ43: 51.87932396 | CA43: 52.20319112 | CC43: 1953 | CD43: ='Compile Data'!E385 -> 0 | CE43: ='Compile Data'!E386 -> 0 | CF43: ='Compile Data'!E387 -> 0 | CG43: ='Compile Data'!E388 -> 0 | CH43: ='Compile Data'!E389 -> 0 | CI43: ='Compile Data'!E390 -> 0 | CJ43: ='Compile Data'!E391 -> 0 | CK43: ='Compile Data'!E392 -> 0 | CL43: ='Compile Data'!E393 -> 0 | CM43: ='Compile Data'!E394 -> 0 | CN43: ='Compile Data'!E395 -> 0 | CO43: ='Compile Data'!E396 -> 0 | CQ43: 0 | CR43: 0 | CS43: 0 | CU43: 0 | CV43: 0 | CW43: 0 | CX43: 0 | CY43: 0 | DA43: 1953 | DB43: ='Compile Data'!F385 -> 0 | DC43: ='Compile Data'!F386 -> 0 | DD43: ='Compile Data'!F387 -> 0 | DE43: ='Compile Data'!F388 -> 0 | DF43: ='Compile Data'!F389 -> 0 | DG43: ='Compile Data'!F390 -> 0 | DH43: ='Compile Data'!F391 -> 0 | DI43: ='Compile Data'!F392 -> 0 | DJ43: ='Compile Data'!F393 -> 0 | DK43: ='Compile Data'!F394 -> 0 | DL43: ='Compile Data'!F395 -> 0 | DM43: ='Compile Data'!F396 -> 0 | DO43: 0 | DP43: 0 | DQ43: 0 | DS43: 0 | DT43: 0 | DU43: 0 | DV43: 0 | DW43: 0 | DY43: 1953 | DZ43: ='Compile Data'!G385 -> 0 | EA43: ='Compile Data'!G386 -> 0 | EB43: ='Compile Data'!G387 -> 0 | EC43: ='Compile Data'!G388 -> 0 | ED43: ='Compile Data'!G389 -> 0 | EE43: ='Compile Data'!G390 -> 0 | EF43: ='Compile Data'!G391 -> 0 | EG43: ='Compile Data'!G392 -> 0 | EH43: ='Compile Data'!G393 -> 0 | EI43: ='Compile Data'!G394 -> 0 | EJ43: ='Compile Data'!G395 -> 0 | EK43: ='Compile Data'!G396 -> 0 | EM43: 0 | EN43: 0 | EO43: 0 | EQ43: 0 | ER43: 0 | ES43: 0 | ET43: 0 | EU43: 0
A44: 1924-05-31 | B44: =IF(INDIRECT(CONCATENATE("'",B$1,"'!",B$4,(YEAR($A44)-1921)*12+MONTH($A44)+3+IF(ISNUMBER(FIND("PRV",B$6)),1,0)))=-901,NA(),INDIRECT(CONCATENATE("'",B$1,"'!",B$4,(YEAR($A44)-1921)*12+MONTH($A44)+3+IF(ISNUMBER(FIND("PRV",B$6)),1,0)))*IF(AND(B$3>0,TRIM(B$9)="CFS"),Conv_Flags!$C44,1)) -> 55.05237198 | C44: =IF(INDIRECT(CONCATENATE("'",C$1,"'!",C$4,(YEAR($A44)-1921)*12+MONTH($A44)+3+IF(ISNUMBER(FIND("PRV",C$6)),1,0)))=-901,NA(),INDIRECT(CONCATENATE("'",C$1,"'!",C$4,(YEAR($A44)-1921)*12+MONTH($A44)+3+IF(ISNUMBER(FIND("PRV",C$6)),1,0)))*IF(AND(C$3>0,TRIM(C$9)="CFS"),Conv_Flags!$C44,1)) -> 54.08725357 | D44: =IF(INDIRECT(CONCATENATE("'",D$1,"'!",D$4,(YEAR($A44)-1921)*12+MONTH($A44)+3+IF(ISNUMBER(FIND("PRV",D$6)),1,0)))=-901,NA(),INDIRECT(CONCATENATE("'",D$1,"'!",D$4,(YEAR($A44)-1921)*12+MONTH($A44)+3+IF(ISNUMBER(FIND("PRV",D$6)),1,0)))*IF(AND(D$3>0,TRIM(D$9)="CFS"),Conv_Flags!$C44,1)) -> 54.16097641 | E44: =IF(INDIRECT(CONCATENATE("'",E$1,"'!",E$4,(YEAR($A44)-1921)*12+MONTH($A44)+3+IF(ISNUMBER(FIND("PRV",E$6)),1,0)))=-901,NA(),INDIRECT(CONCATENATE("'",E$1,"'!",E$4,(YEAR($A44)-1921)*12+MONTH($A44)+3+IF(ISNUMBER(FIND("PRV",E$6)),1,0)))*IF(AND(E$3>0,TRIM(E$9)="CFS"),Conv_Flags!$C44,1)) -> 0 | F44: =IF(INDIRECT(CONCATENATE("'",F$1,"'!",F$4,(YEAR($A44)-1921)*12+MONTH($A44)+3+IF(ISNUMBER(FIND("PRV",F$6)),1,0)))=-901,NA(),INDIRECT(CONCATENATE("'",F$1,"'!",F$4,(YEAR($A44)-1921)*12+MONTH($A44)+3+IF(ISNUMBER(FIND("PRV",F$6)),1,0)))*IF(AND(F$3>0,TRIM(F$9)="CFS"),Conv_Flags!$C44,1)) -> 0 | G44: =IF(INDIRECT(CONCATENATE("'",G$1,"'!",G$4,(YEAR($A44)-1921)*12+MONTH($A44)+3+IF(ISNUMBER(FIND("PRV",G$6)),1,0)))=-901,NA(),INDIRECT(CONCATENATE("'",G$1,"'!",G$4,(YEAR($A44)-1921)*12+MONTH($A44)+3+IF(ISNUMBER(FIND("PRV",G$6)),1,0)))*IF(AND(G$3>0,TRIM(G$9)="CFS"),Conv_Flags!$C44,1)) -> 0 | I44: 1954 | J44: =B397 -> 51.61816025 | K44: =B398 -> 53.81670761 | L44: =B399 -> 51.66828537 | M44: =B400 -> 48.25395966 | N44: =B401 -> 46.48124313 | O44: =B402 -> 47.87683868 | P44: =B403 -> 50.8868103 | Q44: =B404 -> 52.74924088 | R44: =B405 -> 52.34954071 | S44: =B406 -> 52.18169022 | T44: =B407 -> 51.52671432 | U44: =B408 -> 50.78051376 | W44: =IF(W$11="AVG",AVERAGE(M44:U44,J45:L45),SUM(M44:U44,J45:L45)) -> 50.83113352 | X44: =IF(X$11="AVG",AVERAGE(O44:U44,J45:N45),SUM(O44:U44,J45:N45)) -> 50.98299662 | Y44: =IF(Y$11="AVG",AVERAGE(J44:U44),SUM(J44:U44)) -> 50.84914207 | AA44: =IF(AA$11="AVG",IF(AA$1="INST-VAL",AVERAGE(U43,J44:L44,J44:M44),AVERAGE(J44:M44)),SUM(J44:M44)) -> 51.33927822 | AB44: =IF(AB$11="AVG",IF(AA$1="INST-VAL",AVERAGE(K44:M44,L44:N44),AVERAGE(L44:N44)),SUM(L44:N44)) -> 48.80116272 | AC44: =IF(AC$11="AVG",IF(AA$1="INST-VAL",AVERAGE(N44:Q44,O44:R44),AVERAGE(O44:R44)),SUM(O44:R44)) -> 50.96560764 | AD44: =IF(AD$11="AVG",IF(AA$1="INST-VAL",AVERAGE(Q44:T44,R44:U44),AVERAGE(R44:U44)),SUM(R44:U44)) -> 51.70961475 | AE44: =IF(AE$11="AVG",IF(AA$1="INST-VAL",AVERAGE(T44:U44,J45,U44,J45:K45),AVERAGE(U44,J45:K45)),SUM(U44,J45:K45)) -> 51.94138718 | AG44: 1954 | AH44: ='Compile Data'!C397 -> 51.64138031 | AI44: ='Compile Data'!C398 -> 53.82924652 | AJ44: ='Compile Data'!C399 -> 51.7282486 | AK44: ='Compile Data'!C400 -> 48.2529335 | AL44: ='Compile Data'!C401 -> 46.4876709 | AM44: ='Compile Data'!C402 -> 47.88514709 | AN44: ='Compile Data'!C403 -> 50.88087463 | AO44: ='Compile Data'!C404 -> 52.62495422 | AP44: ='Compile Data'!C405 -> 53.02677155 | AQ44: ='Compile Data'!C406 -> 52.48065948 | AR44: ='Compile Data'!C407 -> 52.02202225 | AS44: ='Compile Data'!C408 -> 51.08730316 | AU44: =IF(AU$11="AVG",AVERAGE(AK44:AS44,AH45:AJ45),SUM(AK44:AS44,AH45:AJ45)) -> 50.95486609 | AV44: =IF(AV$11="AVG",AVERAGE(AM44:AS44,AH45:AL45),SUM(AM44:AS44,AH45:AL45)) -> 51.06970501 | AW44: =IF(AW$11="AVG",AVERAGE(AH44:AS44),SUM(AH44:AS44)) -> 50.99560102 | AY44: =IF(AY$11="AVG",IF(AY$1="INST-VAL",AVERAGE(AS43,AH44:AJ44,AH44:AK44),AVERAGE(AH44:AK44)),SUM(AH44:AK44)) -> 51.36295223 | AZ44: =IF(AZ$11="AVG",IF(AY$1="INST-VAL",AVERAGE(AI44:AK44,AJ44:AL44),AVERAGE(AJ44:AL44)),SUM(AJ44:AL44)) -> 48.822951 | BA44: =IF(BA$11="AVG",IF(AY$1="INST-VAL",AVERAGE(AL44:AO44,AM44:AP44),AVERAGE(AM44:AP44)),SUM(AM44:AP44)) -> 51.10443687 | BB44: =IF(BB$11="AVG",IF(AY$1="INST-VAL",AVERAGE(AO44:AR44,AP44:AS44),AVERAGE(AP44:AS44)),SUM(AP44:AS44)) -> 52.15418911 | BC44: =IF(BC$11="AVG",IF(AY$1="INST-VAL",AVERAGE(AR44:AS44,AH45,AS44,AH45:AI45),AVERAGE(AS44,AH45:AI45)),SUM(AS44,AH45:AI45)) -> 52.05743027 | BE44: 1954 | BF44: ='Compile Data'!D397 -> 51.639431 | BG44: ='Compile Data'!D398 -> 53.8181076 | BH44: ='Compile Data'!D399 -> 51.74230576 | BI44: ='Compile Data'!D400 -> 48.25123596 | BJ44: ='Compile Data'!D401 -> 46.47859192 | BK44: ='Compile Data'!D402 -> 47.88728333 | BL44: ='Compile Data'!D403 -> 50.88555527 | BM44: ='Compile Data'!D404 -> 52.90130234 | BN44: ='Compile Data'!D405 -> 53.00572205 | BO44: ='Compile Data'!D406 -> 52.19944763 | BP44: ='Compile Data'!D407 -> 51.71741104 | BQ44: ='Compile Data'!D408 -> 51.0188179 | BS44: =IF(BS$11="AVG",AVERAGE(BI44:BQ44,BF45:BH45),SUM(BI44:BQ44,BF45:BH45)) -> 50.92535559 | BT44: =IF(BT$11="AVG",AVERAGE(BK44:BQ44,BF45:BJ45),SUM(BK44:BQ44,BF45:BJ45)) -> 51.05484835 | BU44: =IF(BU$11="AVG",AVERAGE(BF44:BQ44),SUM(BF44:BQ44)) -> 50.96210098 | BW44: =IF(BW$11="AVG",IF(BW$1="INST-VAL",AVERAGE(BQ43,BF44:BH44,BF44:BI44),AVERAGE(BF44:BI44)),SUM(BF44:BI44)) -> 51.36277008 | BX44: =IF(BX$11="AVG",IF(BW$1="INST-VAL",AVERAGE(BG44:BI44,BH44:BJ44),AVERAGE(BH44:BJ44)),SUM(BH44:BJ44)) -> 48.82404455 | BY44: =IF(BY$11="AVG",IF(BW$1="INST-VAL",AVERAGE(BJ44:BM44,BK44:BN44),AVERAGE(BK44:BN44)),SUM(BK44:BN44)) -> 51.16996574 | BZ44: =IF(BZ$11="AVG",IF(BW$1="INST-VAL",AVERAGE(BM44:BP44,BN44:BQ44),AVERAGE(BN44:BQ44)),SUM(BN44:BQ44)) -> 51.98534966 | CA44: =IF(CA$11="AVG",IF(BW$1="INST-VAL",AVERAGE(BP44:BQ44,BF45,BQ44,BF45:BG45),AVERAGE(BQ44,BF45:BG45)),SUM(BQ44,BF45:BG45)) -> 52.05209223 | CC44: 1954 | CD44: ='Compile Data'!E397 -> 0 | CE44: ='Compile Data'!E398 -> 0 | CF44: ='Compile Data'!E399 -> 0 | CG44: ='Compile Data'!E400 -> 0 | CH44: ='Compile Data'!E401 -> 0 | CI44: ='Compile Data'!E402 -> 0 | CJ44: ='Compile Data'!E403 -> 0 | CK44: ='Compile Data'!E404 -> 0 | CL44: ='Compile Data'!E405 -> 0 | CM44: ='Compile Data'!E406 -> 0 | CN44: ='Compile Data'!E407 -> 0 | CO44: ='Compile Data'!E408 -> 0 | CQ44: =IF(CQ$11="AVG",AVERAGE(CG44:CO44,CD45:CF45),SUM(CG44:CO44,CD45:CF45)) -> 0 | CR44: =IF(CR$11="AVG",AVERAGE(CI44:CO44,CD45:CH45),SUM(CI44:CO44,CD45:CH45)) -> 0 | CS44: =IF(CS$11="AVG",AVERAGE(CD44:CO44),SUM(CD44:CO44)) -> 0 | CU44: =IF(CU$11="AVG",IF(CU$1="INST-VAL",AVERAGE(CO43,CD44:CF44,CD44:CG44),AVERAGE(CD44:CG44)),SUM(CD44:CG44)) -> 0 | CV44: =IF(CV$11="AVG",IF(CU$1="INST-VAL",AVERAGE(CE44:CG44,CF44:CH44),AVERAGE(CF44:CH44)),SUM(CF44:CH44)) -> 0 | CW44: =IF(CW$11="AVG",IF(CU$1="INST-VAL",AVERAGE(CH44:CK44,CI44:CL44),AVERAGE(CI44:CL44)),SUM(CI44:CL44)) -> 0 | CX44: =IF(CX$11="AVG",IF(CU$1="INST-VAL",AVERAGE(CK44:CN44,CL44:CO44),AVERAGE(CL44:CO44)),SUM(CL44:CO44)) -> 0 | CY44: =IF(CY$11="AVG",IF(CU$1="INST-VAL",AVERAGE(CN44:CO44,CD45,CO44,CD45:CE45),AVERAGE(CO44,CD45:CE45)),SUM(CO44,CD45:CE45)) -> 0 | DA44: 1954 | DB44: ='Compile Data'!F397 -> 0 | DC44: ='Compile Data'!F398 -> 0 | DD44: ='Compile Data'!F399 -> 0 | DE44: ='Compile Data'!F400 -> 0 | DF44: ='Compile Data'!F401 -> 0 | DG44: ='Compile Data'!F402 -> 0 | DH44: ='Compile Data'!F403 -> 0 | DI44: ='Compile Data'!F404 -> 0 | DJ44: ='Compile Data'!F405 -> 0 | DK44: ='Compile Data'!F406 -> 0 | DL44: ='Compile Data'!F407 -> 0 | DM44: ='Compile Data'!F408 -> 0 | DO44: 0 | DP44: 0 | DQ44: 0 | DS44: 0 | DT44: 0 | DU44: 0 | DV44: 0 | DW44: 0 | DY44: 1954 | DZ44: ='Compile Data'!G397 -> 0 | EA44: ='Compile Data'!G398 -> 0 | EB44: ='Compile Data'!G399 -> 0 | EC44: ='Compile Data'!G400 -> 0 | ED44: ='Compile Data'!G401 -> 0 | EE44: ='Compile Data'!G402 -> 0 | EF44: ='Compile Data'!G403 -> 0 | EG44: ='Compile Data'!G404 -> 0 | EH44: ='Compile Data'!G405 -> 0 | EI44: ='Compile Data'!G406 -> 0 | EJ44: ='Compile Data'!G407 -> 0 | EK44: ='Compile Data'!G408 -> 0 | EM44: =IF(EM$11="AVG",AVERAGE(EC44:EK44,DZ45:EB45),SUM(EC44:EK44,DZ45:EB45)) -> 0 | EN44: =IF(EN$11="AVG",AVERAGE(EE44:EK44,DZ45:ED45),SUM(EE44:EK44,DZ45:ED45)) -> 0 | EO44: 0 | EQ44: 0 | ER44: 0 | ES44: =IF(ES$11="AVG",IF(EQ$1="INST-VAL",AVERAGE(ED44:EG44,EE44:EH44),AVERAGE(EE44:EH44)),SUM(EE44:EH44)) -> 0 | ET44: =IF(ET$11="AVG",IF(EQ$1="INST-VAL",AVERAGE(EG44:EJ44,EH44:EK44),AVERAGE(EH44:EK44)),SUM(EH44:EK44)) -> 0 | EU44: =IF(EU$11="AVG",IF(EQ$1="INST-VAL",AVERAGE(EJ44:EK44,DZ45,EK44,DZ45:EA45),AVERAGE(EK44,DZ45:EA45)),SUM(EK44,DZ45:EA45)) -> 0
A45: 1924-06-30 | B45: =IF(INDIRECT(CONCATENATE("'",B$1,"'!",B$4,(YEAR($A45)-1921)*12+MONTH($A45)+3+IF(ISNUMBER(FIND("PRV",B$6)),1,0)))=-901,NA(),INDIRECT(CONCATENATE("'",B$1,"'!",B$4,(YEAR($A45)-1921)*12+MONTH($A45)+3+IF(ISNUMBER(FIND("PRV",B$6)),1,0)))*IF(AND(B$3>0,TRIM(B$9)="CFS"),Conv_Flags!$C45,1)) -> 56.3149147 | C45: =IF(INDIRECT(CONCATENATE("'",C$1,"'!",C$4,(YEAR($A45)-1921)*12+MONTH($A45)+3+IF(ISNUMBER(FIND("PRV",C$6)),1,0)))=-901,NA(),INDIRECT(CONCATENATE("'",C$1,"'!",C$4,(YEAR($A45)-1921)*12+MONTH($A45)+3+IF(ISNUMBER(FIND("PRV",C$6)),1,0)))*IF(AND(C$3>0,TRIM(C$9)="CFS"),Conv_Flags!$C45,1)) -> 56.32482529 | D45: =IF(INDIRECT(CONCATENATE("'",D$1,"'!",D$4,(YEAR($A45)-1921)*12+MONTH($A45)+3+IF(ISNUMBER(FIND("PRV",D$6)),1,0)))=-901,NA(),INDIRECT(CONCATENATE("'",D$1,"'!",D$4,(YEAR($A45)-1921)*12+MONTH($A45)+3+IF(ISNUMBER(FIND("PRV",D$6)),1,0)))*IF(AND(D$3>0,TRIM(D$9)="CFS"),Conv_Flags!$C45,1)) -> 56.50957489 | E45: =IF(INDIRECT(CONCATENATE("'",E$1,"'!",E$4,(YEAR($A45)-1921)*12+MONTH($A45)+3+IF(ISNUMBER(FIND("PRV",E$6)),1,0)))=-901,NA(),INDIRECT(CONCATENATE("'",E$1,"'!",E$4,(YEAR($A45)-1921)*12+MONTH($A45)+3+IF(ISNUMBER(FIND("PRV",E$6)),1,0)))*IF(AND(E$3>0,TRIM(E$9)="CFS"),Conv_Flags!$C45,1)) -> 0 | F45: =IF(INDIRECT(CONCATENATE("'",F$1,"'!",F$4,(YEAR($A45)-1921)*12+MONTH($A45)+3+IF(ISNUMBER(FIND("PRV",F$6)),1,0)))=-901,NA(),INDIRECT(CONCATENATE("'",F$1,"'!",F$4,(YEAR($A45)-1921)*12+MONTH($A45)+3+IF(ISNUMBER(FIND("PRV",F$6)),1,0)))*IF(AND(F$3>0,TRIM(F$9)="CFS"),Conv_Flags!$C45,1)) -> 0 | G45: =IF(INDIRECT(CONCATENATE("'",G$1,"'!",G$4,(YEAR($A45)-1921)*12+MONTH($A45)+3+IF(ISNUMBER(FIND("PRV",G$6)),1,0)))=-901,NA(),INDIRECT(CONCATENATE("'",G$1,"'!",G$4,(YEAR($A45)-1921)*12+MONTH($A45)+3+IF(ISNUMBER(FIND("PRV",G$6)),1,0)))*IF(AND(G$3>0,TRIM(G$9)="CFS"),Conv_Flags!$C45,1)) -> 0 | I45: 1955 | J45: =B409 -> 51.71241379 | K45: =B410 -> 53.33123398 | L45: =B411 -> 51.84340286 | M45: =B412 -> 48.40589905 | N45: =B413 -> 48.15166092 | O45: =B414 -> 50.53573227 | P45: =B415 -> 54.17488861 | Q45: =B416 -> 53.44681931 | R45: =B417 -> 51.86289597 | S45: =B418 -> 52.54442596 | T45: =B419 -> 52.1807518 | U45: =B420 -> 53.45211411 | W45: 51.85052649 | X45: 51.29260445 | Y45: 51.80351988 | AA45: 51.32323742 | AB45: 49.46698761 | AC45: 52.50508404 | AD45: 52.51004696 | AE45: 53.23300298 | AG45: 1955 | AH45: ='Compile Data'!C409 -> 51.72089386 | AI45: ='Compile Data'!C410 -> 53.36409378 | AJ45: ='Compile Data'!C411 -> 51.62506866 | AK45: ='Compile Data'!C412 -> 47.94740677 | AL45: ='Compile Data'!C413 -> 48.17126465 | AM45: ='Compile Data'!C414 -> 50.20860672 | AN45: ='Compile Data'!C415 -> 53.86797333 | AO45: ='Compile Data'!C416 -> 53.35686874 | AP45: ='Compile Data'!C417 -> 51.77313614 | AQ45: ='Compile Data'!C418 -> 52.56368256 | AR45: ='Compile Data'!C419 -> 52.11827469 | AS45: ='Compile Data'!C420 -> 52.9305191 | AU45: 51.70567449 | AV45: 51.17326037 | AW45: 51.63731575 | AY45: 51.16436577 | AZ45: 49.24791336 | BA45: 52.30164623 | BB45: 52.34640312 | BC45: 53.14424769 | BE45: 1955 | BF45: ='Compile Data'!D409 -> 51.71374893 | BG45: ='Compile Data'!D410 -> 53.42370987 | BH45: ='Compile Data'!D411 -> 51.62144089 | BI45: ='Compile Data'!D412 -> 48.01777649 | BJ45: ='Compile Data'!D413 -> 48.26596451 | BK45: ='Compile Data'!D414 -> 50.27370834 | BL45: ='Compile Data'!D415 -> 53.90246582 | BM45: ='Compile Data'!D416 -> 53.26390839 | BN45: ='Compile Data'!D417 -> 51.74977875 | BO45: ='Compile Data'!D418 -> 52.57265091 | BP45: ='Compile Data'!D419 -> 52.02374268 | BQ45: ='Compile Data'!D420 -> 52.98077011 | BS45: 51.72505633 | BT45: 51.18518702 | BU45: 51.65080547 | BW45: 51.19416904 | BX45: 49.30172729 | BY45: 52.29746532 | BZ45: 52.33173561 | CA45: 53.1708196 | CC45: 1955 | CD45: ='Compile Data'!E409 -> 0 | CE45: ='Compile Data'!E410 -> 0 | CF45: ='Compile Data'!E411 -> 0 | CG45: ='Compile Data'!E412 -> 0 | CH45: ='Compile Data'!E413 -> 0 | CI45: ='Compile Data'!E414 -> 0 | CJ45: ='Compile Data'!E415 -> 0 | CK45: ='Compile Data'!E416 -> 0 | CL45: ='Compile Data'!E417 -> 0 | CM45: ='Compile Data'!E418 -> 0 | CN45: ='Compile Data'!E419 -> 0 | CO45: ='Compile Data'!E420 -> 0 | CQ45: 0 | CR45: 0 | CS45: 0 | CU45: 0 | CV45: 0 | CW45: 0 | CX45: 0 | CY45: 0 | DA45: 1955 | DB45: ='Compile Data'!F409 -> 0 | DC45: ='Compile Data'!F410 -> 0 | DD45: ='Compile Data'!F411 -> 0 | DE45: ='Compile Data'!F412 -> 0 | DF45: ='Compile Data'!F413 -> 0 | DG45: ='Compile Data'!F414 -> 0 | DH45: ='Compile Data'!F415 -> 0 | DI45: ='Compile Data'!F416 -> 0 | DJ45: ='Compile Data'!F417 -> 0 | DK45: ='Compile Data'!F418 -> 0 | DL45: ='Compile Data'!F419 -> 0 | DM45: ='Compile Data'!F420 -> 0 | DO45: 0 | DP45: 0 | DQ45: 0 | DS45: 0 | DT45: 0 | DU45: 0 | DV45: 0 | DW45: 0 | DY45: 1955 | DZ45: ='Compile Data'!G409 -> 0 | EA45: ='Compile Data'!G410 -> 0 | EB45: ='Compile Data'!G411 -> 0 | EC45: ='Compile Data'!G412 -> 0 | ED45: ='Compile Data'!G413 -> 0 | EE45: ='Compile Data'!G414 -> 0 | EF45: ='Compile Data'!G415 -> 0 | EG45: ='Compile Data'!G416 -> 0 | EH45: ='Compile Data'!G417 -> 0 | EI45: ='Compile Data'!G418 -> 0 | EJ45: ='Compile Data'!G419 -> 0 | EK45: ='Compile Data'!G420 -> 0 | EM45: 0 | EN45: 0 | EO45: =IF(EO$11="AVG",AVERAGE(DZ45:EK45),SUM(DZ45:EK45)) -> 0 | EQ45: =IF(EQ$11="AVG",IF(EQ$1="INST-VAL",AVERAGE(EK44,DZ45:EB45,DZ45:EC45),AVERAGE(DZ45:EC45)),SUM(DZ45:EC45)) -> 0 | ER45: =IF(ER$11="AVG",IF(EQ$1="INST-VAL",AVERAGE(EA45:EC45,EB45:ED45),AVERAGE(EB45:ED45)),SUM(EB45:ED45)) -> 0 | ES45: 0 | ET45: 0 | EU45: 0
A46: 1924-07-31 | B46: =IF(INDIRECT(CONCATENATE("'",B$1,"'!",B$4,(YEAR($A46)-1921)*12+MONTH($A46)+3+IF(ISNUMBER(FIND("PRV",B$6)),1,0)))=-901,NA(),INDIRECT(CONCATENATE("'",B$1,"'!",B$4,(YEAR($A46)-1921)*12+MONTH($A46)+3+IF(ISNUMBER(FIND("PRV",B$6)),1,0)))*IF(AND(B$3>0,TRIM(B$9)="CFS"),Conv_Flags!$C46,1)) -> 54.89344406 | C46: =IF(INDIRECT(CONCATENATE("'",C$1,"'!",C$4,(YEAR($A46)-1921)*12+MONTH($A46)+3+IF(ISNUMBER(FIND("PRV",C$6)),1,0)))=-901,NA(),INDIRECT(CONCATENATE("'",C$1,"'!",C$4,(YEAR($A46)-1921)*12+MONTH($A46)+3+IF(ISNUMBER(FIND("PRV",C$6)),1,0)))*IF(AND(C$3>0,TRIM(C$9)="CFS"),Conv_Flags!$C46,1)) -> 54.80548477 | D46: =IF(INDIRECT(CONCATENATE("'",D$1,"'!",D$4,(YEAR($A46)-1921)*12+MONTH($A46)+3+IF(ISNUMBER(FIND("PRV",D$6)),1,0)))=-901,NA(),INDIRECT(CONCATENATE("'",D$1,"'!",D$4,(YEAR($A46)-1921)*12+MONTH($A46)+3+IF(ISNUMBER(FIND("PRV",D$6)),1,0)))*IF(AND(D$3>0,TRIM(D$9)="CFS"),Conv_Flags!$C46,1)) -> 54.84751511 | E46: =IF(INDIRECT(CONCATENATE("'",E$1,"'!",E$4,(YEAR($A46)-1921)*12+MONTH($A46)+3+IF(ISNUMBER(FIND("PRV",E$6)),1,0)))=-901,NA(),INDIRECT(CONCATENATE("'",E$1,"'!",E$4,(YEAR($A46)-1921)*12+MONTH($A46)+3+IF(ISNUMBER(FIND("PRV",E$6)),1,0)))*IF(AND(E$3>0,TRIM(E$9)="CFS"),Conv_Flags!$C46,1)) -> 0 | F46: =IF(INDIRECT(CONCATENATE("'",F$1,"'!",F$4,(YEAR($A46)-1921)*12+MONTH($A46)+3+IF(ISNUMBER(FIND("PRV",F$6)),1,0)))=-901,NA(),INDIRECT(CONCATENATE("'",F$1,"'!",F$4,(YEAR($A46)-1921)*12+MONTH($A46)+3+IF(ISNUMBER(FIND("PRV",F$6)),1,0)))*IF(AND(F$3>0,TRIM(F$9)="CFS"),Conv_Flags!$C46,1)) -> 0 | G46: =IF(INDIRECT(CONCATENATE("'",G$1,"'!",G$4,(YEAR($A46)-1921)*12+MONTH($A46)+3+IF(ISNUMBER(FIND("PRV",G$6)),1,0)))=-901,NA(),INDIRECT(CONCATENATE("'",G$1,"'!",G$4,(YEAR($A46)-1921)*12+MONTH($A46)+3+IF(ISNUMBER(FIND("PRV",G$6)),1,0)))*IF(AND(G$3>0,TRIM(G$9)="CFS"),Conv_Flags!$C46,1)) -> 0 | I46: 1956 | J46: =B421 -> 52.47690201 | K46: =B422 -> 53.76999283 | L46: =B423 -> 51.20423508 | M46: =B424 -> 45.76622772 | N46: =B425 -> 44.0962677 | O46: =B426 -> 47.85972977 | P46: =B427 -> 53.44144058 | Q46: =B428 -> 53.29789734 | R46: =B429 -> 52.76081085 | S46: =B430 -> 52.40299225 | T46: =B431 -> 51.93545532 | U46: =B432 -> 51.01079559 | W46: 50.92580382 | X46: 51.60456657 | Y46: 50.83522892 | AA46: 50.80433941 | AB46: 47.0222435 | AC46: 51.83996964 | AD46: 52.0275135 | AE46: 52.35925166 | AG46: 1956 | AH46: ='Compile Data'!C421 -> 52.48088074 | AI46: ='Compile Data'!C422 -> 54.02134323 | AJ46: ='Compile Data'!C423 -> 51.02813721 | AK46: ='Compile Data'!C424 -> 45.67931366 | AL46: ='Compile Data'!C425 -> 44.05038834 | AM46: ='Compile Data'!C426 -> 47.85413361 | AN46: ='Compile Data'!C427 -> 53.46141052 | AO46: ='Compile Data'!C428 -> 53.30001068 | AP46: ='Compile Data'!C429 -> 52.75033569 | AQ46: ='Compile Data'!C430 -> 52.41028214 | AR46: ='Compile Data'!C431 -> 51.84479523 | AS46: ='Compile Data'!C432 -> 51.00215149 | AU46: 50.90285842 | AV46: 51.58951664 | AW46: 50.82359854 | AY46: 50.80241871 | AZ46: 46.91927973 | BA46: 51.84147263 | BB46: 52.00189114 | BC46: 52.34804789 | BE46: 1956 | BF46: ='Compile Data'!D421 -> 52.49566269 | BG46: ='Compile Data'!D422 -> 54.036026 | BH46: ='Compile Data'!D423 -> 51.11822128 | BI46: ='Compile Data'!D424 -> 45.72585297 | BJ46: ='Compile Data'!D425 -> 44.07945633 | BK46: ='Compile Data'!D426 -> 47.84253693 | BL46: ='Compile Data'!D427 -> 53.42581177 | BM46: ='Compile Data'!D428 -> 53.29495239 | BN46: ='Compile Data'!D429 -> 52.75294495 | BO46: ='Compile Data'!D430 -> 52.41340637 | BP46: ='Compile Data'!D431 -> 51.84395599 | BQ46: ='Compile Data'!D432 -> 51.01550293 | BS46: 50.91030884 | BT46: 51.59210396 | BU46: 50.83702755 | BW46: 50.84394073 | BX46: 46.97451019 | BY46: 51.82906151 | BZ46: 52.00645256 | CA46: 52.35222499 | CC46: 1956 | CD46: ='Compile Data'!E421 -> 0 | CE46: ='Compile Data'!E422 -> 0 | CF46: ='Compile Data'!E423 -> 0 | CG46: ='Compile Data'!E424 -> 0 | CH46: ='Compile Data'!E425 -> 0 | CI46: ='Compile Data'!E426 -> 0 | CJ46: ='Compile Data'!E427 -> 0 | CK46: ='Compile Data'!E428 -> 0 | CL46: ='Compile Data'!E429 -> 0 | CM46: ='Compile Data'!E430 -> 0 | CN46: ='Compile Data'!E431 -> 0 | CO46: ='Compile Data'!E432 -> 0 | CQ46: 0 | CR46: 0 | CS46: 0 | CU46: 0 | CV46: 0 | CW46: 0 | CX46: 0 | CY46: 0 | DA46: 1956 | DB46: ='Compile Data'!F421 -> 0 | DC46: ='Compile Data'!F422 -> 0 | DD46: ='Compile Data'!F423 -> 0 | DE46: ='Compile Data'!F424 -> 0 | DF46: ='Compile Data'!F425 -> 0 | DG46: ='Compile Data'!F426 -> 0 | DH46: ='Compile Data'!F427 -> 0 | DI46: ='Compile Data'!F428 -> 0 | DJ46: ='Compile Data'!F429 -> 0 | DK46: ='Compile Data'!F430 -> 0 | DL46: ='Compile Data'!F431 -> 0 | DM46: ='Compile Data'!F432 -> 0 | DO46: 0 | DP46: 0 | DQ46: 0 | DS46: 0 | DT46: 0 | DU46: 0 | DV46: 0 | DW46: 0 | DY46: 1956 | DZ46: ='Compile Data'!G421 -> 0 | EA46: ='Compile Data'!G422 -> 0 | EB46: ='Compile Data'!G423 -> 0 | EC46: ='Compile Data'!G424 -> 0 | ED46: ='Compile Data'!G425 -> 0 | EE46: ='Compile Data'!G426 -> 0 | EF46: ='Compile Data'!G427 -> 0 | EG46: ='Compile Data'!G428 -> 0 | EH46: ='Compile Data'!G429 -> 0 | EI46: ='Compile Data'!G430 -> 0 | EJ46: ='Compile Data'!G431 -> 0 | EK46: ='Compile Data'!G432 -> 0 | EM46: 0 | EN46: 0 | EO46: 0 | EQ46: 0 | ER46: 0 | ES46: 0 | ET46: 0 | EU46: 0
A47: 1924-08-31 | B47: =IF(INDIRECT(CONCATENATE("'",B$1,"'!",B$4,(YEAR($A47)-1921)*12+MONTH($A47)+3+IF(ISNUMBER(FIND("PRV",B$6)),1,0)))=-901,NA(),INDIRECT(CONCATENATE("'",B$1,"'!",B$4,(YEAR($A47)-1921)*12+MONTH($A47)+3+IF(ISNUMBER(FIND("PRV",B$6)),1,0)))*IF(AND(B$3>0,TRIM(B$9)="CFS"),Conv_Flags!$C47,1)) -> 54.20643234 | C47: =IF(INDIRECT(CONCATENATE("'",C$1,"'!",C$4,(YEAR($A47)-1921)*12+MONTH($A47)+3+IF(ISNUMBER(FIND("PRV",C$6)),1,0)))=-901,NA(),INDIRECT(CONCATENATE("'",C$1,"'!",C$4,(YEAR($A47)-1921)*12+MONTH($A47)+3+IF(ISNUMBER(FIND("PRV",C$6)),1,0)))*IF(AND(C$3>0,TRIM(C$9)="CFS"),Conv_Flags!$C47,1)) -> 53.65209579 | D47: =IF(INDIRECT(CONCATENATE("'",D$1,"'!",D$4,(YEAR($A47)-1921)*12+MONTH($A47)+3+IF(ISNUMBER(FIND("PRV",D$6)),1,0)))=-901,NA(),INDIRECT(CONCATENATE("'",D$1,"'!",D$4,(YEAR($A47)-1921)*12+MONTH($A47)+3+IF(ISNUMBER(FIND("PRV",D$6)),1,0)))*IF(AND(D$3>0,TRIM(D$9)="CFS"),Conv_Flags!$C47,1)) -> 53.76387405 | E47: =IF(INDIRECT(CONCATENATE("'",E$1,"'!",E$4,(YEAR($A47)-1921)*12+MONTH($A47)+3+IF(ISNUMBER(FIND("PRV",E$6)),1,0)))=-901,NA(),INDIRECT(CONCATENATE("'",E$1,"'!",E$4,(YEAR($A47)-1921)*12+MONTH($A47)+3+IF(ISNUMBER(FIND("PRV",E$6)),1,0)))*IF(AND(E$3>0,TRIM(E$9)="CFS"),Conv_Flags!$C47,1)) -> 0 | F47: =IF(INDIRECT(CONCATENATE("'",F$1,"'!",F$4,(YEAR($A47)-1921)*12+MONTH($A47)+3+IF(ISNUMBER(FIND("PRV",F$6)),1,0)))=-901,NA(),INDIRECT(CONCATENATE("'",F$1,"'!",F$4,(YEAR($A47)-1921)*12+MONTH($A47)+3+IF(ISNUMBER(FIND("PRV",F$6)),1,0)))*IF(AND(F$3>0,TRIM(F$9)="CFS"),Conv_Flags!$C47,1)) -> 0 | G47: =IF(INDIRECT(CONCATENATE("'",G$1,"'!",G$4,(YEAR($A47)-1921)*12+MONTH($A47)+3+IF(ISNUMBER(FIND("PRV",G$6)),1,0)))=-901,NA(),INDIRECT(CONCATENATE("'",G$1,"'!",G$4,(YEAR($A47)-1921)*12+MONTH($A47)+3+IF(ISNUMBER(FIND("PRV",G$6)),1,0)))*IF(AND(G$3>0,TRIM(G$9)="CFS"),Conv_Flags!$C47,1)) -> 0 | I47: 1957 | J47: =B433 -> 52.00453949 | K47: =B434 -> 54.06241989 | L47: =B435 -> 52.47106934 | M47: =B436 -> 49.87018967 | N47: =B437 -> 48.1374588 | O47: =B438 -> 49.528759 | P47: =B439 -> 54.32053375 | Q47: =B440 -> 52.40443802 | R47: =B441 -> 52.52804947 | S47: =B442 -> 52.06072617 | T47: =B443 -> 51.89471817 | U47: =B444 -> 53.34918594 | W47: 51.8266964 | X47: 51.55010796 | Y47: 51.88600731 | AA47: 52.1020546 | AB47: 50.1595726 | AC47: 52.19544506 | AD47: 52.45816994 | AE47: 53.03820674 | AG47: 1957 | AH47: ='Compile Data'!C433 -> 51.9930954 | AI47: ='Compile Data'!C434 -> 54.04889679 | AJ47: ='Compile Data'!C435 -> 52.43948746 | AK47: ='Compile Data'!C436 -> 49.86345291 | AL47: ='Compile Data'!C437 -> 48.10614777 | AM47: ='Compile Data'!C438 -> 49.53194046 | AN47: ='Compile Data'!C439 -> 54.30867386 | AO47: ='Compile Data'!C440 -> 52.40463638 | AP47: ='Compile Data'!C441 -> 53.06642151 | AQ47: ='Compile Data'!C442 -> 52.28671646 | AR47: ='Compile Data'!C443 -> 52.58453751 | AS47: ='Compile Data'!C444 -> 50.99836349 | AU47: 51.74784787 | AV47: 51.48175271 | AW47: 51.8026975 | AY47: 52.08623314 | AZ47: 50.13636271 | BA47: 52.32791805 | BB47: 52.23400974 | BC47: 52.23634593 | BE47: 1957 | BF47: ='Compile Data'!D433 -> 52.00711441 | BG47: ='Compile Data'!D434 -> 54.03405762 | BH47: ='Compile Data'!D435 -> 52.4881134 | BI47: ='Compile Data'!D436 -> 49.86917496 | BJ47: ='Compile Data'!D437 -> 48.11767578 | BK47: ='Compile Data'!D438 -> 49.53236389 | BL47: ='Compile Data'!D439 -> 54.31641006 | BM47: ='Compile Data'!D440 -> 52.4057579 | BN47: ='Compile Data'!D441 -> 53.06363678 | BO47: ='Compile Data'!D442 -> 52.28329086 | BP47: ='Compile Data'!D443 -> 52.2530098 | BQ47: ='Compile Data'!D444 -> 51.29867554 | BS47: 51.74251493 | BT47: 51.47767639 | BU47: 51.80577342 | BW47: 52.0996151 | BX47: 50.15832138 | BY47: 52.32954216 | BZ47: 52.22465324 | CA47: 52.31101481 | CC47: 1957 | CD47: ='Compile Data'!E433 -> 0 | CE47: ='Compile Data'!E434 -> 0 | CF47: ='Compile Data'!E435 -> 0 | CG47: ='Compile Data'!E436 -> 0 | CH47: ='Compile Data'!E437 -> 0 | CI47: ='Compile Data'!E438 -> 0 | CJ47: ='Compile Data'!E439 -> 0 | CK47: ='Compile Data'!E440 -> 0 | CL47: ='Compile Data'!E441 -> 0 | CM47: ='Compile Data'!E442 -> 0 | CN47: ='Compile Data'!E443 -> 0 | CO47: ='Compile Data'!E444 -> 0 | CQ47: 0 | CR47: 0 | CS47: 0 | CU47: 0 | CV47: 0 | CW47: 0 | CX47: 0 | CY47: 0 | DA47: 1957 | DB47: ='Compile Data'!F433 -> 0 | DC47: ='Compile Data'!F434 -> 0 | DD47: ='Compile Data'!F435 -> 0 | DE47: ='Compile Data'!F436 -> 0 | DF47: ='Compile Data'!F437 -> 0 | DG47: ='Compile Data'!F438 -> 0 | DH47: ='Compile Data'!F439 -> 0 | DI47: ='Compile Data'!F440 -> 0 | DJ47: ='Compile Data'!F441 -> 0 | DK47: ='Compile Data'!F442 -> 0 | DL47: ='Compile Data'!F443 -> 0 | DM47: ='Compile Data'!F444 -> 0 | DO47: 0 | DP47: 0 | DQ47: 0 | DS47: 0 | DT47: 0 | DU47: 0 | DV47: 0 | DW47: 0 | DY47: 1957 | DZ47: ='Compile Data'!G433 -> 0 | EA47: ='Compile Data'!G434 -> 0 | EB47: ='Compile Data'!G435 -> 0 | EC47: ='Compile Data'!G436 -> 0 | ED47: ='Compile Data'!G437 -> 0 | EE47: ='Compile Data'!G438 -> 0 | EF47: ='Compile Data'!G439 -> 0 | EG47: ='Compile Data'!G440 -> 0 | EH47: ='Compile Data'!G441 -> 0 | EI47: ='Compile Data'!G442 -> 0 | EJ47: ='Compile Data'!G443 -> 0 | EK47: ='Compile Data'!G444 -> 0 | EM47: 0 | EN47: 0 | EO47: 0 | EQ47: 0 | ER47: 0 | ES47: 0 | ET47: 0 | EU47: 0
A48: 1924-09-30 | B48: =IF(INDIRECT(CONCATENATE("'",B$1,"'!",B$4,(YEAR($A48)-1921)*12+MONTH($A48)+3+IF(ISNUMBER(FIND("PRV",B$6)),1,0)))=-901,NA(),INDIRECT(CONCATENATE("'",B$1,"'!",B$4,(YEAR($A48)-1921)*12+MONTH($A48)+3+IF(ISNUMBER(FIND("PRV",B$6)),1,0)))*IF(AND(B$3>0,TRIM(B$9)="CFS"),Conv_Flags!$C48,1)) -> 56.61570358 | C48: =IF(INDIRECT(CONCATENATE("'",C$1,"'!",C$4,(YEAR($A48)-1921)*12+MONTH($A48)+3+IF(ISNUMBER(FIND("PRV",C$6)),1,0)))=-901,NA(),INDIRECT(CONCATENATE("'",C$1,"'!",C$4,(YEAR($A48)-1921)*12+MONTH($A48)+3+IF(ISNUMBER(FIND("PRV",C$6)),1,0)))*IF(AND(C$3>0,TRIM(C$9)="CFS"),Conv_Flags!$C48,1)) -> 55.76191711 | D48: =IF(INDIRECT(CONCATENATE("'",D$1,"'!",D$4,(YEAR($A48)-1921)*12+MONTH($A48)+3+IF(ISNUMBER(FIND("PRV",D$6)),1,0)))=-901,NA(),INDIRECT(CONCATENATE("'",D$1,"'!",D$4,(YEAR($A48)-1921)*12+MONTH($A48)+3+IF(ISNUMBER(FIND("PRV",D$6)),1,0)))*IF(AND(D$3>0,TRIM(D$9)="CFS"),Conv_Flags!$C48,1)) -> 56.07388687 | E48: =IF(INDIRECT(CONCATENATE("'",E$1,"'!",E$4,(YEAR($A48)-1921)*12+MONTH($A48)+3+IF(ISNUMBER(FIND("PRV",E$6)),1,0)))=-901,NA(),INDIRECT(CONCATENATE("'",E$1,"'!",E$4,(YEAR($A48)-1921)*12+MONTH($A48)+3+IF(ISNUMBER(FIND("PRV",E$6)),1,0)))*IF(AND(E$3>0,TRIM(E$9)="CFS"),Conv_Flags!$C48,1)) -> 0 | F48: =IF(INDIRECT(CONCATENATE("'",F$1,"'!",F$4,(YEAR($A48)-1921)*12+MONTH($A48)+3+IF(ISNUMBER(FIND("PRV",F$6)),1,0)))=-901,NA(),INDIRECT(CONCATENATE("'",F$1,"'!",F$4,(YEAR($A48)-1921)*12+MONTH($A48)+3+IF(ISNUMBER(FIND("PRV",F$6)),1,0)))*IF(AND(F$3>0,TRIM(F$9)="CFS"),Conv_Flags!$C48,1)) -> 0 | G48: =IF(INDIRECT(CONCATENATE("'",G$1,"'!",G$4,(YEAR($A48)-1921)*12+MONTH($A48)+3+IF(ISNUMBER(FIND("PRV",G$6)),1,0)))=-901,NA(),INDIRECT(CONCATENATE("'",G$1,"'!",G$4,(YEAR($A48)-1921)*12+MONTH($A48)+3+IF(ISNUMBER(FIND("PRV",G$6)),1,0)))*IF(AND(G$3>0,TRIM(G$9)="CFS"),Conv_Flags!$C48,1)) -> 0 | I48: 1958 | J48: =B445 -> 51.48406982 | K48: =B446 -> 54.28136444 | L48: =B447 -> 52.06086349 | M48: =B448 -> 48.52260971 | N48: =B449 -> 46.16597748 | O48: =B450 -> 46.38961411 | P48: =B451 -> 50.47450638 | Q48: =B452 -> 55.21156693 | R48: =B453 -> 54.3184433 | S48: =B454 -> 52.65052032 | T48: =B455 -> 52.58733368 | U48: =B456 -> 50.68099976 | W48: 51.61248112 | X48: 52.07274087 | Y48: 51.23565578 | AA48: 51.58722687 | AB48: 48.91648356 | AC48: 51.59853268 | AD48: 52.55932426 | AE48: 52.29659017 | AG48: 1958 | AH48: ='Compile Data'!C445 -> 51.41914749 | AI48: ='Compile Data'!C446 -> 54.29152679 | AJ48: ='Compile Data'!C447 -> 52.11260986 | AK48: ='Compile Data'!C448 -> 48.57804108 | AL48: ='Compile Data'!C449 -> 46.19841766 | AM48: ='Compile Data'!C450 -> 46.40573502 | AN48: ='Compile Data'!C451 -> 50.48455048 | AO48: ='Compile Data'!C452 -> 54.76344299 | AP48: ='Compile Data'!C453 -> 54.77782059 | AQ48: ='Compile Data'!C454 -> 52.63669968 | AR48: ='Compile Data'!C455 -> 52.60234451 | AS48: ='Compile Data'!C456 -> 50.74759674 | AU48: 51.62653923 | AV48: 52.08141899 | AW48: 51.25149441 | AY48: 51.60033131 | AZ48: 48.96302287 | BA48: 51.60788727 | BB48: 52.69111538 | BC48: 52.31682841 | BE48: 1958 | BF48: ='Compile Data'!D445 -> 51.36460114 | BG48: ='Compile Data'!D446 -> 54.26976776 | BH48: ='Compile Data'!D447 -> 52.13581467 | BI48: ='Compile Data'!D448 -> 48.59922791 | BJ48: ='Compile Data'!D449 -> 46.20956039 | BK48: ='Compile Data'!D450 -> 46.41079712 | BL48: ='Compile Data'!D451 -> 50.49018097 | BM48: ='Compile Data'!D452 -> 54.76777649 | BN48: ='Compile Data'!D453 -> 54.77545929 | BO48: ='Compile Data'!D454 -> 52.64050674 | BP48: ='Compile Data'!D455 -> 52.60160828 | BQ48: ='Compile Data'!D456 -> 50.75167465 | BS48: 51.63029544 | BT48: 52.07920488 | BU48: 51.25141462 | BW48: 51.59235287 | BX48: 48.98153432 | BY48: 51.61105347 | BZ48: 52.69231224 | CA48: 52.3157018 | CC48: 1958 | CD48: ='Compile Data'!E445 -> 0 | CE48: ='Compile Data'!E446 -> 0 | CF48: ='Compile Data'!E447 -> 0 | CG48: ='Compile Data'!E448 -> 0 | CH48: ='Compile Data'!E449 -> 0 | CI48: ='Compile Data'!E450 -> 0 | CJ48: ='Compile Data'!E451 -> 0 | CK48: ='Compile Data'!E452 -> 0 | CL48: ='Compile Data'!E453 -> 0 | CM48: ='Compile Data'!E454 -> 0 | CN48: ='Compile Data'!E455 -> 0 | CO48: ='Compile Data'!E456 -> 0 | CQ48: 0 | CR48: 0 | CS48: 0 | CU48: 0 | CV48: 0 | CW48: 0 | CX48: 0 | CY48: 0 | DA48: 1958 | DB48: ='Compile Data'!F445 -> 0 | DC48: ='Compile Data'!F446 -> 0 | DD48: ='Compile Data'!F447 -> 0 | DE48: ='Compile Data'!F448 -> 0 | DF48: ='Compile Data'!F449 -> 0 | DG48: ='Compile Data'!F450 -> 0 | DH48: ='Compile Data'!F451 -> 0 | DI48: ='Compile Data'!F452 -> 0 | DJ48: ='Compile Data'!F453 -> 0 | DK48: ='Compile Data'!F454 -> 0 | DL48: ='Compile Data'!F455 -> 0 | DM48: ='Compile Data'!F456 -> 0 | DO48: 0 | DP48: 0 | DQ48: 0 | DS48: 0 | DT48: 0 | DU48: 0 | DV48: 0 | DW48: 0 | DY48: 1958 | DZ48: ='Compile Data'!G445 -> 0 | EA48: ='Compile Data'!G446 -> 0 | EB48: ='Compile Data'!G447 -> 0 | EC48: ='Compile Data'!G448 -> 0 | ED48: ='Compile Data'!G449 -> 0 | EE48: ='Compile Data'!G450 -> 0 | EF48: ='Compile Data'!G451 -> 0 | EG48: ='Compile Data'!G452 -> 0 | EH48: ='Compile Data'!G453 -> 0 | EI48: ='Compile Data'!G454 -> 0 | EJ48: ='Compile Data'!G455 -> 0 | EK48: ='Compile Data'!G456 -> 0 | EM48: 0 | EN48: 0 | EO48: 0 | EQ48: 0 | ER48: 0 | ES48: 0 | ET48: 0 | EU48: 0
A49: 1924-10-31 | B49: =IF(INDIRECT(CONCATENATE("'",B$1,"'!",B$4,(YEAR($A49)-1921)*12+MONTH($A49)+3+IF(ISNUMBER(FIND("PRV",B$6)),1,0)))=-901,NA(),INDIRECT(CONCATENATE("'",B$1,"'!",B$4,(YEAR($A49)-1921)*12+MONTH($A49)+3+IF(ISNUMBER(FIND("PRV",B$6)),1,0)))*IF(AND(B$3>0,TRIM(B$9)="CFS"),Conv_Flags!$C49,1)) -> 57.47820663 | C49: =IF(INDIRECT(CONCATENATE("'",C$1,"'!",C$4,(YEAR($A49)-1921)*12+MONTH($A49)+3+IF(ISNUMBER(FIND("PRV",C$6)),1,0)))=-901,NA(),INDIRECT(CONCATENATE("'",C$1,"'!",C$4,(YEAR($A49)-1921)*12+MONTH($A49)+3+IF(ISNUMBER(FIND("PRV",C$6)),1,0)))*IF(AND(C$3>0,TRIM(C$9)="CFS"),Conv_Flags!$C49,1)) -> 56.88410187 | D49: =IF(INDIRECT(CONCATENATE("'",D$1,"'!",D$4,(YEAR($A49)-1921)*12+MONTH($A49)+3+IF(ISNUMBER(FIND("PRV",D$6)),1,0)))=-901,NA(),INDIRECT(CONCATENATE("'",D$1,"'!",D$4,(YEAR($A49)-1921)*12+MONTH($A49)+3+IF(ISNUMBER(FIND("PRV",D$6)),1,0)))*IF(AND(D$3>0,TRIM(D$9)="CFS"),Conv_Flags!$C49,1)) -> 57.34565735 | E49: =IF(INDIRECT(CONCATENATE("'",E$1,"'!",E$4,(YEAR($A49)-1921)*12+MONTH($A49)+3+IF(ISNUMBER(FIND("PRV",E$6)),1,0)))=-901,NA(),INDIRECT(CONCATENATE("'",E$1,"'!",E$4,(YEAR($A49)-1921)*12+MONTH($A49)+3+IF(ISNUMBER(FIND("PRV",E$6)),1,0)))*IF(AND(E$3>0,TRIM(E$9)="CFS"),Conv_Flags!$C49,1)) -> 0 | F49: =IF(INDIRECT(CONCATENATE("'",F$1,"'!",F$4,(YEAR($A49)-1921)*12+MONTH($A49)+3+IF(ISNUMBER(FIND("PRV",F$6)),1,0)))=-901,NA(),INDIRECT(CONCATENATE("'",F$1,"'!",F$4,(YEAR($A49)-1921)*12+MONTH($A49)+3+IF(ISNUMBER(FIND("PRV",F$6)),1,0)))*IF(AND(F$3>0,TRIM(F$9)="CFS"),Conv_Flags!$C49,1)) -> 0 | G49: =IF(INDIRECT(CONCATENATE("'",G$1,"'!",G$4,(YEAR($A49)-1921)*12+MONTH($A49)+3+IF(ISNUMBER(FIND("PRV",G$6)),1,0)))=-901,NA(),INDIRECT(CONCATENATE("'",G$1,"'!",G$4,(YEAR($A49)-1921)*12+MONTH($A49)+3+IF(ISNUMBER(FIND("PRV",G$6)),1,0)))*IF(AND(G$3>0,TRIM(G$9)="CFS"),Conv_Flags!$C49,1)) -> 0 | I49: 1959 | J49: =B457 -> 51.87693405 | K49: =B458 -> 54.3318367 | L49: =B459 -> 56.139431 | M49: =B460 -> 51.10477829 | N49: =B461 -> 49.10692596 | O49: =B462 -> 52.5344696 | P49: =B463 -> 55.60414124 | Q49: =B464 -> 53.72312927 | R49: =B465 -> 51.92012405 | S49: =B466 -> 52.19953156 | T49: =B467 -> 52.64880371 | U49: =B468 -> 54.95310211 | W49: 53.159235 | X49: 53.25695197 | Y49: 53.01193396 | AA49: 53.36324501 | AB49: 52.11704508 | AC49: 53.44546604 | AD49: 52.93039036 | AE49: 54.74616496 | AG49: 1959 | AH49: ='Compile Data'!C457 -> 51.87956238 | AI49: ='Compile Data'!C458 -> 54.32332611 | AJ49: ='Compile Data'!C459 -> 56.12093353 | AK49: ='Compile Data'!C460 -> 51.13936996 | AL49: ='Compile Data'!C461 -> 49.0956459 | AM49: ='Compile Data'!C462 -> 52.50664902 | AN49: ='Compile Data'!C463 -> 55.94351196 | AO49: ='Compile Data'!C464 -> 54.25772858 | AP49: ='Compile Data'!C465 -> 52.33996582 | AQ49: ='Compile Data'!C466 -> 52.51358032 | AR49: ='Compile Data'!C467 -> 52.59858704 | AS49: ='Compile Data'!C468 -> 54.29565048 | AU49: 53.07369105 | AV49: 53.14902941 | AW49: 53.08454259 | AY49: 53.365798 | AZ49: 52.1186498 | BA49: 53.76196384 | BB49: 52.93694592 | BC49: 53.94074504 | BE49: 1959 | BF49: ='Compile Data'!D457 -> 51.86722565 | BG49: ='Compile Data'!D458 -> 54.32820511 | BH49: ='Compile Data'!D459 -> 56.12132263 | BI49: ='Compile Data'!D460 -> 51.10192108 | BJ49: ='Compile Data'!D461 -> 49.09378052 | BK49: ='Compile Data'!D462 -> 52.51969147 | BL49: ='Compile Data'!D463 -> 55.70580673 | BM49: ='Compile Data'!D464 -> 54.15473175 | BN49: ='Compile Data'!D465 -> 52.36884308 | BO49: ='Compile Data'!D466 -> 52.38877869 | BP49: ='Compile Data'!D467 -> 52.52632141 | BQ49: ='Compile Data'!D468 -> 54.30620193 | BS49: 53.04990419 | BT49: 53.14090443 | BU49: 53.04023584 | BW49: 53.35466862 | BX49: 52.10567474 | BY49: 53.68726826 | BZ49: 52.89753628 | CA49: 54.03089015 | CC49: 1959 | CD49: ='Compile Data'!E457 -> 0 | CE49: ='Compile Data'!E458 -> 0 | CF49: ='Compile Data'!E459 -> 0 | CG49: ='Compile Data'!E460 -> 0 | CH49: ='Compile Data'!E461 -> 0 | CI49: ='Compile Data'!E462 -> 0 | CJ49: ='Compile Data'!E463 -> 0 | CK49: ='Compile Data'!E464 -> 0 | CL49: ='Compile Data'!E465 -> 0 | CM49: ='Compile Data'!E466 -> 0 | CN49: ='Compile Data'!E467 -> 0 | CO49: ='Compile Data'!E468 -> 0 | CQ49: 0 | CR49: 0 | CS49: 0 | CU49: 0 | CV49: 0 | CW49: 0 | CX49: 0 | CY49: 0 | DA49: 1959 | DB49: ='Compile Data'!F457 -> 0 | DC49: ='Compile Data'!F458 -> 0 | DD49: ='Compile Data'!F459 -> 0 | DE49: ='Compile Data'!F460 -> 0 | DF49: ='Compile Data'!F461 -> 0 | DG49: ='Compile Data'!F462 -> 0 | DH49: ='Compile Data'!F463 -> 0 | DI49: ='Compile Data'!F464 -> 0 | DJ49: ='Compile Data'!F465 -> 0 | DK49: ='Compile Data'!F466 -> 0 | DL49: ='Compile Data'!F467 -> 0 | DM49: ='Compile Data'!F468 -> 0 | DO49: 0 | DP49: 0 | DQ49: 0 | DS49: 0 | DT49: 0 | DU49: 0 | DV49: 0 | DW49: 0 | DY49: 1959 | DZ49: ='Compile Data'!G457 -> 0 | EA49: ='Compile Data'!G458 -> 0 | EB49: ='Compile Data'!G459 -> 0 | EC49: ='Compile Data'!G460 -> 0 | ED49: ='Compile Data'!G461 -> 0 | EE49: ='Compile Data'!G462 -> 0 | EF49: ='Compile Data'!G463 -> 0 | EG49: ='Compile Data'!G464 -> 0 | EH49: ='Compile Data'!G465 -> 0 | EI49: ='Compile Data'!G466 -> 0 | EJ49: ='Compile Data'!G467 -> 0 | EK49: ='Compile Data'!G468 -> 0 | EM49: 0 | EN49: 0 | EO49: 0 | EQ49: 0 | ER49: 0 | ES49: 0 | ET49: 0 | EU49: 0
